Workbook

Sheet LDC Info
Z3: 1 | AA3: Alectra Utilities Corporation-Brampton Rate Zone
Z4: 2 | AA4: Alectra Utilities Corporation-Enersource Rate Zone
Z5: 3 | AA5: Alectra Utilities Corporation-Horizon Utilities Rate Zone
Z6: 4 | AA6: Alectra Utilities Corporation-PowerStream Rate Zone
Z7: 5 | AA7: Alectra Utilities Corporation-Guelph Rate Zone
Z8: 6 | AA8: Algoma Power Inc.
Z9: 7 | AA9: Atikokan Hydro Inc.
Z10: 8 | AA10: Bluewater Power Distribution Corporation
Z11: 9 | AA11: Brantford Power Inc.
Z12: 10 | AA12: Burlington Hydro Inc.
Z13: 11 | AA13: Canadian Niagara Power Inc.
D14: Utility Name | E14: Burlington Hydro Inc. | Z14: 12 | AA14: Centre Wellington Hydro Ltd.
Z15: 13 | AA15: Chapleau Public Utilities Corporation
D16: Assigned EB Number | E16: EB-2020-0007 | Z16: 14 | AA16: Cooperative Hydro Embrun Inc.
Z17: 15 | AA17: E.L.K. Energy Inc.
D18: Name of Contact and Title | E18: Sally Blackwell, VP Regulatory Compliance and Asset Management | Z18: 16 | AA18: Elexicon Energy Inc.-Whitby Rate Zone
Z19: 17 | AA19: Elexicon Energy Inc.-Veridian Rate Zone
D20: Phone Number | E20: 905-336-4373 | Z20: 18 | AA20: Energy+ Inc.
Z21: 19 | AA21: Entegrus Powerlines Inc.-For Entegrus-Main Rate Zone
D22: Email Address | E22: sblackwell@burlingtonhydro.com | Z22: 20 | AA22: Entegrus Powerlines Inc.-For Former St. Thomas Energy Rate Zone
Z23: 21 | AA23: ENWIN Utilities Ltd.
D24: Test Year | E24: 2021 | Z24: 22 | AA24: EPCOR Electricity Distribution Ontario Inc.
Z25: 23 | AA25: ERTH Power Corporation - ERTH Power Main Rate Zone
D26: Bridge Year | E26: =IF(ISBLANK(E24), "", E24-1) -> 2020 | Z26: 24 | AA26: ERTH POWER CORPORATION – GODERICH RATE ZONE
Z27: 25 | AA27: Essex Powerlines Corporation
D28: Last Rebasing Year | E28: 2014 | Z28: 26 | AA28: Festival Hydro Inc.
Z29: 27 | AA29: Fort Frances Power Corporation
A30: Identify the accounting standard used for the test year | Z30: 28 | AA30: Greater Sudbury Hydro Inc.
E31: MIFRS | Z31: 29 | AA31: Grimsby Power Incorporated
Z32: 30 | AA32: Halton Hills Hydro Inc.
A33: ="Did "& E14 &" update its depreciation and capitalization policies?" -> Did Burlington Hydro Inc. update its depreciation and capitalization policies? | Z33: 31 | AA33: Hearst Power Distribution Co. Ltd.
E34: Yes | Z34: 32 | AA34: Hydro 2000 Inc.
Z35: 33 | AA35: Hydro Hawkesbury Inc.
A36: If "yes" to cell E34, were the changes in policies reflected in a prior rebasing application? | Z36: 34 | AA36: Hydro One Networks Inc.
E37: Yes | Z37: 35 | AA37: Hydro One Networks Inc.-Former Haldimand County Hydro Inc. Service Area
Z38: 36 | AA38: Hydro One Networks Inc.-Former Norfolk Power Distribution Inc. Service Area
A39: ="When did "&E14&" update its actual depreciation and capitalization policies?" -> When did Burlington Hydro Inc. update its actual depreciation and capitalization policies? | Z39: 37 | AA39: Hydro One Networks Inc.-Former Woodstock Hydro Services Inc. Service Area
E40: 2001-01-01 | F40: 2013 | Z40: 38 | AA40: Hydro One Remote Communites Inc.
Z41: 39 | AA41: Hydro Ottawa Limited
A42: Identify the year the applicant adopted IFRS for financial reporting purposes | Z42: 40 | AA42: InnPower Corporation
E43: 2015 | Z43: 41 | AA43: Kingston Hydro Corporation
Z44: 42 | AA44: Kitchener-Wilmot Hydro Inc.
Z45: 43 | AA45: Lakefront Utilities Inc.
A46: ="Is " & E14 & " applying for cost recovery for the test and/or future year(s) for Green Energy initiatives?" -> Is Burlington Hydro Inc. applying for cost recovery for the test and/or future year(s) for Green Energy initiatives? | Z46: 44 | AA46: Lakeland Power Distribution Ltd.
E47: No | Z47: 45 | AA47: Lakeland Power Distribution Ltd.-Parry Sound Service Area
Z48: 46 | AA48: London Hydro Inc.
A49: ="Is " & E14 & " an embedded distributor?" -> Is Burlington Hydro Inc. an embedded distributor? | E49: No | Z49: 47 | AA49: Milton Hydro Distribution Inc.
Z50: 48 | AA50: Newmarket-Tay Power Distribution Ltd.-For Former Midland Power Utility Rate Zone
Z51: 49 | AA51: Newmarket-Tay Power Distribution Ltd.-For Newmarket-Tay Power Main Rate Zone
B52: Notes | Z52: 50 | AA52: Niagara Peninsula Energy Inc.
Z53: 51 | AA53: Niagara-on-the-Lake Hydro Inc.
C54: Pale green cells represent input cells. | Z54: 52 | AA54: North Bay Hydro Distribution Limited - Espanola service territory
Z55: 53 | AA55: North Bay Hydro Distribution Limited - North Bay service territory
C56: Pale blue cells represent drop-down lists. The applicant should select the appropriate item from the drop-down list. | Z56: 54 | AA56: Northern Ontario Wires Inc.
Z57: 55 | AA57: Oakville Hydro Electricity Distribution Inc.
C58: White cells contain fixed values, automatically generated values or formulae. | N58: =IF(LEN($G58)>1, (SUMPRODUCT(--($C$81:$C$1003=$C58),--($A$81:$A$1003=$D58), --($B$81:$B$1003=$B58&"_TOTAL"), $L$1:$L$889)), "") ->  | O58: =IF(LEN($G58)>1, (SUMPRODUCT(--($C$81:$C$1003=$C58),--($A$81:$A$1003=$D58), --($B$81:$B$1003=$B58&"_TOTAL"), $M$1:$M$889)), "") ->  | Z58: 56 | AA58: Orangeville Hydro Limited
Z59: 57 | AA59: Orillia Power Distribution Corporation
Z60: 58 | AA60: Oshawa PUC Networks Inc.
Z61: 59 | AA61: Ottawa River Power Corporation
Z62: 60 | AA62: Peterborough Distribution Incorporated
Z63: 61 | AA63: PUC Distribution Inc.
Z64: 62 | AA64: Renfrew Hydro Inc.
Z65: 63 | AA65: Rideau St. Lawrence Distribution Inc.
Z66: 64 | AA66: Sioux Lookout Hydro Inc.
Z67: 65 | AA67: Synergy North Corporation-Kenora Rate Zone
Z68: 66 | AA68: Synergy North Corporation-Thunder Bay Rate Zone
Z69: 67 | AA69: Tillsonburg Hydro Inc.
Z70: 68 | AA70: Toronto Hydro-Electric System Limited
Z71: 69 | AA71: Wasaga Distribution Inc.
Z72: 70 | AA72: Waterloo North Hydro Inc.
Z73: 71 | AA73: Welland Hydro-Electric System Corp.
Z74: 72 | AA74: Wellington North Power Inc.
Z75: 73 | AA75: Westario Power Inc.

Sheet Index
A15: 1 | B15: LDC Information Sheet | E15: 20 | F15: App.2-G: Service Reliability Indicators
A16: 2 | B16: Index | E16: 21 | F16: App.2-H: Other Operating Revenue (TO BE UPDATED AT THE DRAFT RATE ORDER STAGE)
A17: 3 | B17: Cost of Service Application Flowchart | E17: 22 | F17: App.2-I: Load Forecast CDM Adjustment Workform
A18: 4 | B18: List of Key References | E18: 23 | F18: App.2-IA: Load Forecast Data Instructions
A19: 5 | B19: App.2-A: List of Requested Approvals | E19: 24 | F19: App.2-IB: Actual and Forecast Load and Customer Data
A20: 6 | B20: App.2-AA: Capital Projects Table | E20: 25 | F20: App.2-JA: OM&A Summary Analysis (TO BE UPDATED AT THE DRAFT RATE ORDER STAGE)
A21: 7 | B21: App.2-AB: Capital Expenditures (TO BE UPDATED AT THE DRAFT RATE ORDER STAGE) | E21: 26 | F21: App.2-JB: Recoverable OM&A Cost Driver Table
A22: 8 | B22: App. 2-AC: Customer Engagement Worksheet | E22: 27 | F22: App.2-JC: OM&A Programs Table
A23: 9 | B23: App.2-B: General Accounting Instructions | E23: 28 | F23: App.2-K: Employee Costs (TO BE UPDATED AT THE DRAFT RATE ORDER STAGE)
A24: 10 | B24: App.2-BA: Fixed Asset Continuity Schedule | E24: 29 | F24: App.2-L: Recoverable OM&A Cost per Customer and per FTE
A25: 11 | B25: Appendix 2-BB: Service Life Comparison | E25: 30 | F25: App.2-M: Regulatory Costs Schedule (TO BE UPDATED AT THE DRAFT RATE ORDER STAGE)
A26: 12 | B26: App.2-C_DepExp: Depreciation and Amortization Expense | E26: 31 | F26: App.2-N: Shared Services and Corporate Cost Allocation
A27: 13 | B27: App.2-D: Overhead Expenses | E27: 32 | F27: App.2-OA: Capital Structure and Cost of Capital
A28: 14 | B28: App.2-EA: Account 1575 PP&E Deferral Account (2015 IFRS Adopters) - CONTACT OEB STAFF IF TAB REQUIRED | E28: 33 | F28: App.2-OB: Debt Instruments
A29: 15 | B29: App.2-EB: Account 1576 - Accounting Changes Under CGAAP (2012 Changes) - CONTACT OEB STAFF IF TAB REQUIRED | E29: 34 | F29: App.2-Q: Cost of Serving Embedded Distributor(s)
A30: 16 | B30: App.2-EC: Account 1576 - Accounting Changes Under CGAAP (2013 Changes) - CONTACT OEB STAFF IF TAB REQUIRED | E30: 35 | F30: App.2-R: Loss Factors
A31: 17 | B31: App.2-FA: Renewable Generation Connection Investment Summary (TO BE UPDATED AT THE DRAFT RATE ORDER STAGE) | E31: 36 | F31: App.2-S: Stranded Meter Treatment
A32: 18 | B32: App.2-FB: Calculation of Renewable Generation Connection Direct Benefits/Provincial Amount: Renewable Enabling Improvement Investments (TO BE UPDATED AT THE DRAFT RATE ORDER STAGE) | E32: 37 | F32: App.2-Y: Transition to MIFRS Summary Impact - CONTACT OEB STAFF IF TAB REQUIRED
A33: 19 | B33: App.2-FC: Calculation of Renewable Generation Connection Direct Benefits/Provincial Amount: Renewable Expansion Investments (TO BE UPDATED AT THE DRAFT RATE ORDER STAGE) | E33: 38 | F33: App.2-YA: One-Time Incremental IFRS Transition Costs - CONTACT OEB STAFF IF TAB REQUIRED
E34: 39 | F34: App.2-Z: Commodity Expense
A42: Note: | B42: Appendices for the Tariff of Rates and Charges at Current and Proposed Rates, and for the Bill Impacts are now in a separate spreadsheet model. These appendices were formerly 2-Z and 2-W.

Sheet COS Flowchart
B4: Cost of Service Rate Application Schematic
B6: The Cost of Service Rate Application Schematic is a flowchart that is included as a guide for the components of an application. The schematic demonstrates how demand and costs interrelate to derive the revenue requirement and how the revenue requirement is allocated between classes and through fixed/variable splits to derive rates that will be compensatory for the annual revenue requirement, based on the the forecasted demand. There is no form to be filled out; therefore, this Schedule is not required to be filed.

Sheet List of Key References
B2: List of Key References
A4: A list of key references for understanding the Filing Requirements has been embedded in the document below. To access the list of references and associated hyperlinks double-click the icon below.

Sheet App.2-A_Requested_Approvals
G1: File Number: | H1: =EBNUMBER -> EB-2020-0007
G2: Exhibit:
G3: Tab:
G4: Schedule:
G5: Page:
G7: Date:
B9: Appendix 2-A
B10: List of Requested Approvals
B12: The distributor must fill out the following sheet with the complete list of specific approvals requested and relevant section(s) of the legislation must be provided. All approvals, including accounting orders (deferral and variance accounts) new rate classes, revised specific service charges or retail service charges which the applicant is seeking, must be separately identified, as well being clearly documented in the appropriate sections of the application.
B14: Additional requests may be added by copying and pasting blank input rows, as needed.
B16: If additional requests arise, or requested approvals are removed, during the processing of the application, the distributor should update this list.
B18: =CONCATENATE('LDC Info'!E14," is seeking the following approvals in this application:") -> Burlington Hydro Inc. is seeking the following approvals in this application:
B20: 1

Sheet App.2-AA_Capital Projects
I1: File Number: | J1: =EBNUMBER -> EB-2020-0007
I2: Exhibit:
I3: Tab:
I4: Schedule:
I5: Page:
I7: Date:
A9: Appendix 2-AA
A10: Capital Projects Table
A13: Projects | B13: =C13-1 -> 2014 | C13: =D13-1 -> 2015 | D13: =E13-1 -> 2016 | E13: =F13-1 -> 2017 | F13: =G13-1 -> 2018 | G13: =BridgeYear - 1 -> 2019 | H13: =BridgeYear & " Bridge Year" -> 2020 Bridge Year | I13: =TestYear & " Test Year" -> 2021 Test Year
A14: Reporting Basis
A60: Less Renewable Generation Facility Assets and Other Non-Rate-Regulated Utility Assets (input as negative)
A61: Total | B61: =B59+B60 -> 0 | C61: =C59+C60 -> 0 | D61: =D59+D60 -> 0 | E61: 0 | F61: 0 | G61: 0 | H61: 0 | I61: 0
A63: Notes:
A65: 1 Please provide a breakdown of the major components of each capital project undertaken in each year. Please ensure that all projects below the materiality threshold are included in the miscellaneous line. Add more projects as required.
A66: 2 The applicant should group projects appropriately and avoid presentations that result in classification of significant components of the capital budget in the miscellaneous category.

Sheet App.2-AB_Capital Expenditures
AE1: File Number: | AG1: =EBNUMBER -> EB-2020-0007
AE2: Exhibit:
AE3: Tab:
AE4: Schedule:
A5: TO BE UPDATED AT THE DRAFT RATE ORDER STAGE | AE5: Page:
AE7: Date:
A9: Appendix 2-AB
A10: Table 2 - Capital Expenditure Summary from Chapter 5 Consolidated Distribution System Plan Filing Requirements
A11: First year of Forecast Period:
A12: =TestYear -> 2021
A13: CATEGORY | B13: Historical Period (previous plan1 & actual) | AC13: Forecast Period (planned)
B14: =E14-1 -> 2012 | E14: =H14-1 -> 2013 | H14: =K14-1 -> 2014 | K14: =N14-1 -> 2015 | N14: =Q14-1 -> 2016 | Q14: =T14-1 -> 2017 | T14: =W14-1 -> 2018 | W14: =Z14-1 -> 2019 | Z14: =AC14-1 -> 2020 | AC14: =A12 -> 2021 | AD14: =AC14+1 -> 2022 | AE14: =AD14+1 -> 2023 | AF14: =AE14+1 -> 2024 | AG14: =AF14+1 -> 2025
B15: Plan | C15: Actual | D15: Var | E15: Plan | F15: Actual | G15: Var | H15: Plan | I15: Actual | J15: Var | K15: Plan | L15: Actual | M15: Var | N15: Plan | O15: Actual | P15: Var | Q15: Plan | R15: Actual | S15: Var | T15: Plan | U15: Actual | V15: Var | W15: Plan | X15: Actual | Y15: Var | Z15: Plan | AA15: Actual2 | AB15: Var
B16: $ '000 | D16: % | E16: $ '000 | G16: % | H16: $ '000 | J16: % | K16: $ '000 | M16: % | N16: $ '000 | P16: % | Q16: $ '000 | S16: % | T16: $ '000 | V16: % | W16: $ '000 | Y16: % | Z16: $ '000 | AB16: % | AC16: $ '000
A17: System Access | D17: =IF(ISERROR((C17-B17)/B17),"--",(C17-B17)/B17) -> -- | G17: =IF(ISERROR((F17-E17)/E17),"--",(F17-E17)/E17) -> -- | J17: =IF(ISERROR((I17-H17)/H17),"--",(I17-H17)/H17) -> -- | M17: =IF(ISERROR((L17-K17)/K17),"--",(L17-K17)/K17) -> -- | P17: =IF(ISERROR((O17-N17)/N17),"--",(O17-N17)/N17) -> -- | S17: =IF(ISERROR((R17-Q17)/Q17),"--",(R17-Q17)/Q17) -> -- | V17: =IF(ISERROR((U17-T17)/T17),"--",(U17-T17)/T17) -> -- | Y17: =IF(ISERROR((X17-W17)/W17),"--",(X17-W17)/W17) -> -- | AB17: =IF(ISERROR((AA17-Z17)/Z17),"--",(AA17-Z17)/Z17) -> --
A18: System Renewal | D18: =IF(ISERROR((C18-B18)/B18),"--",(C18-B18)/B18) -> -- | G18: =IF(ISERROR((F18-E18)/E18),"--",(F18-E18)/E18) -> -- | J18: =IF(ISERROR((I18-H18)/H18),"--",(I18-H18)/H18) -> -- | M18: =IF(ISERROR((L18-K18)/K18),"--",(L18-K18)/K18) -> -- | P18: =IF(ISERROR((O18-N18)/N18),"--",(O18-N18)/N18) -> -- | S18: =IF(ISERROR((R18-Q18)/Q18),"--",(R18-Q18)/Q18) -> -- | V18: =IF(ISERROR((U18-T18)/T18),"--",(U18-T18)/T18) -> -- | Y18: =IF(ISERROR((X18-W18)/W18),"--",(X18-W18)/W18) -> -- | AB18: =IF(ISERROR((AA18-Z18)/Z18),"--",(AA18-Z18)/Z18) -> --
A19: System Service | D19: -- | G19: -- | J19: -- | M19: -- | P19: -- | S19: -- | V19: -- | Y19: -- | AB19: --
A20: General Plant | D20: -- | G20: -- | J20: -- | M20: -- | P20: -- | S20: -- | V20: -- | Y20: -- | AB20: --
A21: TOTAL EXPENDITURE | B21: =SUM(B17:B20) -> 0 | C21: =SUM(C17:C20) -> 0 | D21: -- | E21: =SUM(E17:E20) -> 0 | F21: =SUM(F17:F20) -> 0 | G21: -- | H21: =SUM(H17:H20) -> 0 | I21: =SUM(I17:I20) -> 0 | J21: -- | K21: =SUM(K17:K20) -> 0 | L21: =SUM(L17:L20) -> 0 | M21: -- | N21: =SUM(N17:N20) -> 0 | O21: =SUM(O17:O20) -> 0 | P21: -- | Q21: 0 | R21: 0 | S21: -- | T21: 0 | U21: 0 | V21: -- | W21: 0 | X21: 0 | Y21: -- | Z21: 0 | AA21: 0 | AB21: -- | AC21: 0 | AD21: 0 | AE21: 0 | AF21: 0 | AG21: =SUM(AG17:AG20) -> 0
A22: Capital Contributions | D22: -- | G22: -- | J22: -- | M22: -- | P22: -- | S22: -- | V22: -- | Y22: -- | AB22: --
A23: Net Capital Expenditures | D23: -- | G23: -- | J23: -- | M23: -- | P23: -- | S23: -- | V23: -- | Y23: -- | AA23: =AA21+AA22 -> 0 | AB23: --
A24: System O&M | D24: -- | G24: -- | J24: -- | M24: -- | P24: -- | S24: -- | V24: -- | Y24: -- | AB24: --
A26: Notes to the Table:
A27: 1. Historical “previous plan” data is not required unless a plan has previously been filed. However, use the last OEB-approved, at least on a Total (Capital) Expenditure basis for the last cost of service rebasing year, and the applicant should include their planned budget in each subsequent historical year up to and including the Bridge Year.
A28: 2. Indicate the number of months of 'actual' data included in the last year of the Historical Period (normally a 'bridge' year):
A30: Explanatory Notes on Variances (complete only if applicable)
A31: Notes on shifts in forecast vs. historical budgets by category
A34: Notes on year over year Plan vs. Actual variances for Total Expenditures
A37: Notes on Plan vs. Actual variance trends for individual expenditure categories

Sheet Hidden_CAPEX (hidden)
A1: Utility Name | B1: EB Number | C1: Test Year | D1: Bridge Year | E1: Last Rebasing Year | F1: Category | G1: Year | H1: Plan | I1: Actual
A2: ='LDC Info'!$E$14 -> Burlington Hydro Inc. | B2: =EBNUMBER -> EB-2020-0007 | C2: =TestYear -> 2021 | D2: =BridgeYear -> 2020 | E2: =RebaseYear -> 2014 | F2: System Access | G2: ='App.2-AB_Capital Expenditures'!B14 -> 2012 | H2: ='App.2-AB_Capital Expenditures'!B17 -> 0 | I2: ='App.2-AB_Capital Expenditures'!C17 -> 0
A3: ='LDC Info'!$E$14 -> Burlington Hydro Inc. | B3: EB-2020-0007 | C3: 2021 | D3: 2020 | E3: 2014 | F3: System Renewal | G3: ='App.2-AB_Capital Expenditures'!B14 -> 2012 | H3: ='App.2-AB_Capital Expenditures'!B18 -> 0 | I3: ='App.2-AB_Capital Expenditures'!C18 -> 0
A4: ='LDC Info'!$E$14 -> Burlington Hydro Inc. | B4: EB-2020-0007 | C4: 2021 | D4: 2020 | E4: 2014 | F4: System Service | G4: ='App.2-AB_Capital Expenditures'!B14 -> 2012 | H4: ='App.2-AB_Capital Expenditures'!B19 -> 0 | I4: ='App.2-AB_Capital Expenditures'!C19 -> 0
A5: ='LDC Info'!$E$14 -> Burlington Hydro Inc. | B5: EB-2020-0007 | C5: 2021 | D5: 2020 | E5: 2014 | F5: General Plant | G5: ='App.2-AB_Capital Expenditures'!B14 -> 2012 | H5: ='App.2-AB_Capital Expenditures'!B20 -> 0 | I5: ='App.2-AB_Capital Expenditures'!C20 -> 0
A6: ='LDC Info'!$E$14 -> Burlington Hydro Inc. | B6: EB-2020-0007 | C6: 2021 | D6: 2020 | E6: 2014 | F6: Total Expenditure | G6: ='App.2-AB_Capital Expenditures'!B14 -> 2012 | H6: ='App.2-AB_Capital Expenditures'!B21 -> 0 | I6: ='App.2-AB_Capital Expenditures'!C21 -> 0
A7: ='LDC Info'!$E$14 -> Burlington Hydro Inc. | B7: EB-2020-0007 | C7: 2021 | D7: 2020 | E7: 2014 | F7: Capital Contributions | G7: ='App.2-AB_Capital Expenditures'!B14 -> 2012 | H7: ='App.2-AB_Capital Expenditures'!B22 -> 0 | I7: ='App.2-AB_Capital Expenditures'!C22 -> 0
A8: ='LDC Info'!$E$14 -> Burlington Hydro Inc. | B8: EB-2020-0007 | C8: 2021 | D8: 2020 | E8: 2014 | F8: Net Capital Expenditures | G8: ='App.2-AB_Capital Expenditures'!B14 -> 2012 | H8: ='App.2-AB_Capital Expenditures'!B23 -> 0 | I8: ='App.2-AB_Capital Expenditures'!C23 -> 0
A9: ='LDC Info'!$E$14 -> Burlington Hydro Inc. | B9: EB-2020-0007 | C9: 2021 | D9: 2020 | E9: 2014 | F9: System O&M | G9: ='App.2-AB_Capital Expenditures'!B14 -> 2012 | H9: ='App.2-AB_Capital Expenditures'!B24 -> 0 | I9: ='App.2-AB_Capital Expenditures'!C24 -> 0
A10: ='LDC Info'!$E$14 -> Burlington Hydro Inc. | B10: EB-2020-0007 | C10: 2021 | D10: 2020 | E10: 2014 | F10: System Access | G10: ='App.2-AB_Capital Expenditures'!E14 -> 2013 | H10: ='App.2-AB_Capital Expenditures'!E17 -> 0 | I10: ='App.2-AB_Capital Expenditures'!F17 -> 0
A11: ='LDC Info'!$E$14 -> Burlington Hydro Inc. | B11: EB-2020-0007 | C11: 2021 | D11: 2020 | E11: 2014 | F11: System Renewal | G11: ='App.2-AB_Capital Expenditures'!E14 -> 2013 | H11: ='App.2-AB_Capital Expenditures'!E18 -> 0 | I11: ='App.2-AB_Capital Expenditures'!F18 -> 0
A12: ='LDC Info'!$E$14 -> Burlington Hydro Inc. | B12: EB-2020-0007 | C12: 2021 | D12: 2020 | E12: 2014 | F12: System Service | G12: ='App.2-AB_Capital Expenditures'!E14 -> 2013 | H12: ='App.2-AB_Capital Expenditures'!E19 -> 0 | I12: ='App.2-AB_Capital Expenditures'!F19 -> 0
A13: ='LDC Info'!$E$14 -> Burlington Hydro Inc. | B13: EB-2020-0007 | C13: 2021 | D13: 2020 | E13: 2014 | F13: General Plant | G13: ='App.2-AB_Capital Expenditures'!E14 -> 2013 | H13: ='App.2-AB_Capital Expenditures'!E20 -> 0 | I13: ='App.2-AB_Capital Expenditures'!F20 -> 0
A14: ='LDC Info'!$E$14 -> Burlington Hydro Inc. | B14: EB-2020-0007 | C14: 2021 | D14: 2020 | E14: 2014 | F14: Total Expenditure | G14: ='App.2-AB_Capital Expenditures'!E14 -> 2013 | H14: ='App.2-AB_Capital Expenditures'!E21 -> 0 | I14: ='App.2-AB_Capital Expenditures'!F21 -> 0
A15: ='LDC Info'!$E$14 -> Burlington Hydro Inc. | B15: EB-2020-0007 | C15: 2021 | D15: 2020 | E15: 2014 | F15: Capital Contributions | G15: ='App.2-AB_Capital Expenditures'!E14 -> 2013 | H15: ='App.2-AB_Capital Expenditures'!E22 -> 0 | I15: ='App.2-AB_Capital Expenditures'!F22 -> 0
A16: ='LDC Info'!$E$14 -> Burlington Hydro Inc. | B16: EB-2020-0007 | C16: 2021 | D16: 2020 | E16: 2014 | F16: Net Capital Expenditures | G16: ='App.2-AB_Capital Expenditures'!E14 -> 2013 | H16: ='App.2-AB_Capital Expenditures'!E23 -> 0 | I16: ='App.2-AB_Capital Expenditures'!F23 -> 0
A17: ='LDC Info'!$E$14 -> Burlington Hydro Inc. | B17: EB-2020-0007 | C17: 2021 | D17: 2020 | E17: 2014 | F17: System O&M | G17: ='App.2-AB_Capital Expenditures'!E14 -> 2013 | H17: ='App.2-AB_Capital Expenditures'!E24 -> 0 | I17: ='App.2-AB_Capital Expenditures'!F24 -> 0
A18: ='LDC Info'!$E$14 -> Burlington Hydro Inc. | B18: EB-2020-0007 | C18: 2021 | D18: 2020 | E18: 2014 | F18: System Access | G18: ='App.2-AB_Capital Expenditures'!H14 -> 2014 | H18: ='App.2-AB_Capital Expenditures'!H17 -> 0 | I18: ='App.2-AB_Capital Expenditures'!I17 -> 0
A19: ='LDC Info'!$E$14 -> Burlington Hydro Inc. | B19: EB-2020-0007 | C19: 2021 | D19: 2020 | E19: 2014 | F19: System Renewal | G19: ='App.2-AB_Capital Expenditures'!H14 -> 2014 | H19: ='App.2-AB_Capital Expenditures'!H18 -> 0 | I19: ='App.2-AB_Capital Expenditures'!I18 -> 0
A20: ='LDC Info'!$E$14 -> Burlington Hydro Inc. | B20: EB-2020-0007 | C20: 2021 | D20: 2020 | E20: 2014 | F20: System Service | G20: ='App.2-AB_Capital Expenditures'!H14 -> 2014 | H20: ='App.2-AB_Capital Expenditures'!H19 -> 0 | I20: ='App.2-AB_Capital Expenditures'!I19 -> 0
A21: ='LDC Info'!$E$14 -> Burlington Hydro Inc. | B21: EB-2020-0007 | C21: 2021 | D21: 2020 | E21: 2014 | F21: General Plant | G21: ='App.2-AB_Capital Expenditures'!H14 -> 2014 | H21: ='App.2-AB_Capital Expenditures'!H20 -> 0 | I21: ='App.2-AB_Capital Expenditures'!I20 -> 0
A22: ='LDC Info'!$E$14 -> Burlington Hydro Inc. | B22: EB-2020-0007 | C22: 2021 | D22: 2020 | E22: 2014 | F22: Total Expenditure | G22: ='App.2-AB_Capital Expenditures'!H14 -> 2014 | H22: ='App.2-AB_Capital Expenditures'!H21 -> 0 | I22: ='App.2-AB_Capital Expenditures'!I21 -> 0
A23: ='LDC Info'!$E$14 -> Burlington Hydro Inc. | B23: EB-2020-0007 | C23: 2021 | D23: 2020 | E23: 2014 | F23: Capital Contributions | G23: ='App.2-AB_Capital Expenditures'!H14 -> 2014 | H23: ='App.2-AB_Capital Expenditures'!H22 -> 0 | I23: ='App.2-AB_Capital Expenditures'!I22 -> 0
A24: ='LDC Info'!$E$14 -> Burlington Hydro Inc. | B24: EB-2020-0007 | C24: 2021 | D24: 2020 | E24: 2014 | F24: Net Capital Expenditures | G24: ='App.2-AB_Capital Expenditures'!H14 -> 2014 | H24: ='App.2-AB_Capital Expenditures'!H23 -> 0 | I24: ='App.2-AB_Capital Expenditures'!I23 -> 0
A25: ='LDC Info'!$E$14 -> Burlington Hydro Inc. | B25: EB-2020-0007 | C25: 2021 | D25: 2020 | E25: 2014 | F25: System O&M | G25: ='App.2-AB_Capital Expenditures'!H14 -> 2014 | H25: ='App.2-AB_Capital Expenditures'!H24 -> 0 | I25: ='App.2-AB_Capital Expenditures'!I24 -> 0
A26: ='LDC Info'!$E$14 -> Burlington Hydro Inc. | B26: EB-2020-0007 | C26: 2021 | D26: 2020 | E26: 2014 | F26: System Access | G26: ='App.2-AB_Capital Expenditures'!K14 -> 2015 | H26: ='App.2-AB_Capital Expenditures'!K17 -> 0 | I26: ='App.2-AB_Capital Expenditures'!L17 -> 0
A27: ='LDC Info'!$E$14 -> Burlington Hydro Inc. | B27: EB-2020-0007 | C27: 2021 | D27: 2020 | E27: 2014 | F27: System Renewal | G27: ='App.2-AB_Capital Expenditures'!K14 -> 2015 | H27: ='App.2-AB_Capital Expenditures'!K18 -> 0 | I27: ='App.2-AB_Capital Expenditures'!L18 -> 0
A28: ='LDC Info'!$E$14 -> Burlington Hydro Inc. | B28: EB-2020-0007 | C28: 2021 | D28: 2020 | E28: 2014 | F28: System Service | G28: ='App.2-AB_Capital Expenditures'!K14 -> 2015 | H28: ='App.2-AB_Capital Expenditures'!K19 -> 0 | I28: ='App.2-AB_Capital Expenditures'!L19 -> 0
A29: ='LDC Info'!$E$14 -> Burlington Hydro Inc. | B29: EB-2020-0007 | C29: 2021 | D29: 2020 | E29: 2014 | F29: General Plant | G29: ='App.2-AB_Capital Expenditures'!K14 -> 2015 | H29: ='App.2-AB_Capital Expenditures'!K20 -> 0 | I29: ='App.2-AB_Capital Expenditures'!L20 -> 0
A30: ='LDC Info'!$E$14 -> Burlington Hydro Inc. | B30: EB-2020-0007 | C30: 2021 | D30: 2020 | E30: 2014 | F30: Total Expenditure | G30: ='App.2-AB_Capital Expenditures'!K14 -> 2015 | H30: ='App.2-AB_Capital Expenditures'!K21 -> 0 | I30: ='App.2-AB_Capital Expenditures'!L21 -> 0
A31: ='LDC Info'!$E$14 -> Burlington Hydro Inc. | B31: EB-2020-0007 | C31: 2021 | D31: 2020 | E31: 2014 | F31: Capital Contributions | G31: ='App.2-AB_Capital Expenditures'!K14 -> 2015 | H31: ='App.2-AB_Capital Expenditures'!K22 -> 0 | I31: ='App.2-AB_Capital Expenditures'!L22 -> 0
A32: ='LDC Info'!$E$14 -> Burlington Hydro Inc. | B32: EB-2020-0007 | C32: 2021 | D32: 2020 | E32: 2014 | F32: Net Capital Expenditures | G32: ='App.2-AB_Capital Expenditures'!K14 -> 2015 | H32: ='App.2-AB_Capital Expenditures'!K23 -> 0 | I32: ='App.2-AB_Capital Expenditures'!L23 -> 0
A33: ='LDC Info'!$E$14 -> Burlington Hydro Inc. | B33: EB-2020-0007 | C33: 2021 | D33: 2020 | E33: 2014 | F33: System O&M | G33: ='App.2-AB_Capital Expenditures'!K14 -> 2015 | H33: ='App.2-AB_Capital Expenditures'!K24 -> 0 | I33: ='App.2-AB_Capital Expenditures'!L24 -> 0
A34: ='LDC Info'!$E$14 -> Burlington Hydro Inc. | B34: =EBNUMBER -> EB-2020-0007 | C34: =TestYear -> 2021 | D34: =BridgeYear -> 2020 | E34: =RebaseYear -> 2014 | F34: System Access | G34: ='App.2-AB_Capital Expenditures'!N14 -> 2016 | H34: ='App.2-AB_Capital Expenditures'!N17 -> 0 | I34: ='App.2-AB_Capital Expenditures'!O17 -> 0
A35: ='LDC Info'!$E$14 -> Burlington Hydro Inc. | B35: EB-2020-0007 | C35: 2021 | D35: 2020 | E35: 2014 | F35: System Renewal | G35: ='App.2-AB_Capital Expenditures'!N14 -> 2016 | H35: ='App.2-AB_Capital Expenditures'!N18 -> 0 | I35: ='App.2-AB_Capital Expenditures'!O18 -> 0
A36: ='LDC Info'!$E$14 -> Burlington Hydro Inc. | B36: EB-2020-0007 | C36: 2021 | D36: 2020 | E36: 2014 | F36: System Service | G36: ='App.2-AB_Capital Expenditures'!N14 -> 2016 | H36: ='App.2-AB_Capital Expenditures'!N19 -> 0 | I36: ='App.2-AB_Capital Expenditures'!O19 -> 0
A37: ='LDC Info'!$E$14 -> Burlington Hydro Inc. | B37: EB-2020-0007 | C37: 2021 | D37: 2020 | E37: 2014 | F37: General Plant | G37: ='App.2-AB_Capital Expenditures'!N14 -> 2016 | H37: ='App.2-AB_Capital Expenditures'!N20 -> 0 | I37: ='App.2-AB_Capital Expenditures'!O20 -> 0
A38: ='LDC Info'!$E$14 -> Burlington Hydro Inc. | B38: EB-2020-0007 | C38: 2021 | D38: 2020 | E38: 2014 | F38: Total Expenditure | G38: ='App.2-AB_Capital Expenditures'!N14 -> 2016 | H38: ='App.2-AB_Capital Expenditures'!N21 -> 0 | I38: ='App.2-AB_Capital Expenditures'!O21 -> 0
A39: ='LDC Info'!$E$14 -> Burlington Hydro Inc. | B39: EB-2020-0007 | C39: 2021 | D39: 2020 | E39: 2014 | F39: Capital Contributions | G39: ='App.2-AB_Capital Expenditures'!N14 -> 2016 | H39: ='App.2-AB_Capital Expenditures'!N22 -> 0 | I39: ='App.2-AB_Capital Expenditures'!O22 -> 0
A40: ='LDC Info'!$E$14 -> Burlington Hydro Inc. | B40: EB-2020-0007 | C40: 2021 | D40: 2020 | E40: 2014 | F40: Net Capital Expenditures | G40: ='App.2-AB_Capital Expenditures'!N14 -> 2016 | H40: ='App.2-AB_Capital Expenditures'!N23 -> 0 | I40: ='App.2-AB_Capital Expenditures'!O23 -> 0
A41: ='LDC Info'!$E$14 -> Burlington Hydro Inc. | B41: EB-2020-0007 | C41: 2021 | D41: 2020 | E41: 2014 | F41: System O&M | G41: ='App.2-AB_Capital Expenditures'!N14 -> 2016 | H41: ='App.2-AB_Capital Expenditures'!N24 -> 0 | I41: ='App.2-AB_Capital Expenditures'!O24 -> 0
A42: ='LDC Info'!$E$14 -> Burlington Hydro Inc. | B42: EB-2020-0007 | C42: 2021 | D42: 2020 | E42: 2014 | F42: System Access | G42: ='App.2-AB_Capital Expenditures'!Q14 -> 2017 | H42: ='App.2-AB_Capital Expenditures'!Q17 -> 0 | I42: ='App.2-AB_Capital Expenditures'!R17 -> 0
A43: ='LDC Info'!$E$14 -> Burlington Hydro Inc. | B43: EB-2020-0007 | C43: 2021 | D43: 2020 | E43: 2014 | F43: System Renewal | G43: ='App.2-AB_Capital Expenditures'!Q14 -> 2017 | H43: ='App.2-AB_Capital Expenditures'!Q18 -> 0 | I43: ='App.2-AB_Capital Expenditures'!R18 -> 0
A44: ='LDC Info'!$E$14 -> Burlington Hydro Inc. | B44: EB-2020-0007 | C44: 2021 | D44: 2020 | E44: 2014 | F44: System Service | G44: ='App.2-AB_Capital Expenditures'!Q14 -> 2017 | H44: ='App.2-AB_Capital Expenditures'!Q19 -> 0 | I44: ='App.2-AB_Capital Expenditures'!R19 -> 0
A45: ='LDC Info'!$E$14 -> Burlington Hydro Inc. | B45: EB-2020-0007 | C45: 2021 | D45: 2020 | E45: 2014 | F45: General Plant | G45: ='App.2-AB_Capital Expenditures'!Q14 -> 2017 | H45: ='App.2-AB_Capital Expenditures'!Q20 -> 0 | I45: ='App.2-AB_Capital Expenditures'!R20 -> 0
A46: ='LDC Info'!$E$14 -> Burlington Hydro Inc. | B46: EB-2020-0007 | C46: 2021 | D46: 2020 | E46: 2014 | F46: Total Expenditure | G46: ='App.2-AB_Capital Expenditures'!Q14 -> 2017 | H46: ='App.2-AB_Capital Expenditures'!Q21 -> 0 | I46: ='App.2-AB_Capital Expenditures'!R21 -> 0
A47: ='LDC Info'!$E$14 -> Burlington Hydro Inc. | B47: EB-2020-0007 | C47: 2021 | D47: 2020 | E47: 2014 | F47: Capital Contributions | G47: ='App.2-AB_Capital Expenditures'!Q14 -> 2017 | H47: ='App.2-AB_Capital Expenditures'!Q22 -> 0 | I47: ='App.2-AB_Capital Expenditures'!R22 -> 0
A48: ='LDC Info'!$E$14 -> Burlington Hydro Inc. | B48: EB-2020-0007 | C48: 2021 | D48: 2020 | E48: 2014 | F48: Net Capital Expenditures | G48: ='App.2-AB_Capital Expenditures'!Q14 -> 2017 | H48: ='App.2-AB_Capital Expenditures'!Q23 -> 0 | I48: ='App.2-AB_Capital Expenditures'!R23 -> 0
A49: ='LDC Info'!$E$14 -> Burlington Hydro Inc. | B49: EB-2020-0007 | C49: 2021 | D49: 2020 | E49: 2014 | F49: System O&M | G49: ='App.2-AB_Capital Expenditures'!Q14 -> 2017 | H49: ='App.2-AB_Capital Expenditures'!Q24 -> 0 | I49: ='App.2-AB_Capital Expenditures'!R24 -> 0
A50: ='LDC Info'!$E$14 -> Burlington Hydro Inc. | B50: EB-2020-0007 | C50: 2021 | D50: 2020 | E50: 2014 | F50: System Access | G50: ='App.2-AB_Capital Expenditures'!T14 -> 2018 | H50: ='App.2-AB_Capital Expenditures'!T17 -> 0 | I50: ='App.2-AB_Capital Expenditures'!U17 -> 0
A51: ='LDC Info'!$E$14 -> Burlington Hydro Inc. | B51: EB-2020-0007 | C51: 2021 | D51: 2020 | E51: 2014 | F51: System Renewal | G51: ='App.2-AB_Capital Expenditures'!T14 -> 2018 | H51: ='App.2-AB_Capital Expenditures'!T18 -> 0 | I51: ='App.2-AB_Capital Expenditures'!U18 -> 0
A52: ='LDC Info'!$E$14 -> Burlington Hydro Inc. | B52: EB-2020-0007 | C52: 2021 | D52: 2020 | E52: 2014 | F52: System Service | G52: ='App.2-AB_Capital Expenditures'!T14 -> 2018 | H52: ='App.2-AB_Capital Expenditures'!T19 -> 0 | I52: ='App.2-AB_Capital Expenditures'!U19 -> 0
A53: ='LDC Info'!$E$14 -> Burlington Hydro Inc. | B53: EB-2020-0007 | C53: 2021 | D53: 2020 | E53: 2014 | F53: General Plant | G53: ='App.2-AB_Capital Expenditures'!T14 -> 2018 | H53: ='App.2-AB_Capital Expenditures'!T20 -> 0 | I53: ='App.2-AB_Capital Expenditures'!U20 -> 0
A54: ='LDC Info'!$E$14 -> Burlington Hydro Inc. | B54: EB-2020-0007 | C54: 2021 | D54: 2020 | E54: 2014 | F54: Total Expenditure | G54: ='App.2-AB_Capital Expenditures'!T14 -> 2018 | H54: ='App.2-AB_Capital Expenditures'!T21 -> 0 | I54: ='App.2-AB_Capital Expenditures'!U21 -> 0
A55: ='LDC Info'!$E$14 -> Burlington Hydro Inc. | B55: EB-2020-0007 | C55: 2021 | D55: 2020 | E55: 2014 | F55: Capital Contributions | G55: ='App.2-AB_Capital Expenditures'!T14 -> 2018 | H55: ='App.2-AB_Capital Expenditures'!T22 -> 0 | I55: ='App.2-AB_Capital Expenditures'!U22 -> 0
A56: ='LDC Info'!$E$14 -> Burlington Hydro Inc. | B56: EB-2020-0007 | C56: 2021 | D56: 2020 | E56: 2014 | F56: Net Capital Expenditures | G56: ='App.2-AB_Capital Expenditures'!T14 -> 2018 | H56: ='App.2-AB_Capital Expenditures'!T23 -> 0 | I56: ='App.2-AB_Capital Expenditures'!U23 -> 0
A57: ='LDC Info'!$E$14 -> Burlington Hydro Inc. | B57: EB-2020-0007 | C57: 2021 | D57: 2020 | E57: 2014 | F57: System O&M | G57: ='App.2-AB_Capital Expenditures'!T14 -> 2018 | H57: ='App.2-AB_Capital Expenditures'!T24 -> 0 | I57: ='App.2-AB_Capital Expenditures'!U24 -> 0
A58: ='LDC Info'!$E$14 -> Burlington Hydro Inc. | B58: EB-2020-0007 | C58: 2021 | D58: 2020 | E58: 2014 | F58: System Access | G58: ='App.2-AB_Capital Expenditures'!W14 -> 2019 | H58: ='App.2-AB_Capital Expenditures'!W17 -> 0 | I58: ='App.2-AB_Capital Expenditures'!X17 -> 0
A59: ='LDC Info'!$E$14 -> Burlington Hydro Inc. | B59: EB-2020-0007 | C59: 2021 | D59: 2020 | E59: 2014 | F59: System Renewal | G59: ='App.2-AB_Capital Expenditures'!W14 -> 2019 | H59: ='App.2-AB_Capital Expenditures'!W18 -> 0 | I59: ='App.2-AB_Capital Expenditures'!X18 -> 0
A60: ='LDC Info'!$E$14 -> Burlington Hydro Inc. | B60: EB-2020-0007 | C60: 2021 | D60: 2020 | E60: 2014 | F60: System Service | G60: ='App.2-AB_Capital Expenditures'!W14 -> 2019 | H60: ='App.2-AB_Capital Expenditures'!W19 -> 0 | I60: ='App.2-AB_Capital Expenditures'!X19 -> 0
A61: ='LDC Info'!$E$14 -> Burlington Hydro Inc. | B61: EB-2020-0007 | C61: 2021 | D61: 2020 | E61: 2014 | F61: General Plant | G61: ='App.2-AB_Capital Expenditures'!W14 -> 2019 | H61: ='App.2-AB_Capital Expenditures'!W20 -> 0 | I61: ='App.2-AB_Capital Expenditures'!X20 -> 0
A62: ='LDC Info'!$E$14 -> Burlington Hydro Inc. | B62: EB-2020-0007 | C62: 2021 | D62: 2020 | E62: 2014 | F62: Total Expenditure | G62: ='App.2-AB_Capital Expenditures'!W14 -> 2019 | H62: ='App.2-AB_Capital Expenditures'!W21 -> 0 | I62: ='App.2-AB_Capital Expenditures'!X21 -> 0
A63: ='LDC Info'!$E$14 -> Burlington Hydro Inc. | B63: EB-2020-0007 | C63: 2021 | D63: 2020 | E63: 2014 | F63: Capital Contributions | G63: ='App.2-AB_Capital Expenditures'!W14 -> 2019 | H63: ='App.2-AB_Capital Expenditures'!W22 -> 0 | I63: ='App.2-AB_Capital Expenditures'!X22 -> 0
A64: ='LDC Info'!$E$14 -> Burlington Hydro Inc. | B64: EB-2020-0007 | C64: 2021 | D64: 2020 | E64: 2014 | F64: Net Capital Expenditures | G64: ='App.2-AB_Capital Expenditures'!W14 -> 2019 | H64: ='App.2-AB_Capital Expenditures'!W23 -> 0 | I64: ='App.2-AB_Capital Expenditures'!X23 -> 0
A65: ='LDC Info'!$E$14 -> Burlington Hydro Inc. | B65: EB-2020-0007 | C65: 2021 | D65: 2020 | E65: 2014 | F65: System O&M | G65: ='App.2-AB_Capital Expenditures'!W14 -> 2019 | H65: ='App.2-AB_Capital Expenditures'!W24 -> 0 | I65: ='App.2-AB_Capital Expenditures'!X24 -> 0
A66: ='LDC Info'!$E$14 -> Burlington Hydro Inc. | B66: =EBNUMBER -> EB-2020-0007 | C66: =TestYear -> 2021 | D66: =BridgeYear -> 2020 | E66: =RebaseYear -> 2014 | F66: System Access | G66: ='App.2-AB_Capital Expenditures'!Z14 -> 2020 | H66: ='App.2-AB_Capital Expenditures'!Z17 -> 0 | I66: ='App.2-AB_Capital Expenditures'!AA17 -> 0
A67: ='LDC Info'!$E$14 -> Burlington Hydro Inc. | B67: EB-2020-0007 | C67: 2021 | D67: 2020 | E67: 2014 | F67: System Renewal | G67: ='App.2-AB_Capital Expenditures'!Z14 -> 2020 | H67: ='App.2-AB_Capital Expenditures'!Z18 -> 0 | I67: ='App.2-AB_Capital Expenditures'!AA18 -> 0
A68: ='LDC Info'!$E$14 -> Burlington Hydro Inc. | B68: EB-2020-0007 | C68: 2021 | D68: 2020 | E68: 2014 | F68: System Service | G68: ='App.2-AB_Capital Expenditures'!Z14 -> 2020 | H68: ='App.2-AB_Capital Expenditures'!Z19 -> 0 | I68: ='App.2-AB_Capital Expenditures'!AA19 -> 0
A69: ='LDC Info'!$E$14 -> Burlington Hydro Inc. | B69: EB-2020-0007 | C69: 2021 | D69: 2020 | E69: 2014 | F69: General Plant | G69: ='App.2-AB_Capital Expenditures'!Z14 -> 2020 | H69: ='App.2-AB_Capital Expenditures'!Z20 -> 0 | I69: ='App.2-AB_Capital Expenditures'!AA20 -> 0
A70: ='LDC Info'!$E$14 -> Burlington Hydro Inc. | B70: EB-2020-0007 | C70: 2021 | D70: 2020 | E70: 2014 | F70: Total Expenditure | G70: ='App.2-AB_Capital Expenditures'!Z14 -> 2020 | H70: ='App.2-AB_Capital Expenditures'!Z21 -> 0 | I70: ='App.2-AB_Capital Expenditures'!AA21 -> 0
A71: ='LDC Info'!$E$14 -> Burlington Hydro Inc. | B71: EB-2020-0007 | C71: 2021 | D71: 2020 | E71: 2014 | F71: Capital Contributions | G71: ='App.2-AB_Capital Expenditures'!Z14 -> 2020 | H71: ='App.2-AB_Capital Expenditures'!Z22 -> 0 | I71: ='App.2-AB_Capital Expenditures'!AA22 -> 0
A72: ='LDC Info'!$E$14 -> Burlington Hydro Inc. | B72: EB-2020-0007 | C72: 2021 | D72: 2020 | E72: 2014 | F72: Net Capital Expenditures | G72: ='App.2-AB_Capital Expenditures'!Z14 -> 2020 | H72: ='App.2-AB_Capital Expenditures'!Z23 -> 0 | I72: ='App.2-AB_Capital Expenditures'!AA23 -> 0
A73: ='LDC Info'!$E$14 -> Burlington Hydro Inc. | B73: EB-2020-0007 | C73: 2021 | D73: 2020 | E73: 2014 | F73: System O&M | G73: ='App.2-AB_Capital Expenditures'!Z14 -> 2020 | H73: ='App.2-AB_Capital Expenditures'!Z24 -> 0 | I73: ='App.2-AB_Capital Expenditures'!AA24 -> 0
A74: ='LDC Info'!$E$14 -> Burlington Hydro Inc. | B74: EB-2020-0007 | C74: 2021 | D74: 2020 | E74: 2014 | F74: System Access | G74: ='App.2-AB_Capital Expenditures'!AC14 -> 2021 | H74: ='App.2-AB_Capital Expenditures'!AC17 -> 0
A75: ='LDC Info'!$E$14 -> Burlington Hydro Inc. | B75: EB-2020-0007 | C75: 2021 | D75: 2020 | E75: 2014 | F75: System Renewal | G75: ='App.2-AB_Capital Expenditures'!AC14 -> 2021 | H75: ='App.2-AB_Capital Expenditures'!AC18 -> 0
A76: ='LDC Info'!$E$14 -> Burlington Hydro Inc. | B76: EB-2020-0007 | C76: 2021 | D76: 2020 | E76: 2014 | F76: System Service | G76: ='App.2-AB_Capital Expenditures'!AC14 -> 2021 | H76: ='App.2-AB_Capital Expenditures'!AC19 -> 0
A77: ='LDC Info'!$E$14 -> Burlington Hydro Inc. | B77: EB-2020-0007 | C77: 2021 | D77: 2020 | E77: 2014 | F77: General Plant | G77: ='App.2-AB_Capital Expenditures'!AC14 -> 2021 | H77: ='App.2-AB_Capital Expenditures'!AC20 -> 0
A78: ='LDC Info'!$E$14 -> Burlington Hydro Inc. | B78: EB-2020-0007 | C78: 2021 | D78: 2020 | E78: 2014 | F78: Total Expenditure | G78: ='App.2-AB_Capital Expenditures'!AC14 -> 2021 | H78: ='App.2-AB_Capital Expenditures'!AC21 -> 0
A79: ='LDC Info'!$E$14 -> Burlington Hydro Inc. | B79: EB-2020-0007 | C79: 2021 | D79: 2020 | E79: 2014 | F79: Capital Contributions | G79: ='App.2-AB_Capital Expenditures'!AC14 -> 2021 | H79: ='App.2-AB_Capital Expenditures'!AC22 -> 0
A80: ='LDC Info'!$E$14 -> Burlington Hydro Inc. | B80: EB-2020-0007 | C80: 2021 | D80: 2020 | E80: 2014 | F80: Net Capital Expenditures | G80: ='App.2-AB_Capital Expenditures'!AC14 -> 2021 | H80: ='App.2-AB_Capital Expenditures'!AC23 -> 0
A81: ='LDC Info'!$E$14 -> Burlington Hydro Inc. | B81: EB-2020-0007 | C81: 2021 | D81: 2020 | E81: 2014 | F81: System O&M | G81: ='App.2-AB_Capital Expenditures'!AC14 -> 2021 | H81: ='App.2-AB_Capital Expenditures'!AC24 -> 0
A82: ='LDC Info'!$E$14 -> Burlington Hydro Inc. | B82: EB-2020-0007 | C82: 2021 | D82: 2020 | E82: 2014 | F82: System Access | G82: ='App.2-AB_Capital Expenditures'!AD14 -> 2022 | H82: ='App.2-AB_Capital Expenditures'!AD17 -> 0
A83: ='LDC Info'!$E$14 -> Burlington Hydro Inc. | B83: EB-2020-0007 | C83: 2021 | D83: 2020 | E83: 2014 | F83: System Renewal | G83: ='App.2-AB_Capital Expenditures'!AD14 -> 2022 | H83: ='App.2-AB_Capital Expenditures'!AD18 -> 0
A84: ='LDC Info'!$E$14 -> Burlington Hydro Inc. | B84: EB-2020-0007 | C84: 2021 | D84: 2020 | E84: 2014 | F84: System Service | G84: ='App.2-AB_Capital Expenditures'!AD14 -> 2022 | H84: ='App.2-AB_Capital Expenditures'!AD19 -> 0
A85: ='LDC Info'!$E$14 -> Burlington Hydro Inc. | B85: EB-2020-0007 | C85: 2021 | D85: 2020 | E85: 2014 | F85: General Plant | G85: ='App.2-AB_Capital Expenditures'!AD14 -> 2022 | H85: ='App.2-AB_Capital Expenditures'!AD20 -> 0
A86: ='LDC Info'!$E$14 -> Burlington Hydro Inc. | B86: EB-2020-0007 | C86: 2021 | D86: 2020 | E86: 2014 | F86: Total Expenditure | G86: ='App.2-AB_Capital Expenditures'!AD14 -> 2022 | H86: ='App.2-AB_Capital Expenditures'!AD21 -> 0
A87: ='LDC Info'!$E$14 -> Burlington Hydro Inc. | B87: EB-2020-0007 | C87: 2021 | D87: 2020 | E87: 2014 | F87: Capital Contributions | G87: ='App.2-AB_Capital Expenditures'!AD14 -> 2022 | H87: ='App.2-AB_Capital Expenditures'!AD22 -> 0
A88: ='LDC Info'!$E$14 -> Burlington Hydro Inc. | B88: EB-2020-0007 | C88: 2021 | D88: 2020 | E88: 2014 | F88: Net Capital Expenditures | G88: ='App.2-AB_Capital Expenditures'!AD14 -> 2022 | H88: ='App.2-AB_Capital Expenditures'!AD23 -> 0
A89: ='LDC Info'!$E$14 -> Burlington Hydro Inc. | B89: EB-2020-0007 | C89: 2021 | D89: 2020 | E89: 2014 | F89: System O&M | G89: ='App.2-AB_Capital Expenditures'!AD14 -> 2022 | H89: ='App.2-AB_Capital Expenditures'!AD24 -> 0
A90: ='LDC Info'!$E$14 -> Burlington Hydro Inc. | B90: EB-2020-0007 | C90: 2021 | D90: 2020 | E90: 2014 | F90: System Access | G90: ='App.2-AB_Capital Expenditures'!AE14 -> 2023 | H90: ='App.2-AB_Capital Expenditures'!AE17 -> 0
A91: ='LDC Info'!$E$14 -> Burlington Hydro Inc. | B91: EB-2020-0007 | C91: 2021 | D91: 2020 | E91: 2014 | F91: System Renewal | G91: ='App.2-AB_Capital Expenditures'!AE14 -> 2023 | H91: ='App.2-AB_Capital Expenditures'!AE18 -> 0
A92: ='LDC Info'!$E$14 -> Burlington Hydro Inc. | B92: EB-2020-0007 | C92: 2021 | D92: 2020 | E92: 2014 | F92: System Service | G92: ='App.2-AB_Capital Expenditures'!AE14 -> 2023 | H92: ='App.2-AB_Capital Expenditures'!AE19 -> 0
A93: ='LDC Info'!$E$14 -> Burlington Hydro Inc. | B93: EB-2020-0007 | C93: 2021 | D93: 2020 | E93: 2014 | F93: General Plant | G93: ='App.2-AB_Capital Expenditures'!AE14 -> 2023 | H93: ='App.2-AB_Capital Expenditures'!AE20 -> 0
A94: ='LDC Info'!$E$14 -> Burlington Hydro Inc. | B94: EB-2020-0007 | C94: 2021 | D94: 2020 | E94: 2014 | F94: Total Expenditure | G94: ='App.2-AB_Capital Expenditures'!AE14 -> 2023 | H94: ='App.2-AB_Capital Expenditures'!AE21 -> 0
A95: ='LDC Info'!$E$14 -> Burlington Hydro Inc. | B95: EB-2020-0007 | C95: 2021 | D95: 2020 | E95: 2014 | F95: Capital Contributions | G95: ='App.2-AB_Capital Expenditures'!AE14 -> 2023 | H95: ='App.2-AB_Capital Expenditures'!AE22 -> 0
A96: ='LDC Info'!$E$14 -> Burlington Hydro Inc. | B96: EB-2020-0007 | C96: 2021 | D96: 2020 | E96: 2014 | F96: Net Capital Expenditures | G96: ='App.2-AB_Capital Expenditures'!AE14 -> 2023 | H96: ='App.2-AB_Capital Expenditures'!AE23 -> 0
A97: ='LDC Info'!$E$14 -> Burlington Hydro Inc. | B97: EB-2020-0007 | C97: 2021 | D97: 2020 | E97: 2014 | F97: System O&M | G97: ='App.2-AB_Capital Expenditures'!AE14 -> 2023 | H97: ='App.2-AB_Capital Expenditures'!AE24 -> 0
A98: ='LDC Info'!$E$14 -> Burlington Hydro Inc. | B98: =EBNUMBER -> EB-2020-0007 | C98: =TestYear -> 2021 | D98: =BridgeYear -> 2020 | E98: =RebaseYear -> 2014 | F98: System Access | G98: ='App.2-AB_Capital Expenditures'!AF14 -> 2024 | H98: ='App.2-AB_Capital Expenditures'!AF17 -> 0
A99: ='LDC Info'!$E$14 -> Burlington Hydro Inc. | B99: EB-2020-0007 | C99: 2021 | D99: 2020 | E99: 2014 | F99: System Renewal | G99: ='App.2-AB_Capital Expenditures'!AF14 -> 2024 | H99: ='App.2-AB_Capital Expenditures'!AF18 -> 0
A100: ='LDC Info'!$E$14 -> Burlington Hydro Inc. | B100: EB-2020-0007 | C100: 2021 | D100: 2020 | E100: 2014 | F100: System Service | G100: ='App.2-AB_Capital Expenditures'!AF14 -> 2024 | H100: ='App.2-AB_Capital Expenditures'!AF19 -> 0
A101: ='LDC Info'!$E$14 -> Burlington Hydro Inc. | B101: EB-2020-0007 | C101: 2021 | D101: 2020 | E101: 2014 | F101: General Plant | G101: ='App.2-AB_Capital Expenditures'!AF14 -> 2024 | H101: ='App.2-AB_Capital Expenditures'!AF20 -> 0
A102: ='LDC Info'!$E$14 -> Burlington Hydro Inc. | B102: EB-2020-0007 | C102: 2021 | D102: 2020 | E102: 2014 | F102: Total Expenditure | G102: ='App.2-AB_Capital Expenditures'!AF14 -> 2024 | H102: ='App.2-AB_Capital Expenditures'!AF21 -> 0
A103: ='LDC Info'!$E$14 -> Burlington Hydro Inc. | B103: EB-2020-0007 | C103: 2021 | D103: 2020 | E103: 2014 | F103: Capital Contributions | G103: ='App.2-AB_Capital Expenditures'!AF14 -> 2024 | H103: ='App.2-AB_Capital Expenditures'!AF22 -> 0
A104: ='LDC Info'!$E$14 -> Burlington Hydro Inc. | B104: EB-2020-0007 | C104: 2021 | D104: 2020 | E104: 2014 | F104: Net Capital Expenditures | G104: ='App.2-AB_Capital Expenditures'!AF14 -> 2024 | H104: ='App.2-AB_Capital Expenditures'!AF23 -> 0
A105: ='LDC Info'!$E$14 -> Burlington Hydro Inc. | B105: EB-2020-0007 | C105: 2021 | D105: 2020 | E105: 2014 | F105: System O&M | G105: ='App.2-AB_Capital Expenditures'!AF14 -> 2024 | H105: ='App.2-AB_Capital Expenditures'!AF24 -> 0
A106: ='LDC Info'!$E$14 -> Burlington Hydro Inc. | B106: EB-2020-0007 | C106: 2021 | D106: 2020 | E106: 2014 | F106: System Access | G106: ='App.2-AB_Capital Expenditures'!AG14 -> 2025 | H106: ='App.2-AB_Capital Expenditures'!AG17 -> 0
A107: ='LDC Info'!$E$14 -> Burlington Hydro Inc. | B107: EB-2020-0007 | C107: 2021 | D107: 2020 | E107: 2014 | F107: System Renewal | G107: ='App.2-AB_Capital Expenditures'!AG14 -> 2025 | H107: ='App.2-AB_Capital Expenditures'!AG18 -> 0
A108: ='LDC Info'!$E$14 -> Burlington Hydro Inc. | B108: EB-2020-0007 | C108: 2021 | D108: 2020 | E108: 2014 | F108: System Service | G108: ='App.2-AB_Capital Expenditures'!AG14 -> 2025 | H108: ='App.2-AB_Capital Expenditures'!AG19 -> 0
A109: ='LDC Info'!$E$14 -> Burlington Hydro Inc. | B109: EB-2020-0007 | C109: 2021 | D109: 2020 | E109: 2014 | F109: General Plant | G109: ='App.2-AB_Capital Expenditures'!AG14 -> 2025 | H109: ='App.2-AB_Capital Expenditures'!AG20 -> 0
A110: ='LDC Info'!$E$14 -> Burlington Hydro Inc. | B110: EB-2020-0007 | C110: 2021 | D110: 2020 | E110: 2014 | F110: Total Expenditure | G110: ='App.2-AB_Capital Expenditures'!AG14 -> 2025 | H110: ='App.2-AB_Capital Expenditures'!AG21 -> 0
A111: ='LDC Info'!$E$14 -> Burlington Hydro Inc. | B111: EB-2020-0007 | C111: 2021 | D111: 2020 | E111: 2014 | F111: Capital Contributions | G111: ='App.2-AB_Capital Expenditures'!AG14 -> 2025 | H111: ='App.2-AB_Capital Expenditures'!AG22 -> 0
A112: ='LDC Info'!$E$14 -> Burlington Hydro Inc. | B112: EB-2020-0007 | C112: 2021 | D112: 2020 | E112: 2014 | F112: Net Capital Expenditures | G112: ='App.2-AB_Capital Expenditures'!AG14 -> 2025 | H112: ='App.2-AB_Capital Expenditures'!AG23 -> 0
A113: ='LDC Info'!$E$14 -> Burlington Hydro Inc. | B113: EB-2020-0007 | C113: 2021 | D113: 2020 | E113: 2014 | F113: System O&M | G113: ='App.2-AB_Capital Expenditures'!AG14 -> 2025 | H113: ='App.2-AB_Capital Expenditures'!AG24 -> 0

Sheet App.2-AC_Customer Engagement
B1: File Number: | C1: =EBNUMBER -> EB-2020-0007
B2: Exhibit:
B3: Tab:
B4: Schedule:
B5: Page:
B7: Date:
A9: Appendix 2-AC
A10: Customer Engagement Activities Summary
A12: Provide a list of customer engagement activities | B12: Provide a list of customer needs and preferences identified through each engagement activity | C12: Actions taken to respond to identified needs and preferences. If no action was taken, explain why.
A45: Note: Use "ALT-ENTER" to go to the next line within a cell

Sheet App.2-B_Acctg Instructions
A1: General Instructions to MIFRS Appendices
A2: Types of Schedules to File
A4: The purpose of this tab is to provide general instructions. The specific instructions to each appendix are listed in footnotes of each appendix.
A6: The typical applicant is expected to have made capitalization and depreciation policy changes under CGAAP as permitted by the OEB on January 1, 2012 or mandated by the OEB by January 1, 2013, and adopted IFRS for reporting purposes on January 1, 2015 (transition date January 1, 2014). Most distributors filing for 2021 rates have rebased with these accounting changes reflected in a prior rebasing application. If that is the case, information relating to pre-accounting policy changes is not generally required. Most distributors may have rebased under MIFRS. If that is the case, information related to the accounting standard used prior to IFRS is not generally required. The information to be provided by applicants will depend on when the accounting policy changes were made and when they last rebased. In general, applicants should provide the following information in the appendices:
E9: Reflecting Accounting Policy Changes in Current Application | G9: Reflected Accounting Policy Changes in Prior Application3 | H9: Rebased under MIFRS in Prior Application3
A21: 1) For the transition year (2014), the applicant may file two appendices, one under Revised CGAAP and one under MIFRS, depending on the materiality of impacts. See the specific instructions under each appendix below for further details.
A22: 2) For applicants that are reflecting accounting policy changes for the first time in a rebasing application, the applicant must file two appendices in the year that the applicant implemented changes to its capitalization and depreciation policies (2012 or 2013), one before and one after the policy changes.
A23: 3) Applicants should provide CGAAP and Revised CGAAP schedules (i.e. as indicated in the first two columns of the above table) to support balances in Account 1576 if the account has yet to be disposed of.
A26: Appendix 2-BA - Fixed Asset Schedule
A28: Applicants are to provide Appendix 2-BA in accordance with the years and corresponding accounting standards noted in the above table to provide a year over year continuity in fixed assets.
A29: If this is the first application where the applicant is rebasing under MIFRS, the applicant should file two appendices, one under Revised CGAAP and one under MIFRS for the transition year (2014), if the change between Revised CGAAP and MIFRS is material. If the change from the accounting standards is not material, the applicant may choose to only provide one appendix under MIFRS. However, the applicant must also indicate the fixed asset net book value balance under Revised CGAAP, the total dollar value of the change and explain why it is not material.
A33: The applicant must establish the continuity of historical cost for gross assets and accumulated depreciation by asset class by ensuring that the opening balance in the year agrees to the closing balance in the prior year.
A36: Appendix 2-Cx - Depreciation and Amortization
A38: Applicants are to provide Appendix 2-C in accordance with the years and corresponding accounting standards listed in the above table.
A39: Appendix 2-C is to be used under all of the scenarios presented in the table above. In the appendix, the applicant will need to indicate which scenario applies. The appendix is to be duplicated for each year and for each accounting standard required as per the above table.
A40: Depreciation accounting policy changes were mandated by the OEB by January 1, 2013. In general, no further changes to an applicant's depreciation policy (i.e. assets' service lives) are expected after the OEB mandated changes by January 1, 2013, unless a change is determined to be necessary in accordance with the depreciation review required under IFRS. If the applicant has made any changes to its depreciation policy subsequent to the OEB mandated changes, for the year of the change, applicants must quantify the change in depreciation. If there are significant changes to multiple asset classes, the applicant must complete Appendix 2-C before and after the change. Applicants must also explain the nature of the change, the reason for the change, quantify the impact of the change.
A42: Appendix 2-E - Account 1575, IFRS-CGAAP Transitional PP&E Amounts (2-EA), Account 1576, Accounting Changes Under CGAAP (2-EB, 2-EC) CONTACT OEB STAFF IF TAB REQUIRED
A44: 1) For an applicant that has a balance in Account 1576 to dispose:
A45: · | B45: If an applicant changed capitalization and depreciation policies effective January 1, 2012, the applicant must complete Appendix 2-EB
A46: · | B46: If an applicant changed capitalization and depreciation policies effective January 1, 2013, the applicant must complete Appendix 2-EC
A48: 2) For an applicant that has a balance in Account 1575 to dispose:
A49: · | B49: The applicant must complete 2-EA
A50: If the applicant did not make any further PP&E accounting policy changes beyond the capitalization and depreciation policy changes as mandated by the OEB by January 1, 2013 (i.e. no further changes made on transition to IFRS), the applicant must indicate this and does not need to complete Appendix 2-EA.
A54: Appendix 2-Y - Summary of Impacts to Revenue Requirement from Transition to MIFRS CONTACT OEB STAFF IF TAB REQUIRED
A56: Applicants must complete Appendix 2-Y if this is the first rebasing application under MIFRS. An applicant must provide a summary of the dollar impacts of MIFRS to each component of the revenue requirement (e.g. rate base, operating costs, etc.), including the overall impact on the proposed revenue requirement. Accordingly, the applicant must identify financial differences and resulting revenue requirement impacts arising from the adoption of MIFRS as compared to CGAAP. If the applicant is reflecting the changes in capitalization and depreciation policies for the first time in a rebasing application as well, then a comparison between MIFRS and CGAAP before the change in accounting policies should be completed. If the applicant changed capitalization and depreciation policies and reflected these changes in a prior rebasing application, then a comparison between MIFRS and CGAAP after the change in accounting policies should be completed.

Sheet App.2-BA_Fixed Asset Cont
N1: File Number: | O1: =EBNUMBER -> EB-2020-0007
N2: Exhibit:
N3: Tab:
N4: Schedule:
N5: Page:
N7: Date:
A9: Appendix 2-BA
A10: Fixed Asset Continuity Schedule 1
E12: Accounting Standard
E13: Year
D15: Cost | K15: Accumulated Depreciation
A16: CCA Class 2 | B16: OEB Account 3 | C16: Description 3 | D16: Opening Balance | E16: Additions 4 | F16: Disposals 6 | G16: ICM | H16: Closing Balance | J16: Opening Balance | K16: Additions | L16: Disposals 6 | M16: ICM | N16: Closing Balance | O16: Net Book Value
H17: =D17+E17+F17+G17 -> 0 | N17: =J17+K17+L17+M17 -> 0 | O17: =H17+N17 -> 0
H18: =D18+E18+F18+G18 -> 0 | N18: =J18+K18+L18+M18 -> 0 | O18: =H18+N18 -> 0
H19: 0 | N19: 0 | O19: =H19+N19 -> 0
H20: 0 | N20: 0 | O20: =H20+N20 -> 0
H21: 0 | N21: 0 | O21: =H21+N21 -> 0
H22: 0 | N22: 0 | O22: 0
H23: 0 | N23: 0 | O23: 0
H24: 0 | N24: 0 | O24: 0
H25: 0 | N25: 0 | O25: 0
H26: 0 | N26: 0 | O26: 0
H27: 0 | N27: 0 | O27: 0
H28: 0 | N28: 0 | O28: 0
H29: 0 | N29: 0 | O29: 0
H30: 0 | N30: 0 | O30: 0
H31: 0 | N31: 0 | O31: 0
H32: 0 | N32: 0 | O32: 0
H33: 0 | N33: 0 | O33: 0
H34: 0 | N34: 0 | O34: 0
H35: 0 | N35: 0 | O35: 0
H36: 0 | N36: 0 | O36: 0
H37: 0 | N37: 0 | O37: 0
H38: 0 | N38: 0 | O38: 0
H39: 0 | N39: 0 | O39: 0
H40: 0 | N40: 0 | O40: 0
H41: 0 | N41: 0 | O41: 0
H42: 0 | N42: 0 | O42: 0
H43: 0 | N43: 0 | O43: 0
H44: 0 | N44: 0 | O44: 0
H45: 0 | N45: 0 | O45: 0
H46: 0 | N46: 0 | O46: 0
H47: 0 | N47: 0 | O47: 0
H48: 0 | N48: 0 | O48: 0
H49: 0 | N49: 0 | O49: 0
H50: 0 | N50: 0 | O50: 0
H51: 0 | N51: 0 | O51: 0
H52: 0 | N52: 0 | O52: 0
H53: 0 | N53: 0 | O53: 0
H54: 0 | N54: 0 | O54: 0
H55: 0 | N55: 0 | O55: 0
H56: 0 | N56: 0 | O56: =H56+N56 -> 0
H57: 0 | N57: 0 | O57: 0
C58: Sub-Total | D58: =SUM(D17:D57) -> 0 | E58: =SUM(E17:E57) -> 0 | F58: =SUM(F17:F57) -> 0 | H58: =SUM(H17:H57) -> 0 | N58: =SUM(N17:N57) -> 0 | O58: =SUM(O17:O57) -> 0
C59: Less Socialized Renewable Energy Generation Investments (input as negative) | H59: 0 | N59: 0 | O59: =H59+N59 -> 0
C60: Less Other Non Rate-Regulated Utility Assets (input as negative) | H60: 0 | N60: 0 | O60: 0
C61: Total PP&E | D61: =SUM(D58:D60) -> 0 | E61: =SUM(E58:E60) -> 0 | F61: =SUM(F58:F60) -> 0 | H61: =SUM(H58:H60) -> 0 | J61: =SUM(J58:J60) -> 0 | K61: =SUM(K58:K60) -> 0 | L61: =SUM(L58:L60) -> 0 | N61: =SUM(N58:N60) -> 0 | O61: =SUM(O58:O60) -> 0
C62: Depreciation Expense adj. from gain or loss on the retirement of assets (pool of like assets), if applicable6
C63: Total | K63: =K61+K62 -> 0
A65: Notes:
A67: 1 | B67: Tables in the format outlined above covering all fixed asset accounts should be submitted for the Test Year, Bridge Year and all relevant historical years. At a minimum , the applicant must provide data for the earlier of: 1) all historical years back to its last rebasing; or 2) at least three years of historical actuals, in addition to Bridge Year and Test Year forecasts.
A70: 2 | B70: The "CCA Class" for fixed assets should generally agree with the CCA Class used for tax purposes in Tax Returns. Fixed Assets sub-components may be used where the underlying asset components are classified under multiple CCA Classes for tax purposes. If an applicant uses any different classes from those shown in the table, an explanation should be provided. (also see note 3).
A73: 3 | B73: The table may need to be customized for a utility's asset categories or for any new asset accounts announced or authorized by the OEB.
A75: 4 | B75: The additions in column (E) must not include construction work in progress (CWIP).
A77: 5 | B77: Effective on the date of IFRS adoption, customer contributions will no longer be recorded in Account 1995 Contributions & Grants, but will be recorded in Account 2440, Deferred Revenues. Amortization of deferred revenue will be removed from the depreciation expense shown on this fixed asset continuity schedule as it should be included as income in Appendix 2-H Other Revenues.
A79: 6 | B79: The applicant must ensure that all asset disposals have been clearly identified in the Chapter 2 Appendices for all historic, bridge and test years. Where a distributor for general financial reporting purposes under IFRS has accounted for the amount of gain or loss on the retirement of assets in a pool of like assets as a charge or credit to income, for reporting and rate application filings, the distributor shall reclassify such gains and losses as depreciation expense, and disclose the amount separately.
A83: 7 | B83: This account includes the amount recorded under finance leases for plant leased from others and used by the utility in its utility operations.

Sheet Appendix 2-BB Service Life
N1: File Number: | P1: ='LDC Info'!E16 -> EB-2020-0007
N2: Exhibit:
N3: Tab:
N4: Schedule:
N5: Page:
N7: Date:
A9: Appendix 2-BB
A10: Service Life Comparison
A11: Table F-1 from Kinetrics Report1
C15: Asset Details | F15: Useful Life | J15: USoA Account Number | K15: USoA Account Description | L15: Current | N15: Proposed | P15: Outside Range of Min, Max TUL?
A16: Parent* | B16: # | C16: Category| Component | Type | F16: MIN UL | G16: TUL | H16: MAX UL | L16: Years | M16: Rate | N16: Years | O16: Rate | P16: Below Min TUL | Q16: Above Max TUL
A17: OH | B17: 1 | C17: Fully Dressed Wood Poles | D17: Overall | F17: 35 | G17: 45 | H17: 75 | M17: =IF(ISERROR(1/L17), "", 1/L17) ->  | O17: =IF(ISERROR(1/N17), "", 1/N17) ->  | P17: =IF(ISBLANK(N17),"",IF(N17<F17,"Yes","No")) ->  | Q17: =IF(ISBLANK(N17),"",IF(N17>H17,"Yes","No")) -> 
D18: Cross Arm | E18: Wood | F18: 20 | G18: 40 | H18: 55 | M18: =IF(ISERROR(1/L18), "", 1/L18) ->  | O18: =IF(ISERROR(1/N18), "", 1/N18) ->  | P18: =IF(ISBLANK(N18),"",IF(N18<F18,"Yes","No")) ->  | Q18: =IF(ISBLANK(N18),"",IF(N18>H18,"Yes","No")) -> 
E19: Steel | F19: 30 | G19: 70 | H19: 95 | M19: =IF(ISERROR(1/L19), "", 1/L19) -> 
B20: 2 | C20: Fully Dressed Concrete Poles | D20: Overall | F20: 50 | G20: 60 | H20: 80 | M20: =IF(ISERROR(1/L20), "", 1/L20) -> 
D21: Cross Arm | E21: Wood | F21: 20 | G21: 40 | H21: 55 | M21: =IF(ISERROR(1/L21), "", 1/L21) -> 
E22: Steel | F22: 30 | G22: 70 | H22: 95
B23: 3 | C23: Fully Dressed Steel Poles | D23: Overall | F23: 60 | G23: 60 | H23: 80
D24: Cross Arm | E24: Wood | F24: 20 | G24: 40 | H24: 55
E25: Steel | F25: 30 | G25: 70 | H25: 95
B26: 4 | C26: OH Line Switch | F26: 30 | G26: 45 | H26: 55
B27: 5 | C27: OH Line Switch Motor | F27: 15 | G27: 25 | H27: 25
B28: 6 | C28: OH Line Switch RTU | F28: 15 | G28: 20 | H28: 20
B29: 7 | C29: OH Integral Switches | F29: 35 | G29: 45 | H29: 60
B30: 8 | C30: OH Conductors | F30: 50 | G30: 60 | H30: 75
B31: 9 | C31: OH Transformers & Voltage Regulators | F31: 30 | G31: 40 | H31: 60
B32: 10 | C32: OH Shunt Capacitor Banks | F32: 25 | G32: 30 | H32: 40
B33: 11 | C33: Reclosers | F33: 25 | G33: 40 | H33: 55
A34: TS & MS | B34: 12 | C34: Power Transformers | D34: Overall | F34: 30 | G34: 45 | H34: 60
D35: Bushing | F35: 10 | G35: 20 | H35: 30
D36: Tap Changer | F36: 20 | G36: 30 | H36: 60
B37: 13 | C37: Station Service Transformer | F37: 30 | G37: 45 | H37: 55
B38: 14 | C38: Station Grounding Transformer | F38: 30 | G38: 40 | H38: 40
B39: 15 | C39: Station DC System | D39: Overall | F39: 10 | G39: 20 | H39: 30
D40: Battery Bank | F40: 10 | G40: 15 | H40: 15
D41: Charger | F41: 20 | G41: 20 | H41: 30
B42: 16 | C42: Station Metal Clad Switchgear | D42: Overall | F42: 30 | G42: 40 | H42: 60
D43: Removable Breaker | F43: 25 | G43: 40 | H43: 60
B44: 17 | C44: Station Independent Breakers | F44: 35 | G44: 45 | H44: 65
B45: 18 | C45: Station Switch | F45: 30 | G45: 50 | H45: 60
B46: 19 | C46: Electromechanical Relays | F46: 25 | G46: 35 | H46: 50
B47: 20 | C47: Solid State Relays | F47: 10 | G47: 30 | H47: 45
B48: 21 | C48: Digital & Numeric Relays | F48: 15 | G48: 20 | H48: 20
B49: 22 | C49: Rigid Busbars | F49: 30 | G49: 55 | H49: 60
B50: 23 | C50: Steel Structure | F50: 35 | G50: 50 | H50: 90
A51: UG | B51: 24 | C51: Primary Paper Insulated Lead Covered (PILC) Cables | F51: 60 | G51: 65 | H51: 75
B52: 25 | C52: Primary Ethylene-Propylene Rubber (EPR) Cables | F52: 20 | G52: 25 | H52: 25
B53: 26 | C53: Primary Non-Tree Retardant (TR) Cross Linked Polyethylene (XLPE) Cables Direct Buried | F53: 20 | G53: 25 | H53: 30
B54: 27 | C54: Primary Non-TR XLPE Cables in Duct | F54: 20 | G54: 25 | H54: 30
B55: 30 | C55: Secondary PILC Cables | F55: 70 | G55: 75 | H55: 80
B56: 31 | C56: Secondary Cables Direct Buried | F56: 25 | G56: 35 | H56: 40
B57: 32 | C57: Secondary Cables in Duct | F57: 35 | G57: 40 | H57: 60
B58: 33 | C58: Network Tranformers | D58: Overall | F58: 20 | G58: 35 | H58: 50
D59: Protector | F59: 20 | G59: 35 | H59: 40
B60: 34 | C60: Pad-Mounted Transformers | F60: 25 | G60: 40 | H60: 45
B61: 35 | C61: Submersible/Vault Transformers | F61: 25 | G61: 35 | H61: 45
B62: 36 | C62: UG Foundation | F62: 35 | G62: 55 | H62: 70
B63: 37 | C63: UG Vaults | D63: Overall | F63: 40 | G63: 60 | H63: 80
D64: Roof | F64: 20 | G64: 30 | H64: 45
B65: 38 | C65: UG Vault Switches | F65: 20 | G65: 35 | H65: 50
B66: 39 | C66: Pad-Mounted Switchgear | F66: 20 | G66: 30 | H66: 45
B67: 40 | C67: Ducts | F67: 30 | G67: 50 | H67: 85
B68: 41 | C68: Concrete Encased Duct Banks | F68: 35 | G68: 55 | H68: 80
B69: 42 | C69: Cable Chambers | F69: 50 | G69: 60 | H69: 80
A70: S | B70: 43 | C70: Remote SCADA | F70: 15 | G70: 20 | H70: 30
A73: Table F-2 from Kinetrics Report1
C75: Asset Details | F75: Useful Life Range | J75: USoA Account Number | K75: USoA Account Description | L75: Current | N75: Proposed | P75: Outside Range of Min, Max TUL?
B76: # | C76: Category| Component | Type | L76: Years | M76: Rate | N76: Years | O76: Rate | P76: Below Min Range | Q76: Above Max Range
B77: 1 | C77: Office Equipment | F77: 5 | G77: 15 | M77: =IF(ISERROR(1/L77), "", 1/L77) ->  | O77: =IF(ISERROR(1/N77), "", 1/N77) ->  | P77: =IF(ISBLANK(N77),"",IF(N77<F77,"Yes","No")) ->  | Q77: =IF(ISBLANK(N77),"",IF(N77>G77,"Yes","No")) -> 
B78: 2 | C78: Vehicles | D78: Trucks & Buckets | F78: 5 | G78: 15 | M78: =IF(ISERROR(1/L78), "", 1/L78) ->  | O78: =IF(ISERROR(1/N78), "", 1/N78) ->  | P78: =IF(ISBLANK(N78),"",IF(N78<F78,"Yes","No")) ->  | Q78: =IF(ISBLANK(N78),"",IF(N78>G78,"Yes","No")) -> 
D79: Trailers | F79: 5 | G79: 20
D80: Vans | F80: 5 | G80: 10
B81: 3 | C81: Administrative Buildings | F81: 50 | G81: 75
B82: 4 | C82: Leasehold Improvements | F82: Lease dependent | P82: =IF(ISBLANK(N82),"",IF(N82<F82,"Yes","No")) ->  | Q82: =IF(ISBLANK(N82),"",IF(N82>G82,"Yes","No")) -> 
B83: 5 | C83: Station Buildings | D83: Station Buildings | F83: 50 | G83: 75
D84: Parking | F84: 25 | G84: 30
D85: Fence | F85: 25 | G85: 60
D86: Roof | F86: 20 | G86: 30
B87: 6 | C87: Computer Equipment | D87: Hardware | F87: 3 | G87: 5
D88: Software | F88: 2 | G88: 5
B89: 7 | C89: Equipment | D89: Power Operated | F89: 5 | G89: 10
D90: Stores | F90: 5 | G90: 10
D91: Tools, Shop, Garage Equipment | F91: 5 | G91: 10
D92: Measurement & Testing Equipment | F92: 5 | G92: 10
B93: 8 | C93: Communication | D93: Towers | F93: 60 | G93: 70
D94: Wireless | F94: 2 | G94: 10
B95: 9 | C95: Residential Energy Meters | F95: 25 | G95: 35
B96: 10 | C96: Industrial/Commercial Energy Meters | F96: 25 | G96: 35
B97: 11 | C97: Wholesale Energy Meters | F97: 15 | G97: 30
B98: 12 | C98: Current & Potential Transformer (CT & PT) | F98: 35 | G98: 50
B99: 13 | C99: Smart Meters | F99: 5 | G99: 15
B100: 14 | C100: Repeaters - Smart Metering | F100: 10 | G100: 15
B101: 15 | C101: Data Collectors - Smart Metering | F101: 15 | G101: 20
A104: * TS & MS = Transformer and Municipal Stations UG = Underground Systems S = Monitoring and Control Systems
A106: Note 1: | B106: Tables F-1 and F-2 above are to be used as a reference in order to complete columns J, K, L and N.
B107: See pages 17-19 of Kinetrics Report

Sheet App.2-C_DepExp
A9: Appendix 2-C | Y9: CGAAP
A10: Depreciation and Amortization Expense | Y10: Revised CGAAP
Y11: MIFRS
A12: This appendix is to be completed in conjunction with the accounting instructions in Appendix 2-B
A14: Scenario that applies | C14: Applicable Years and Accounting Standard | R14: Year Reflected in Schedule Below | S14: Accounting Standard Reflected in Schedule Below | Y14: 2012
A15: Rebasing for the first time with depreciation policy changes made in 2012. | C15: ="This appendix must be duplicated and completed for the years 2012 to " & TestYear & ". The appendix for 2012 is to be completed under CGAAP (prior to changes in depreciation policies)." &" The appendix for 2012 to 2014 must be completed under Revised CGAAP (after changes in depreciation policies). The appendix for 2014 to " & TestYear & " is to be completed under MIFRS (2014 if changes to MIFRS are material)." -> This appendix must be duplicated and completed for the years 2012 to 2021. The appendix for 2012 is to be completed under CGAAP (prior to changes in depreciation policies). The appendix for 2012 to 2014 must be completed under Revised CGAAP (after changes in depreciation policies). The appendix for 2014 to 2021 is to be completed under MIFRS (2014 if changes to MIFRS are material). | Y15: 2013
A16: Rebasing for the first time with depreciation policy changes made in 2013. | C16: ="This appendix must be duplicated and completed for the years 2013 to " & TestYear & ". The appendix for 2013 is to be completed under CGAAP (prior to changes in depreciation policies)."&" The appendix for 2013 to 2014 must be completed under Revised CGAAP (after changes in depreciation policies). The appendix for 2014 to " & TestYear & " is to be completed under MIFRS (2014 if changes to MIFRS are material)." -> This appendix must be duplicated and completed for the years 2013 to 2021. The appendix for 2013 is to be completed under CGAAP (prior to changes in depreciation policies). The appendix for 2013 to 2014 must be completed under Revised CGAAP (after changes in depreciation policies). The appendix for 2014 to 2021 is to be completed under MIFRS (2014 if changes to MIFRS are material). | Y16: 2014
A17: Already rebased with depreciation policy changes in a prior rate application and rebasing MIFRS for the first time. | C17: This appendix must be completed for 2014 to the test year. The appendix for 2014 is to be completed under Revised CGAAP (after changes in depreciation policies). The appendix for 2014 to the test year is to be completed under MIFRS (2014 if changes to MIFRS are material). | R17: 2013 | S17: Revised CGAAP | Y17: 2015
A18: Already rebased under MIFRS in a prior rate application | C18: ="This appendix must be completed under MIFRS for each year for the earlier of: 1) all historical years back to its last rebasing; or 2) at least three years of historical actuals, in addition to Bridge Year and Test Year forecasts." -> This appendix must be completed under MIFRS for each year for the earlier of: 1) all historical years back to its last rebasing; or 2) at least three years of historical actuals, in addition to Bridge Year and Test Year forecasts. | Y18: 2016
Y19: 2017
C20: Book Values | J20: Service Lives | N20: Depreciation Expense | Y20: 2018
A21: Account | B21: Description | C21: Opening Net Book Value of Existing Assets as at Date of Policy Change (Jan. 1) 1 | D21: Less Fully Depreciated 7 | E21: Net Amount of Existing Assets Before Policy Change to be Depreciated | F21: Opening Gross Book Value of Assets Acquired After Policy Change 2 | G21: Less Fully Depreciated 8 | H21: Net Amount of Assets Acquired After Policy Change to be Depreciated | I21: Current Year Additions | J21: Average Remaining Life of Assets Existing Before Policy Change 3 | K21: Depreciation Rate Assets Acquired After Policy Change | L21: Life of Assets Acquired After Policy Change 4 | M21: Depreciation Rate on New Additions | N21: Depreciation Expense on Assets Existing Before Policy Change | O21: Depreciation Expense on Assets Acquired After Policy Change | P21: Depreciation Expense on Current Year Additions 5 | Q21: Total Current Year Depreciation Expense | R21: Depreciation Expense per Appendix 2-BA Fixed Assets, Column J | S21: Variance 6
C22: a | D22: b | E22: c = a-b | F22: d | G22: e | H22: f = d- e | I22: g | J22: h | K22: i = 1/h | L22: j | M22: k = 1/j | N22: l = c/h | O22: m = f/j | P22: n = g*0.5/j | Q22: o = l+m+n | R22: p | S22: q = p-o
A23: 1609 | B23: Capital Contributions Paid | C23: 6798057 | E23: =C23-D23 -> 6798057 | H23: =F23-G23 -> 0 | I23: -2684455 | J23: 60 | K23: =IF(J23=0,0,1/J23) -> 0.01666666667 | L23: 60 | M23: =IF(L23=0,0,1/L23) -> 0.01666666667 | N23: =IF(J23=0,0,+E23/J23) -> 113300.95 | O23: =IF(L23=0,0,+H23/L23) -> 0 | P23: =IF(L23=0,0,+(I23*0.5)/L23) -> -22370.45833 | Q23: =IF(ISERROR(+N23+O23+P23), 0, +N23+O23+P23) -> 90930.49167 | R23: 34280.02 | S23: =IF(ISERROR(+R23-Q23), 0, +R23-Q23) -> -56650.47167
A24: 1611 | B24: Computer Software (Formally known as Account 1925) | C24: 1894398.65 | E24: =C24-D24 -> 1894398.65 | H24: =F24-G24 -> 0 | I24: 470978.25 | J24: 6.178598915 | K24: =IF(J24=0,0,1/J24) -> 0.161848991 | L24: 9.080667234 | M24: =IF(L24=0,0,1/L24) -> 0.1101240662 | N24: =IF(J24=0,0,+E24/J24) -> 306606.51 | O24: =IF(L24=0,0,+H24/L24) -> 0 | P24: =IF(L24=0,0,+(I24*0.5)/L24) -> 25933.02 | Q24: =IF(ISERROR(+N24+O24+P24), 0, +N24+O24+P24) -> 332539.53 | R24: 332539.53 | S24: =IF(ISERROR(+R24-Q24), 0, +R24-Q24) -> -5.820766091e-11
A25: 1612 | B25: Land Rights (Formally known as Account 1906) | C25: 162836.04 | E25: 162836.04 | H25: 0 | I25: 0 | J25: 57.58 | K25: 0.01736714137 | L25: 70 | M25: 0.01428571429 | N25: 2827.996527 | O25: 0 | P25: 0 | Q25: 2827.996527 | R25: 2828.3 | S25: =IF(ISERROR(+R25-Q25), 0, +R25-Q25) -> 0.3034734283
A26: 1805 | B26: Land | C26: 202702.95 | E26: 202702.95 | H26: 0 | I26: 0 | K26: 0 | M26: 0 | N26: 0 | O26: 0 | P26: 0 | Q26: 0 | R26: 0 | S26: 0
A27: 1808 | B27: Buildings | C27: 1147791.28 | E27: 1147791.28 | H27: 0 | I27: 0 | J27: 17.70733311 | K27: 0.05647377805 | L27: 20 | M27: 0.05 | N27: 64820.11 | O27: 0 | P27: 0 | Q27: 64820.11 | R27: 64820.11 | S27: 2.910383046e-11
A28: 1810 | B28: Leasehold Improvements | E28: 0 | H28: 0 | K28: 0 | M28: 0 | N28: 0 | O28: 0 | P28: 0 | Q28: 0 | S28: 0
A29: 1815 | B29: Transformer Station Equipment >50 kV | E29: 0 | H29: 0 | K29: 0 | M29: 0 | N29: 0 | O29: 0 | P29: 0 | Q29: 0 | S29: 0
A30: 1820 | B30: Distribution Station Equipment <50 kV - Substation Equipment | C30: 4527038.92 | E30: 4527038.92 | H30: 0 | I30: 153124.09 | J30: 22.51575544 | K30: 0.04441334436 | L30: 15.67859791 | M30: 0.06378121344 | N30: 201060.9385 | O30: 0 | P30: 4883.220134 | Q30: 205944.1586 | R30: 207891.76 | S30: 1947.601366
A31: 1820 | B31: Distribution Station Equipment <50 kV - Substation Battery Bank/Chargers | C31: 128107.68 | E31: 128107.68 | H31: 0 | I31: 6932 | J31: 9.378760614 | K31: 0.1066238964 | L31: 19.99769619 | M31: 0.05000576019 | N31: 13659.34 | O31: 0 | P31: 173.3199648 | Q31: 13832.65996 | R31: 13832.64 | S31: -0.0199648325
A32: 1820 | B32: Distribution Station Equipment <50 kV | C32: 3225.51 | E32: 3225.51 | H32: 0 | I32: 0 | J32: 38.99545225 | K32: 0.02564401596 | L32: 0 | M32: 0 | N32: 82.71502993 | O32: 0 | P32: 0 | Q32: 82.71502993 | R32: 82.71 | S32: -0.005029933136
A33: 1825 | B33: Storage Battery Equipment | E33: 0 | H33: 0 | K33: 0 | M33: 0 | N33: 0 | O33: 0 | P33: 0 | Q33: 0 | S33: 0
A34: 1830 | B34: Poles, Towers & Fixtures | C34: 16315456.37 | E34: 16315456.37 | H34: 0 | I34: 4148008.3 | J34: 33.04649404 | K34: 0.03026039612 | L34: 40 | M34: 0.025 | N34: 493712.1727 | O34: 0 | P34: 51850.10375 | Q34: 545562.2764 | R34: 547327 | S34: 1764.723558
A35: 1835 | B35: Overhead Conductors & Devices - Primary devices | C35: 7533394 | E35: 7533394 | H35: 0 | I35: 589777.19 | J35: 31.47988448 | K35: 0.03176631734 | L35: 40 | M35: 0.025 | N35: 239308.1844 | O35: 0 | P35: 7372.214875 | Q35: 246680.3993 | R35: 246680.415 | S35: 0.01569049549
A36: 1835 | B36: Overhead Conductors & Devices - Primary conductors | C36: 8685131.07 | E36: 8685131.07 | H36: 0 | I36: 818674.06 | J36: 51.74542098 | K36: 0.01932538148 | L36: 60 | M36: 0.01666666667 | N36: 167843.4711 | O36: 0 | P36: 6822.283833 | Q36: 174665.7549 | R36: 150695.175 | S36: -23970.57993
A37: 1835 | B37: Overhead Conductors & Devices - Primary switch motors, arrestors | C37: 1180464 | E37: 1180464 | H37: 0 | I37: 127332.87 | J37: 8.62777795 | K37: 0.1159046983 | L37: 20 | M37: 0.05 | N37: 136821.3237 | O37: 0 | P37: 3183.32175 | Q37: 140004.6455 | R37: 133277.01 | S37: -6727.635486
A38: 1840 | B38: Underground Conduit | C38: 8335192 | E38: 8335192 | H38: 0 | I38: 997529.84 | J38: 52.89446117 | K38: 0.01890557117 | L38: 60 | M38: 0.01666666667 | N38: 157581.5655 | O38: 0 | P38: 8312.748667 | Q38: 165894.3142 | R38: 169350.83 | S38: 3456.515795
A39: 1845 | B39: Underground Conductors & Devices - Primary conductors | C39: 9929738.45 | E39: 9929738.45 | H39: 0 | I39: 539935.83 | J39: 29.87315539 | K39: 0.03347487023 | L39: 40 | M39: 0.025 | N39: 332396.706 | O39: 0 | P39: 6749.197875 | Q39: 339145.9039 | R39: 371983.88 | S39: 32837.97612
A40: 1845 | B40: Underground Conductors & Devices - Primary devices | C40: 2977419 | E40: 2977419 | H40: 0 | I40: 246865.84 | J40: 13.45253859 | K40: 0.07433541212 | L40: 30 | M40: 0.03333333333 | N40: 221327.6684 | O40: 0 | P40: 4114.430667 | Q40: 225442.0991 | R40: 221498.08 | S40: -3944.019088
A41: 1850 | B41: Line Transformers | C41: 20926271.37 | E41: 20926271.37 | H41: 0 | I41: 1033826.39 | J41: 31.14952866 | K41: 0.0321032145 | L41: 40 | M41: 0.025 | N41: 671800.5784 | O41: 0 | P41: 12922.82987 | Q41: 684723.4083 | R41: 684723.42 | S41: 0.01168215706
A42: 1855 | B42: Services (Overhead & Underground) - Underground Secondary | C42: 11058942 | E42: 11058942 | H42: 0 | I42: 473764.87 | J42: 51.17103045 | K42: 0.01954230726 | L42: 60 | M42: 0.01666666667 | N42: 216117.2426 | O42: 0 | P42: 3948.040583 | Q42: 220065.2831 | R42: 220421.83 | S42: 356.5468584
A43: 1855 | B43: Services (Overhead & Underground) - Overhead Secondary | C43: 2634685 | E43: 2634685 | H43: 0 | I43: 151677.43 | J43: 51.65485527 | K43: 0.01935926438 | L43: 60 | M43: 0.01666666667 | N43: 51005.56348 | O43: 0 | P43: 1263.978583 | Q43: 52269.54207 | R43: 52269.54 | S43: -0.002068000911
A44: 1855 | B44: Services (Overhead & Underground) - Underground Structure | E44: 0 | H44: 0 | K44: 0 | M44: 0 | N44: 0 | O44: 0 | P44: 0 | Q44: 0 | S44: 0
A45: 1855 | B45: Services (Overhead & Underground) - Overhead Structure | E45: 0 | H45: 0 | K45: 0 | M45: 0 | N45: 0 | O45: 0 | P45: 0 | Q45: 0 | S45: 0
A46: 1860 | B46: Meters - Residential | C46: 682626.91 | E46: 682626.91 | H46: 0 | I46: 62048.98 | J46: 12.22204242 | K46: 0.08181938546 | L46: 15 | M46: 0.06666666667 | N46: 55852.11427 | O46: 0 | P46: 2068.299333 | Q46: 57920.41361 | R46: 57920.42 | S46: 0.006394023658
A47: 1860 | B47: Meters - Industrial and Wholesale | C47: 1284993.11 | E47: 1284993.11 | H47: 0 | I47: 196871.49 | J47: 6.103025087 | K47: 0.1638531688 | L47: 20 | M47: 0.05 | N47: 210550.193 | O47: 0 | P47: 4921.78725 | Q47: 215471.9803 | R47: 172713.345 | S47: -42758.63527
A48: 1860 | B48: Meters - CT and PT | C48: 1164216.39 | E48: 1164216.39 | H48: 0 | I48: 140423.2 | J48: 34.79312773 | K48: 0.02874130799 | L48: 45 | M48: 0.02222222222 | N48: 33461.10183 | O48: 0 | P48: 1560.257778 | Q48: 35021.35961 | R48: 35021.39 | S48: 0.03038870406
A49: 1860 | B49: Meters - Smart Meters - Repeaters, Data Concentrators | C49: 912531.22 | E49: 912531.22 | H49: 0 | I49: 29302.75 | J49: 12.33575534 | K49: 0.0810651616 | L49: 15 | M49: 0.06666666667 | N49: 73974.49081 | O49: 0 | P49: 976.7583333 | Q49: 74951.24914 | R49: 74951.25 | S49: 0.0008560150454
A50: 1860 | B50: Meters - Smart Meters - Regulatory | C50: 7640776.24 | E50: 7640776.24 | H50: 0 | I50: 0 | J50: 11.48994245 | K50: 0.08703263784 | L50: 15 | M50: 0.06666666667 | N50: 664996.9113 | O50: 0 | P50: 0 | Q50: 664996.9113 | R50: 637265.46 | S50: -27731.45135
A51: 1860 | B51: Meters - Quadlogic Meters | E51: 0 | H51: 0 | K51: 0 | L51: 20 | M51: 0.05 | N51: 0 | O51: 0 | P51: 0 | Q51: 0 | S51: 0
A52: 1860 | B52: Meters - Cellular Meters | E52: 0 | H52: 0 | K52: 0 | L52: 15 | M52: 0.06666666667 | N52: 0 | O52: 0 | P52: 0 | Q52: 0 | S52: 0
A53: 1860 | B53: Meters (Smart Meters) | E53: 0 | H53: 0 | K53: 0 | M53: 0 | N53: 0 | O53: 0 | P53: 0 | Q53: 0 | S53: 0
A54: 1905 | B54: Land | C54: 96299.71 | E54: 96299.71 | H54: 0 | K54: 0 | M54: 0 | N54: 0 | O54: 0 | P54: 0 | Q54: 0 | S54: =IF(ISERROR(+R54-Q54), 0, +R54-Q54) -> 0
A55: 1908 | B55: Buildings & Fixtures - Office Building | C55: 2624564.24 | E55: 2624564.24 | H55: 0 | I55: 20500.68 | J55: 17.86522419 | K55: 0.05597466839 | L55: 19.79571913 | M55: 0.05051597233 | N55: 146909.113 | O55: 0 | P55: 517.8058919 | Q55: 147426.9189 | R55: 147421.63 | S55: -5.288891862
A56: 1908 | B56: Buildings & Fixtures - Service Buildings | C56: 1942516.01 | E56: 1942516.01 | H56: 0 | I56: 0 | J56: 20.81754358 | K56: 0.04803640717 | L56: 12.90671269 | M56: 0.07747906257 | N56: 93311.49 | O56: 0 | P56: 0 | Q56: 93311.49 | R56: 93311.49 | S56: 0
A57: 1910 | B57: Leasehold Improvements | E57: 0 | H57: 0 | K57: 0 | M57: 0 | N57: 0 | O57: 0 | P57: 0 | Q57: 0 | S57: 0
A58: 1915 | B58: Office Furniture & Equipment (10 years) | C58: 318515.48 | E58: 318515.48 | H58: 0 | I58: 32075.66 | J58: 5.540439617 | K58: 0.1804910926 | L58: 10 | M58: 0.1 | N58: 57489.207 | O58: 0 | P58: 1603.783 | Q58: 59092.99 | R58: 59092.99 | S58: -3.637978807e-11
A59: 1915 | B59: Office Furniture & Equipment (5 years) | E59: 0 | H59: =F59-G59 -> 0 | K59: 0 | M59: 0 | N59: 0 | O59: 0 | P59: 0 | Q59: 0 | S59: 0
A60: 1920 | B60: Computer Equipment - Hardware | C60: 136986.04 | E60: 136986.04 | H60: 0 | I60: 165827.51 | J60: 2.780123275 | K60: 0.35969628 | L60: 5 | M60: 0.2 | N60: 49273.369 | O60: 0 | P60: 16582.751 | Q60: 65856.12 | R60: 65856.12 | S60: -4.365574569e-11
A61: 1920 | B61: Computer Equip.-Hardware(Post Mar. 22/04) | E61: 0 | H61: 0 | K61: 0 | M61: 0 | N61: 0 | O61: 0 | P61: 0 | Q61: 0 | S61: 0
A62: 1920 | B62: Computer Equip.-Hardware(Post Mar. 19/07) | E62: 0 | H62: 0 | K62: 0 | M62: 0 | N62: 0 | O62: 0 | P62: 0 | Q62: 0 | S62: 0
A63: 1930 | B63: Transportation Equipment - Trailers | C63: 0 | E63: 0 | H63: 0 | I63: 33643 | J63: 0 | K63: 0 | L63: 20 | M63: 0.05 | N63: 0 | O63: 0 | P63: 841.075 | Q63: 841.075 | R63: 280.36 | S63: -560.715
A64: 1930 | B64: Transportation Equipment - Automobiles | C64: 0 | E64: 0 | H64: 0 | I64: 0 | J64: 0 | K64: 0 | L64: 8 | M64: 0.125 | N64: 0 | O64: 0 | P64: 0 | Q64: 0 | R64: 0 | S64: 0
A65: 1930 | B65: Transportation Equipment - Trucks | C65: 178827.42 | E65: 178827.42 | H65: 0 | I65: 46846 | J65: 9.364259394 | K65: =IF(J65=0,0,1/J65) -> 0.1067890111 | L65: 12 | M65: 0.08333333333 | N65: 19096.80333 | O65: 0 | P65: 1951.916667 | Q65: 21048.72 | R65: 21048.72 | S65: 0
A66: 1930 | B66: Transportation Equipment - Trucks | C66: 561420.04 | E66: 561420.04 | H66: 0 | I66: 169258.37 | J66: 12.08775969 | K66: 0.08272831574 | L66: 15 | M66: 0.06666666667 | N66: 46445.33433 | O66: 0 | P66: 5641.945667 | Q66: 52087.28 | R66: 52087.28 | S66: 0
A67: 1935 | B67: Stores Equipment | E67: 0 | H67: 0 | K67: 0 | M67: 0 | N67: 0 | O67: 0 | P67: 0 | Q67: 0 | S67: 0
A68: 1940 | B68: Tools, Shop & Garage Equipment | C68: 129338.06 | E68: 129338.06 | H68: 0 | I68: 21516.85 | J68: 4.426446653 | K68: 0.2259148429 | L68: 10 | M68: 0.1 | N68: 29219.3875 | O68: 0 | P68: 1075.8425 | Q68: 30295.23 | R68: 30295.23 | S68: -1.091393642e-11
A69: 1945 | B69: Measurement & Testing Equipment | C69: 30918.98 | E69: 30918.98 | H69: 0 | J69: 4.763002023 | K69: 0.2099516219 | L69: 10 | M69: 0.1 | N69: 6491.49 | O69: 0 | P69: 0 | Q69: 6491.49 | R69: 6491.49 | S69: 0
A70: 1950 | B70: Power Operated Equipment | E70: 0 | H70: 0 | K70: 0 | M70: 0 | N70: 0 | O70: 0 | P70: 0 | Q70: 0 | S70: 0
A71: 1955 | B71: Communications Equipment | E71: 0 | H71: 0 | K71: 0 | M71: 0 | N71: 0 | O71: 0 | P71: 0 | Q71: 0 | S71: 0
A72: 1955 | B72: Communication Equipment (Smart Meters) | E72: 0 | H72: 0 | K72: 0 | M72: 0 | N72: 0 | O72: 0 | P72: 0 | Q72: 0 | S72: 0
A73: 1960 | B73: Miscellaneous Equipment | E73: 0 | H73: 0 | K73: 0 | M73: 0 | N73: =IF(J73=0,0,+E73/J73) -> 0 | O73: =IF(L73=0,0,+H73/L73) -> 0 | P73: =IF(L73=0,0,+(I73*0.5)/L73) -> 0 | Q73: =IF(ISERROR(+N73+O73+P73), 0, +N73+O73+P73) -> 0 | S73: 0
A74: 1970 | B74: Load Management Controls Customer Premises | E74: 0 | H74: 0 | K74: 0 | M74: =IF(L74=0,0,1/L74) -> 0 | N74: 0 | O74: 0 | P74: 0 | Q74: 0 | S74: 0
A75: 1975 | B75: Load Management Controls Utility Premises | E75: 0 | H75: 0 | K75: 0 | M75: 0 | N75: 0 | O75: 0 | P75: 0 | Q75: 0 | S75: 0
A76: 1980 | B76: System Supervisor Equipment - Scada System | C76: 46.44 | E76: 46.44 | H76: 0 | I76: 0 | J76: 1 | K76: 1 | L76: 0 | M76: 0 | N76: 46.44 | O76: 0 | P76: 0 | Q76: 46.44 | R76: 46.44 | S76: -4.097842066e-10
A77: 1980 | B77: System Supervisor Equipment - RTU | C77: 140514.33 | E77: 140514.33 | H77: 0 | I77: 51317.77 | J77: 13.87319607 | K77: 0.07208144358 | L77: 20 | M77: 0.05 | N77: 10128.47575 | O77: 0 | P77: 1282.94425 | Q77: 11411.42 | R77: 11411.42 | S77: 0
A78: 1980 | B78: System Supervisor Equipment - Relays | C78: 432719.42 | E78: 432719.42 | H78: 0 | I78: 7222.58 | J78: 20.92335939 | K78: 0.04779347242 | L78: 30 | M78: 0.03333333333 | N78: 20681.16367 | O78: 0 | P78: 120.3763333 | Q78: 20801.54 | R78: 20801.54 | S78: 0
A79: 1980 | B79: System Supervisor Equipment - Battery | C79: 288899.37 | E79: 288899.37 | H79: 0 | I79: 0 | J79: 2.148364406 | K79: 0.4654703816 | L79: 20 | M79: 0.05 | N79: 134474.1 | O79: 0 | P79: 0 | Q79: 134474.1 | R79: 134474.1 | S79: 0
A80: 1985 | B80: Miscellaneous Fixed Assets | E80: 0 | H80: 0 | K80: 0 | M80: 0 | N80: 0 | O80: 0 | P80: 0 | Q80: 0 | S80: 0
A81: 1990 | B81: Other Tangible Property | E81: 0 | H81: 0 | K81: 0 | M81: 0 | N81: 0 | O81: 0 | P81: 0 | Q81: 0 | S81: 0
A82: 1995 | B82: Contributions & Grants - Overhead Primary - Structures | C82: -2200679.51 | E82: -2200679.51 | H82: 0 | I82: -362780.3 | J82: 36.58004457 | K82: 0.0273373095 | L82: 40 | M82: 0.025 | N82: -60160.65688 | O82: 0 | P82: -4534.75375 | Q82: -64695.41063 | R82: -64695.425 | S82: -0.01437190858
A83: 1995 | B83: Contributions & Grants - Overhead Primary - Devices | C83: -1094524.35 | E83: =C83-D83 -> -1094524.35 | H83: 0 | I83: -82619.43 | J83: 35.08398913 | K83: 0.02850303015 | L83: 40 | M83: 0.025 | N83: -31197.26055 | O83: 0 | P83: -1032.742875 | Q83: -32230.00342 | R83: -32229.995 | S83: 0.008421121147
A84: 1995 | B84: Contributions & Grants - Overhead Primary - Conductors | C84: -1091035.9 | E84: -1091035.9 | H84: 0 | I84: -34264.82 | J84: 55.08155889 | K84: 0.01815489649 | L84: 60 | M84: 0.01666666667 | N84: -19807.64383 | O84: 0 | P84: -285.5401667 | Q84: -20093.18399 | R84: -20093.19 | S84: -0.006005998141
A85: 1995 | B85: Contributions & Grants - Overhead Primary - Switch Controllers, Arresters | C85: -106952.16 | E85: -106952.16 | H85: 0 | I85: -8658.68 | J85: 14.78355194 | K85: 0.06764274271 | L85: 20 | M85: 0.05 | N85: -7234.537441 | O85: 0 | P85: -216.467 | Q85: -7451.004441 | R85: -7450.995 | S85: 0.009440701698
A86: 1995 | B86: Contributions & Grants - Underground Primary - Conduit | C86: -2879570.61 | E86: -2879570.61 | H86: 0 | I86: -557173.19 | J86: 56.42544195 | K86: 0.01772250186 | L86: 60 | M86: 0.01666666667 | N86: -51033.19549 | O86: 0 | P86: -4643.109917 | Q86: -55676.30541 | R86: -55676.3 | S86: =IF(ISERROR(+R86-Q86), 0, +R86-Q86) -> 0.005410642247
A87: 1995 | B87: Contributions & Grants - Underground Primary - Conductor | C87: -3993033.51 | E87: -3993033.51 | H87: 0 | I87: -212866.6 | J87: 34.74561178 | K87: 0.02878061282 | L87: 40 | M87: 0.025 | N87: -114921.9514 | O87: 0 | P87: -2660.8325 | Q87: -117582.7839 | R87: -117582.785 | S87: -0.001060969342
A88: 1995 | B88: Contributions & Grants - Underground Primary - Devices | C88: -938593.98 | E88: -938593.98 | H88: 0 | I88: -234253.36 | J88: 23.62076426 | K88: 0.04233563271 | L88: 30 | M88: 0.03333333333 | N88: -39735.97 | O88: 0 | P88: -3904.222667 | Q88: -43640.19267 | R88: -43640.195 | S88: -0.002333333337
A89: 1995 | B89: Contributions & Grants - Transformers | C89: -2295234.58 | E89: -2295234.58 | H89: 0 | I89: -114259.55 | J89: 35.06470527 | K89: 0.02851870541 | L89: 40 | M89: 0.025 | N89: -65457.11884 | O89: 0 | P89: -1428.244375 | Q89: -66885.36322 | R89: -66885.355 | S89: 0.008215798676
A90: 1995 | B90: Contributions & Grants - Underground Secondary - Cables | C90: -5583129.85 | E90: -5583129.85 | H90: 0 | I90: -318062.91 | J90: 54.08487188 | K90: 0.01848945861 | L90: 60 | M90: 0.01666666667 | N90: -103229.0483 | O90: 0 | P90: -2650.52425 | Q90: -105879.5725 | R90: -105849.845 | S90: 29.72752603
A91: 1995 | B91: Contributions & Grants - Overhead Secondary - Wire | C91: -959919.68 | E91: -959919.68 | H91: 0 | I91: -10820.25 | J91: 53.11142993 | K91: 0.01882833886 | L91: 60 | M91: 0.01666666667 | N91: -18073.69301 | O91: 0 | P91: -90.16875 | Q91: -18163.86176 | R91: -18163.86 | S91: 0.001762534219
A92: 1995 | B92: Contributions & Grants - Meters - Residential | C92: -40511.19 | E92: -40511.19 | H92: 0 | I92: 3968.73 | J92: 12.79315234 | K92: 0.07816681716 | L92: 15 | M92: 0.06666666667 | N92: -3166.630782 | O92: 0 | P92: 132.291 | Q92: -3034.339782 | R92: -3034.34 | S92: -0.0002183318288
A93: 1995 | B93: Contributions & Grants - Meters - Industrial/Wholesale | C93: -73004.48 | E93: -73004.48 | H93: 0 | I93: -2940.79 | J93: 12.48380455 | K93: 0.08010378533 | L93: 20 | M93: 0.05 | N93: -5847.935194 | O93: 0 | P93: -73.51975 | Q93: -5921.454944 | R93: -5921.49 | S93: -0.03505622712
A94: 1995 | B94: Contributions & Grants - Meters - Current/Potential Transformers | C94: -93019.16 | E94: -93019.16 | H94: 0 | I94: -2289.75 | J94: 37.01109307 | K94: 0.02701892641 | L94: 45 | M94: 0.02222222222 | N94: -2513.277838 | O94: 0 | P94: -25.44166667 | Q94: -2538.719505 | R94: -2538.72 | S94: -0.0004948474452
A95: 1995 | B95: Contributions & Grants - Smart Meters | C95: -3212.82 | E95: -3212.82 | H95: 0 | I95: 0 | J95: 14 | K95: 0.07142857143 | L95: 15 | M95: 0.06666666667 | N95: -229.4871429 | O95: 0 | P95: 0 | Q95: -229.4871429 | R95: -229.49 | S95: -0.002857142857
A96: 2005 | B96: Property Under Finance Lease | E96: =C96-D96 -> 0 | H96: 0 | K96: 0 | M96: 0 | N96: 0 | O96: =IF(L96=0,0,+H96/L96) -> 0 | P96: =IF(L96=0,0,+(I96*0.5)/L96) -> 0 | Q96: =IF(ISERROR(+N96+O96+P96), 0, +N96+O96+P96) -> 0 | S96: 0
B97: Total | C97: =SUM(C23:C96) -> 101655138.9 | D97: 0 | E97: 101655138.9 | F97: 0 | G97: 0 | H97: 0 | I97: 6113805.9 | N97: =SUM(N23:N96) -> 4520065.815 | O97: 0 | P97: 132890.5186 | Q97: 4652956.333 | R97: 4531000.94 | S97: -121955.3932
A100: General: | B100: Applicants are to complete this appendix to show the reasonability of the depreciation expense that is included in rate base via. Accumulated depreciation and the revenue requirement.
B101: Applicants must provide a breakdown of depreciation and amortization expense in the above format for all relevant accounts. Balances presented in the table should exclude asset retirement obligations (AROs) and the related depreciation and accretion expense. These should be disclosed separately consistent with the Notes of historical Audited Financial Statements.
A104: Notes:
A105: 1 | B105: This is the net book value of assets that existed as at the date of the utility's change in depreciation policies (i.e. as at Jan. 1, 2012 or Jan. 1, 2013). These assets are to be depreciated at the average remaining service life. This amount will not change in years subsequent to the date of the utility's change in depreciation policies. This column is expected to be used until the assets that existed as at the date of the utility's change in depreciation policies are fully depreciated.
A106: 2 | B106: This is the opening gross book value of assets that have been acquired after the date of the utility's change in depreciation policies (i.e. additions starting in 2012/2013 for those who changed policies Jan. 1, 2012/2013). These assets are to be depreciated at the revised service life. The amount is expected to be equal to the opening gross book value of the prior year plus the prior year's additions.
A107: 3 | B107: A recalculation should be performed to determine the average remaining life of opening balance of assets (i.e. excluding current year's additions) under the change in policies under CGAAP. For example, Asset A had a useful life of 20 years under CGAAP without the change in policies. On January 1 of the year of policy changes, Asset A was 3 years depreciated. As a result, Asset A would have a remaining service life of 17 years (20 years less 3 years) as at January 1 of the year of policy changes. Due to making the change in policies under CGAAP, management re-assessed the asset useful lives and concluded that the revised useful life of Asset A is now 30 years. Therefore, the average remaining useful life of the opening balance of Asset A is determined to be 27 years (30 years less 3 years) under the revised CGAAP as at January 1 of the year of policy changes.
A108: 4 | B108: The useful life used should be consistent with the OEB's regulatory accounting policies as set out in the Accounting Procedures Handbook for Electricity Distributors, effective Jan. 1, 2012 and also with the Report of the Board, Transition to International Financial Reporting Standards, EB-2008-0408, and the Kinectrics Report.
A109: 5 | B109: OEB policy of the "half-year" rule - the applicant must ensure that additions in the year attract a half-year depreciation expense in the first year. Deviations from this standard practice must be supported in the application.
A110: 6 | B110: The applicant must provide an explanation of material variances in evidence.
A111: 7 | B111: This should include assets in column A (excel column C) that become fully depreciated since the date of the policy change. The amount input in b (excel column D) should equal the net book value of the asset as at the date of depreciation policy change
A112: 8 | B112: This should include assets in column D (excel column F) that have become fully depreciated. The amount input in e (excel column G) should equal the gross book value of the asset
A115: Scenario that applies | C115: Applicable Years and Accounting Standard | R115: Year Reflected in Schedule Below | S115: Accounting Standard Reflected in Schedule Below | Y115: 2012
A116: Rebasing for the first time with depreciation policy changes made in 2012. | C116: ="This appendix must be duplicated and completed for the years 2012 to " & TestYear & ". The appendix for 2012 is to be completed under CGAAP (prior to changes in depreciation policies)." &" The appendix for 2012 to 2014 must be completed under Revised CGAAP (after changes in depreciation policies). The appendix for 2014 to " & TestYear & " is to be completed under MIFRS (2014 if changes to MIFRS are material)." -> This appendix must be duplicated and completed for the years 2012 to 2021. The appendix for 2012 is to be completed under CGAAP (prior to changes in depreciation policies). The appendix for 2012 to 2014 must be completed under Revised CGAAP (after changes in depreciation policies). The appendix for 2014 to 2021 is to be completed under MIFRS (2014 if changes to MIFRS are material). | Y116: 2013
A117: Rebasing for the first time with depreciation policy changes made in 2013. | C117: ="This appendix must be duplicated and completed for the years 2013 to " & TestYear & ". The appendix for 2013 is to be completed under CGAAP (prior to changes in depreciation policies)."&" The appendix for 2013 to 2014 must be completed under Revised CGAAP (after changes in depreciation policies). The appendix for 2014 to " & TestYear & " is to be completed under MIFRS (2014 if changes to MIFRS are material)." -> This appendix must be duplicated and completed for the years 2013 to 2021. The appendix for 2013 is to be completed under CGAAP (prior to changes in depreciation policies). The appendix for 2013 to 2014 must be completed under Revised CGAAP (after changes in depreciation policies). The appendix for 2014 to 2021 is to be completed under MIFRS (2014 if changes to MIFRS are material). | Y117: 2014
A118: Already rebased with depreciation policy changes in a prior rate application and rebasing MIFRS for the first time. | C118: This appendix must be completed for 2014 to the test year. The appendix for 2014 is to be completed under Revised CGAAP (after changes in depreciation policies). The appendix for 2014 to the test year is to be completed under MIFRS (2014 if changes to MIFRS are material). | R118: 2014 | S118: MIFRS | Y118: 2015
A119: Already rebased under MIFRS in a prior rate application | C119: ="This appendix must be completed under MIFRS for each year for the earlier of: 1) all historical years back to its last rebasing; or 2) at least three years of historical actuals, in addition to Bridge Year and Test Year forecasts." -> This appendix must be completed under MIFRS for each year for the earlier of: 1) all historical years back to its last rebasing; or 2) at least three years of historical actuals, in addition to Bridge Year and Test Year forecasts. | Y119: 2016
Y120: 2017
C121: Book Values | J121: Service Lives | N121: Depreciation Expense | Y121: 2018
A122: Account | B122: Description | C122: Opening Net Book Value of Existing Assets as at Date of Policy Change (Jan. 1) 1 | D122: Less Fully Depreciated 7 | E122: Net Amount of Existing Assets Before Policy Change to be Depreciated | F122: Opening Gross Book Value of Assets Acquired After Policy Change 2 | G122: Less Fully Depreciated 8 | H122: Net Amount of Assets Acquired After Policy Change to be Depreciated | I122: Current Year Additions | J122: Average Remaining Life of Assets Existing Before Policy Change 3 | K122: Depreciation Rate Assets Acquired After Policy Change | L122: Life of Assets Acquired After Policy Change 4 | M122: Depreciation Rate on New Additions | N122: Depreciation Expense on Assets Existing Before Policy Change | O122: Depreciation Expense on Assets Acquired After Policy Change | P122: Depreciation Expense on Current Year Additions 5 | Q122: Total Current Year Depreciation Expense | R122: Depreciation Expense per Appendix 2-BA Fixed Assets, Column J | S122: Variance 6
C123: a | D123: b | E123: c = a-b | F123: d | G123: e | H123: f = d- e | I123: g | J123: h | K123: i = 1/h | L123: j | M123: k = 1/j | N123: l = c/h | O123: m = f/j | P123: n = g*0.5/j | Q123: o = l+m+n | R123: p | S123: q = p-o
A124: 1609 | B124: Capital Contributions Paid | C124: =C23 -> 6798057 | E124: =C124-D124 -> 6798057 | F124: =I23 -> -2684455 | H124: =F124-G124 -> -2684455 | I124: 0 | J124: =J23 -> 60 | K124: =IF(J124=0,0,1/J124) -> 0.01666666667 | L124: =L23 -> 60 | M124: =IF(L124=0,0,1/L124) -> 0.01666666667 | N124: =IF(J124=0,0,+E124/J124) -> 113300.95 | O124: =IF(L124=0,0,+H124/L124) -> -44740.91667 | P124: =IF(L124=0,0,+(I124*0.5)/L124) -> 0 | Q124: =IF(ISERROR(+N124+O124+P124), 0, +N124+O124+P124) -> 68560.03333 | R124: 68560.08 | S124: =IF(ISERROR(+R124-Q124), 0, +R124-Q124) -> 0.04666666668
A125: 1611 | B125: Computer Software (Formally known as Account 1925) | C125: 1894398.65 | D125: 269691.929 | E125: =C125-D125 -> 1624706.721 | F125: =I24 -> 470978.25 | H125: =F125-G125 -> 470978.25 | I125: 907888.59 | J125: 5.949146063 | K125: =IF(J125=0,0,1/J125) -> 0.1680913512 | L125: 8.192482567 | M125: =IF(L125=0,0,1/L125) -> 0.1220631221 | N125: =IF(J125=0,0,+E125/J125) -> 273099.148 | O125: =IF(L125=0,0,+H125/L125) -> 57489.07565 | P125: =IF(L125=0,0,+(I125*0.5)/L125) -> 55409.85792 | Q125: =IF(ISERROR(+N125+O125+P125), 0, +N125+O125+P125) -> 385998.0816 | R125: 362141.02 | S125: =IF(ISERROR(+R125-Q125), 0, +R125-Q125) -> -23857.06156
A126: 1612 | B126: Land Rights (Formally known as Account 1906) | C126: 162836.04 | E126: 162836.04 | H126: 0 | I126: 0 | J126: =J25 -> 57.58 | K126: 0.01736714137 | L126: =L25 -> 70 | M126: 0.01428571429 | N126: 2827.996527 | O126: 0 | P126: 0 | Q126: 2827.996527 | R126: 2828.3 | S126: =IF(ISERROR(+R126-Q126), 0, +R126-Q126) -> 0.3034734283
A127: 1805 | B127: Land | C127: 202702.95 | E127: 202702.95 | H127: 0 | I127: 0 | J127: 0 | K127: 0 | L127: 0 | M127: 0 | N127: 0 | O127: 0 | P127: 0 | Q127: 0 | S127: 0
A128: 1808 | B128: Buildings | C128: 1147791.28 | D128: 38683.61699 | E128: 1109107.663 | H128: 0 | I128: 14760 | J128: 17.70733311 | K128: 0.05647377805 | L128: 20 | M128: 0.05 | N128: 62635.5 | O128: 0 | P128: 369 | Q128: 63004.5 | R128: 63004.5 | S128: 2.182787284e-11
A129: 1810 | B129: Leasehold Improvements | C129: 0 | E129: 0 | H129: 0 | J129: 0 | K129: 0 | L129: 0 | M129: 0 | N129: 0 | O129: 0 | P129: 0 | Q129: 0 | S129: 0
A130: 1815 | B130: Transformer Station Equipment >50 kV | C130: 0 | E130: 0 | H130: 0 | J130: 0 | K130: 0 | L130: 0 | M130: 0 | N130: 0 | O130: 0 | P130: 0 | Q130: 0 | S130: 0
A131: 1820 | B131: Distribution Station Equipment <50 kV - Substation Equipment | C131: 4527038.92 | E131: 4527038.92 | F131: =I30 -> 153124.09 | H131: 153124.09 | I131: 158347.55 | J131: 22.51575544 | K131: 0.04441334436 | L131: 15.67859791 | M131: 0.06378121344 | N131: 201060.9385 | O131: 9766.440267 | P131: 5049.799442 | Q131: 215877.1782 | R131: 225802.49 | S131: 9925.31179
A132: 1820 | B132: Distribution Station Equipment <50 kV - Substation Battery Bank/Chargers | C132: 128107.68 | E132: 128107.68 | F132: =I31 -> 6932 | H132: 6932 | I132: 11771.76 | J132: 9.378760614 | K132: 0.1066238964 | L132: 19.99769619 | M132: 0.05000576019 | N132: 13659.34 | O132: 346.6399297 | P132: 294.3279038 | Q132: 14300.30783 | R132: 14300.33 | S132: 0.02216652418
A133: 1820 | B133: Distribution Station Equipment <50 kV | C133: 3225.51 | E133: 3225.51 | H133: 0 | J133: 38.99545225 | K133: 0.02564401596 | L133: 0 | M133: 0 | N133: 82.71502993 | O133: 0 | P133: 0 | Q133: 82.71502993 | R133: 82.71 | S133: -0.005029933136
A134: 1825 | B134: Storage Battery Equipment | C134: 0 | E134: 0 | H134: 0 | J134: 0 | K134: 0 | L134: 0 | M134: 0 | N134: 0 | O134: 0 | P134: 0 | Q134: 0 | S134: 0
A135: 1830 | B135: Poles, Towers & Fixtures | C135: 16315456.37 | E135: 16315456.37 | F135: =I34 -> 4148008.3 | H135: 4148008.3 | I135: 1674041.05 | J135: 33.04649404 | K135: 0.03026039612 | L135: 40 | M135: 0.025 | N135: 493712.1727 | O135: 103700.2075 | P135: 20925.51313 | Q135: 618337.8933 | R135: 620102.62 | S135: 1764.726683
A136: 1835 | B136: Overhead Conductors & Devices - Primary devices | C136: 7533394 | E136: 7533394 | F136: 589777.19 | H136: 589777.19 | I136: 1060219.95 | J136: 31.47988448 | K136: 0.03176631734 | L136: 40 | M136: 0.025 | N136: 239308.1844 | O136: 14744.42975 | P136: 13252.74937 | Q136: 267305.3636 | R136: 267305.33 | S136: -0.03355950449
A137: 1835 | B137: Overhead Conductors & Devices - Primary conductors | C137: 8685131.07 | E137: 8685131.07 | F137: 818674.06 | H137: 818674.06 | I137: 651348.08 | J137: 51.74542098 | K137: 0.01932538148 | L137: 60 | M137: 0.01666666667 | N137: 167843.4711 | O137: 13644.56767 | P137: 5427.900667 | Q137: 186915.9394 | R137: 162945.44 | S137: -23970.49943
A138: 1835 | B138: Overhead Conductors & Devices - Primary switch motors, arrestors | C138: 1180464 | D138: 34988.17 | E138: 1145475.83 | F138: 127332.87 | H138: 127332.87 | I138: 90236.35 | J138: 12.04426673 | K138: 0.08302705534 | L138: 20 | M138: 0.05 | N138: 95105.48513 | O138: 6366.6435 | P138: 2255.90875 | Q138: 103728.0374 | R138: 103728.02 | S138: -0.01737863677
A139: 1840 | B139: Underground Conduit | C139: 8335192 | E139: 8335192 | F139: 997529.84 | H139: 997529.84 | I139: 1745521.77 | J139: =J38 -> 52.89446117 | K139: 0.01890557117 | L139: 60 | M139: 0.01666666667 | N139: 157581.5655 | O139: 16625.49733 | P139: 14546.01475 | Q139: 188753.0776 | R139: 192209.57 | S139: 3456.492379
A140: 1845 | B140: Underground Conductors & Devices - Primary conductors | C140: 9929738.45 | E140: 9929738.45 | F140: 539935.83 | H140: 539935.83 | I140: 982451.99 | J140: =J39 -> 29.87315539 | K140: 0.03347487023 | L140: 40 | M140: 0.025 | N140: 332396.706 | O140: 13498.39575 | P140: 12280.64987 | Q140: 358175.7516 | R140: 391013.72 | S140: 32837.96837
A141: 1845 | B141: Underground Conductors & Devices - Primary devices | C141: 2977419 | D141: 54495.84 | E141: 2922923.16 | F141: 246865.84 | H141: 246865.84 | I141: 95441.19 | J141: 17.94439621 | K141: 0.05572770398 | L141: 30 | M141: 0.03333333333 | N141: 162887.7966 | O141: 8228.861333 | P141: 1590.6865 | Q141: 172707.3445 | R141: 172707.445 | S141: 0.1005413156
A142: 1850 | B142: Line Transformers | C142: 20926271.37 | E142: 20926271.37 | F142: 1033826.39 | H142: 1033826.39 | I142: 1502177.48 | J142: =J41 -> 31.14952866 | K142: 0.0321032145 | L142: 40 | M142: 0.025 | N142: 671800.5784 | O142: 25845.65975 | P142: 18777.2185 | Q142: 716423.4567 | R142: 716423.35 | S142: -0.1066928429
A143: 1855 | B143: Services (Overhead & Underground) - Underground Secondary | C143: 11058942 | E143: 11058942 | F143: 473764.87 | H143: 473764.87 | I143: 1073801.34 | J143: 51.17103045 | K143: 0.01954230726 | L143: 60 | M143: 0.01666666667 | N143: 216117.2426 | O143: 7896.081167 | P143: 8948.3445 | Q143: 232961.6682 | R143: 233318.155 | S143: 356.4867751
A144: 1855 | B144: Services (Overhead & Underground) - Overhead Secondary | C144: 2634685 | E144: 2634685 | F144: 151677.43 | H144: 151677.43 | I144: 95132.7 | J144: 51.65485527 | K144: 0.01935926438 | L144: 60 | M144: 0.01666666667 | N144: 51005.56348 | O144: 2527.957167 | P144: 792.7725 | Q144: 54326.29315 | R144: 54325.995 | S144: -0.2981513343
A145: 1855 | B145: Services (Overhead & Underground) - Underground Structure | C145: 0 | E145: 0 | F145: 0 | H145: 0 | I145: 681935.1 | J145: 0 | K145: 0 | L145: 0 | M145: 0 | N145: 0 | O145: 0 | P145: 0 | Q145: 0 | R145: 5682.495 | S145: 5682.495
A146: 1855 | B146: Services (Overhead & Underground) - Overhead Structure | C146: 0 | E146: 0 | F146: 0 | H146: 0 | I146: 2570.97 | J146: 0 | K146: 0 | L146: 0 | M146: 0 | N146: 0 | O146: 0 | P146: 0 | Q146: 0 | R146: 32.305 | S146: 32.305
A147: 1860 | B147: Meters - Residential | C147: 682626.91 | E147: 682626.91 | F147: 62048.98 | H147: 62048.98 | I147: 135256.79 | J147: 12.22204242 | K147: 0.08181938546 | L147: 15 | M147: 0.06666666667 | N147: 55852.11427 | O147: 4136.598667 | P147: 4508.559667 | Q147: 64497.27261 | R147: 64497.27 | S147: -0.00260597634
A148: 1860 | B148: Meters - Industrial and Wholesale | C148: 1284993.11 | D148: 72752.61 | E148: 1212240.5 | F148: 196871.49 | H148: 196871.49 | I148: 67698.72 | J148: 12.75519721 | K148: 0.07839941503 | L148: 20 | M148: 0.05 | N148: 95038.94608 | O148: 9843.5745 | P148: 1692.468 | Q148: 106574.9886 | R148: 106574.91 | S148: -0.07858002925
A149: 1860 | B149: Meters - CT and PT | C149: 1164216.39 | E149: 1164216.39 | F149: 140423.2 | H149: 140423.2 | I149: 320343.89 | J149: =J48 -> 34.79312773 | K149: 0.02874130799 | L149: 45 | M149: 0.02222222222 | N149: 33461.10183 | O149: 3120.515556 | P149: 3559.376556 | Q149: 40140.99394 | R149: 40141.165 | S149: 0.1710553707
A150: 1860 | B150: Meters - Smart Meters - Repeaters, Data Concentrators | C150: 912531.22 | E150: 912531.22 | F150: 29302.75 | H150: 29302.75 | I150: 5033.5 | J150: 12.33575534 | K150: 0.0810651616 | L150: 15 | M150: 0.06666666667 | N150: 73974.49081 | O150: 1953.516667 | P150: 167.7833333 | Q150: 76095.79081 | R150: 76095.745 | S150: -0.04581065162
A151: 1860 | B151: Meters - Smart Meters - Regulatory | C151: 7640776.24 | E151: 7640776.24 | F151: 0 | H151: 0 | I151: 0 | J151: 11.48994245 | K151: 0.08703263784 | L151: 15 | M151: 0.06666666667 | N151: 664996.9113 | O151: 0 | P151: 0 | Q151: 664996.9113 | R151: 637265.46 | S151: -27731.45135
A152: 1860 | B152: Meters - Quadlogic Meters | C152: 0 | E152: 0 | F152: 0 | H152: 0 | I152: 0 | J152: 0 | K152: 0 | L152: 20 | M152: 0.05 | N152: 0 | O152: 0 | P152: 0 | Q152: 0 | R152: 0 | S152: 0
A153: 1860 | B153: Meters - Cellular Meters | C153: 0 | E153: 0 | F153: 0 | H153: 0 | I153: 0 | J153: 0 | K153: 0 | L153: 15 | M153: 0.06666666667 | N153: 0 | O153: 0 | P153: 0 | Q153: 0 | R153: 0 | S153: 0
A154: 1860 | B154: Meters (Smart Meters) | C154: 0 | E154: 0 | F154: 0 | H154: 0 | I154: 0 | J154: 0 | K154: 0 | L154: 0 | M154: 0 | N154: 0 | O154: 0 | P154: 0 | Q154: 0 | R154: 0 | S154: 0
A155: 1905 | B155: Land | C155: 96299.71 | E155: 96299.71 | F155: 0 | H155: 0 | J155: 0 | K155: 0 | L155: 0 | M155: 0 | N155: 0 | O155: 0 | P155: 0 | Q155: 0 | S155: =IF(ISERROR(+R155-Q155), 0, +R155-Q155) -> 0
A156: 1908 | B156: Buildings & Fixtures - Office Building | C156: =C55 -> 2624564.24 | D156: 56191.18595 | E156: 2568373.054 | F156: 20500.68 | H156: 20500.68 | I156: 211618.86 | J156: 17.86522419 | K156: 0.05597466839 | L156: 19.79571913 | M156: 0.05051597233 | N156: 143763.83 | O156: 1035.611784 | P156: 5345.066239 | Q156: 150144.508 | R156: 150079.33 | S156: -65.17802236
A157: 1908 | B157: Buildings & Fixtures - Service Buildings | C157: 1942516.01 | D157: 45001.70032 | E157: 1897514.31 | F157: 0 | H157: 0 | I157: 2480 | J157: 20.81754358 | K157: 0.04803640717 | L157: 12.90671269 | M157: 0.07747906257 | N157: 91149.77 | O157: 0 | P157: 96.07403759 | Q157: 91245.84404 | R157: 91765.25 | S157: 519.4059624
A158: 1910 | B158: Leasehold Improvements | C158: 0 | E158: 0 | F158: 0 | H158: 0 | J158: =J57 -> 0 | K158: 0 | L158: =L57 -> 0 | M158: 0 | N158: 0 | O158: 0 | P158: 0 | Q158: 0 | S158: 0
A159: 1915 | B159: Office Furniture & Equipment (10 years) | C159: 318515.48 | D159: 40825.48836 | E159: 277689.9916 | F159: 32075.66 | H159: 32075.66 | I159: 50889.76 | J159: 5.540439617 | K159: 0.1804910926 | L159: 10 | M159: 0.1 | N159: 50120.57 | O159: 3207.566 | P159: 2544.488 | Q159: 55872.624 | R159: 55872.63 | S159: 0.005999999958
A160: 1915 | B160: Office Furniture & Equipment (5 years) | C160: 0 | E160: 0 | F160: 0 | H160: 0 | J160: =J59 -> 0 | K160: 0 | L160: 0 | M160: 0 | N160: 0 | O160: 0 | P160: 0 | Q160: 0 | S160: 0
A161: 1920 | B161: Computer Equipment - Hardware | C161: 136986.04 | D161: 32888.52195 | E161: 104097.5181 | F161: 165827.51 | H161: 165827.51 | I161: 47480.48 | J161: 2.780123275 | K161: 0.35969628 | L161: 5 | M161: 0.2 | N161: 37443.49 | O161: 33165.502 | P161: 4748.048 | Q161: 75357.04 | R161: 75357.04 | S161: -2.910383046e-11
A162: 1920 | B162: Computer Equip.-Hardware(Post Mar. 22/04) | C162: 0 | E162: 0 | F162: 0 | H162: 0 | J162: =J61 -> 0 | K162: 0 | L162: 0 | M162: 0 | N162: 0 | O162: 0 | P162: 0 | Q162: 0 | S162: 0
A163: 1920 | B163: Computer Equip.-Hardware(Post Mar. 19/07) | C163: 0 | E163: 0 | F163: 0 | H163: 0 | J163: =J62 -> 0 | K163: 0 | L163: 0 | M163: 0 | N163: 0 | O163: 0 | P163: 0 | Q163: 0 | S163: 0
A164: 1930 | B164: Transportation Equipment - Trailers | C164: 0 | E164: 0 | F164: 33643 | H164: 33643 | J164: =J63 -> 0 | K164: 0 | L164: 20 | M164: 0.05 | N164: 0 | O164: 1682.15 | P164: 0 | Q164: 1682.15 | R164: 1682.16 | S164: 0.01
A165: 1930 | B165: Transportation Equipment - Automobiles | C165: 0 | E165: 0 | F165: 0 | H165: 0 | J165: =J64 -> 0 | K165: 0 | L165: 8 | M165: 0.125 | N165: 0 | O165: 0 | P165: 0 | Q165: 0 | S165: 0
A166: 1930 | B166: Transportation Equipment - Trucks | C166: 178827.42 | E166: 178827.42 | F166: 46846 | H166: 46846 | J166: =J65 -> 9.364259394 | K166: 0.1067890111 | L166: 12 | M166: 0.08333333333 | N166: 19096.80333 | O166: 3903.833333 | P166: 0 | Q166: 23000.63667 | R166: 23976.6 | S166: 975.9633333
A167: 1930 | B167: Transportation Equipment - Trucks | C167: 561420.04 | D167: 94113.65702 | E167: 467306.383 | F167: =I66 -> 169258.37 | H167: 169258.37 | I167: 75000 | J167: 12.08775969 | K167: 0.08272831574 | L167: 15 | M167: 0.06666666667 | N167: 38659.47 | O167: 11283.89133 | P167: 2500 | Q167: 52443.36133 | R167: 52443.36 | S167: -0.001333333334
A168: 1935 | B168: Stores Equipment | C168: 0 | E168: 0 | F168: 0 | H168: 0 | J168: =J67 -> 0 | K168: 0 | L168: 0 | M168: 0 | N168: 0 | O168: 0 | P168: 0 | Q168: 0 | S168: 0
A169: 1940 | B169: Tools, Shop & Garage Equipment | C169: 129338.06 | D169: 21849.59358 | E169: 107488.4664 | F169: 21516.85 | H169: 21516.85 | I169: 105315.6 | J169: 4.426446653 | K169: 0.2259148429 | L169: 10 | M169: 0.1 | N169: 24283.24 | O169: 2151.685 | P169: 5265.78 | Q169: 31700.705 | R169: 30653.11 | S169: -1047.595
A170: 1945 | B170: Measurement & Testing Equipment | C170: 30918.98 | E170: 30918.98 | F170: 0 | H170: 0 | I170: 1395 | J170: =J69 -> 4.763002023 | K170: 0.2099516219 | L170: 10 | M170: 0.1 | N170: 6491.49 | O170: 0 | P170: 69.75 | Q170: 6561.24 | R170: 5292.02 | S170: -1269.22
A171: 1950 | B171: Power Operated Equipment | C171: 0 | E171: 0 | F171: 0 | H171: 0 | J171: 0 | K171: 0 | L171: 0 | M171: 0 | N171: 0 | O171: 0 | P171: 0 | Q171: 0 | S171: 0
A172: 1955 | B172: Communications Equipment | C172: 0 | E172: 0 | F172: 0 | H172: 0 | J172: 0 | K172: 0 | L172: 0 | M172: 0 | N172: 0 | O172: 0 | P172: 0 | Q172: 0 | S172: 0
A173: 1955 | B173: Communication Equipment (Smart Meters) | C173: 0 | E173: 0 | F173: 0 | H173: 0 | J173: 0 | K173: 0 | L173: 0 | M173: 0 | N173: 0 | O173: 0 | P173: 0 | Q173: 0 | S173: 0
A174: 1960 | B174: Miscellaneous Equipment | C174: 0 | E174: 0 | F174: 0 | H174: 0 | J174: 0 | K174: 0 | L174: 0 | M174: 0 | N174: 0 | O174: 0 | P174: 0 | Q174: 0 | S174: 0
A175: 1970 | B175: Load Management Controls Customer Premises | C175: 0 | E175: 0 | F175: 0 | H175: 0 | J175: 0 | K175: 0 | L175: 0 | M175: 0 | N175: 0 | O175: 0 | P175: 0 | Q175: 0 | S175: 0
A176: 1975 | B176: Load Management Controls Utility Premises | C176: 0 | E176: 0 | F176: 0 | H176: 0 | J176: 0 | K176: 0 | L176: 0 | M176: 0 | N176: 0 | O176: 0 | P176: 0 | Q176: 0 | S176: 0
A177: 1980 | B177: System Supervisor Equipment - Scada System | C177: 46.44 | D177: 46.44 | E177: 4.097842066e-10 | F177: 0 | H177: 0 | I177: 0 | J177: 1 | K177: 1 | L177: 0 | M177: 0 | N177: 4.097842066e-10 | O177: 0 | P177: 0 | Q177: 4.097842066e-10 | R177: 0 | S177: -4.097842066e-10
A178: 1980 | B178: System Supervisor Equipment - RTU | C178: 140514.33 | D178: 0 | E178: 140514.33 | F178: 51317.77 | H178: 51317.77 | I178: 42002.13 | J178: 13.87319607 | K178: 0.07208144358 | L178: 20 | M178: 0.05 | N178: 10128.47575 | O178: 2565.8885 | P178: 1050.05325 | Q178: 13744.4175 | R178: 13744.38 | S178: -0.0375
A179: 1980 | B179: System Supervisor Equipment - Relays | C179: 432719.42 | D179: 0 | E179: 432719.42 | F179: 7222.58 | H179: 7222.58 | I179: 26659.8 | J179: 20.92335939 | K179: 0.04779347242 | L179: 30 | M179: 0.03333333333 | N179: 20681.16367 | O179: 240.7526667 | P179: 444.33 | Q179: 21366.24633 | R179: 21366.21 | S179: -0.03633333334
A180: 1980 | B180: System Supervisor Equipment - Battery | C180: 288899.37 | D180: 218948.0234 | E180: 69951.34661 | F180: 0 | H180: 0 | I180: 0 | J180: 2.148364406 | K180: 0.4654703816 | L180: 20 | M180: 0.05 | N180: 32560.28 | O180: 0 | P180: 0 | Q180: 32560.28 | R180: 32560.28 | S180: 7.275957614e-12
A181: 1985 | B181: Miscellaneous Fixed Assets | C181: 0 | E181: 0 | F181: 0 | H181: 0 | J181: =J80 -> 0 | K181: 0 | L181: 0 | M181: 0 | N181: 0 | O181: 0 | P181: 0 | Q181: 0 | S181: 0
A182: 1990 | B182: Other Tangible Property | C182: 0 | E182: 0 | F182: 0 | H182: 0 | J182: 0 | K182: 0 | L182: 0 | M182: 0 | N182: 0 | O182: 0 | P182: 0 | Q182: 0 | S182: 0
A183: 1995 | B183: Contributions & Grants - Overhead Primary - Structures | C183: -2200679.51 | E183: -2200679.51 | F183: -362780.3 | H183: -362780.3 | I183: -404069.76 | J183: 36.58004457 | K183: 0.0273373095 | L183: 40 | M183: 0.025 | N183: -60160.65688 | O183: -9069.5075 | P183: -5050.872 | Q183: -74281.03638 | R183: -74281.21 | S183: -0.1736219086
A184: 1995 | B184: Contributions & Grants - Overhead Primary - Devices | C184: -1094524.35 | E184: =C184-D184 -> -1094524.35 | F184: -82619.43 | H184: =F184-G184 -> -82619.43 | I184: -24496.3 | J184: 35.08398913 | K184: =IF(J184=0,0,1/J184) -> 0.02850303015 | L184: 40 | M184: =IF(L184=0,0,1/L184) -> 0.025 | N184: =IF(J184=0,0,+E184/J184) -> -31197.26055 | O184: =IF(L184=0,0,+H184/L184) -> -2065.48575 | P184: =IF(L184=0,0,+(I184*0.5)/L184) -> -306.20375 | Q184: =IF(ISERROR(+N184+O184+P184), 0, +N184+O184+P184) -> -33568.95005 | R184: -33568.85 | S184: 0.1000461211
A185: 1995 | B185: Contributions & Grants - Overhead Primary - Conductors | C185: -1091035.9 | E185: -1091035.9 | F185: -34264.82 | H185: -34264.82 | I185: -10273.61 | J185: 55.08155889 | K185: 0.01815489649 | L185: 60 | M185: 0.01666666667 | N185: -19807.64383 | O185: -571.0803333 | P185: -85.61341667 | Q185: -20464.33758 | R185: -20464.16 | S185: 0.1775773352
A186: 1995 | B186: Contributions & Grants - Overhead Primary - Switch Controllers, Arresters | C186: -106952.16 | E186: -106952.16 | F186: -8658.68 | H186: -8658.68 | I186: 0 | J186: 14.78355194 | K186: 0.06764274271 | L186: 20 | M186: 0.05 | N186: -7234.537441 | O186: -432.934 | P186: 0 | Q186: -7667.471441 | R186: -7667.46 | S186: 0.0114407017
A187: 1995 | B187: Contributions & Grants - Underground Primary - Conduit | C187: -2879570.61 | E187: -2879570.61 | F187: -557173.19 | H187: -557173.19 | I187: -802110.76 | J187: 56.42544195 | K187: 0.01772250186 | L187: 60 | M187: 0.01666666667 | N187: -51033.19549 | O187: -9286.219833 | P187: -6684.256333 | Q187: -67003.67166 | R187: -67003.83 | S187: =IF(ISERROR(+R187-Q187), 0, +R187-Q187) -> -0.1583393577
A188: 1995 | B188: Contributions & Grants - Underground Primary - Conductor | C188: =C87 -> -3993033.51 | E188: -3993033.51 | F188: -212866.6 | H188: -212866.6 | I188: -957807.73 | J188: 34.74561178 | K188: 0.02878061282 | L188: 40 | M188: 0.025 | N188: -114921.9514 | O188: -5321.665 | P188: -11972.59663 | Q188: -132216.2131 | R188: -132216.35 | S188: -0.1369359693
A189: 1995 | B189: Contributions & Grants - Underground Primary - Devices | C189: -938593.98 | E189: -938593.98 | F189: -234253.36 | H189: -234253.36 | I189: -1517.16 | J189: 23.62076426 | K189: 0.04233563271 | L189: 30 | M189: 0.03333333333 | N189: -39735.97 | O189: -7808.445333 | P189: -25.286 | Q189: -47569.70133 | R189: -47569.77 | S189: -0.06866666667
A190: 1995 | B190: Contributions & Grants - Transformers | C190: -2295234.58 | E190: -2295234.58 | F190: -114259.55 | H190: -114259.55 | I190: -699016.31 | J190: 35.06470527 | K190: 0.02851870541 | L190: =L89 -> 40 | M190: 0.025 | N190: -65457.11884 | O190: -2856.48875 | P190: -8737.703875 | Q190: -77051.31147 | R190: -77051.22 | S190: 0.09146579869
A191: 1995 | B191: Contributions & Grants - Underground Secondary - Cables | C191: -5583129.85 | E191: -5583129.85 | F191: -318062.91 | H191: -318062.91 | I191: -831194.35 | J191: 54.08487188 | K191: 0.01848945861 | L191: 60 | M191: 0.01666666667 | N191: -103229.0483 | O191: -5301.0485 | P191: -6926.619583 | Q191: -115456.7164 | R191: -115426.94 | S191: 29.77635936
A192: 1995 | B192: Contributions & Grants - Overhead Secondary - Wire | C192: -959919.68 | E192: -959919.68 | F192: -10820.25 | H192: -10820.25 | I192: -9950.7 | J192: 53.11142993 | K192: 0.01882833886 | L192: 60 | M192: 0.01666666667 | N192: -18073.69301 | O192: -180.3375 | P192: -82.9225 | Q192: -18336.95301 | R192: -18336.66 | S192: 0.2930125342
A193: 1995 | B193: Contributions & Grants - Meters - Residential | C193: -40511.19 | E193: -40511.19 | F193: 3968.73 | H193: 3968.73 | J193: 12.79315234 | K193: 0.07816681716 | L193: 15 | M193: 0.06666666667 | N193: -3166.630782 | O193: 264.582 | P193: 0 | Q193: -2902.048782 | R193: -1077.38 | S193: 1824.668782
A194: 1995 | B194: Contributions & Grants - Meters - Industrial/Wholesale | C194: -73004.48 | E194: -73004.48 | F194: -2940.79 | H194: -2940.79 | I194: -33885.77 | J194: 12.48380455 | K194: 0.08010378533 | L194: 20 | M194: 0.05 | N194: -5847.935194 | O194: -147.0395 | P194: -847.14425 | Q194: -6842.118944 | R194: -6842.1 | S194: 0.01894377288
A195: 1995 | B195: Contributions & Grants - Meters - Current/Potential Transformers | C195: -93019.16 | E195: -93019.16 | F195: -2289.75 | H195: -2289.75 | I195: -35969.02 | J195: 37.01109307 | K195: 0.02701892641 | L195: 45 | M195: 0.02222222222 | N195: -2513.277838 | O195: -50.88333333 | P195: -399.6557778 | Q195: -2963.81695 | R195: -2963.89 | S195: -0.073050403
A196: 1995 | B196: Contributions & Grants - Smart Meters | C196: -3212.82 | E196: -3212.82 | F196: 0 | H196: 0 | J196: 14 | K196: 0.07142857143 | L196: 15 | M196: 0.06666666667 | N196: -229.4871429 | O196: 0 | P196: 0 | Q196: -229.4871429 | R196: -229.49 | S196: -0.002857142857
A197: 1995 | B197: Contributions & Grants - Substation equipment | I197: -88556.38 | L197: 40 | M197: 0.025 | N197: =IF(J197=0,0,+E197/J197) -> 0 | O197: =IF(L197=0,0,+H197/L197) -> 0 | P197: =IF(L197=0,0,+(I197*0.5)/L197) -> -1106.95475 | Q197: =IF(ISERROR(+N197+O197+P197), 0, +N197+O197+P197) -> -1106.95475 | R197: -1106.94 | S197: 0.01475
A198: 1995 | B198: Contributions & Grants - Underground Structures | I198: -490402.83 | L198: 60 | M198: 0.01666666667 | N198: 0 | O198: 0 | P198: -4086.69025 | Q198: -4086.69025 | R198: -4086.72 | S198: -0.02975
A199: 2440 | B199: Deferred Revenue | I199: -675132.22
A200: 2005 | B200: Property Under Finance Lease | E200: 0 | H200: 0 | K200: 0 | M200: 0 | N200: 0 | O200: 0 | P200: 0 | Q200: 0 | S200: =IF(ISERROR(+R200-Q200), 0, +R200-Q200) -> 0
B201: Total | C201: =SUM(C124:C200) -> 101655138.9 | D201: 980476.7765 | E201: 100674662.1 | F201: 6113805.9 | G201: 0 | H201: 6113805.9 | I201: 6774437.5 | N201: =SUM(N124:N200) -> 4129519.094 | O201: 271404.0728 | P201: 145600.0018 | Q201: 4546523.169 | R201: 4525987.825 | S201: -20535.34398
A204: General: | B204: Applicants are to complete this appendix to show the reasonability of the depreciation expense that is included in rate base via. Accumulated depreciation and the revenue requirement.
B205: Applicants must provide a breakdown of depreciation and amortization expense in the above format for all relevant accounts. Balances presented in the table should exclude asset retirement obligations (AROs) and the related depreciation and accretion expense. These should be disclosed separately consistent with the Notes of historical Audited Financial Statements.
A208: Notes:
A209: 1 | B209: This is the net book value of assets that existed as at the date of the utility's change in depreciation policies (i.e. as at Jan. 1, 2012 or Jan. 1, 2013). These assets are to be depreciated at the average remaining service life. This amount will not change in years subsequent to the date of the utility's change in depreciation policies. This column is expected to be used until the assets that existed as at the date of the utility's change in depreciation policies are fully depreciated.
A210: 2 | B210: This is the opening gross book value of assets that have been acquired after the date of the utility's change in depreciation policies (i.e. additions starting in 2012/2013 for those who changed policies Jan. 1, 2012/2013). These assets are to be depreciated at the revised service life. The amount is expected to be equal to the opening gross book value of the prior year plus the prior year's additions.
A211: 3 | B211: A recalculation should be performed to determine the average remaining life of opening balance of assets (i.e. excluding current year's additions) under the change in policies under CGAAP. For example, Asset A had a useful life of 20 years under CGAAP without the change in policies. On January 1 of the year of policy changes, Asset A was 3 years depreciated. As a result, Asset A would have a remaining service life of 17 years (20 years less 3 years) as at January 1 of the year of policy changes. Due to making the change in policies under CGAAP, management re-assessed the asset useful lives and concluded that the revised useful life of Asset A is now 30 years. Therefore, the average remaining useful life of the opening balance of Asset A is determined to be 27 years (30 years less 3 years) under the revised CGAAP as at January 1 of the year of policy changes.
A212: 4 | B212: The useful life used should be consistent with the OEB's regulatory accounting policies as set out in the Accounting Procedures Handbook for Electricity Distributors, effective Jan. 1, 2012 and also with the Report of the Board, Transition to International Financial Reporting Standards, EB-2008-0408, and the Kinectrics Report.
A213: 5 | B213: OEB policy of the "half-year" rule - the applicant must ensure that additions in the year attract a half-year depreciation expense in the first year. Deviations from this standard practice must be supported in the application.
A214: 6 | B214: The applicant must provide an explanation of material variances in evidence.
A215: 7 | B215: This should include assets in column A (excel column C) that become fully depreciated since the date of the policy change. The amount input in b (excel column D) should equal the net book value of the asset as at the date of depreciation policy change
A216: 8 | B216: This should include assets in column D (excel column F) that have become fully depreciated. The amount input in e (excel column G) should equal the gross book value of the asset
A218: Scenario that applies | C218: Applicable Years and Accounting Standard | R218: Year Reflected in Schedule Below | S218: Accounting Standard Reflected in Schedule Below | Y218: 2012
A219: Rebasing for the first time with depreciation policy changes made in 2012. | C219: ="This appendix must be duplicated and completed for the years 2012 to " & TestYear & ". The appendix for 2012 is to be completed under CGAAP (prior to changes in depreciation policies)." &" The appendix for 2012 to 2014 must be completed under Revised CGAAP (after changes in depreciation policies). The appendix for 2014 to " & TestYear & " is to be completed under MIFRS (2014 if changes to MIFRS are material)." -> This appendix must be duplicated and completed for the years 2012 to 2021. The appendix for 2012 is to be completed under CGAAP (prior to changes in depreciation policies). The appendix for 2012 to 2014 must be completed under Revised CGAAP (after changes in depreciation policies). The appendix for 2014 to 2021 is to be completed under MIFRS (2014 if changes to MIFRS are material). | Y219: 2013
A220: Rebasing for the first time with depreciation policy changes made in 2013. | C220: ="This appendix must be duplicated and completed for the years 2013 to " & TestYear & ". The appendix for 2013 is to be completed under CGAAP (prior to changes in depreciation policies)."&" The appendix for 2013 to 2014 must be completed under Revised CGAAP (after changes in depreciation policies). The appendix for 2014 to " & TestYear & " is to be completed under MIFRS (2014 if changes to MIFRS are material)." -> This appendix must be duplicated and completed for the years 2013 to 2021. The appendix for 2013 is to be completed under CGAAP (prior to changes in depreciation policies). The appendix for 2013 to 2014 must be completed under Revised CGAAP (after changes in depreciation policies). The appendix for 2014 to 2021 is to be completed under MIFRS (2014 if changes to MIFRS are material). | Y220: 2014
... 812 more rows

Sheet App.2-D_Overhead
G1: File Number: | H1: =EBNUMBER -> EB-2020-0007
G2: Exhibit:
G3: Tab:
G4: Schedule:
G5: Page:
G7: Date:
A9: Appendix 2-D
A10: Overhead Expense
A12: Applicants are to provide a breakdown of OM&A before capitalization in the below table. OM&A before capitalization may be broken down by cost center, program, drivers or another format best suited to focus on capitalized vs. uncapitalized OM&A.
A14: OM&A Before Capitalization
A27: Total OM&A Before Capitalization (B) | B27: =SUM(B17:B26) -> 0 | C27: =SUM(C17:C26) -> 0 | D27: =SUM(D17:D26) -> 0 | E27: =SUM(E17:E26) -> 0 | F27: =SUM(F17:F26) -> 0
A29: Applicants are to provide a breakdown of capitalized OM&A in the below table. Capitalized OM&A may be broken down using the categories listed in the table below if possible. Otherwise, applicants are to provide its own break down of capitalized OM&A.
A31: Capitalized OM&A | G31: Directly | H31: Explanation for Change in Overhead Capitalized
G32: Attributable?
G33: (Yes/No)
A40: Total Capitalized OM&A (A) | B40: =SUM(B34:B39) -> 0 | C40: =SUM(C34:C39) -> 0 | D40: =SUM(D34:D39) -> 0 | E40: =SUM(E34:E39) -> 0 | F40: =SUM(F34:F39) -> 0
A42: % of Capitalized OM&A (=A/B) | B42: =IF(ISERROR(B40/B27),"0%",B40/B27) -> 0% | C42: =IF(ISERROR(C40/C27),"0%",C40/C27) -> 0% | D42: =IF(ISERROR(D40/D27),"0%",D40/D27) -> 0% | E42: =IF(ISERROR(E40/E27),"0%",E40/E27) -> 0% | F42: =IF(ISERROR(F40/F27),"0%",F40/F27) -> 0%
A45: Total OM&A After Capitalization (B-A)
A51: OM&A Consolidated - Fleet Allocated to Capital/Billable
A52: % of Capital Fleet $ to Capital/Billable $
A53: % of Capital Fleet $ to Capital Labour $

Sheet App.2-EA_Account 1575 (2015) (hidden)
H1: File Number: | I1: =EBNUMBER -> EB-2020-0007
H2: Exhibit:
H3: Tab:
H4: Schedule:
H5: Page:
H7: Date:
A9: Appendix 2-EA
A10: Account 1575 - IFRS-CGAAP Transitional PP&E Amounts
A11: 2015 Adopters of IFRS for Financial Reporting Purposes
A13: For applicants that adopted IFRS on January 1, 2015 for financial reporting purposes
B17: 2014 | C17: =TestYear-3 -> 2018 | D17: =TestYear-2 -> 2019 | E17: =CONCATENATE(TestYear-1," Bridge Year") -> 2020 Bridge Year | F17: =CONCATENATE(TestYear," Rebasing Year") -> 2021 Rebasing Year
A18: Reporting Basis | B18: CGAAP | C18: CGAAP | D18: CGAAP | E18: MIFRS | F18: MIFRS
B19: Actual | C19: Actual | D19: Actual | E19: Forecast | F19: Forecast
D20: $ | E20: $
A21: PP&E Values under CGAAP
A22: Opening net PP&E - Note 1 | C22: =+B25 -> 0 | D22: =+C25 -> 0 | E22: =+D25 -> 0
A23: Net Additions - Note 4
A24: Net Depreciation (amounts should be negative) - Note 4
A25: Closing net PP&E (1) | B25: =SUM(B22:B24) -> 0 | C25: =SUM(C22:C24) -> 0 | D25: =SUM(D22:D24) -> 0 | E25: =SUM(E22:E24) -> 0
A27: PP&E Values under MIFRS (Starts from 2014, the transition year)
A28: Opening net PP&E - Note 1 | C28: =+B31 -> 0 | D28: =+C31 -> 0 | E28: =+D31 -> 0
A29: Net Additions - Note 4
A30: Net Depreciation (amounts should be negative) - Note 4
A31: Closing net PP&E (2) | B31: =SUM(B28:B30) -> 0 | C31: =SUM(C28:C30) -> 0 | D31: =SUM(D28:D30) -> 0 | E31: =SUM(E28:E30) -> 0
A33: Difference in Closing net PP&E, former CGAAP vs. revised CGAAP | B33: =B25-B31 -> 0 | C33: =C25-C31 -> 0 | D33: =D25-D31 -> 0 | E33: =E25-E31 -> 0
A36: Effect on Deferral and Variance Account Rate Riders
A37: Closing balance in Account 1575 | F37: =IF(ISERROR(E33), 0, E33) -> 0 | H37: WACC
A38: Return on Rate Base Associated with Account 1575 balance at WACC - Note 2 | F38: =E33*I37*I38 -> 0 | G38: # of years of rate rider disposition period
A39: Amount included in Deferral and Variance Account Rate Rider Calculation | F39: =F37+F38 -> 0
A41: Notes:
A42: 1 For an applicant that adopted IFRS on January 1, 2015, the PP&E values as of January 1, 2014 under both CGAAP and MIFRS should be the same.
A43: 2 Return on rate base associated with deferred balance is calculated as:
A44: the deferral account closing balance as of 2017 x WACC X # of years of rate rider disposition period
A45: * Please note that the calculation should be adjusted once WACC is updated and finalized in the rate application.
A46: 3 The PP&E deferral account is cleared by including the total balance in the deferral and variance account rate rider calculation.
A47: 4 Net additions are additions net of disposals; Net depreciation is additions to depreciation net of disposals.

Sheet App.2-EB_Account 1576 (2012) (hidden)
K1: File Number: | L1: =EBNUMBER -> EB-2020-0007
K2: Exhibit:
K3: Tab:
K4: Schedule:
K5: Page:
K7: Date:
A9: Appendix 2-EB
A10: Account 1576 - Accounting Changes under CGAAP
A11: 2012 Changes in Accounting Policies under CGAAP
A13: For applicants with a balance in Account 1576 and made capitalization and depreciation expense accounting policy changes under CGAAP effective January 1, 2012. This is the first time the applicant is rebasing with changes in these accounting policies.
B17: Prior Years Rebasing | C17: 2012 | D17: 2013 | E17: 2014 | F17: 2015 | G17: 2016 | H17: 2017 | I17: 2018 Rebasing Year
A18: Reporting Basis | B18: CGAAP | C18: CGAAP | D18: CGAAP | E18: CGAAP | F18: MIFRS - Note 5 | G18: MIFRS | H18: MIFRS | I18: MIFRS
B19: Forecast | C19: Actual | D19: Actual | E19: Actual | F19: Actual | G19: Actual | H19: Forecast | I19: Forecast
C20: $ | D20: $ | E20: $ | F20: $ | G20: $ | H20: $
A21: PP&E Values under former CGAAP
A22: Opening net PP&E - Note 1 | D22: =+C25 -> 0 | E22: =+D25 -> 0 | F22: =+E25 -> 0 | G22: =+F25 -> 0 | H22: =+G25 -> 0
A23: Net Additions - Note 4
A24: Net Depreciation (amounts should be negative) - Note 4
A25: Closing net PP&E (1) | C25: =C22+C23+C24 -> 0 | D25: 0 | E25: 0 | F25: 0 | G25: 0 | H25: 0
A27: PP&E Values under revised CGAAP (Starts from 2012)
A28: Opening net PP&E - Note 1 | D28: =+C31 -> 0 | E28: =+D31 -> 0 | F28: =+E31 -> 0 | G28: =+F31 -> 0 | H28: =+G31 -> 0
A29: Net Additions - Note 4
A30: Net Depreciation (amounts should be negative) - Note 4
A31: Closing net PP&E (2) | C31: =SUM(C28:C30) -> 0 | D31: 0 | E31: 0 | F31: 0 | G31: 0 | H31: 0
A33: Difference in Closing net PP&E, former CGAAP vs. revised CGAAP | C33: =C25-C31 -> 0 | D33: 0 | E33: 0 | F33: 0 | G33: 0 | H33: 0
A36: Effect on Deferral and Variance Account Rate Riders
A37: Closing balance in Account 1576 | I37: =IF(ISERROR(H33), 0, H33) -> 0 | K37: WACC
A38: Return on Rate Base Associated with Account 1576 balance at WACC - Note 2 | I38: =H33*L37*L38 -> 0 | J38: # of years of rate rider disposition period
A39: Amount included in Deferral and Variance Account Rate Rider Calculation | I39: =I37+I38 -> 0
A41: Notes:
A42: 1 For an applicant that made the capitalization and depreciation expense accounting policy changes on January 1, 2012, the PP&E values as of January 1, 2012 under both former CGAAP and revised CGAAP should be the same.
A43: 2 Return on rate base associated with Account 1576 balance is calculated as:
A44: the variance account ending balance as of 2017 x WACC X # of years of rate rider disposition period
A45: * Please note that the calculation should be adjusted once WACC is updated and finalized in the rate application.
A46: 3 Account 1576 is cleared by including the total balance in the deferral and variance account rate rider calculation.
A47: 4 Net additions are additions net of disposals; Net depreciation is additions to depreciation net of disposals.
A48: 5 Differences due to the adoption of MIFRS are to be shown separately in Account 1575 in Appendix 2-EA as Accounts 1575 and 1576 cannot be used interchangably.

Sheet App.2-EC_Account 1576 (2013) (hidden)
J1: File Number: | K1: =EBNUMBER -> EB-2020-0007
J2: Exhibit:
J3: Tab:
J4: Schedule:
J5: Page:
J7: Date:
A9: Appendix 2-EC
A10: Account 1576 - Accounting Changes under CGAAP
A11: 2013 Changes in Accounting Policies under CGAAP
A13: For applicants with a balance in Account 1576 and made capitalization and depreciation expense accounting policy changes under CGAAP effective January 1, 2013. This is the first time the applicant is rebasing with changes in these accounting policies.
B17: Prior Years Rebasing | C17: 2013 | D17: 2014 | E17: 2015 | F17: 2016 | G17: 2017 | H17: 2018 Rebasing Year
A18: Reporting Basis | B18: CGAAP | C18: CGAAP | D18: CGAAP | E18: MIFRS - Note 5 | F18: MIFRS | G18: MIFRS | H18: MIFRS
B19: Actual | C19: Actual | D19: Actual | E19: Actual | F19: Actual | G19: Forecast | H19: Forecast
C20: $ | D20: $ | F20: $
A21: PP&E Values under former CGAAP
A22: Opening net PP&E - Note 1 | D22: =+C25 -> 0 | E22: =+D25 -> 0 | F22: =+E25 -> 0 | G22: =+F25 -> 0
A23: Net Additions - Note 4
A24: Net Depreciation (amounts should be negative) - Note 4
A25: Closing net PP&E (1) | C25: =C22+C23+C24 -> 0 | D25: =D22+D23+D24 -> 0 | E25: =E22+E23+E24 -> 0 | F25: =F22+F23+F24 -> 0 | G25: =G22+G23+G24 -> 0
A27: PP&E Values under revised CGAAP (Starts from 2012)
A28: Opening net PP&E - Note 1 | D28: =+C31 -> 0 | E28: =+D31 -> 0 | F28: =+E31 -> 0 | G28: =+F31 -> 0
A29: Net Additions - Note 4
A30: Net Depreciation (amounts should be negative) - Note 4
A31: Closing net PP&E (2) | C31: =SUM(C28:C30) -> 0 | D31: =SUM(D28:D30) -> 0 | E31: =SUM(E28:E30) -> 0 | F31: =SUM(F28:F30) -> 0 | G31: =SUM(G28:G30) -> 0
A33: Difference in Closing net PP&E, former CGAAP vs. revised CGAAP | C33: =C25-C31 -> 0 | D33: =D25-D31 -> 0 | E33: =E25-E31 -> 0 | F33: =F25-F31 -> 0 | G33: =G25-G31 -> 0
A36: Effect on Deferral and Variance Account Rate Riders
A37: Closing balance in Account 1576 | H37: =IF(ISERROR(G33), 0, G33) -> 0 | J37: WACC
A38: Return on Rate Base Associated with Account 1576 balance at WACC - Note 2 | H38: =G33*K37*K38 -> 0 | I38: # of years of rate rider disposition period
A39: Amount included in Deferral and Variance Account Rate Rider Calculation | H39: =H37+H38 -> 0
A41: Notes:
A42: 1 For an applicant that made the capitalization and depreciation expense accounting policy changes on January 1, 2013, the PP&E values as of January 1, 2013 under both former CGAAP and revised CGAAP should be the same.
A43: 2 Return on rate base associated with Account 1576 balance is calculated as:
A44: the variance account ending balance as of 2017 x WACC X # of years of rate rider disposition period
A45: * Please note that the calculation should be adjusted once WACC is updated and finalized in the rate application.
A46: 3 Account 1576 is cleared by including the total balance in the deferral and variance account rate rider calculation.
A47: 4 Net additions are additions net of disposals; Net depreciation is additions to depreciation net of disposals.
A48: 5 Differences due to the adoption of MIFRS are to be shown separately in Account 1575 in Appendix 2-EA as Accounts 1575 and 1576 cannot be used interchangably.

Sheet Hidden_REG Invest. (hidden)
A1: Utility Name | B1: EB Number | C1: Test Year | D1: Bridge Year | E1: Last Rebasing Year | F1: Renewable Generation Connection Investment Summary | G1: Year | H1: Amount
A2: ='LDC Info'!$E$14 -> Burlington Hydro Inc. | B2: =EBNUMBER -> EB-2020-0007 | C2: =TestYear -> 2021 | D2: =BridgeYear -> 2020 | E2: =RebaseYear -> 2014 | F2: REI Investments_A_Total Capital Costs | G2: ='App.2-FA Proposed REG Invest.'!$C$31 -> 0 | H2: ='App.2-FA Proposed REG Invest.'!C62 -> 0
A3: ='LDC Info'!$E$14 -> Burlington Hydro Inc. | B3: EB-2020-0007 | C3: 2021 | D3: 2020 | E3: 2014 | F3: REI Investments_A_Total OM&A Start-Up | G3: ='App.2-FA Proposed REG Invest.'!$C$31 -> 0 | H3: ='App.2-FA Proposed REG Invest.'!$C63 -> 0
A4: ='LDC Info'!$E$14 -> Burlington Hydro Inc. | B4: EB-2020-0007 | C4: 2021 | D4: 2020 | E4: 2014 | F4: REI Investments_A_Total OM&A Ongoing | G4: ='App.2-FA Proposed REG Invest.'!$C$31 -> 0 | H4: ='App.2-FA Proposed REG Invest.'!$C64 -> 0
A5: ='LDC Info'!$E$14 -> Burlington Hydro Inc. | B5: EB-2020-0007 | C5: 2021 | D5: 2020 | E5: 2014 | F5: REI Investments_A_Total Capital Costs | G5: ='App.2-FA Proposed REG Invest.'!$D$31 -> 0 | H5: ='App.2-FA Proposed REG Invest.'!D62 -> 0
A6: ='LDC Info'!$E$14 -> Burlington Hydro Inc. | B6: EB-2020-0007 | C6: 2021 | D6: 2020 | E6: 2014 | F6: REI Investments_A_Total OM&A Start-Up | G6: ='App.2-FA Proposed REG Invest.'!$D$31 -> 0 | H6: ='App.2-FA Proposed REG Invest.'!D63 -> 0
A7: ='LDC Info'!$E$14 -> Burlington Hydro Inc. | B7: EB-2020-0007 | C7: 2021 | D7: 2020 | E7: 2014 | F7: REI Investments_A_Total OM&A Ongoing | G7: ='App.2-FA Proposed REG Invest.'!$D$31 -> 0 | H7: ='App.2-FA Proposed REG Invest.'!D64 -> 0
A8: ='LDC Info'!$E$14 -> Burlington Hydro Inc. | B8: EB-2020-0007 | C8: 2021 | D8: 2020 | E8: 2014 | F8: REI Investments_A_Total Capital Costs | G8: ='App.2-FA Proposed REG Invest.'!$E$31 -> 0 | H8: ='App.2-FA Proposed REG Invest.'!E62 -> 0
A9: ='LDC Info'!$E$14 -> Burlington Hydro Inc. | B9: EB-2020-0007 | C9: 2021 | D9: 2020 | E9: 2014 | F9: REI Investments_A_Total OM&A Start-Up | G9: ='App.2-FA Proposed REG Invest.'!$E$31 -> 0 | H9: ='App.2-FA Proposed REG Invest.'!E63 -> 0
A10: ='LDC Info'!$E$14 -> Burlington Hydro Inc. | B10: EB-2020-0007 | C10: 2021 | D10: 2020 | E10: 2014 | F10: REI Investments_A_Total OM&A Ongoing | G10: ='App.2-FA Proposed REG Invest.'!$E$31 -> 0 | H10: ='App.2-FA Proposed REG Invest.'!E64 -> 0
A11: ='LDC Info'!$E$14 -> Burlington Hydro Inc. | B11: EB-2020-0007 | C11: 2021 | D11: 2020 | E11: 2014 | F11: REI Investments_A_Total Capital Costs | G11: ='App.2-FA Proposed REG Invest.'!$F$31 -> 0 | H11: ='App.2-FA Proposed REG Invest.'!F62 -> 0
A12: ='LDC Info'!$E$14 -> Burlington Hydro Inc. | B12: EB-2020-0007 | C12: 2021 | D12: 2020 | E12: 2014 | F12: REI Investments_A_Total OM&A Start-Up | G12: ='App.2-FA Proposed REG Invest.'!$F$31 -> 0 | H12: ='App.2-FA Proposed REG Invest.'!F63 -> 0
A13: ='LDC Info'!$E$14 -> Burlington Hydro Inc. | B13: EB-2020-0007 | C13: 2021 | D13: 2020 | E13: 2014 | F13: REI Investments_A_Total OM&A Ongoing | G13: ='App.2-FA Proposed REG Invest.'!$F$31 -> 0 | H13: ='App.2-FA Proposed REG Invest.'!F64 -> 0
A14: ='LDC Info'!$E$14 -> Burlington Hydro Inc. | B14: EB-2020-0007 | C14: 2021 | D14: 2020 | E14: 2014 | F14: REI Investments_A_Total Capital Costs | G14: ='App.2-FA Proposed REG Invest.'!$G$31 -> 0 | H14: ='App.2-FA Proposed REG Invest.'!G62 -> 0
A15: ='LDC Info'!$E$14 -> Burlington Hydro Inc. | B15: EB-2020-0007 | C15: 2021 | D15: 2020 | E15: 2014 | F15: REI Investments_A_Total OM&A Start-Up | G15: ='App.2-FA Proposed REG Invest.'!$G$31 -> 0 | H15: ='App.2-FA Proposed REG Invest.'!G63 -> 0
A16: ='LDC Info'!$E$14 -> Burlington Hydro Inc. | B16: EB-2020-0007 | C16: 2021 | D16: 2020 | E16: 2014 | F16: REI Investments_A_Total OM&A Ongoing | G16: ='App.2-FA Proposed REG Invest.'!$G$31 -> 0 | H16: ='App.2-FA Proposed REG Invest.'!G64 -> 0
A17: ='LDC Info'!$E$14 -> Burlington Hydro Inc. | B17: EB-2020-0007 | C17: 2021 | D17: 2020 | E17: 2014 | F17: REI Investments_A_Total Capital Costs | G17: ='App.2-FA Proposed REG Invest.'!$H$31 -> 0 | H17: ='App.2-FA Proposed REG Invest.'!H62 -> 0
A18: ='LDC Info'!$E$14 -> Burlington Hydro Inc. | B18: EB-2020-0007 | C18: 2021 | D18: 2020 | E18: 2014 | F18: REI Investments_A_Total OM&A Start-Up | G18: ='App.2-FA Proposed REG Invest.'!$H$31 -> 0 | H18: ='App.2-FA Proposed REG Invest.'!H63 -> 0
A19: ='LDC Info'!$E$14 -> Burlington Hydro Inc. | B19: EB-2020-0007 | C19: 2021 | D19: 2020 | E19: 2014 | F19: REI Investments_A_Total OM&A Ongoing | G19: ='App.2-FA Proposed REG Invest.'!$H$31 -> 0 | H19: ='App.2-FA Proposed REG Invest.'!H64 -> 0
A20: ='LDC Info'!$E$14 -> Burlington Hydro Inc. | B20: EB-2020-0007 | C20: 2021 | D20: 2020 | E20: 2014 | F20: REI Investments_A_Total Capital Costs | G20: ='App.2-FA Proposed REG Invest.'!$I$31 -> 0 | H20: ='App.2-FA Proposed REG Invest.'!I62 -> 0
A21: ='LDC Info'!$E$14 -> Burlington Hydro Inc. | B21: EB-2020-0007 | C21: 2021 | D21: 2020 | E21: 2014 | F21: REI Investments_A_Total OM&A Start-Up | G21: ='App.2-FA Proposed REG Invest.'!$I$31 -> 0 | H21: ='App.2-FA Proposed REG Invest.'!I63 -> 0
A22: ='LDC Info'!$E$14 -> Burlington Hydro Inc. | B22: EB-2020-0007 | C22: 2021 | D22: 2020 | E22: 2014 | F22: REI Investments_A_Total OM&A Ongoing | G22: ='App.2-FA Proposed REG Invest.'!$I$31 -> 0 | H22: ='App.2-FA Proposed REG Invest.'!I64 -> 0
A23: ='LDC Info'!$E$14 -> Burlington Hydro Inc. | B23: EB-2020-0007 | C23: 2021 | D23: 2020 | E23: 2014 | F23: REI Investments_A_Total Capital Costs | G23: ='App.2-FA Proposed REG Invest.'!$J$31 -> 0 | H23: ='App.2-FA Proposed REG Invest.'!J62 -> 0
A24: ='LDC Info'!$E$14 -> Burlington Hydro Inc. | B24: EB-2020-0007 | C24: 2021 | D24: 2020 | E24: 2014 | F24: REI Investments_A_Total OM&A Start-Up | G24: ='App.2-FA Proposed REG Invest.'!$J$31 -> 0 | H24: ='App.2-FA Proposed REG Invest.'!J63 -> 0
A25: ='LDC Info'!$E$14 -> Burlington Hydro Inc. | B25: EB-2020-0007 | C25: 2021 | D25: 2020 | E25: 2014 | F25: REI Investments_A_Total OM&A Ongoing | G25: ='App.2-FA Proposed REG Invest.'!$J$31 -> 0 | H25: ='App.2-FA Proposed REG Invest.'!J64 -> 0
A26: ='LDC Info'!$E$14 -> Burlington Hydro Inc. | B26: EB-2020-0007 | C26: 2021 | D26: 2020 | E26: 2014 | F26: REI Investments_A_Total Capital Costs | G26: ='App.2-FA Proposed REG Invest.'!$K$31 -> 0 | H26: ='App.2-FA Proposed REG Invest.'!K62 -> 0
A27: ='LDC Info'!$E$14 -> Burlington Hydro Inc. | B27: EB-2020-0007 | C27: 2021 | D27: 2020 | E27: 2014 | F27: REI Investments_A_Total OM&A Start-Up | G27: ='App.2-FA Proposed REG Invest.'!$K$31 -> 0 | H27: ='App.2-FA Proposed REG Invest.'!K63 -> 0
A28: ='LDC Info'!$E$14 -> Burlington Hydro Inc. | B28: EB-2020-0007 | C28: 2021 | D28: 2020 | E28: 2014 | F28: REI Investments_A_Total OM&A Ongoing | G28: ='App.2-FA Proposed REG Invest.'!$K$31 -> 0 | H28: ='App.2-FA Proposed REG Invest.'!K64 -> 0
A29: ='LDC Info'!$E$14 -> Burlington Hydro Inc. | B29: EB-2020-0007 | C29: 2021 | D29: 2020 | E29: 2014 | F29: REI Investments_A_Total Capital Costs | G29: ='App.2-FA Proposed REG Invest.'!$L$31 -> 0 | H29: ='App.2-FA Proposed REG Invest.'!L62 -> 0
A30: ='LDC Info'!$E$14 -> Burlington Hydro Inc. | B30: EB-2020-0007 | C30: 2021 | D30: 2020 | E30: 2014 | F30: REI Investments_A_Total OM&A Start-Up | G30: ='App.2-FA Proposed REG Invest.'!$L$31 -> 0 | H30: ='App.2-FA Proposed REG Invest.'!L63 -> 0
A31: ='LDC Info'!$E$14 -> Burlington Hydro Inc. | B31: EB-2020-0007 | C31: 2021 | D31: 2020 | E31: 2014 | F31: REI Investments_A_Total OM&A Ongoing | G31: ='App.2-FA Proposed REG Invest.'!$L$31 -> 0 | H31: ='App.2-FA Proposed REG Invest.'!L64 -> 0
A32: ='LDC Info'!$E$14 -> Burlington Hydro Inc. | B32: EB-2020-0007 | C32: 2021 | D32: 2020 | E32: 2014 | F32: Expansion Investments_B_Total Capital Costs | G32: ='App.2-FA Proposed REG Invest.'!$C$31 -> 0 | H32: ='App.2-FA Proposed REG Invest.'!C99 -> 0
A33: ='LDC Info'!$E$14 -> Burlington Hydro Inc. | B33: EB-2020-0007 | C33: 2021 | D33: 2020 | E33: 2014 | F33: Expansion Investments_B_Total OM&A Start-Up | G33: ='App.2-FA Proposed REG Invest.'!$C$31 -> 0 | H33: ='App.2-FA Proposed REG Invest.'!C100 -> 0
A34: ='LDC Info'!$E$14 -> Burlington Hydro Inc. | B34: EB-2020-0007 | C34: 2021 | D34: 2020 | E34: 2014 | F34: Expansion Investments_B_Total OM&A Ongoing | G34: ='App.2-FA Proposed REG Invest.'!$C$31 -> 0 | H34: ='App.2-FA Proposed REG Invest.'!C101 -> 0
A35: ='LDC Info'!$E$14 -> Burlington Hydro Inc. | B35: EB-2020-0007 | C35: 2021 | D35: 2020 | E35: 2014 | F35: Expansion Investments_B_Total Capital Costs | G35: ='App.2-FA Proposed REG Invest.'!$D$31 -> 0 | H35: ='App.2-FA Proposed REG Invest.'!D99 -> 0
A36: ='LDC Info'!$E$14 -> Burlington Hydro Inc. | B36: EB-2020-0007 | C36: 2021 | D36: 2020 | E36: 2014 | F36: Expansion Investments_B_Total OM&A Start-Up | G36: ='App.2-FA Proposed REG Invest.'!$D$31 -> 0 | H36: ='App.2-FA Proposed REG Invest.'!D100 -> 0
A37: ='LDC Info'!$E$14 -> Burlington Hydro Inc. | B37: EB-2020-0007 | C37: 2021 | D37: 2020 | E37: 2014 | F37: Expansion Investments_B_Total OM&A Ongoing | G37: ='App.2-FA Proposed REG Invest.'!$D$31 -> 0 | H37: ='App.2-FA Proposed REG Invest.'!D101 -> 0
A38: ='LDC Info'!$E$14 -> Burlington Hydro Inc. | B38: EB-2020-0007 | C38: 2021 | D38: 2020 | E38: 2014 | F38: Expansion Investments_B_Total Capital Costs | G38: ='App.2-FA Proposed REG Invest.'!$E$31 -> 0 | H38: ='App.2-FA Proposed REG Invest.'!E99 -> 0
A39: ='LDC Info'!$E$14 -> Burlington Hydro Inc. | B39: EB-2020-0007 | C39: 2021 | D39: 2020 | E39: 2014 | F39: Expansion Investments_B_Total OM&A Start-Up | G39: ='App.2-FA Proposed REG Invest.'!$E$31 -> 0 | H39: ='App.2-FA Proposed REG Invest.'!E100 -> 0
A40: ='LDC Info'!$E$14 -> Burlington Hydro Inc. | B40: EB-2020-0007 | C40: 2021 | D40: 2020 | E40: 2014 | F40: Expansion Investments_B_Total OM&A Ongoing | G40: ='App.2-FA Proposed REG Invest.'!$E$31 -> 0 | H40: ='App.2-FA Proposed REG Invest.'!E101 -> 0
A41: ='LDC Info'!$E$14 -> Burlington Hydro Inc. | B41: EB-2020-0007 | C41: 2021 | D41: 2020 | E41: 2014 | F41: Expansion Investments_B_Total Capital Costs | G41: ='App.2-FA Proposed REG Invest.'!$F$31 -> 0 | H41: ='App.2-FA Proposed REG Invest.'!F99 -> 0
A42: ='LDC Info'!$E$14 -> Burlington Hydro Inc. | B42: EB-2020-0007 | C42: 2021 | D42: 2020 | E42: 2014 | F42: Expansion Investments_B_Total OM&A Start-Up | G42: ='App.2-FA Proposed REG Invest.'!$F$31 -> 0 | H42: ='App.2-FA Proposed REG Invest.'!F100 -> 0
A43: ='LDC Info'!$E$14 -> Burlington Hydro Inc. | B43: EB-2020-0007 | C43: 2021 | D43: 2020 | E43: 2014 | F43: Expansion Investments_B_Total OM&A Ongoing | G43: ='App.2-FA Proposed REG Invest.'!$F$31 -> 0 | H43: ='App.2-FA Proposed REG Invest.'!F101 -> 0
A44: ='LDC Info'!$E$14 -> Burlington Hydro Inc. | B44: EB-2020-0007 | C44: 2021 | D44: 2020 | E44: 2014 | F44: Expansion Investments_B_Total Capital Costs | G44: ='App.2-FA Proposed REG Invest.'!$G$31 -> 0 | H44: ='App.2-FA Proposed REG Invest.'!G99 -> 0
A45: ='LDC Info'!$E$14 -> Burlington Hydro Inc. | B45: EB-2020-0007 | C45: 2021 | D45: 2020 | E45: 2014 | F45: Expansion Investments_B_Total OM&A Start-Up | G45: ='App.2-FA Proposed REG Invest.'!$G$31 -> 0 | H45: ='App.2-FA Proposed REG Invest.'!G100 -> 0
A46: ='LDC Info'!$E$14 -> Burlington Hydro Inc. | B46: EB-2020-0007 | C46: 2021 | D46: 2020 | E46: 2014 | F46: Expansion Investments_B_Total OM&A Ongoing | G46: ='App.2-FA Proposed REG Invest.'!$G$31 -> 0 | H46: ='App.2-FA Proposed REG Invest.'!G101 -> 0
A47: ='LDC Info'!$E$14 -> Burlington Hydro Inc. | B47: EB-2020-0007 | C47: 2021 | D47: 2020 | E47: 2014 | F47: Expansion Investments_B_Total Capital Costs | G47: ='App.2-FA Proposed REG Invest.'!$H$31 -> 0 | H47: ='App.2-FA Proposed REG Invest.'!H99 -> 0
A48: ='LDC Info'!$E$14 -> Burlington Hydro Inc. | B48: EB-2020-0007 | C48: 2021 | D48: 2020 | E48: 2014 | F48: Expansion Investments_B_Total OM&A Start-Up | G48: ='App.2-FA Proposed REG Invest.'!$H$31 -> 0 | H48: ='App.2-FA Proposed REG Invest.'!H100 -> 0
A49: ='LDC Info'!$E$14 -> Burlington Hydro Inc. | B49: EB-2020-0007 | C49: 2021 | D49: 2020 | E49: 2014 | F49: Expansion Investments_B_Total OM&A Ongoing | G49: ='App.2-FA Proposed REG Invest.'!$H$31 -> 0 | H49: ='App.2-FA Proposed REG Invest.'!H101 -> 0
A50: ='LDC Info'!$E$14 -> Burlington Hydro Inc. | B50: EB-2020-0007 | C50: 2021 | D50: 2020 | E50: 2014 | F50: Expansion Investments_B_Total Capital Costs | G50: ='App.2-FA Proposed REG Invest.'!$I$31 -> 0 | H50: ='App.2-FA Proposed REG Invest.'!I99 -> 0
A51: ='LDC Info'!$E$14 -> Burlington Hydro Inc. | B51: EB-2020-0007 | C51: 2021 | D51: 2020 | E51: 2014 | F51: Expansion Investments_B_Total OM&A Start-Up | G51: ='App.2-FA Proposed REG Invest.'!$I$31 -> 0 | H51: ='App.2-FA Proposed REG Invest.'!I100 -> 0
A52: ='LDC Info'!$E$14 -> Burlington Hydro Inc. | B52: EB-2020-0007 | C52: 2021 | D52: 2020 | E52: 2014 | F52: Expansion Investments_B_Total OM&A Ongoing | G52: ='App.2-FA Proposed REG Invest.'!$I$31 -> 0 | H52: ='App.2-FA Proposed REG Invest.'!I101 -> 0
A53: ='LDC Info'!$E$14 -> Burlington Hydro Inc. | B53: EB-2020-0007 | C53: 2021 | D53: 2020 | E53: 2014 | F53: Expansion Investments_B_Total Capital Costs | G53: ='App.2-FA Proposed REG Invest.'!$J$31 -> 0 | H53: ='App.2-FA Proposed REG Invest.'!J99 -> 0
A54: ='LDC Info'!$E$14 -> Burlington Hydro Inc. | B54: EB-2020-0007 | C54: 2021 | D54: 2020 | E54: 2014 | F54: Expansion Investments_B_Total OM&A Start-Up | G54: ='App.2-FA Proposed REG Invest.'!$J$31 -> 0 | H54: ='App.2-FA Proposed REG Invest.'!J100 -> 0
A55: ='LDC Info'!$E$14 -> Burlington Hydro Inc. | B55: EB-2020-0007 | C55: 2021 | D55: 2020 | E55: 2014 | F55: Expansion Investments_B_Total OM&A Ongoing | G55: ='App.2-FA Proposed REG Invest.'!$J$31 -> 0 | H55: ='App.2-FA Proposed REG Invest.'!J101 -> 0
A56: ='LDC Info'!$E$14 -> Burlington Hydro Inc. | B56: EB-2020-0007 | C56: 2021 | D56: 2020 | E56: 2014 | F56: Expansion Investments_B_Total Capital Costs | G56: ='App.2-FA Proposed REG Invest.'!$K$31 -> 0 | H56: ='App.2-FA Proposed REG Invest.'!K99 -> 0
A57: ='LDC Info'!$E$14 -> Burlington Hydro Inc. | B57: EB-2020-0007 | C57: 2021 | D57: 2020 | E57: 2014 | F57: Expansion Investments_B_Total OM&A Start-Up | G57: ='App.2-FA Proposed REG Invest.'!$K$31 -> 0 | H57: ='App.2-FA Proposed REG Invest.'!K100 -> 0
A58: ='LDC Info'!$E$14 -> Burlington Hydro Inc. | B58: EB-2020-0007 | C58: 2021 | D58: 2020 | E58: 2014 | F58: Expansion Investments_B_Total OM&A Ongoing | G58: ='App.2-FA Proposed REG Invest.'!$K$31 -> 0 | H58: ='App.2-FA Proposed REG Invest.'!K101 -> 0
A59: ='LDC Info'!$E$14 -> Burlington Hydro Inc. | B59: EB-2020-0007 | C59: 2021 | D59: 2020 | E59: 2014 | F59: Expansion Investments_B_Total Capital Costs | G59: ='App.2-FA Proposed REG Invest.'!$L$31 -> 0 | H59: ='App.2-FA Proposed REG Invest.'!L99 -> 0
A60: ='LDC Info'!$E$14 -> Burlington Hydro Inc. | B60: EB-2020-0007 | C60: 2021 | D60: 2020 | E60: 2014 | F60: Expansion Investments_B_Total OM&A Start-Up | G60: ='App.2-FA Proposed REG Invest.'!$L$31 -> 0 | H60: ='App.2-FA Proposed REG Invest.'!L100 -> 0
A61: ='LDC Info'!$E$14 -> Burlington Hydro Inc. | B61: EB-2020-0007 | C61: 2021 | D61: 2020 | E61: 2014 | F61: Expansion Investments_B_Total OM&A Ongoing | G61: ='App.2-FA Proposed REG Invest.'!$L$31 -> 0 | H61: ='App.2-FA Proposed REG Invest.'!L101 -> 0

Sheet Hidden_REG Improvement (hidden)
A1: Utility Name | B1: EB Number | C1: Test Year | D1: Bridge Year | E1: Last Rebasing Year | F1: Renewable Generation Connection Direct Benefits/Provincial Amount Renewable Enabling Improvement Investments | G1: Year | H1: Amount
A2: ='LDC Info'!$E$14 -> Burlington Hydro Inc. | B2: =EBNUMBER -> EB-2020-0007 | C2: =TestYear -> 2021 | D2: =BridgeYear -> 2020 | E2: =RebaseYear -> 2014 | F2: Provincial Rate Protection | G2: ='App.2-FB Calc of REG Improvemnt'!D17 -> 2016 | H2: ='App.2-FB Calc of REG Improvemnt'!F$44 -> 0
A3: ='LDC Info'!$E$14 -> Burlington Hydro Inc. | B3: EB-2020-0007 | C3: 2021 | D3: 2020 | E3: 2014 | F3: Provincial Rate Protection | G3: ='App.2-FB Calc of REG Improvemnt'!G17 -> 2017 | H3: ='App.2-FB Calc of REG Improvemnt'!I$44 -> 0
A4: ='LDC Info'!$E$14 -> Burlington Hydro Inc. | B4: EB-2020-0007 | C4: 2021 | D4: 2020 | E4: 2014 | F4: Provincial Rate Protection | G4: ='App.2-FB Calc of REG Improvemnt'!J17 -> 2018 | H4: ='App.2-FB Calc of REG Improvemnt'!L$44 -> 0
A5: ='LDC Info'!$E$14 -> Burlington Hydro Inc. | B5: EB-2020-0007 | C5: 2021 | D5: 2020 | E5: 2014 | F5: Provincial Rate Protection | G5: ='App.2-FB Calc of REG Improvemnt'!M17 -> 2019 | H5: ='App.2-FB Calc of REG Improvemnt'!O$44 -> 0
A6: ='LDC Info'!$E$14 -> Burlington Hydro Inc. | B6: EB-2020-0007 | C6: 2021 | D6: 2020 | E6: 2014 | F6: Provincial Rate Protection | G6: ='App.2-FB Calc of REG Improvemnt'!P17 -> 2020 | H6: ='App.2-FB Calc of REG Improvemnt'!R$44 -> 0
A7: ='LDC Info'!$E$14 -> Burlington Hydro Inc. | B7: EB-2020-0007 | C7: 2021 | D7: 2020 | E7: 2014 | F7: Provincial Rate Protection | G7: ='App.2-FB Calc of REG Improvemnt'!S17 -> 2021 | H7: ='App.2-FB Calc of REG Improvemnt'!U$44 -> 0
A8: ='LDC Info'!$E$14 -> Burlington Hydro Inc. | B8: EB-2020-0007 | C8: 2021 | D8: 2020 | E8: 2014 | F8: Provincial Rate Protection | G8: ='App.2-FB Calc of REG Improvemnt'!V17 -> 2022 | H8: ='App.2-FB Calc of REG Improvemnt'!X$44 -> 0
A9: ='LDC Info'!$E$14 -> Burlington Hydro Inc. | B9: EB-2020-0007 | C9: 2021 | D9: 2020 | E9: 2014 | F9: Provincial Rate Protection | G9: ='App.2-FB Calc of REG Improvemnt'!Y17 -> 2023 | H9: ='App.2-FB Calc of REG Improvemnt'!AA$44 -> 0
A10: ='LDC Info'!$E$14 -> Burlington Hydro Inc. | B10: EB-2020-0007 | C10: 2021 | D10: 2020 | E10: 2014 | F10: Provincial Rate Protection | G10: ='App.2-FB Calc of REG Improvemnt'!AB17 -> 2024 | H10: ='App.2-FB Calc of REG Improvemnt'!AD$44 -> 0
A11: ='LDC Info'!$E$14 -> Burlington Hydro Inc. | B11: EB-2020-0007 | C11: 2021 | D11: 2020 | E11: 2014 | F11: Provincial Rate Protection | G11: ='App.2-FB Calc of REG Improvemnt'!AE17 -> 2025 | H11: ='App.2-FB Calc of REG Improvemnt'!AG$44 -> 0

Sheet Hidden_REG Expansion (hidden)
A1: Utility Name | B1: EB Number | C1: Test Year | D1: Bridge Year | E1: Last Rebasing Year | F1: Calculation of Renewable Generation Connection Direct Benefits/Provincial Amount Renewable Expansion Investments | G1: Year | H1: Amount
A2: ='LDC Info'!$E$14 -> Burlington Hydro Inc. | B2: =EBNUMBER -> EB-2020-0007 | C2: =TestYear -> 2021 | D2: =BridgeYear -> 2020 | E2: =RebaseYear -> 2014 | F2: Provincial Rate Protection | G2: ='App.2-FC Calc of REG Expansion'!D$17 -> 2016 | H2: ='App.2-FC Calc of REG Expansion'!F$44 -> 0
A3: ='LDC Info'!$E$14 -> Burlington Hydro Inc. | B3: EB-2020-0007 | C3: 2021 | D3: 2020 | E3: 2014 | F3: Provincial Rate Protection | G3: ='App.2-FC Calc of REG Expansion'!G$17 -> 2017 | H3: ='App.2-FC Calc of REG Expansion'!I$44 -> 0
A4: ='LDC Info'!$E$14 -> Burlington Hydro Inc. | B4: EB-2020-0007 | C4: 2021 | D4: 2020 | E4: 2014 | F4: Provincial Rate Protection | G4: ='App.2-FC Calc of REG Expansion'!J$17 -> 2018 | H4: ='App.2-FC Calc of REG Expansion'!L$44 -> 0
A5: ='LDC Info'!$E$14 -> Burlington Hydro Inc. | B5: EB-2020-0007 | C5: 2021 | D5: 2020 | E5: 2014 | F5: Provincial Rate Protection | G5: ='App.2-FC Calc of REG Expansion'!M$17 -> 2019 | H5: ='App.2-FC Calc of REG Expansion'!O$44 -> 0
A6: ='LDC Info'!$E$14 -> Burlington Hydro Inc. | B6: EB-2020-0007 | C6: 2021 | D6: 2020 | E6: 2014 | F6: Provincial Rate Protection | G6: ='App.2-FC Calc of REG Expansion'!P$17 -> 2020 | H6: ='App.2-FC Calc of REG Expansion'!R$44 -> 0
A7: ='LDC Info'!$E$14 -> Burlington Hydro Inc. | B7: EB-2020-0007 | C7: 2021 | D7: 2020 | E7: 2014 | F7: Provincial Rate Protection | G7: ='App.2-FC Calc of REG Expansion'!S$17 -> 2021 | H7: ='App.2-FC Calc of REG Expansion'!U$44 -> 0
A8: ='LDC Info'!$E$14 -> Burlington Hydro Inc. | B8: EB-2020-0007 | C8: 2021 | D8: 2020 | E8: 2014 | F8: Provincial Rate Protection | G8: ='App.2-FC Calc of REG Expansion'!V$17 -> 2022 | H8: ='App.2-FC Calc of REG Expansion'!X$44 -> 0
A9: ='LDC Info'!$E$14 -> Burlington Hydro Inc. | B9: EB-2020-0007 | C9: 2021 | D9: 2020 | E9: 2014 | F9: Provincial Rate Protection | G9: ='App.2-FC Calc of REG Expansion'!Y$17 -> 2023 | H9: ='App.2-FC Calc of REG Expansion'!AA$44 -> 0
A10: ='LDC Info'!$E$14 -> Burlington Hydro Inc. | B10: EB-2020-0007 | C10: 2021 | D10: 2020 | E10: 2014 | F10: Provincial Rate Protection | G10: ='App.2-FC Calc of REG Expansion'!AB$17 -> 2024 | H10: ='App.2-FC Calc of REG Expansion'!AD$44 -> 0
A11: ='LDC Info'!$E$14 -> Burlington Hydro Inc. | B11: EB-2020-0007 | C11: 2021 | D11: 2020 | E11: 2014 | F11: Provincial Rate Protection | G11: ='App.2-FC Calc of REG Expansion'!AE$17 -> 2025 | H11: ='App.2-FC Calc of REG Expansion'!AG$44 -> 0

Sheet App.2-FA Proposed REG Invest.
K1: File Number: | L1: 0
K2: Exhibit:
K3: Tab:
K4: Schedule:
K5: Page:
K7: Date:
A9: Appendix 2-FA
A10: Renewable Generation Connection Investment Summary (past investments or over the future rate setting period)
A12: Enter the details of the Renewable Generation Connection projects as described in the appropriate section of the Filing Requirements.
A13: All costs entered on this page will be transferred to the appropriate cells in the appendices that follow.
A14: For Part A, Renewable Enabling Improvements (REI), these amounts will be transferred to Appendix 2 - FB
A15: For Part B, Expansions, these amounts will be transferred to Appendix 2 - FC
A17: If there are more than five projects proposed to be in-service in a certain year, please amend the tables below and ensure that the formulae for the Total Amounts in any given rate year are updated.
A18: Based on the current methodology and allocation, amounts allocated represent 6% for REI Connection Investments and 17% for Expansion Investments. (EB-2009-0349, 6-10-2010, p. 15, note 9)
A19: Ensure that OM&A costs below are not included in Recoverable OM&A (App. 2-JA)
A20: There are two scenarios described below. Separate sets of spreadsheets (2-FA, 2-FB, 2-FC) should be submited for each scenario as required.
A21: Scenario 1: | B21: Past Investments with No Recovery. The distributor has made investments in the past (during the IRM Years), but has not received approval for these projects and therefore did not receive
B22: revenue from the IESO under Regulation 330/09 and did not receive ratepayer revenue for the direct benefit portion of the investment.
B23: The WCA percentage, debt percentages, interest rates, kWh, tax rates, amortization period, CCA Class and percentage should correspond to the distributor's last Cost of Service approval.
B24: The Direct Benefit portion of the calculated Revenue Requirement for each year should be summed and can be applied for recovery from the distributor's ratepayers through a rate rider.
B25: The Provincial Recovery portion of the calculated Revenue Requirement for each year should be summed and can be applied for recovery from the IESO through a separate order.
A27: Scenario 2: | B27: Investments in the Test Year and Beyond. Distributor plans to make investments in 2021 and/or beyond. These investments should be added to 2-FA in the appropriate year.
B28: The WCA percentage, debt percentages, interest rates, kWh, tax rates, amortization period, CCA Class and percentage should correspond to the distributor's current application.
A30: Part A | H30: Test Year
A31: REI Investments (Direct Benefit at 6%)
A32: Project 1
A33: Name: REI Connection Project
A34: Capital Costs
A35: OM&A (Start-Up)
A36: OM&A (Ongoing)
A38: Project 2
A39: Name: REI Connection Project
A40: Capital Costs
A41: OM&A (Start-Up)
A42: OM&A (Ongoing)
A44: Project 3
A45: Name: REI Connection Project
A46: Capital Costs
A47: OM&A (Start-Up)
A48: OM&A (Ongoing)
A50: Project 4
A51: Name: REI Connection Project
A52: Capital Costs
A53: OM&A (Start-Up)
A54: OM&A (Ongoing)
A56: Project 5
A57: Name: REI Connection Project
A58: Capital Costs
A59: OM&A (Start-Up)
A60: OM&A (Ongoing)
A62: Total Capital Costs | C62: =SUM(C58,C52,C46,C40,C34) -> 0 | D62: 0 | E62: 0 | F62: 0 | G62: 0 | H62: 0 | I62: 0 | J62: 0 | K62: 0 | L62: 0
A63: Total OM&A (Start-Up) | C63: 0 | D63: 0 | E63: 0 | F63: 0 | G63: 0 | H63: 0 | I63: 0 | J63: 0 | K63: 0 | L63: 0
A64: Total OM&A (Ongoing) | C64: 0 | D64: 0 | E64: 0 | F64: 0 | G64: 0 | H64: 0 | I64: 0 | J64: 0 | K64: 0 | L64: 0
A67: Part B | H67: Test Year
A68: Expansion Investments (Direct Benefit at 17%)
A69: Project 1
A70: Name: Expansion Connection Project
A71: Capital Costs
A72: OM&A (Start-Up)
A73: OM&A (Ongoing)
A75: Project 2
A76: Name: Expansion Connection Project
A77: Capital Costs
A78: OM&A (Start-Up)
A79: OM&A (Ongoing)
A81: Project 3
A82: Name: Expansion Connection Project
A83: Capital Costs
A84: OM&A (Start-Up)
A85: OM&A (Ongoing)
A87: Project 4
A88: Name: Expansion Connection Project
A89: Capital Costs
A90: OM&A (Start-Up)
A91: OM&A (Ongoing)
A93: Project 5
A94: Name: Expansion Connection Project
A95: Capital Costs
A96: OM&A (Start-Up)
A97: OM&A (Ongoing)
A99: Total Capital Costs | C99: =SUM(C95,C89,C83,C77,C71) -> 0 | D99: 0 | E99: 0 | F99: 0 | G99: 0 | H99: 0 | I99: 0 | J99: 0 | K99: 0 | L99: 0
A100: Total OM&A (Start-Up) | C100: 0 | D100: 0 | E100: 0 | F100: 0 | G100: 0 | H100: 0 | I100: 0 | J100: 0 | K100: 0 | L100: 0
A101: Total OM&A (Ongoing) | C101: 0 | D101: 0 | E101: 0 | F101: 0 | G101: 0 | H101: 0 | I101: 0 | J101: 0 | K101: 0 | L101: 0

Sheet App.2-FB Calc of REG Improvemnt
R1: File Number: | S1: 0
R2: Exhibit:
R3: Tab:
A4: TO BE UPDATED AT DRAFT RATE ORDER STAGE | R4: Schedule:
R5: Page:
R7: Date:
A9: Appendix 2-FB
A10: Calculation of Renewable Generation Connection Direct Benefits/Provincial Amount: Renewable Enabling Improvement Investments
A12: This table will calculate the distributor/provincial shares of the investments entered in Part A of Appendix 2-FA.
A13: Enter values in green shaded cells: WCA percentage, debt percentages, interest rates, kWh, tax rates, amortization period, CCA Class and percentage.
A14: For historical investments, enter these variables that were approved in your last cost of service test year. For 2021 and beyond, enter variables as in the application.
A15: Rate Riders related to the direct benefit portion of the renewable investments are not calculated for the Test Year as these assets and costs are already in the distributor's rate base/revenue requirement.
S16: Test Year
D17: =G17-1 -> 2016 | G17: =J17-1 -> 2017 | J17: =M17-1 -> 2018 | M17: =P17-1 -> 2019 | P17: =S17-1 -> 2020 | S17: ='LDC Info'!$E$24 -> 2021 | V17: =S17+1 -> 2022 | Y17: =V17+1 -> 2023 | Z17: 2016 | AB17: =Y17+1 -> 2024 | AE17: =AB17+1 -> 2025
E18: Direct Benefit | F18: Provincial | H18: Direct Benefit | I18: Provincial | K18: Direct Benefit | L18: Provincial | N18: Direct Benefit | O18: Provincial | Q18: Direct Benefit | R18: Provincial | T18: Direct Benefit | U18: Provincial | W18: Direct Benefit | X18: Provincial | Z18: Direct Benefit | AA18: Provincial | AC18: Direct Benefit | AD18: Provincial | AF18: Direct Benefit | AG18: Provincial
A20: Net Fixed Assets (average)
A21: Incremental OM&A (on-going, N/A for Provincial Recovery)
A22: Incremental OM&A (start-up, applicable for Provincial Recovery)
A23: Rebasing Year vs. Test Year | B23: ='LDC Info'!E28 -> 2014 | C23: ='LDC Info'!E24 -> 2021
A24: Allowance for Working Capital (enter rate)
A25: Rate Base
A27: Rebasing Year vs. Test Year | B27: =B23 -> 2014 | C27: =C23 -> 2021
A28: Deemed ST Debt (enter amount)
A29: Deemed LT Debt (enter amount)
A30: Deemed Equity (enter amount)
A32: ST Interest (enter rate)
A33: LT Interest (enter rate)
A34: Return on Equity (enter rate)
A35: Cost of Capital Total
A37: OM&A
A38: Amortization
A39: Grossed-up PILs
A41: Revenue Requirement
A44: Provincial Rate Protection
A46: Monthly Amount Paid by IESO
A48: Note 1: The distributor should follow the regulatory accounting set out in the Accounting Procedure Handbook Guidance FAQs issued in March 2015. Q10 of the APH FAQs states that: “For approved eligible investments as defined under O.Reg. 330/09 under the OEB Act, a variance account will continue to be used for the purpose of recording variances between the revenue requirement based on actual costs of approved eligible investments and the revenue received from the IESO.” The answer for Q10 provides the accounting guidance for this variance account: “Distributors that have included eligible investments to connect qualifying facilities in their DS plans are to establish the variance Account 1533 Renewable Generation Connection Funding Adder Deferral Account, Sub-account Provincial Rate Protection Payment Variances following OEB approval for investments forecast to enter service beyond the test year for purposes of implementing rate protection pursuant to O.Reg. 330/09. The purpose of this variance account is to track the variance between the distributor’s revenue requirement associated with the portion of the actual capital and/or operating costs that are eligible for rate protection, as incurred by the distributor for eligible renewable enabling and expansion investments, and the rate protection payments collected from the IESO.” The answer further provides the journal entries to record the variances. Distributors should follow the instructions in the answer for recording the journal entries in the variance account 1533.
A50: Note 2: For the Test Year, Costs and Revenues of the Direct Benefit are to be included in the test year applicant Rate Base and Revenues.
A52: PILs Calculation | T52: Test Year
E53: =G17-1 -> 2016 | H53: =G17 -> 2017 | K53: =J17 -> 2018 | N53: =M17 -> 2019 | Q53: =P17 -> 2020 | T53: =S17 -> 2021 | W53: =V17 -> 2022 | Z53: =Y17 -> 2023 | AC53: =AB17 -> 2024 | AF53: =AE17 -> 2025
A54: Income Tax
A56: Net Income - ROE on Rate Base
A57: Amortization (6% DB and 94% P)
A58: CCA (6% DB and 94% P)
A59: Taxable income
A61: Tax Rate (to be entered)
A63: Income Taxes Payable
A64: Gross Up
A65: Income Taxes Payable
A66: Grossed Up PILs
J68: Test Year
E69: =F69-1 -> 2016 | F69: =G69-1 -> 2017 | G69: =H69-1 -> 2018 | H69: =I69-1 -> 2019 | I69: =J69-1 -> 2020 | J69: ='LDC Info'!E24 -> 2021 | K69: =J69+1 -> 2022 | L69: =K69+1 -> 2023 | M69: =L69+1 -> 2024 | N69: =M69+1 -> 2025
A70: Net Fixed Assets
A71: Enter applicable amortization in years:
A72: Opening Gross Fixed Assets
A73: Capital Additions
A74: Closing Gross Fixed Assets
A76: Opening Accumulated Amortization
A77: Current Year Amortization (before additions)
A78: Capital Additions Amortization (half year)
A79: Closing Accumulated Amortization
A81: Opening Net Fixed Assets
A82: Closing Net Fixed Assets
A83: Average Net Fixed Assets
A85: UCC for PILs Calculation | J85: Test Year
E86: =E69 -> 2016 | F86: =F69 -> 2017 | G86: =G69 -> 2018 | H86: 2019 | I86: 2020 | J86: 2021 | K86: 2022 | L86: 2023 | M86: 2024 | N86: 2025
A88: Opening UCC
A89: Capital Additions
A90: UCC Before Half Year Rule
A91: Capital Additions (half year)
A92: Reduced UCC
A93: CCA Rate Class (to be entered)
A94: CCA Rate (to be entered)
A95: CCA
A96: Closing UCC

Sheet App.2-FC Calc of REG Expansion
R1: File Number: | S1: 0
R2: Exhibit:
R3: Tab:
R4: Schedule:
R5: Page:
R7: Date:
A9: Appendix 2-FC
A10: Calculation of Renewable Generation Connection Direct Benefits/Provincial Amount: Renewable Expansion Investments
A12: This table will calculate the distributor/provincial shares of the investments entered in Part B of Appendix 2-FA.
A13: Enter values in green shaded cells: WCA percentage, debt percentages, interest rates, kWh, tax rates, amortization period, CCA Class and percentage.
A14: For historical investments, enter these variables that were approved in your last cost of service test year. For 2021 and beyond, enter variables as in the application.
A15: Rate Riders related to the direct benefit portion of the renewable investments are not calculated for the Test Year as these assets and costs are already in the distributor's rate base/revenue requirement.
S16: Test Year
D17: =G17-1 -> 2016 | G17: =J17-1 -> 2017 | J17: =M17-1 -> 2018 | M17: =P17-1 -> 2019 | P17: =S17-1 -> 2020 | S17: ='LDC Info'!$E$24 -> 2021 | V17: =S17+1 -> 2022 | Y17: =V17+1 -> 2023 | Z17: 2016 | AB17: =Y17+1 -> 2024 | AE17: =AB17+1 -> 2025
A20: Net Fixed Assets (average)
A21: Incremental OM&A (on-going, N/A for Provincial Recovery)
A22: Incremental OM&A (start-up, applicable for Provincial Recovery)
A23: Rebasing Year vs. Test Year | B23: ='LDC Info'!E28 -> 2014 | C23: ='LDC Info'!E24 -> 2021
A24: Allowance for Working Capital (enter rate)
A25: Rate Base
B27: =B23 -> 2014 | C27: =C23 -> 2021
A28: Deemed ST Debt (enter amount)
A29: Deemed LT Debt (enter amount)
A30: Deemed Equity (enter amount)
A32: ST Interest (enter rate)
A33: LT Interest (enter rate)
A34: Return on Equity (enter rate)
A35: Cost of Capital Total
A37: OM&A
A38: Amortization
A39: Grossed-up PILs
A41: Revenue Requirement
A44: Provincial Rate Protection
A46: Monthly Amount Paid by IESO
A48: Note 1: The distributor should follow the regulatory accounting set out in the Accounting Procedure Handbook Guidance FAQs issued in March 2015. Q10 of the APH FAQs states that: “For approved eligible investments as defined under O.Reg. 330/09 under the OEB Act, a variance account will continue to be used for the purpose of recording variances between the revenue requirement based on actual costs of approved eligible investments and the revenue received from the IESO.” The answer for Q10 provides the accounting guidance for this variance account: “Distributors that have included eligible investments to connect qualifying facilities in their DS plans are to establish the variance Account 1533 Renewable Generation Connection Funding Adder Deferral Account, Sub-account Provincial Rate Protection Payment Variances following OEB approval for investments forecast to enter service beyond the test year for purposes of implementing rate protection pursuant to O.Reg. 330/09. The purpose of this variance account is to track the variance between the distributor’s revenue requirement associated with the portion of the actual capital and/or operating costs that are eligible for rate protection, as incurred by the distributor for eligible renewable enabling and expansion investments, and the rate protection payments collected from the IESO.” The answer further provides the journal entries to record the variances. Distributors should follow the instructions in the answer for recording the journal entries in the variance account 1533.
A50: Note 2: For the Test Year, Costs and Revenues of the Direct Benefit are to be included in the test year applicant Rate Base and Revenues.
A52: PILs Calculation | T52: Test Year
E53: =G17-1 -> 2016 | H53: =G17 -> 2017 | K53: =J17 -> 2018 | N53: =M17 -> 2019 | Q53: =P17 -> 2020 | T53: =S17 -> 2021 | W53: =V17 -> 2022 | Z53: =Y17 -> 2023 | AC53: =AB17 -> 2024 | AF53: =AE17 -> 2025
A54: Income Tax | E54: Direct Benefit | F54: Provincial | H54: Direct Benefit | I54: Provincial | K54: Direct Benefit | L54: Provincial | N54: Direct Benefit | O54: Provincial | Q54: Direct Benefit | R54: Provincial | T54: Direct Benefit | U54: Provincial | W54: Direct Benefit | X54: Provincial | Z54: Direct Benefit | AA54: Provincial | AC54: Direct Benefit | AD54: Provincial | AF54: Direct Benefit | AG54: Provincial
AB55: Total | AE55: Total
A56: Net Income - ROE on Rate Base
A57: Amortization (6% DB and 94% P)
A58: CCA (6% DB and 94% P)
A59: Taxable income
A61: Tax Rate (to be entered)
A63: Income Taxes Payable
A64: Gross Up
A65: Income Taxes Payable
A66: Grossed Up PILs
J68: Test Year
E69: =F69-1 -> 2016 | F69: =G69-1 -> 2017 | G69: =H69-1 -> 2018 | H69: =I69-1 -> 2019 | I69: =J69-1 -> 2020 | J69: ='LDC Info'!E24 -> 2021 | K69: =J69+1 -> 2022 | L69: =K69+1 -> 2023 | M69: =L69+1 -> 2024 | N69: =M69+1 -> 2025
A70: Net Fixed Assets
A71: Enter applicable amortization in years:
A72: Opening Gross Fixed Assets
A73: Capital Additions
A74: Closing Gross Fixed Assets
A76: Opening Accumulated Amortization
A77: Current Year Amortization (before additions)
A78: Capital Additions Amortization (half year)
A79: Closing Accumulated Amortization
A81: Opening Net Fixed Assets
A82: Closing Net Fixed Assets
A83: Average Net Fixed Assets
A85: UCC for PILs Calculation | J85: =J68 -> Test Year
E86: =E69 -> 2016 | F86: =F69 -> 2017 | G86: =G69 -> 2018 | H86: 2019 | I86: 2020 | J86: 2021 | K86: 2022 | L86: 2023 | M86: 2024 | N86: 2025
A88: Opening UCC
A89: Capital Additions
A90: UCC Before Half Year Rule
A91: Capital Additions (half year)
A92: Reduced UCC
A93: CCA Rate Class (to be entered)
A94: CCA Rate (to be entered)
A95: CCA
A96: Closing UCC

Sheet App.2-G SQI
M1: File Number: | O1: =EBNUMBER -> EB-2020-0007
M2: Exhibit:
M3: Tab:
M4: Schedule:
M5: Page:
M7: Date:
A9: Appendix 2-G
A10: Service Reliability and Quality Indicators
A13: Service Reliability
A15: Index | B15: Including outages caused by loss of supply | G15: Excluding outages caused by loss of supply | L15: Excluding Major Event Days
B16: =TestYear-6 -> 2015 | C16: =TestYear-5 -> 2016 | D16: =TestYear-4 -> 2017 | E16: =TestYear-3 -> 2018 | F16: =TestYear-2 -> 2019 | G16: =B16 -> 2015 | H16: 2016 | I16: 2017 | J16: 2018 | K16: 2019 | L16: 2015 | M16: 2016 | N16: 2017 | O16: 2018 | P16: 2019
A17: SAIDI
A18: SAIFI
A20: 5 Year Historical Average
A21: SAIDI | F21: =IF(ISERROR(AVERAGE(B17:F17)), "", AVERAGE(B17:F17)) ->  | K21: =IF(ISERROR(AVERAGE(G17:K17)), "", AVERAGE(G17:K17)) ->  | P21: =IF(ISERROR(AVERAGE(L17:P17)), "", AVERAGE(L17:P17)) -> 
A22: SAIFI | F22: =IF(ISERROR(AVERAGE(B18:F18)), "", AVERAGE(B18:F18)) ->  | K22: =IF(ISERROR(AVERAGE(G18:K18)), "", AVERAGE(G18:K18)) ->  | P22: =IF(ISERROR(AVERAGE(L18:P18)), "", AVERAGE(L18:P18)) -> 
A24: SAIDI = System Average Interruption Duration Index
A25: SAIFI = System Average Interruption Frequency Index
A27: Service Quality
A29: Indicator | E29: OEB Minimum Standard | G29: =B16 -> 2015 | H29: =C16 -> 2016 | I29: =D16 -> 2017 | J29: =E16 -> 2018 | K29: =F16 -> 2019
A30: Low Voltage Connections
A31: High Voltage Connections
A32: Telephone Accessibility
A33: Appointments Met
A34: Written Response to Enquires
A35: Emergency Urban Response
A36: Emergency Rural Response
A37: Telephone Call Abandon Rate
A38: Appointment Scheduling
A39: Rescheduling a Missed Appointment
A40: Reconnection Performance Standard

Sheet App.2-H_Other_Oper_Rev
K1: File Number: | L1: =EBNUMBER -> EB-2020-0007
K2: Exhibit:
K3: Tab:
A4: TO BE UPDATED AT THE DRAFT RATE ORDER STAGE | K4: Schedule:
K5: Page:
K7: Date:
A9: Appendix 2-H
A10: Other Operating Revenue
A12: USoA # | B12: USoA Description | C12: =D13 - 1 &" Actual"&CHAR(178) -> 2012 Actual² | D12: 2013 Actual² | E12: 2014 Actual² | F12: 2015 Actual² | G12: =H13 - 1 &" Actual"&CHAR(178) -> 2016 Actual² | H12: =I13 - 1 &" Actual"&CHAR(178) -> 2017 Actual² | I12: =I13 & " Actual" & CHAR(178) -> 2018 Actual² | J12: =J13& " Actual" -> 2019 Actual | K12: Bridge Year | L12: Test Year | N12: CGAAP
C13: =D13-1 -> 2012 | D13: =E13-1 -> 2013 | E13: =F13-1 -> 2014 | F13: =G13-1 -> 2015 | G13: =H13-1 -> 2016 | H13: =I13-1 -> 2017 | I13: =J13-1 -> 2018 | J13: 2019 | K13: =BridgeYear -> 2020 | L13: =TestYear -> 2021 | N13: 2014
B14: Reporting Basis | N14: CGAAP
A15: 4235 | B15: Specific Service Charges
A16: 4225 | B16: Late Payment Charges
A17: 4082 | B17: Retail Services Revenues
A18: 4084 | B18: STR Revenue
A19: 4086 | B19: SSS Revenue
A20: 4210 | B20: Rent from Electric Property
A21: 4220 | B21: Other Electric Revenue
A22: 4310 | B22: Regulatory Credits
A23: 4360 | B23: Loss on Disposition
A24: 4375 | B24: Rev.from Non-Utility Oper.
A25: 4380 | B25: Exp.from Non-Utility Oper.
A26: 4390 | B26: Miscellaneous Income
A27: 4405 | B27: Interest & Dividend Income
A53: Specific Service Charges | C53: =C15 -> 0 | D53: 0 | E53: 0 | F53: 0 | G53: 0 | H53: 0 | I53: 0 | J53: 0 | K53: 0 | L53: 0 | N53: =N15 -> 0
A54: Late Payment Charges | C54: =C16 -> 0 | D54: 0 | E54: 0 | F54: 0 | G54: 0 | H54: 0 | I54: 0 | J54: 0 | K54: 0 | L54: 0 | N54: =N16 -> 0
A55: Other Operating Revenues | E55: =SUM(E17:E21) -> 0 | F55: =SUM(F17:F21) -> 0 | G55: 0 | H55: 0 | I55: 0 | J55: 0 | K55: 0 | L55: 0 | N55: =E55 -> 0
A56: Other Income or Deductions | E56: =SUM(E22:E27) -> 0 | F56: 0 | G56: 0 | H56: 0 | I56: 0 | J56: 0 | K56: 0 | L56: 0 | N56: =E56 -> 0
A57: Total | C57: =SUM(C53:C56) -> 0 | D57: =SUM(D53:D56) -> 0 | E57: =SUM(E53:E56) -> 0 | F57: =SUM(F53:F56) -> 0 | G57: =SUM(G53:G56) -> 0 | H57: 0 | I57: 0 | J57: 0 | K57: 0 | L57: 0 | N57: =SUM(N53:N56) -> 0
A59: Description Account(s)
A60: Specific Service Charges: 4235
A61: Late Payment Charges: 4225
A62: Other Distribution Revenues: 4082, 4084, 4090, 4205, 4210, 4215, 4220, 4230, 4240, 4245
A63: Other Income and Expenses: 4305, 4310, 4315, 4320, 4325, 4330, 4335, 4340, 4345, 4350, 4355, 4357, 4360, 4362, 4365, 4370, 4375, 4380, 4385, 4390, 4395, 4398, 4405, 4410, 4415, 4420
A66: Note: Add all applicable accounts listed above to the table and include all relevant information.
A68: Account Breakdown Details
A70: For each "Other Operating Revenue" and "Other Income or Deductions" Account, a detailed breakdown of the account components is required. See the example below for Account 4405, Interest and Dividend Income. Tables for the detailed breakdowns will be generated after cell B89 is filled in.
A73: Example: Account 4405 - Interest and Dividend Income
C74: =C12 -> 2012 Actual² | D74: 2013 Actual² | E74: 2014 Actual² | F74: 2015 Actual² | G74: 2016 Actual² | H74: 2017 Actual² | I74: 2018 Actual² | J74: 2019 Actual | K74: Bridge Year | L74: Test Year | N74: =N12 -> CGAAP
C75: =C13 -> 2012 | D75: 2013 | E75: 2014 | F75: 2015 | G75: 2016 | H75: 2017 | I75: 2018 | J75: =J13 -> 2019 | K75: =K13 -> 2020 | L75: =L13 -> 2021 | N75: =N13 -> 2014
A76: Reporting Basis | C76: =IF(C14=0, "", C14) ->  | N76: =IF(N14=0, "", N14) -> CGAAP
A77: Short-term Investment Interest
A78: Bank Deposit Interest
A79: Miscellaneous Interest Revenue
A80: etc.1
A83: Total | C83: =SUM(C77:C82) -> 0 | D83: 0 | E83: 0 | F83: 0 | G83: 0 | H83: 0 | I83: 0 | J83: 0 | K83: 0 | L83: 0 | N83: =SUM(N77:N82) -> 0
A86: Notes:
A87: 1 | B87: List and specify any other interest revenue.
A88: 2 | B88: For applicants rebasing under IFRS for the first time, in the transition year (2014) to IFRS, the applicant is to present information in both MIFRS and CGAAP. In column N, present CGAAP transition year information.
C89: Enter the number of "Other Operating Revenue" and "Other Income or Deductions" Accounts that require a detailed breakdown of the account components.
A93: =CONCATENATE(A17," - ",B17) -> 4082 - Retail Services Revenues
C94: =C$12 -> 2012 Actual² | D94: 2013 Actual² | E94: 2014 Actual² | F94: 2015 Actual² | G94: 2016 Actual² | H94: 2017 Actual² | I94: 2018 Actual² | J94: 2019 Actual | K94: Bridge Year | L94: Test Year | N94: =N$12 -> CGAAP
C95: =C$13 -> 2012 | D95: 2013 | E95: 2014 | F95: 2015 | G95: 2016 | H95: 2017 | I95: 2018 | J95: 2019 | K95: 2020 | L95: 2021 | N95: =N$13 -> 2014
A96: Reporting Basis | C96: =IF(C34=0, "", C34) ->  | N96: =IF(N$14=0, "", N$14) -> CGAAP
A105: Total | C105: =SUM(C97:C104) -> 0 | D105: 0 | E105: 0 | F105: 0 | G105: 0 | H105: 0 | I105: 0 | J105: 0 | K105: 0 | L105: 0 | N105: =SUM(N97:N104) -> 0
C108: =C$12 -> 2012 Actual² | D108: 2013 Actual² | E108: 2014 Actual² | F108: 2015 Actual² | G108: 2016 Actual² | H108: 2017 Actual² | I108: 2018 Actual² | J108: 2019 Actual | K108: Bridge Year | L108: Test Year | N108: =N$12 -> CGAAP
C109: =C$13 -> 2012 | D109: 2013 | E109: 2014 | F109: 2015 | G109: 2016 | H109: 2017 | I109: 2018 | J109: 2019 | K109: 2020 | L109: 2021 | N109: =N$13 -> 2014
A110: Reporting Basis | C110: =IF(C48=0, "", C48) ->  | N110: =IF(N$14=0, "", N$14) -> CGAAP
A119: Total | C119: =SUM(C111:C118) -> 0 | D119: =SUM(D111:D118) -> 0 | E119: =SUM(E111:E118) -> 0 | F119: =SUM(F111:F118) -> 0 | G119: =SUM(G111:G118) -> 0 | H119: =SUM(H111:H118) -> 0 | I119: =SUM(I111:I118) -> 0 | J119: =SUM(J111:J118) -> 0 | K119: =SUM(K111:K118) -> 0 | L119: =SUM(L111:L118) -> 0 | N119: =SUM(N111:N118) -> 0
C122: =C$12 -> 2012 Actual² | D122: 2013 Actual² | E122: 2014 Actual² | F122: 2015 Actual² | G122: 2016 Actual² | H122: 2017 Actual² | I122: 2018 Actual² | J122: 2019 Actual | K122: Bridge Year | L122: Test Year | N122: =N$12 -> CGAAP
C123: =C$13 -> 2012 | D123: 2013 | E123: 2014 | F123: 2015 | G123: 2016 | H123: 2017 | I123: 2018 | J123: 2019 | K123: 2020 | L123: 2021 | N123: =N$13 -> 2014
A124: Reporting Basis | C124: =IF(C62=0, "", C62) ->  | N124: =IF(N$14=0, "", N$14) -> CGAAP
A133: Total | C133: =SUM(C125:C132) -> 0 | D133: =SUM(D125:D132) -> 0 | E133: =SUM(E125:E132) -> 0 | F133: =SUM(F125:F132) -> 0 | G133: =SUM(G125:G132) -> 0 | H133: =SUM(H125:H132) -> 0 | I133: =SUM(I125:I132) -> 0 | J133: =SUM(J125:J132) -> 0 | K133: =SUM(K125:K132) -> 0 | L133: =SUM(L125:L132) -> 0 | N133: =SUM(N125:N132) -> 0
C136: =C$12 -> 2012 Actual² | D136: 2013 Actual² | E136: 2014 Actual² | F136: 2015 Actual² | G136: 2016 Actual² | H136: 2017 Actual² | I136: 2018 Actual² | J136: 2019 Actual | K136: Bridge Year | L136: Test Year | N136: =N$12 -> CGAAP
C137: =C$13 -> 2012 | D137: 2013 | E137: 2014 | F137: 2015 | G137: 2016 | H137: 2017 | I137: 2018 | J137: 2019 | K137: 2020 | L137: 2021 | N137: =N$13 -> 2014
A138: Reporting Basis | C138: =IF(C76=0, "", C76) ->  | N138: =IF(N$14=0, "", N$14) -> CGAAP
A147: Total | C147: =SUM(C139:C146) -> 0 | D147: =SUM(D139:D146) -> 0 | E147: =SUM(E139:E146) -> 0 | F147: =SUM(F139:F146) -> 0 | G147: =SUM(G139:G146) -> 0 | H147: =SUM(H139:H146) -> 0 | I147: =SUM(I139:I146) -> 0 | J147: =SUM(J139:J146) -> 0 | K147: =SUM(K139:K146) -> 0 | L147: =SUM(L139:L146) -> 0 | N147: =SUM(N139:N146) -> 0
C150: =C$12 -> 2012 Actual² | D150: 2013 Actual² | E150: 2014 Actual² | F150: 2015 Actual² | G150: 2016 Actual² | H150: 2017 Actual² | I150: 2018 Actual² | J150: 2019 Actual | K150: Bridge Year | L150: Test Year | N150: =N$12 -> CGAAP
C151: =C$13 -> 2012 | D151: 2013 | E151: 2014 | F151: 2015 | G151: 2016 | H151: 2017 | I151: 2018 | J151: 2019 | K151: 2020 | L151: 2021 | N151: =N$13 -> 2014
A152: Reporting Basis | C152: =IF(C90=0, "", C90) ->  | N152: =IF(N$14=0, "", N$14) -> CGAAP
A161: Total | C161: =SUM(C153:C160) -> 0 | D161: =SUM(D153:D160) -> 0 | E161: =SUM(E153:E160) -> 0 | F161: =SUM(F153:F160) -> 0 | G161: =SUM(G153:G160) -> 0 | H161: =SUM(H153:H160) -> 0 | I161: =SUM(I153:I160) -> 0 | J161: =SUM(J153:J160) -> 0 | K161: =SUM(K153:K160) -> 0 | L161: =SUM(L153:L160) -> 0 | N161: =SUM(N153:N160) -> 0
C164: =C$12 -> 2012 Actual² | D164: 2013 Actual² | E164: 2014 Actual² | F164: 2015 Actual² | G164: 2016 Actual² | H164: 2017 Actual² | I164: 2018 Actual² | J164: 2019 Actual | K164: Bridge Year | L164: Test Year | N164: =N$12 -> CGAAP
C165: =C$13 -> 2012 | D165: 2013 | E165: 2014 | F165: 2015 | G165: 2016 | H165: 2017 | I165: 2018 | J165: 2019 | K165: 2020 | L165: 2021 | N165: =N$13 -> 2014
A166: Reporting Basis | C166: =IF(C104=0, "", C104) ->  | N166: =IF(N$14=0, "", N$14) -> CGAAP
A175: Total | C175: =SUM(C167:C174) -> 0 | D175: =SUM(D167:D174) -> 0 | E175: =SUM(E167:E174) -> 0 | F175: =SUM(F167:F174) -> 0 | G175: =SUM(G167:G174) -> 0 | H175: =SUM(H167:H174) -> 0 | I175: =SUM(I167:I174) -> 0 | J175: =SUM(J167:J174) -> 0 | K175: =SUM(K167:K174) -> 0 | L175: =SUM(L167:L174) -> 0 | N175: =SUM(N167:N174) -> 0
C178: =C$12 -> 2012 Actual² | D178: 2013 Actual² | E178: 2014 Actual² | F178: 2015 Actual² | G178: 2016 Actual² | H178: 2017 Actual² | I178: 2018 Actual² | J178: 2019 Actual | K178: Bridge Year | L178: Test Year | N178: =N$12 -> CGAAP
C179: =C$13 -> 2012 | D179: 2013 | E179: 2014 | F179: 2015 | G179: 2016 | H179: 2017 | I179: 2018 | J179: 2019 | K179: 2020 | L179: 2021 | N179: =N$13 -> 2014
A180: Reporting Basis | C180: =IF(C118=0, "", C118) ->  | N180: =IF(N$14=0, "", N$14) -> CGAAP
N181: =N23 -> 0
A189: Total | C189: =SUM(C181:C188) -> 0 | D189: =SUM(D181:D188) -> 0 | E189: =SUM(E181:E188) -> 0 | F189: =SUM(F181:F188) -> 0 | G189: =SUM(G181:G188) -> 0 | H189: =SUM(H181:H188) -> 0 | I189: =SUM(I181:I188) -> 0 | J189: =SUM(J181:J188) -> 0 | K189: =SUM(K181:K188) -> 0 | L189: =SUM(L181:L188) -> 0 | N189: =SUM(N181:N188) -> 0
C192: =C$12 -> 2012 Actual² | D192: 2013 Actual² | E192: 2014 Actual² | F192: 2015 Actual² | G192: 2016 Actual² | H192: 2017 Actual² | I192: 2018 Actual² | J192: 2019 Actual | K192: Bridge Year | L192: Test Year | N192: =N$12 -> CGAAP
C193: =C$13 -> 2012 | D193: 2013 | E193: 2014 | F193: 2015 | G193: 2016 | H193: 2017 | I193: 2018 | J193: 2019 | K193: 2020 | L193: 2021 | N193: =N$13 -> 2014
A194: Reporting Basis | C194: =IF(C132=0, "", C132) ->  | N194: =IF(N$14=0, "", N$14) -> CGAAP
A203: Total | C203: =SUM(C195:C202) -> 0 | D203: =SUM(D195:D202) -> 0 | E203: =SUM(E195:E202) -> 0 | F203: =SUM(F195:F202) -> 0 | G203: =SUM(G195:G202) -> 0 | H203: =SUM(H195:H202) -> 0 | I203: =SUM(I195:I202) -> 0 | J203: =SUM(J195:J202) -> 0 | K203: =SUM(K195:K202) -> 0 | L203: =SUM(L195:L202) -> 0 | N203: =SUM(N195:N202) -> 0
C206: =C$12 -> 2012 Actual² | D206: 2013 Actual² | E206: 2014 Actual² | F206: 2015 Actual² | G206: 2016 Actual² | H206: 2017 Actual² | I206: 2018 Actual² | J206: 2019 Actual | K206: Bridge Year | L206: Test Year | N206: =N$12 -> CGAAP
C207: =C$13 -> 2012 | D207: 2013 | E207: 2014 | F207: 2015 | G207: 2016 | H207: 2017 | I207: 2018 | J207: 2019 | K207: 2020 | L207: 2021 | N207: =N$13 -> 2014
A208: Reporting Basis | C208: =IF(C146=0, "", C146) ->  | N208: =IF(N$14=0, "", N$14) -> CGAAP
A217: Total | C217: =SUM(C209:C216) -> 0 | D217: =SUM(D209:D216) -> 0 | E217: =SUM(E209:E216) -> 0 | F217: =SUM(F209:F216) -> 0 | G217: =SUM(G209:G216) -> 0 | H217: =SUM(H209:H216) -> 0 | I217: =SUM(I209:I216) -> 0 | J217: =SUM(J209:J216) -> 0 | K217: =SUM(K209:K216) -> 0 | L217: =SUM(L209:L216) -> 0 | N217: =SUM(N209:N216) -> 0
C220: =C$12 -> 2012 Actual² | D220: 2013 Actual² | E220: 2014 Actual² | F220: 2015 Actual² | G220: 2016 Actual² | H220: 2017 Actual² | I220: 2018 Actual² | J220: 2019 Actual | K220: Bridge Year | L220: Test Year | N220: =N$12 -> CGAAP
C221: =C$13 -> 2012 | D221: 2013 | E221: 2014 | F221: 2015 | G221: 2016 | H221: 2017 | I221: 2018 | J221: 2019 | K221: 2020 | L221: 2021 | N221: =N$13 -> 2014
A222: Reporting Basis | C222: =IF(C160=0, "", C160) ->  | N222: =IF(N$14=0, "", N$14) -> CGAAP
A231: Total | C231: =SUM(C223:C230) -> 0 | D231: =SUM(D223:D230) -> 0 | E231: =SUM(E223:E230) -> 0 | F231: =SUM(F223:F230) -> 0 | G231: =SUM(G223:G230) -> 0 | H231: =SUM(H223:H230) -> 0 | I231: =SUM(I223:I230) -> 0 | J231: =SUM(J223:J230) -> 0 | K231: =SUM(K223:K230) -> 0 | L231: =SUM(L223:L230) -> 0 | N231: =SUM(N223:N230) -> 0
C234: =C$12 -> 2012 Actual² | D234: 2013 Actual² | E234: 2014 Actual² | F234: 2015 Actual² | G234: 2016 Actual² | H234: 2017 Actual² | I234: 2018 Actual² | J234: 2019 Actual | K234: Bridge Year | L234: Test Year | N234: =N$12 -> CGAAP
C235: =C$13 -> 2012 | D235: 2013 | E235: 2014 | F235: 2015 | G235: 2016 | H235: 2017 | I235: 2018 | J235: 2019 | K235: 2020 | L235: 2021 | N235: =N$13 -> 2014
A236: Reporting Basis | C236: =IF(C174=0, "", C174) ->  | N236: =IF(N$14=0, "", N$14) -> CGAAP
A245: Total | C245: =SUM(C237:C244) -> 0 | D245: =SUM(D237:D244) -> 0 | E245: =SUM(E237:E244) -> 0 | F245: =SUM(F237:F244) -> 0 | G245: =SUM(G237:G244) -> 0 | H245: =SUM(H237:H244) -> 0 | I245: =SUM(I237:I244) -> 0 | J245: =SUM(J237:J244) -> 0 | K245: =SUM(K237:K244) -> 0 | L245: =SUM(L237:L244) -> 0 | N245: =SUM(N237:N244) -> 0
C248: =C$12 -> 2012 Actual² | D248: 2013 Actual² | E248: 2014 Actual² | F248: 2015 Actual² | G248: 2016 Actual² | H248: 2017 Actual² | I248: 2018 Actual² | J248: 2019 Actual | K248: Bridge Year | L248: Test Year | N248: =N$12 -> CGAAP
C249: =C$13 -> 2012 | D249: 2013 | E249: 2014 | F249: 2015 | G249: 2016 | H249: 2017 | I249: 2018 | J249: 2019 | K249: 2020 | L249: 2021 | N249: =N$13 -> 2014
A250: Reporting Basis | C250: =IF(C188=0, "", C188) ->  | N250: =IF(N$14=0, "", N$14) -> CGAAP
A259: Total | C259: =SUM(C251:C258) -> 0 | D259: =SUM(D251:D258) -> 0 | E259: =SUM(E251:E258) -> 0 | F259: =SUM(F251:F258) -> 0 | G259: =SUM(G251:G258) -> 0 | H259: =SUM(H251:H258) -> 0 | I259: =SUM(I251:I258) -> 0 | J259: =SUM(J251:J258) -> 0 | K259: =SUM(K251:K258) -> 0 | L259: =SUM(L251:L258) -> 0 | N259: =SUM(N251:N258) -> 0
C262: =C$12 -> 2012 Actual² | D262: 2013 Actual² | E262: 2014 Actual² | F262: 2015 Actual² | G262: 2016 Actual² | H262: 2017 Actual² | I262: 2018 Actual² | J262: 2019 Actual | K262: Bridge Year | L262: Test Year | N262: =N$12 -> CGAAP
C263: =C$13 -> 2012 | D263: 2013 | E263: 2014 | F263: 2015 | G263: 2016 | H263: 2017 | I263: 2018 | J263: 2019 | K263: 2020 | L263: 2021 | N263: =N$13 -> 2014
A264: Reporting Basis | C264: =IF(C202=0, "", C202) ->  | N264: =IF(N$14=0, "", N$14) -> CGAAP
A273: Total | C273: =SUM(C265:C272) -> 0 | D273: =SUM(D265:D272) -> 0 | E273: =SUM(E265:E272) -> 0 | F273: =SUM(F265:F272) -> 0 | G273: =SUM(G265:G272) -> 0 | H273: =SUM(H265:H272) -> 0 | I273: =SUM(I265:I272) -> 0 | J273: =SUM(J265:J272) -> 0 | K273: =SUM(K265:K272) -> 0 | L273: =SUM(L265:L272) -> 0 | N273: =SUM(N265:N272) -> 0
C276: =C$12 -> 2012 Actual² | D276: 2013 Actual² | E276: 2014 Actual² | F276: 2015 Actual² | G276: 2016 Actual² | H276: 2017 Actual² | I276: 2018 Actual² | J276: 2019 Actual | K276: Bridge Year | L276: Test Year | N276: =N$12 -> CGAAP
C277: =C$13 -> 2012 | D277: 2013 | E277: 2014 | F277: 2015 | G277: 2016 | H277: 2017 | I277: 2018 | J277: 2019 | K277: 2020 | L277: 2021 | N277: =N$13 -> 2014
A278: Reporting Basis | C278: =IF(C216=0, "", C216) ->  | N278: =IF(N$14=0, "", N$14) -> CGAAP
A287: Total | C287: =SUM(C279:C286) -> 0 | D287: =SUM(D279:D286) -> 0 | E287: =SUM(E279:E286) -> 0 | F287: =SUM(F279:F286) -> 0 | G287: =SUM(G279:G286) -> 0 | H287: =SUM(H279:H286) -> 0 | I287: =SUM(I279:I286) -> 0 | J287: =SUM(J279:J286) -> 0 | K287: =SUM(K279:K286) -> 0 | L287: =SUM(L279:L286) -> 0 | N287: =SUM(N279:N286) -> 0
C290: =C$12 -> 2012 Actual² | D290: 2013 Actual² | E290: 2014 Actual² | F290: 2015 Actual² | G290: 2016 Actual² | H290: 2017 Actual² | I290: 2018 Actual² | J290: 2019 Actual | K290: Bridge Year | L290: Test Year | N290: =N$12 -> CGAAP
C291: =C$13 -> 2012 | D291: 2013 | E291: 2014 | F291: 2015 | G291: 2016 | H291: 2017 | I291: 2018 | J291: 2019 | K291: 2020 | L291: 2021 | N291: =N$13 -> 2014
A292: Reporting Basis | C292: =IF(C230=0, "", C230) ->  | N292: =IF(N$14=0, "", N$14) -> CGAAP
A301: Total | C301: =SUM(C293:C300) -> 0 | D301: =SUM(D293:D300) -> 0 | E301: =SUM(E293:E300) -> 0 | F301: =SUM(F293:F300) -> 0 | G301: =SUM(G293:G300) -> 0 | H301: =SUM(H293:H300) -> 0 | I301: =SUM(I293:I300) -> 0 | J301: =SUM(J293:J300) -> 0 | K301: =SUM(K293:K300) -> 0 | L301: =SUM(L293:L300) -> 0 | N301: =SUM(N293:N300) -> 0
C304: =C$12 -> 2012 Actual² | D304: 2013 Actual² | E304: 2014 Actual² | F304: 2015 Actual² | G304: 2016 Actual² | H304: 2017 Actual² | I304: 2018 Actual² | J304: 2019 Actual | K304: Bridge Year | L304: Test Year | N304: =N$12 -> CGAAP
C305: =C$13 -> 2012 | D305: 2013 | E305: 2014 | F305: 2015 | G305: 2016 | H305: 2017 | I305: 2018 | J305: 2019 | K305: 2020 | L305: 2021 | N305: =N$13 -> 2014
A306: Reporting Basis | C306: =IF(C244=0, "", C244) ->  | N306: =IF(N$14=0, "", N$14) -> CGAAP
A315: Total | C315: =SUM(C307:C314) -> 0 | D315: =SUM(D307:D314) -> 0 | E315: =SUM(E307:E314) -> 0 | F315: =SUM(F307:F314) -> 0 | G315: =SUM(G307:G314) -> 0 | H315: =SUM(H307:H314) -> 0 | I315: =SUM(I307:I314) -> 0 | J315: =SUM(J307:J314) -> 0 | K315: =SUM(K307:K314) -> 0 | L315: =SUM(L307:L314) -> 0 | N315: =SUM(N307:N314) -> 0
C318: =C$12 -> 2012 Actual² | D318: 2013 Actual² | E318: 2014 Actual² | F318: 2015 Actual² | G318: 2016 Actual² | H318: 2017 Actual² | I318: 2018 Actual² | J318: 2019 Actual | K318: Bridge Year | L318: Test Year | N318: =N$12 -> CGAAP
C319: =C$13 -> 2012 | D319: 2013 | E319: 2014 | F319: 2015 | G319: 2016 | H319: 2017 | I319: 2018 | J319: 2019 | K319: 2020 | L319: 2021 | N319: =N$13 -> 2014
A320: Reporting Basis | C320: =IF(C258=0, "", C258) ->  | N320: =IF(N$14=0, "", N$14) -> CGAAP
A329: Total | C329: =SUM(C321:C328) -> 0 | D329: =SUM(D321:D328) -> 0 | E329: =SUM(E321:E328) -> 0 | F329: =SUM(F321:F328) -> 0 | G329: =SUM(G321:G328) -> 0 | H329: =SUM(H321:H328) -> 0 | I329: =SUM(I321:I328) -> 0 | J329: =SUM(J321:J328) -> 0 | K329: =SUM(K321:K328) -> 0 | L329: =SUM(L321:L328) -> 0 | N329: =SUM(N321:N328) -> 0
C332: =C$12 -> 2012 Actual² | D332: 2013 Actual² | E332: 2014 Actual² | F332: 2015 Actual² | G332: 2016 Actual² | H332: 2017 Actual² | I332: 2018 Actual² | J332: 2019 Actual | K332: Bridge Year | L332: Test Year | N332: =N$12 -> CGAAP
C333: =C$13 -> 2012 | D333: 2013 | E333: 2014 | F333: 2015 | G333: 2016 | H333: 2017 | I333: 2018 | J333: 2019 | K333: 2020 | L333: 2021 | N333: =N$13 -> 2014
A334: Reporting Basis | C334: =IF(C272=0, "", C272) ->  | N334: =IF(N$14=0, "", N$14) -> CGAAP
A343: Total | C343: =SUM(C335:C342) -> 0 | D343: =SUM(D335:D342) -> 0 | E343: =SUM(E335:E342) -> 0 | F343: =SUM(F335:F342) -> 0 | G343: =SUM(G335:G342) -> 0 | H343: =SUM(H335:H342) -> 0 | I343: =SUM(I335:I342) -> 0 | J343: =SUM(J335:J342) -> 0 | K343: =SUM(K335:K342) -> 0 | L343: =SUM(L335:L342) -> 0 | N343: =SUM(N335:N342) -> 0
C346: =C$12 -> 2012 Actual² | D346: 2013 Actual² | E346: 2014 Actual² | F346: 2015 Actual² | G346: 2016 Actual² | H346: 2017 Actual² | I346: 2018 Actual² | J346: 2019 Actual | K346: Bridge Year | L346: Test Year | N346: =N$12 -> CGAAP
C347: =C$13 -> 2012 | D347: 2013 | E347: 2014 | F347: 2015 | G347: 2016 | H347: 2017 | I347: 2018 | J347: 2019 | K347: 2020 | L347: 2021 | N347: =N$13 -> 2014
A348: Reporting Basis | C348: =IF(C286=0, "", C286) ->  | N348: =IF(N$14=0, "", N$14) -> CGAAP
A357: Total | C357: =SUM(C349:C356) -> 0 | D357: =SUM(D349:D356) -> 0 | E357: =SUM(E349:E356) -> 0 | F357: =SUM(F349:F356) -> 0 | G357: =SUM(G349:G356) -> 0 | H357: =SUM(H349:H356) -> 0 | I357: =SUM(I349:I356) -> 0 | J357: =SUM(J349:J356) -> 0 | K357: =SUM(K349:K356) -> 0 | L357: =SUM(L349:L356) -> 0 | N357: =SUM(N349:N356) -> 0
C360: =C$12 -> 2012 Actual² | D360: 2013 Actual² | E360: 2014 Actual² | F360: 2015 Actual² | G360: 2016 Actual² | H360: 2017 Actual² | I360: 2018 Actual² | J360: 2019 Actual | K360: Bridge Year | L360: Test Year | N360: =N$12 -> CGAAP
C361: =C$13 -> 2012 | D361: 2013 | E361: 2014 | F361: 2015 | G361: 2016 | H361: 2017 | I361: 2018 | J361: 2019 | K361: 2020 | L361: 2021 | N361: =N$13 -> 2014
A362: Reporting Basis | C362: =IF(C300=0, "", C300) ->  | N362: =IF(N$14=0, "", N$14) -> CGAAP
A371: Total | C371: =SUM(C363:C370) -> 0 | D371: =SUM(D363:D370) -> 0 | E371: =SUM(E363:E370) -> 0 | F371: =SUM(F363:F370) -> 0 | G371: =SUM(G363:G370) -> 0 | H371: =SUM(H363:H370) -> 0 | I371: =SUM(I363:I370) -> 0 | J371: =SUM(J363:J370) -> 0 | K371: =SUM(K363:K370) -> 0 | L371: =SUM(L363:L370) -> 0 | N371: =SUM(N363:N370) -> 0
C374: =C$12 -> 2012 Actual² | D374: 2013 Actual² | E374: 2014 Actual² | F374: 2015 Actual² | G374: 2016 Actual² | H374: 2017 Actual² | I374: 2018 Actual² | J374: 2019 Actual | K374: Bridge Year | L374: Test Year | N374: =N$12 -> CGAAP
C375: =C$13 -> 2012 | D375: 2013 | E375: 2014 | F375: 2015 | G375: 2016 | H375: 2017 | I375: 2018 | J375: 2019 | K375: 2020 | L375: 2021 | N375: =N$13 -> 2014
A376: Reporting Basis | C376: =IF(C314=0, "", C314) ->  | N376: =IF(N$14=0, "", N$14) -> CGAAP
A385: Total | C385: =SUM(C377:C384) -> 0 | D385: =SUM(D377:D384) -> 0 | E385: =SUM(E377:E384) -> 0 | F385: =SUM(F377:F384) -> 0 | G385: =SUM(G377:G384) -> 0 | H385: =SUM(H377:H384) -> 0 | I385: =SUM(I377:I384) -> 0 | J385: =SUM(J377:J384) -> 0 | K385: =SUM(K377:K384) -> 0 | L385: =SUM(L377:L384) -> 0 | N385: =SUM(N377:N384) -> 0
C388: =C$12 -> 2012 Actual² | D388: 2013 Actual² | E388: 2014 Actual² | F388: 2015 Actual² | G388: 2016 Actual² | H388: 2017 Actual² | I388: 2018 Actual² | J388: 2019 Actual | K388: Bridge Year | L388: Test Year | N388: =N$12 -> CGAAP
C389: =C$13 -> 2012 | D389: 2013 | E389: 2014 | F389: 2015 | G389: 2016 | H389: 2017 | I389: 2018 | J389: 2019 | K389: 2020 | L389: 2021 | N389: =N$13 -> 2014
A390: Reporting Basis | C390: =IF(C328=0, "", C328) ->  | N390: =IF(N$14=0, "", N$14) -> CGAAP
A399: Total | C399: =SUM(C391:C398) -> 0 | D399: =SUM(D391:D398) -> 0 | E399: =SUM(E391:E398) -> 0 | F399: =SUM(F391:F398) -> 0 | G399: =SUM(G391:G398) -> 0 | H399: =SUM(H391:H398) -> 0 | I399: =SUM(I391:I398) -> 0 | J399: =SUM(J391:J398) -> 0 | K399: =SUM(K391:K398) -> 0 | L399: =SUM(L391:L398) -> 0 | N399: =SUM(N391:N398) -> 0
C402: =C$12 -> 2012 Actual² | D402: 2013 Actual² | E402: 2014 Actual² | F402: 2015 Actual² | G402: 2016 Actual² | H402: 2017 Actual² | I402: 2018 Actual² | J402: 2019 Actual | K402: Bridge Year | L402: Test Year | N402: =N$12 -> CGAAP
C403: =C$13 -> 2012 | D403: 2013 | E403: 2014 | F403: 2015 | G403: 2016 | H403: 2017 | I403: 2018 | J403: 2019 | K403: 2020 | L403: 2021 | N403: =N$13 -> 2014
A404: Reporting Basis | C404: =IF(C342=0, "", C342) ->  | N404: =IF(N$14=0, "", N$14) -> CGAAP
A413: Total | C413: =SUM(C405:C412) -> 0 | D413: =SUM(D405:D412) -> 0 | E413: =SUM(E405:E412) -> 0 | F413: =SUM(F405:F412) -> 0 | G413: =SUM(G405:G412) -> 0 | H413: =SUM(H405:H412) -> 0 | I413: =SUM(I405:I412) -> 0 | J413: =SUM(J405:J412) -> 0 | K413: =SUM(K405:K412) -> 0 | L413: =SUM(L405:L412) -> 0 | N413: =SUM(N405:N412) -> 0
C416: =C$12 -> 2012 Actual² | D416: 2013 Actual² | E416: 2014 Actual² | F416: 2015 Actual² | G416: 2016 Actual² | H416: 2017 Actual² | I416: 2018 Actual² | J416: 2019 Actual | K416: Bridge Year | L416: Test Year | N416: =N$12 -> CGAAP
C417: =C$13 -> 2012 | D417: 2013 | E417: 2014 | F417: 2015 | G417: 2016 | H417: 2017 | I417: 2018 | J417: 2019 | K417: 2020 | L417: 2021 | N417: =N$13 -> 2014
A418: Reporting Basis | C418: =IF(C356=0, "", C356) ->  | N418: =IF(N$14=0, "", N$14) -> CGAAP
A427: Total | C427: =SUM(C419:C426) -> 0 | D427: =SUM(D419:D426) -> 0 | E427: =SUM(E419:E426) -> 0 | F427: =SUM(F419:F426) -> 0 | G427: =SUM(G419:G426) -> 0 | H427: =SUM(H419:H426) -> 0 | I427: =SUM(I419:I426) -> 0 | J427: =SUM(J419:J426) -> 0 | K427: =SUM(K419:K426) -> 0 | L427: =SUM(L419:L426) -> 0 | N427: =SUM(N419:N426) -> 0
C430: =C$12 -> 2012 Actual² | D430: 2013 Actual² | E430: 2014 Actual² | F430: 2015 Actual² | G430: 2016 Actual² | H430: 2017 Actual² | I430: 2018 Actual² | J430: 2019 Actual | K430: Bridge Year | L430: Test Year | N430: =N$12 -> CGAAP
C431: =C$13 -> 2012 | D431: 2013 | E431: 2014 | F431: 2015 | G431: 2016 | H431: 2017 | I431: 2018 | J431: 2019 | K431: 2020 | L431: 2021 | N431: =N$13 -> 2014
A432: Reporting Basis | C432: =IF(C370=0, "", C370) ->  | N432: =IF(N$14=0, "", N$14) -> CGAAP
A441: Total | C441: =SUM(C433:C440) -> 0 | D441: =SUM(D433:D440) -> 0 | E441: =SUM(E433:E440) -> 0 | F441: =SUM(F433:F440) -> 0 | G441: =SUM(G433:G440) -> 0 | H441: =SUM(H433:H440) -> 0 | I441: =SUM(I433:I440) -> 0 | J441: =SUM(J433:J440) -> 0 | K441: =SUM(K433:K440) -> 0 | L441: =SUM(L433:L440) -> 0 | N441: =SUM(N433:N440) -> 0
C444: =C$12 -> 2012 Actual² | D444: 2013 Actual² | E444: 2014 Actual² | F444: 2015 Actual² | G444: 2016 Actual² | H444: 2017 Actual² | I444: 2018 Actual² | J444: 2019 Actual | K444: Bridge Year | L444: Test Year | N444: =N$12 -> CGAAP
C445: =C$13 -> 2012 | D445: 2013 | E445: 2014 | F445: 2015 | G445: 2016 | H445: 2017 | I445: 2018 | J445: 2019 | K445: 2020 | L445: 2021 | N445: =N$13 -> 2014
A446: Reporting Basis | C446: =IF(C384=0, "", C384) ->  | N446: =IF(N$14=0, "", N$14) -> CGAAP
A455: Total | C455: =SUM(C447:C454) -> 0 | D455: =SUM(D447:D454) -> 0 | E455: =SUM(E447:E454) -> 0 | F455: =SUM(F447:F454) -> 0 | G455: =SUM(G447:G454) -> 0 | H455: =SUM(H447:H454) -> 0 | I455: =SUM(I447:I454) -> 0 | J455: =SUM(J447:J454) -> 0 | K455: =SUM(K447:K454) -> 0 | L455: =SUM(L447:L454) -> 0 | N455: =SUM(N447:N454) -> 0
C458: =C$12 -> 2012 Actual² | D458: 2013 Actual² | E458: 2014 Actual² | F458: 2015 Actual² | G458: 2016 Actual² | H458: 2017 Actual² | I458: 2018 Actual² | J458: 2019 Actual | K458: Bridge Year | L458: Test Year | N458: =N$12 -> CGAAP
C459: =C$13 -> 2012 | D459: 2013 | E459: 2014 | F459: 2015 | G459: 2016 | H459: 2017 | I459: 2018 | J459: 2019 | K459: 2020 | L459: 2021 | N459: =N$13 -> 2014
A460: Reporting Basis | C460: =IF(C398=0, "", C398) ->  | N460: =IF(N$14=0, "", N$14) -> CGAAP
A469: Total | C469: =SUM(C461:C468) -> 0 | D469: =SUM(D461:D468) -> 0 | E469: =SUM(E461:E468) -> 0 | F469: =SUM(F461:F468) -> 0 | G469: =SUM(G461:G468) -> 0 | H469: =SUM(H461:H468) -> 0 | I469: =SUM(I461:I468) -> 0 | J469: =SUM(J461:J468) -> 0 | K469: =SUM(K461:K468) -> 0 | L469: =SUM(L461:L468) -> 0 | N469: =SUM(N461:N468) -> 0
C472: =C$12 -> 2012 Actual² | D472: 2013 Actual² | E472: 2014 Actual² | F472: 2015 Actual² | G472: 2016 Actual² | H472: 2017 Actual² | I472: 2018 Actual² | J472: 2019 Actual | K472: Bridge Year | L472: Test Year | N472: =N$12 -> CGAAP
C473: =C$13 -> 2012 | D473: 2013 | E473: 2014 | F473: 2015 | G473: 2016 | H473: 2017 | I473: 2018 | J473: 2019 | K473: 2020 | L473: 2021 | N473: =N$13 -> 2014
A474: Reporting Basis | C474: =IF(C412=0, "", C412) ->  | N474: =IF(N$14=0, "", N$14) -> CGAAP
A483: Total | C483: =SUM(C475:C482) -> 0 | D483: =SUM(D475:D482) -> 0 | E483: =SUM(E475:E482) -> 0 | F483: =SUM(F475:F482) -> 0 | G483: =SUM(G475:G482) -> 0 | H483: =SUM(H475:H482) -> 0 | I483: =SUM(I475:I482) -> 0 | J483: =SUM(J475:J482) -> 0 | K483: =SUM(K475:K482) -> 0 | L483: =SUM(L475:L482) -> 0 | N483: =SUM(N475:N482) -> 0
C486: =C$12 -> 2012 Actual² | D486: 2013 Actual² | E486: 2014 Actual² | F486: 2015 Actual² | G486: 2016 Actual² | H486: 2017 Actual² | I486: 2018 Actual² | J486: 2019 Actual | K486: Bridge Year | L486: Test Year | N486: =N$12 -> CGAAP
C487: =C$13 -> 2012 | D487: 2013 | E487: 2014 | F487: 2015 | G487: 2016 | H487: 2017 | I487: 2018 | J487: 2019 | K487: 2020 | L487: 2021 | N487: =N$13 -> 2014
A488: Reporting Basis | C488: =IF(C426=0, "", C426) ->  | N488: =IF(N$14=0, "", N$14) -> CGAAP
A497: Total | C497: =SUM(C489:C496) -> 0 | D497: =SUM(D489:D496) -> 0 | E497: =SUM(E489:E496) -> 0 | F497: =SUM(F489:F496) -> 0 | G497: =SUM(G489:G496) -> 0 | H497: =SUM(H489:H496) -> 0 | I497: =SUM(I489:I496) -> 0 | J497: =SUM(J489:J496) -> 0 | K497: =SUM(K489:K496) -> 0 | L497: =SUM(L489:L496) -> 0 | N497: =SUM(N489:N496) -> 0
C500: =C$12 -> 2012 Actual² | D500: 2013 Actual² | E500: 2014 Actual² | F500: 2015 Actual² | G500: 2016 Actual² | H500: 2017 Actual² | I500: 2018 Actual² | J500: 2019 Actual | K500: Bridge Year | L500: Test Year | N500: =N$12 -> CGAAP
C501: =C$13 -> 2012 | D501: 2013 | E501: 2014 | F501: 2015 | G501: 2016 | H501: 2017 | I501: 2018 | J501: 2019 | K501: 2020 | L501: 2021 | N501: =N$13 -> 2014
A502: Reporting Basis | C502: =IF(C440=0, "", C440) ->  | N502: =IF(N$14=0, "", N$14) -> CGAAP
A511: Total | C511: =SUM(C503:C510) -> 0 | D511: =SUM(D503:D510) -> 0 | E511: =SUM(E503:E510) -> 0 | F511: =SUM(F503:F510) -> 0 | G511: =SUM(G503:G510) -> 0 | H511: =SUM(H503:H510) -> 0 | I511: =SUM(I503:I510) -> 0 | J511: =SUM(J503:J510) -> 0 | K511: =SUM(K503:K510) -> 0 | L511: =SUM(L503:L510) -> 0 | N511: =SUM(N503:N510) -> 0
C514: =C$12 -> 2012 Actual² | D514: 2013 Actual² | E514: 2014 Actual² | F514: 2015 Actual² | G514: 2016 Actual² | H514: 2017 Actual² | I514: 2018 Actual² | J514: 2019 Actual | K514: Bridge Year | L514: Test Year | N514: =N$12 -> CGAAP
C515: =C$13 -> 2012 | D515: 2013 | E515: 2014 | F515: 2015 | G515: 2016 | H515: 2017 | I515: 2018 | J515: 2019 | K515: 2020 | L515: 2021 | N515: =N$13 -> 2014
A516: Reporting Basis | C516: =IF(C454=0, "", C454) ->  | N516: =IF(N$14=0, "", N$14) -> CGAAP
A525: Total | C525: =SUM(C517:C524) -> 0 | D525: =SUM(D517:D524) -> 0 | E525: =SUM(E517:E524) -> 0 | F525: =SUM(F517:F524) -> 0 | G525: =SUM(G517:G524) -> 0 | H525: =SUM(H517:H524) -> 0 | I525: =SUM(I517:I524) -> 0 | J525: =SUM(J517:J524) -> 0 | K525: =SUM(K517:K524) -> 0 | L525: =SUM(L517:L524) -> 0 | N525: =SUM(N517:N524) -> 0
C528: =C$12 -> 2012 Actual² | D528: 2013 Actual² | E528: 2014 Actual² | F528: 2015 Actual² | G528: 2016 Actual² | H528: 2017 Actual² | I528: 2018 Actual² | J528: 2019 Actual | K528: Bridge Year | L528: Test Year | N528: =N$12 -> CGAAP
C529: =C$13 -> 2012 | D529: 2013 | E529: 2014 | F529: 2015 | G529: 2016 | H529: 2017 | I529: 2018 | J529: 2019 | K529: 2020 | L529: 2021 | N529: =N$13 -> 2014
A530: Reporting Basis | C530: =IF(C468=0, "", C468) ->  | N530: =IF(N$14=0, "", N$14) -> CGAAP
A539: Total | C539: =SUM(C531:C538) -> 0 | D539: =SUM(D531:D538) -> 0 | E539: =SUM(E531:E538) -> 0 | F539: =SUM(F531:F538) -> 0 | G539: =SUM(G531:G538) -> 0 | H539: =SUM(H531:H538) -> 0 | I539: =SUM(I531:I538) -> 0 | J539: =SUM(J531:J538) -> 0 | K539: =SUM(K531:K538) -> 0 | L539: =SUM(L531:L538) -> 0 | N539: =SUM(N531:N538) -> 0
C542: =C$12 -> 2012 Actual² | D542: 2013 Actual² | E542: 2014 Actual² | F542: 2015 Actual² | G542: 2016 Actual² | H542: 2017 Actual² | I542: 2018 Actual² | J542: 2019 Actual | K542: Bridge Year | L542: Test Year | N542: =N$12 -> CGAAP
C543: =C$13 -> 2012 | D543: 2013 | E543: 2014 | F543: 2015 | G543: 2016 | H543: 2017 | I543: 2018 | J543: 2019 | K543: 2020 | L543: 2021 | N543: =N$13 -> 2014
A544: Reporting Basis | C544: =IF(C482=0, "", C482) ->  | N544: =IF(N$14=0, "", N$14) -> CGAAP
A553: Total | C553: =SUM(C545:C552) -> 0 | D553: =SUM(D545:D552) -> 0 | E553: =SUM(E545:E552) -> 0 | F553: =SUM(F545:F552) -> 0 | G553: =SUM(G545:G552) -> 0 | H553: =SUM(H545:H552) -> 0 | I553: =SUM(I545:I552) -> 0 | J553: =SUM(J545:J552) -> 0 | K553: =SUM(K545:K552) -> 0 | L553: =SUM(L545:L552) -> 0 | N553: =SUM(N545:N552) -> 0
C556: =C$12 -> 2012 Actual² | D556: 2013 Actual² | E556: 2014 Actual² | F556: 2015 Actual² | G556: 2016 Actual² | H556: 2017 Actual² | I556: 2018 Actual² | J556: 2019 Actual | K556: Bridge Year | L556: Test Year | N556: =N$12 -> CGAAP
C557: =C$13 -> 2012 | D557: 2013 | E557: 2014 | F557: 2015 | G557: 2016 | H557: 2017 | I557: 2018 | J557: 2019 | K557: 2020 | L557: 2021 | N557: =N$13 -> 2014
A558: Reporting Basis | C558: =IF(C496=0, "", C496) ->  | N558: =IF(N$14=0, "", N$14) -> CGAAP
A567: Total | C567: =SUM(C559:C566) -> 0 | D567: =SUM(D559:D566) -> 0 | E567: =SUM(E559:E566) -> 0 | F567: =SUM(F559:F566) -> 0 | G567: =SUM(G559:G566) -> 0 | H567: =SUM(H559:H566) -> 0 | I567: =SUM(I559:I566) -> 0 | J567: =SUM(J559:J566) -> 0 | K567: =SUM(K559:K566) -> 0 | L567: =SUM(L559:L566) -> 0 | N567: =SUM(N559:N566) -> 0

Sheet Hidden_Other Revenue (hidden)
A1: Utility Name | B1: EB Number | C1: Test Year | D1: Bridge Year | E1: Last Rebasing Year | F1: Heading | G1: Year | H1: Amount
A2: ='LDC Info'!$E$14 -> Burlington Hydro Inc. | B2: =EBNUMBER -> EB-2020-0007 | C2: =TestYear -> 2021 | D2: =BridgeYear -> 2020 | E2: =RebaseYear -> 2014 | F2: Specific Service Charges | G2: ='App.2-H_Other_Oper_Rev'!C13 -> 2012 | H2: ='App.2-H_Other_Oper_Rev'!C53 -> 0
A3: ='LDC Info'!$E$14 -> Burlington Hydro Inc. | B3: EB-2020-0007 | C3: 2021 | D3: 2020 | E3: 2014 | F3: Late Payment Charges | G3: ='App.2-H_Other_Oper_Rev'!C13 -> 2012 | H3: ='App.2-H_Other_Oper_Rev'!C54 -> 0
A4: ='LDC Info'!$E$14 -> Burlington Hydro Inc. | B4: EB-2020-0007 | C4: 2021 | D4: 2020 | E4: 2014 | F4: Other Operating Revenues | G4: ='App.2-H_Other_Oper_Rev'!C13 -> 2012 | H4: ='App.2-H_Other_Oper_Rev'!C55 -> 0
A5: ='LDC Info'!$E$14 -> Burlington Hydro Inc. | B5: EB-2020-0007 | C5: 2021 | D5: 2020 | E5: 2014 | F5: Other Income or Deductions | G5: ='App.2-H_Other_Oper_Rev'!C13 -> 2012 | H5: ='App.2-H_Other_Oper_Rev'!C56 -> 0
A6: ='LDC Info'!$E$14 -> Burlington Hydro Inc. | B6: EB-2020-0007 | C6: 2021 | D6: 2020 | E6: 2014 | F6: Specific Service Charges | G6: ='App.2-H_Other_Oper_Rev'!D13 -> 2013 | H6: ='App.2-H_Other_Oper_Rev'!D53 -> 0
A7: ='LDC Info'!$E$14 -> Burlington Hydro Inc. | B7: EB-2020-0007 | C7: 2021 | D7: 2020 | E7: 2014 | F7: Late Payment Charges | G7: ='App.2-H_Other_Oper_Rev'!D13 -> 2013 | H7: ='App.2-H_Other_Oper_Rev'!D54 -> 0
A8: ='LDC Info'!$E$14 -> Burlington Hydro Inc. | B8: EB-2020-0007 | C8: 2021 | D8: 2020 | E8: 2014 | F8: Other Operating Revenues | G8: ='App.2-H_Other_Oper_Rev'!D13 -> 2013 | H8: ='App.2-H_Other_Oper_Rev'!D55 -> 0
A9: ='LDC Info'!$E$14 -> Burlington Hydro Inc. | B9: EB-2020-0007 | C9: 2021 | D9: 2020 | E9: 2014 | F9: Other Income or Deductions | G9: ='App.2-H_Other_Oper_Rev'!D13 -> 2013 | H9: ='App.2-H_Other_Oper_Rev'!D56 -> 0
A10: ='LDC Info'!$E$14 -> Burlington Hydro Inc. | B10: EB-2020-0007 | C10: 2021 | D10: 2020 | E10: 2014 | F10: Specific Service Charges | G10: ='App.2-H_Other_Oper_Rev'!E13 -> 2014 | H10: ='App.2-H_Other_Oper_Rev'!E53 -> 0
A11: ='LDC Info'!$E$14 -> Burlington Hydro Inc. | B11: EB-2020-0007 | C11: 2021 | D11: 2020 | E11: 2014 | F11: Late Payment Charges | G11: ='App.2-H_Other_Oper_Rev'!E13 -> 2014 | H11: ='App.2-H_Other_Oper_Rev'!E54 -> 0
A12: ='LDC Info'!$E$14 -> Burlington Hydro Inc. | B12: EB-2020-0007 | C12: 2021 | D12: 2020 | E12: 2014 | F12: Other Operating Revenues | G12: ='App.2-H_Other_Oper_Rev'!E13 -> 2014 | H12: ='App.2-H_Other_Oper_Rev'!E55 -> 0
A13: ='LDC Info'!$E$14 -> Burlington Hydro Inc. | B13: EB-2020-0007 | C13: 2021 | D13: 2020 | E13: 2014 | F13: Other Income or Deductions | G13: ='App.2-H_Other_Oper_Rev'!E13 -> 2014 | H13: ='App.2-H_Other_Oper_Rev'!E56 -> 0
A14: ='LDC Info'!$E$14 -> Burlington Hydro Inc. | B14: EB-2020-0007 | C14: 2021 | D14: 2020 | E14: 2014 | F14: Specific Service Charges | G14: ='App.2-H_Other_Oper_Rev'!F13 -> 2015 | H14: ='App.2-H_Other_Oper_Rev'!F53 -> 0
A15: ='LDC Info'!$E$14 -> Burlington Hydro Inc. | B15: EB-2020-0007 | C15: 2021 | D15: 2020 | E15: 2014 | F15: Late Payment Charges | G15: ='App.2-H_Other_Oper_Rev'!F13 -> 2015 | H15: ='App.2-H_Other_Oper_Rev'!F54 -> 0
A16: ='LDC Info'!$E$14 -> Burlington Hydro Inc. | B16: EB-2020-0007 | C16: 2021 | D16: 2020 | E16: 2014 | F16: Other Operating Revenues | G16: ='App.2-H_Other_Oper_Rev'!F13 -> 2015 | H16: ='App.2-H_Other_Oper_Rev'!F55 -> 0
A17: ='LDC Info'!$E$14 -> Burlington Hydro Inc. | B17: EB-2020-0007 | C17: 2021 | D17: 2020 | E17: 2014 | F17: Other Income or Deductions | G17: ='App.2-H_Other_Oper_Rev'!F13 -> 2015 | H17: ='App.2-H_Other_Oper_Rev'!F56 -> 0
A18: ='LDC Info'!$E$14 -> Burlington Hydro Inc. | B18: EB-2020-0007 | C18: 2021 | D18: 2020 | E18: 2014 | F18: Specific Service Charges | G18: ='App.2-H_Other_Oper_Rev'!G13 -> 2016 | H18: ='App.2-H_Other_Oper_Rev'!G53 -> 0
A19: ='LDC Info'!$E$14 -> Burlington Hydro Inc. | B19: EB-2020-0007 | C19: 2021 | D19: 2020 | E19: 2014 | F19: Late Payment Charges | G19: ='App.2-H_Other_Oper_Rev'!G13 -> 2016 | H19: ='App.2-H_Other_Oper_Rev'!G54 -> 0
A20: ='LDC Info'!$E$14 -> Burlington Hydro Inc. | B20: EB-2020-0007 | C20: 2021 | D20: 2020 | E20: 2014 | F20: Other Operating Revenues | G20: ='App.2-H_Other_Oper_Rev'!G13 -> 2016 | H20: ='App.2-H_Other_Oper_Rev'!G55 -> 0
A21: ='LDC Info'!$E$14 -> Burlington Hydro Inc. | B21: EB-2020-0007 | C21: 2021 | D21: 2020 | E21: 2014 | F21: Other Income or Deductions | G21: ='App.2-H_Other_Oper_Rev'!G13 -> 2016 | H21: ='App.2-H_Other_Oper_Rev'!G56 -> 0
A22: ='LDC Info'!$E$14 -> Burlington Hydro Inc. | B22: EB-2020-0007 | C22: 2021 | D22: 2020 | E22: 2014 | F22: Specific Service Charges | G22: ='App.2-H_Other_Oper_Rev'!H13 -> 2017 | H22: ='App.2-H_Other_Oper_Rev'!H53 -> 0
A23: ='LDC Info'!$E$14 -> Burlington Hydro Inc. | B23: EB-2020-0007 | C23: 2021 | D23: 2020 | E23: 2014 | F23: Late Payment Charges | G23: ='App.2-H_Other_Oper_Rev'!H13 -> 2017 | H23: ='App.2-H_Other_Oper_Rev'!H54 -> 0
A24: ='LDC Info'!$E$14 -> Burlington Hydro Inc. | B24: EB-2020-0007 | C24: 2021 | D24: 2020 | E24: 2014 | F24: Other Operating Revenues | G24: ='App.2-H_Other_Oper_Rev'!H13 -> 2017 | H24: ='App.2-H_Other_Oper_Rev'!H55 -> 0
A25: ='LDC Info'!$E$14 -> Burlington Hydro Inc. | B25: EB-2020-0007 | C25: 2021 | D25: 2020 | E25: 2014 | F25: Other Income or Deductions | G25: ='App.2-H_Other_Oper_Rev'!H13 -> 2017 | H25: ='App.2-H_Other_Oper_Rev'!H56 -> 0
A26: ='LDC Info'!$E$14 -> Burlington Hydro Inc. | B26: EB-2020-0007 | C26: 2021 | D26: 2020 | E26: 2014 | F26: Specific Service Charges | G26: ='App.2-H_Other_Oper_Rev'!I13 -> 2018 | H26: ='App.2-H_Other_Oper_Rev'!I53 -> 0
A27: ='LDC Info'!$E$14 -> Burlington Hydro Inc. | B27: EB-2020-0007 | C27: 2021 | D27: 2020 | E27: 2014 | F27: Late Payment Charges | G27: ='App.2-H_Other_Oper_Rev'!I13 -> 2018 | H27: ='App.2-H_Other_Oper_Rev'!I54 -> 0
A28: ='LDC Info'!$E$14 -> Burlington Hydro Inc. | B28: EB-2020-0007 | C28: 2021 | D28: 2020 | E28: 2014 | F28: Other Operating Revenues | G28: ='App.2-H_Other_Oper_Rev'!I13 -> 2018 | H28: ='App.2-H_Other_Oper_Rev'!I55 -> 0
A29: ='LDC Info'!$E$14 -> Burlington Hydro Inc. | B29: EB-2020-0007 | C29: 2021 | D29: 2020 | E29: 2014 | F29: Other Income or Deductions | G29: ='App.2-H_Other_Oper_Rev'!I13 -> 2018 | H29: ='App.2-H_Other_Oper_Rev'!I56 -> 0
A30: ='LDC Info'!$E$14 -> Burlington Hydro Inc. | B30: EB-2020-0007 | C30: 2021 | D30: 2020 | E30: 2014 | F30: Specific Service Charges | G30: ='App.2-H_Other_Oper_Rev'!J13 -> 2019 | H30: ='App.2-H_Other_Oper_Rev'!J53 -> 0
A31: ='LDC Info'!$E$14 -> Burlington Hydro Inc. | B31: EB-2020-0007 | C31: 2021 | D31: 2020 | E31: 2014 | F31: Late Payment Charges | G31: ='App.2-H_Other_Oper_Rev'!J13 -> 2019 | H31: ='App.2-H_Other_Oper_Rev'!J54 -> 0
A32: ='LDC Info'!$E$14 -> Burlington Hydro Inc. | B32: EB-2020-0007 | C32: 2021 | D32: 2020 | E32: 2014 | F32: Other Operating Revenues | G32: ='App.2-H_Other_Oper_Rev'!J13 -> 2019 | H32: ='App.2-H_Other_Oper_Rev'!J55 -> 0
A33: ='LDC Info'!$E$14 -> Burlington Hydro Inc. | B33: EB-2020-0007 | C33: 2021 | D33: 2020 | E33: 2014 | F33: Other Income or Deductions | G33: ='App.2-H_Other_Oper_Rev'!J13 -> 2019 | H33: ='App.2-H_Other_Oper_Rev'!J56 -> 0
A34: ='LDC Info'!$E$14 -> Burlington Hydro Inc. | B34: EB-2020-0007 | C34: 2021 | D34: 2020 | E34: 2014 | F34: Specific Service Charges | G34: ='App.2-H_Other_Oper_Rev'!K13 -> 2020 | H34: ='App.2-H_Other_Oper_Rev'!K53 -> 0
A35: ='LDC Info'!$E$14 -> Burlington Hydro Inc. | B35: EB-2020-0007 | C35: 2021 | D35: 2020 | E35: 2014 | F35: Late Payment Charges | G35: ='App.2-H_Other_Oper_Rev'!K13 -> 2020 | H35: ='App.2-H_Other_Oper_Rev'!K54 -> 0
A36: ='LDC Info'!$E$14 -> Burlington Hydro Inc. | B36: EB-2020-0007 | C36: 2021 | D36: 2020 | E36: 2014 | F36: Other Operating Revenues | G36: ='App.2-H_Other_Oper_Rev'!K13 -> 2020 | H36: ='App.2-H_Other_Oper_Rev'!K55 -> 0
A37: ='LDC Info'!$E$14 -> Burlington Hydro Inc. | B37: EB-2020-0007 | C37: 2021 | D37: 2020 | E37: 2014 | F37: Other Income or Deductions | G37: ='App.2-H_Other_Oper_Rev'!K13 -> 2020 | H37: ='App.2-H_Other_Oper_Rev'!K56 -> 0
A38: ='LDC Info'!$E$14 -> Burlington Hydro Inc. | B38: EB-2020-0007 | C38: 2021 | D38: 2020 | E38: 2014 | F38: Specific Service Charges | G38: ='App.2-H_Other_Oper_Rev'!L13 -> 2021 | H38: ='App.2-H_Other_Oper_Rev'!L53 -> 0
A39: ='LDC Info'!$E$14 -> Burlington Hydro Inc. | B39: EB-2020-0007 | C39: 2021 | D39: 2020 | E39: 2014 | F39: Late Payment Charges | G39: ='App.2-H_Other_Oper_Rev'!L13 -> 2021 | H39: ='App.2-H_Other_Oper_Rev'!L54 -> 0
A40: ='LDC Info'!$E$14 -> Burlington Hydro Inc. | B40: EB-2020-0007 | C40: 2021 | D40: 2020 | E40: 2014 | F40: Other Operating Revenues | G40: ='App.2-H_Other_Oper_Rev'!L13 -> 2021 | H40: ='App.2-H_Other_Oper_Rev'!L55 -> 0
A41: ='LDC Info'!$E$14 -> Burlington Hydro Inc. | B41: EB-2020-0007 | C41: 2021 | D41: 2020 | E41: 2014 | F41: Other Income or Deductions | G41: ='App.2-H_Other_Oper_Rev'!L13 -> 2021 | H41: ='App.2-H_Other_Oper_Rev'!L56 -> 0

Sheet App_2-I LF_CDM
G1: File Number: | H1: =EBNUMBER -> EB-2020-0007
G2: Exhibit:
G3: Tab:
G4: Schedule:
G5: Page:
G7: Date:
A9: Appendix 2-I
A10: Load Forecast CDM Adjustment Work Form
A12: Appendix 2-I was initially developed to help determine what would be the amount of CDM savings needed in each year to cumulatively achieve the four year 2011-2014 CDM target. This then determined the amount of kWh (and with translation, kW of demand) savings that were converted into dollar balances for the LRAMVA, and also to determine the related adjustment to the load forecast to account for OPA-reported savings. Beginning in the 2015 year, it was adjusted because the persistence of 2011-2014 CDM programs will be an adjustment to the load forecast in addition to the estimated savings for the first year (2015) for the new 2015-2020 CDM plan. This appendix has been updated for 2020 rate applications to acknowledge that in accordance with the Minister of Energy's March 20, 2019 Directive to the IESO, the Conservation First Framework (CFF) is no longer in effect. As distributors are no longer working towards the former 2015-2020 CDM targets, for 2019 and 2020 activity only CDM projects that are subject to a contractual agreement entered into between the distributor and a customer by April 30, 2019 under a former CFF program should be included in the proposed CDM manual adjustment to the load forecast. Distributors should provide relevant documentation to support the manual adjustments for 2019 and 2020 CDM projects, including the corresponding CFF program, project timelines and projected savings. For any savings from new projects that begin on or after May 1, 2019 that are under the IESO's interim framework (May 1, 2019 to December 31, 2020), distributors should not include these savings as part of the 2020 CDM manual adjustment.
A14: 2019-2020 CDM Activities
A16: For the first year of the new 2015-2020 CDM plan, for simplicity it was assumed that each year's program will achieve an equal amount of new CDM savings. This resulted in each year's program being about 1/6 (or 16.67%) of the cumulative 2015-2020 CDM target for kWh savings. A distributor could have proposed an alternative approach but would have been expected to document in its application why it believes that its proposal is more reasonable. For 2020 rate applications, distributors should ensure that the sum of the results for the 2015 to 2018 program years is consistent with the results provided by the IESO. For 2019 and 2020 program years, the projected CDM savings should not match the distributor's CDM Plan or its 2015-2020 CDM targets. Rather, for 2019 and 2020 CDM activity, distributors should only include the projected CDM savings from projects that are subject to contractual agreements between the distributor and customer made on or before April 30, 2019 under the former CFF.
A18: Former CFF 6 Year (2015-2020) kWh Target*
B20: 2015 | C20: 2016 | D20: 2017 | E20: 2018 | F20: 2019 | G20: 2020 | H20: Total
A21: %
A22: 2015 CDM Programs
A23: 2016 CDM Programs
A24: 2017 CDM Programs
A25: 2018 CDM Programs
A26: 2019 CDM Programs
A27: 2020 CDM Programs
A28: Total in Year | B28: =SUM(B22:B27) -> 0 | C28: =SUM(C22:C27) -> 0 | D28: =SUM(D22:D27) -> 0 | E28: =SUM(E22:E25) -> 0 | F28: =SUM(F22:F26) -> 0 | G28: =SUM(G22:G27) -> 0 | H28: =SUM(H22:H27) -> 0
A29: kWh
A30: =A22 -> 2015 CDM Programs
A31: 2016 CDM Programs | K31: 2011 | L31: 2012 | M31: 2013 | N31: 2014
A32: 2017 CDM Programs | J32: 2011 CDM Programs | K32: =50% -> 0.5 | L32: 1 | M32: 1 | N32: 1
A33: 2018 CDM Programs | J33: 2012 CDM Programs | L33: 0.5 | M33: 1 | N33: 1
A34: 2019 CDM Programs | J34: 2013 CDM Programs | M34: 0.5 | N34: 1
A35: 2020 CDM Programs | J35: 2014 CDM Programs | N35: 0.5
A36: Total in Year | B36: =SUM(B30:B35) -> 0 | C36: =SUM(C30:C35) -> 0 | D36: =SUM(D30:D35) -> 0 | E36: =SUM(E30:E33) -> 0 | F36: =SUM(F30:F34) -> 0 | G36: =SUM(G30:G35) -> 0 | H36: =A19 -> 0
G37: =IF(G36-H36<>0,"Inputs do no match 2015-20 CDM target","") -> 
A39: *This total will not equal the distributor's former CFF CDM target. Rather, for 2019 and 2020, the distributor should only include the projected savings from projects that are subject to contractual agreements made between the LDC and a customer on or before April 30, 2019 under the former CFF.
A41: Note: The default formulae in the above table assume that the 2015-2020 kWh CDM target is achieved through persistence of CDM savings to the end of 2020. The distributor should enter measured CDM savings for 2015, 2016, 2017 and 2018, and the persistence of 2015, 2016, 2017 and 2018 programs for 2018-2020 in rows 34, 35, 36 and 37. Distributors should rely on the Participant and Cost monthly reports provided by the IESO for 2018 CDM savings which can be entered into row 37. The distributor should include only those projected CDM savings in 2019 and 2020 from projects that it has contractual obligations with a customer on or before April 30, 2019 under the former CFF.
A43: Determination of 2020 Load Forecast Adjustment
A45: The OEB determined that the "net" number should be used in its Decision and Order with respect to Centre Wellington Hydro Ltd.'s 2013 Cost of Service rates (EB-2012-0113). This approach has also been used in Settlement Agreements accepted by the OEB in other 2013 and 2014 applications. The distributor should select whether the adjustment is done on a "net" or "gross" basis, but must support a proposal for the adjustment being done on a "gross" basis. Sheet 2-I defaults to the adjustment being done on a "net" basis consistent with OEB policy and practice.
A47: From each of the 2006-2010 CDM Final Report, and the 2011 to 2017 CDM Final Reports, issued by the OPA/IESO for the distributor, the distributor should input the "gross" and "net" results of the cumulative CDM savings for 2018 into cells C57 to C63 and D57 to D63. The model will calculate the cumulative savings for all programs from 2006 to 2016 and determine the "net" to "gross" factor "g".
A49: Net-to-Gross Conversion
A51: Is CDM adjustment being done on a "net" or "gross" basis? | F51: net
C53: "Gross" | D53: "Net" | E53: Difference | F53: "Net-to-Gross" Conversion Factor
A54: Persistence of Historical CDM programs to 2015 | C54: kWh | D54: kWh | E54: kWh | F54: ('g')
A55: 2006-2010 CDM programs | E55: =C55-D55 -> 0
A56: 2011 CDM program | E56: 0
A57: 2012 CDM program | E57: 0
A58: 2013 CDM program | E58: 0
A59: 2014 CDM program | E59: 0
A60: 2015 CDM program | E60: 0
A61: 2016 CDM program | E61: =C61-D61 -> 0
A62: 2017 CDM program | E62: 0
A63: 2018 CDM program* | E63: 0
A64: 2006 to 2017 OPA CDM programs: Persistence to 2020. | C64: =SUM(C55:C63) -> 0 | D64: =SUM(D55:D63) -> 0 | E64: =C64-D64 -> 0 | F64: =IF(D64=0,0,IF(F51="net",0,E64/D64)) -> 0
A65: *For 2018 CDM programs distributors should rely on the results made available by the IESO in the Participant and Cost monthly reports
A67: The default values below represent the factor used for how each year's CDM program is factored into the manual CDM adjustment. Distributors can choose alternative weights of "0", "0.5" or "1" from the drop-down menu for each cell, but must support its alternatives.
A69: These factors do not mean that CDM programs are excluded, but the assumption that impacts of previous year CDM programs are already implicitly reflected in the actual data for historical years that are used to derive the load forecast prior to any manual CDM adjustment for the 2020 test year.
A72: Weight Factor for Inclusion in CDM Adjustment to 2020 Load Forecast
B73: 2015 | C73: 2016 | D73: 2017 | E73: 2018* | F73: 2019** | G73: 2020**
A74: Weight Factor for each year's CDM program impact on 2020 load forecast | H74: Distributor can select "0", "0.5", or "1" from drop-down list
A75: Default Value selection rationale. | B75: Full year impact of 2015 CDM is assumed to be reflected in the base forecast, as the full year persistence of 2015 CDM programs is in the 2018 historical actual data. No further impact is necessary for the manual adjustment to the load forecast. | C75: Full year impact of 2016 CDM is assumed to be reflected in the base forecast, as the full year persistence of 2016 CDM programs is in the 2018 historical actual data. No further impact is necessary for the manual adjustment to the load forecast. | D75: Full year impact of 2017 CDM is assumed to be reflected in the base forecast, as the full year persistence of 2017 CDM programs is in the 2018 historical actual data. No further impact is necessary for the manual adjustment to the load forecast. | E75: Default is 0.5, but one option is for full year impact of persistence of 2018 CDM programs on 2020 load forecast, but 50% impact in base forecast (first year impact of 2018 CDM programs on 2018 actuals, which is part of the data underlying the base load forecast). | F75: Full year impact of persistence of 2019 programs on 2020 load forecast. 2019 CDM program impacts are not in the base forecast. | G75: Only 50% of 2019 CDM programs are assumed to impact the 2020 load forecast based on the "half-year" rule.
A76: * For 2018 CDM programs distributors should rely on the results made available by the IESO in the Participant and Cost monthly reports
A77: ** For 2019 and 2020 CDM program activity, the distributor should include only those projected CDM savings from projects that it has contractual obligations with a customer under the former CFF.
A79: 2015-2020 LRAMVA and 2020 CDM adjustment to Load Forecast
A81: One manual adjustment for CDM impacts to the 2020 load forecast is made. There is a different but related threshold amount that is used for the 2020 LRAMVA amount for Account 1568.
A83: The amount used for the CDM threshold of the LRAMVA is the kWh that will be used to determine the base amount for the LRAMVA balance for 2020. This allows for a comparison between projected CDM savings and actual CDM savings.
A85: If used to determine the manual CDM adjustment for the system purchased kWh, the proposed loss factor should correspond with the proposed total loss factor calculated in Appendix 2-R .
A87: The Manual Adjustment for the 2020 Load Forecast is the amount manually subtracted from the system-wide load forecast (either based on a purchased or billed basis) derived from the base forecast from historical data. If the distributor has developed their load forecast on a system purchased basis, then the manual adjustment should be on a system purchased basis, including the adjustment for losses. If the load forecast has been developed on a billed basis, either on a system basis or on a class-specific basis, the manual adjustment should be on a billed basis, excluding losses.
A89: The distributor should determine the allocation of the savings to all customer classes in a reasonable manner (e.g. taking into account what programs and what IESO-measured impacts were directed at specific customer classes), for both the LRAMVA and for the load forecast adjustment.
B91: 2015 | C91: 2016 | D91: 2017 | E91: 2018 | F91: 2019 | G91: 2020 | H91: Total for 2020
A93: Amount used for CDM threshold for LRAMVA (2020)
A95: Manual Adjustment for 2020 Load Forecast (billed basis)
A96: Manual Adjustment for 2020 LDC-only CDM programs (billed basis)
A97: Total Manual Forecast to Load Forecast
A99: Proposed Loss Factor (TLF) | C99: Format: X.XX%
A100: Manual Adjustment for 2020 Load Forecast (system purchased basis)
A102: Manual adjustment uses "gross" versus "net" (i.e. numbers multiplied by (1 + g). The Weight factor is also used to calculate the impact of each year's program on the CDM adjustment to the 2020 load forecast.

Sheet lists (hidden)
A1: COMPETITIVE SECTOR MULTI-UNIT RESIDENTIAL SERVICE CLASSIFICATION
A2: DISTRIBUTED GENERATION [DGEN] SERVICE CLASSIFICATION
A3: DISTRIBUTED GENERATION SERVICE CLASSIFICATION
A4: EMBEDDED DISTRIBUTOR SERVICE CLASSIFICATION
A5: EMBEDDED DISTRIBUTOR SERVICE CLASSIFICATION FOR HYDRO ONE NETWORKS INC.
A6: ENERGY FROM WASTE SERVICE CLASSIFICATION
A7: GENERAL SERVICE 1,000 KW AND GREATER SERVICE CLASSIFICATION
A8: GENERAL SERVICE 1,000 KW OR GREATER SERVICE CLASSIFICATION
A9: GENERAL SERVICE 1,000 TO 4,999 KW (CO-GENERATION) SERVICE CLASSIFICATION
A10: GENERAL SERVICE 1,000 TO 4,999 KW SERVICE CLASSIFICATION
A11: GENERAL SERVICE 1,500 TO 4,999 KW SERVICE CLASSIFICATION
A12: GENERAL SERVICE 3,000 TO 4,999 KW - INTERMEDIATE USE SERVICE CLASSIFICATION
A13: GENERAL SERVICE 3,000 TO 4,999 KW SERVICE CLASSIFICATION
A14: GENERAL SERVICE 50 TO 1,499 KW SERVICE CLASSIFICATION
A15: GENERAL SERVICE 50 TO 2,999 KW SERVICE CLASSIFICATION
A16: GENERAL SERVICE 50 to 4,999 kW SERVICE CLASSIFICATION
A17: GENERAL SERVICE 50 TO 499 KW SERVICE CLASSIFICATION
A18: GENERAL SERVICE 50 TO 699 KW SERVICE CLASSIFICATION
A19: GENERAL SERVICE 50 TO 999 KW SERVICE CLASSIFICATION
A20: GENERAL SERVICE 500 TO 1,499 KW SERVICE CLASSIFICATION
A21: GENERAL SERVICE 500 TO 4,999 KW SERVICE CLASSIFICATION
A22: GENERAL SERVICE 700 TO 4,999 KW SERVICE CLASSIFICATION
A23: GENERAL SERVICE DEMAND BILLED SERVICE CLASSIFICATION
A24: GENERAL SERVICE ENERGY BILLED SERVICE CLASSIFICATION
A25: GENERAL SERVICE EQUAL TO OR GREATER THAN 1,500 KW SERVICE CLASSIFICATION
A26: GENERAL SERVICE GREATER THAN 1,000 KW SERVICE CLASSIFICATION
A27: GENERAL SERVICE LESS THAN 50 KW SERVICE CLASSIFICATION
A28: HCI, RESOP, OTHER ENERGY RESOURCE SERVICE CLASSIFICATION
A29: INTERMEDIATE USER SERVICE CLASSIFICATION
A30: LARGE USE - 3TS SERVICE CLASSIFICATION
A31: LARGE USE - FORD ANNEX SERVICE CLASSIFICATION
A32: LARGE USE - REGULAR SERVICE CLASSIFICATION
A33: LARGE USE SERVICE CLASSIFICATION
A34: LARGE USE WITH DEDICATED ASSETS SERVICE CLASSIFICATION
A35: ONTARIO ELECTRICITY SUPPORT PROGRAM RECIPIENTS
A36: R1 RESIDENTIAL SERVICE CLASSIFICATION
A37: R2 RESIDENTIAL SERVICE CLASSIFICATION
A38: RESIDENTIAL R1 SERVICE CLASSIFICATION
A39: RESIDENTIAL R2 SERVICE CLASSIFICATION
A40: RESIDENTIAL SERVICE CLASSIFICATION
A41: SEASONAL CUSTOMERS SERVICE CLASSIFICATION
A42: SEASONAL RESIDENTIAL SERVICE CLASSIFICATION
A43: SEASONAL SERVICE CLASSIFICATION
A44: SENTINEL LIGHTING SERVICE CLASSIFICATION
A45: STANDBY POWER SERVICE CLASSIFICATION
A46: SUB TRANSMISSION SERVICE CLASSIFICATION
A47: UNMETERED SCATTERED LOAD SERVICE CLASSIFICATION
A48: UR RESIDENTIAL SERVICE CLASSIFICATION
A49: URBAN GENERAL SERVICE DEMAND BILLED SERVICE CLASSIFICATION
A50: URBAN GENERAL SERVICE ENERGY BILLED SERVICE CLASSIFICATION

Sheet App.2-IA_Load_Forecast_Instrct
Q1: File Number: | R1: =EBNUMBER -> EB-2020-0007
Q2: Exhibit:
Q3: Tab:
Q4: Schedule:
Q5: Page:
Q7: Date:
B9: Appendix 2-IA
B10: Instructions on Customer, Connections, Load Forecast and Revenues Data and Analysis
B12: This sheet requires no inputs, but serves as a summary of the hiostorical and forecasted data to be provided with respect to:
B14: 1) | C14: Customers and connections
B15: 2) | C15: Consumption (kWh)
B16: 3) | C16: Demand (kW or kCA) for applicable demand-billed customer classes
B17: 4) | C17: Revenues
B19: The spreadsheet summarizes the data provided and the analyses (variance or year-over-year) that are required. Data are required to be provided on a customer class level. Consumption (kWh) must also be provided on a total distribution system level.
B21: Appendix 2-IB (formerly 2-IA) is the appendix spreadsheet that the distributor populates, and the spreadsheet is laid out for inputting the necessary data. The spreadsheet also calculates necessary statistics such as average consumption per customer/connection per year, and variances and % annual changes, as necessary.
B23: The distributor is required to provide suitable documentation in Exhibit 3 of its Application, in accordance with section 2.3.2 of Chaoter 2 of the Filing Requirements. This would include explanations for material variations or of trends in the data.
B25: The distributor is also required to input its test year customer/connection and load forecast in Sheet 10 - Load Forecast of the Revenue Requirement Work Form. This sheet should also be updated to reflect changes in the load forecast made through the stages of processing of the rates application.
B27: The applicant must demonstrate the historical accuracy of its load forecast approach for at least the past 5 years. Such analysis will cover both customer/connections and consumption (kWh) and demand (kW or kVA) by providing the following, as shown in the following table:
D29: Calendar Year | F29: Customers / Connections | I29: Consumption (kWh) (3) | M29: Demand (kW or kVA) | Q29: Revenues
D30: ="(for "&TestYear&" Cost of Service)" -> (for 2021 Cost of Service) | I30: Weather-actual | J30: Weather-normalized | M30: Weather-actual | N30: Weather-normalized | Q30: Weather-actual | R30: Weather-normalized
C31: Historical | D31: =D32-1 -> 2015 | F31: Actual | I31: Actual | J31: Actual (1) | M31: Actual | N31: Actual (1) | Q31: Actual
C32: Historical | D32: 2016 | F32: Actual | I32: Actual | J32: Actual (1) | M32: Actual | N32: Actual (1) | Q32: Actual
C33: Historical | D33: 2017 | F33: Actual | G33: OEB-approved (2) | I33: Actual | J33: Actual (1) | K33: OEB-approved (2) | M33: Actual | N33: Actual (1) | O33: OEB-approved (2) | Q33: Actual
C34: Historical | D34: 2018 | F34: Actual | I34: Actual | J34: Actual (1) | M34: Actual | N34: Actual (1) | Q34: Actual
C35: Historical | D35: 2019 | F35: Actual | I35: Actual | J35: Actual (1) | M35: Actual | N35: Actual (1) | Q35: Actual
C36: Bridge Year (Forecast) | D36: 2020 | F36: Forecast | J36: Forecast | N36: Forecast | R36: Forecast
C37: Test Year (Forecast) | D37: =TestYear -> 2021 | F37: Forecast | J37: Forecast | N37: Forecast | R37: Forecast
B40: Notes:
B42: (1) | C42: “Weather-normalized actuals” are estimated by replacing the actual weather-related values (typically Heating Degree Days (HDD) and Cooling Degree Days (CDD)) by the “typical” or “weather-normalized” values. These “weather-normalized HDD and CDD values would be the same as used to estimate the Bridge Year and Test Year forecasts.
B43: (2) | C43: ="For "&TestYear&" Cost of Service rebasers, the typical situation is that "& TestYear - 4 & " would have been the most recent cost of service rebasing application. If the most recent rebasing application was for a rate year other than "& TestYear - 4& ", that year should be used."&" An applicant must provide historical information back to the greater of: a) at least five (5) historical actual years; or b) to its last cost of service application." -> For 2021 Cost of Service rebasers, the typical situation is that 2017 would have been the most recent cost of service rebasing application. If the most recent rebasing application was for a rate year other than 2017, that year should be used. An applicant must provide historical information back to the greater of: a) at least five (5) historical actual years; or b) to its last cost of service application.
B44: (3) | C44: Consumption must be provided on a total distribution system basis as well as at a customer class level.
B45: (4) | C45: Revenues exclude commodity charges.

Sheet App.2-IB_Load_Forecast_Analysis
T1: File Number: | U1: =EBNUMBER -> EB-2020-0007
T2: Exhibit:
T3: Tab:
T4: Schedule:
T5: Page:
T7: Date:
B9: Appendix 2-IB
B10: Customer, Connections, Load Forecast and Revenues Data and Analysis
B12: This sheet requires no inputs, but serves as a summary of the hiostorical and forecasted data to be provided with respect to:
B14: 1) | C14: Customers and connections
B15: 2) | C15: Consumption (kWh)
B16: 3) | C16: Demand (kW or kCA) for applicable demand-billed customer classes
B17: 4) | C17: Revenues
B19: The spreadsheet summarizes the data provided and the analyses (variance or year-over-year) that are required. Data are required to be provided on a customer class level. Consumption (kWh) must also be provided on a total distribution system level.
B21: Appendix 2-IB (formerly 2-IA) is the appendix spreadsheet that the distributor populates, and the spreadsheet is laid out for inputting the necessary data. The spreadsheet also calculates necessary statistics such as average consumption per customer/connection per year, and variances and % annual changes, as necessary.
B23: The distributor is required to provide suitable documentation in Exhibit 3 of its Application, in accordance with section 2.3.2 of Chaoter 2 of the Filing Requirements. This would include explanations for material variations or of trends in the data.
B25: The distributor is also required to input its test year customer/connection and load forecast in Sheet 10 - Load Forecast of the Revenue Requirement Work Form. This sheet should also be updated to reflect changes in the load forecast made through the stages of processing of the rates application.
B27: The applicant must demonstrate the historical accuracy of its load forecast approach for at least the past 5 years. Such analysis will cover both customer/connections and consumption (kWh) and demand (kW or kVA) by providing the following, as shown in the following table:
B29: This sheet is to be filled in accordance with the instructions documented in section 2.3.2 of Chapter 2 of the Filing Requirements for Distribution Rate Applications, in terms of one set of tables per customer class.
B31: Color coding for Cells: | F31: Data input | K31: Drop-down List
F33: No data entry required | K33: Blank or calculated value
B35: Distribution System (Total)
D37: Calendar Year | K37: Consumption (kWh) (3)
D38: =CONCATENATE("(for ",TestYear," Cost of Service") -> (for 2021 Cost of Service | L38: Actual (Weather actual) | M38: Weather-normalized | O38: Weather-normalized
C39: Historical | D39: =D40-1 -> 2014 | K39: Actual
C40: Historical | D40: =D41-1 -> 2015 | K40: Actual
C41: Historical | D41: 2016 | K41: Actual | N41: =IF(D41=RebaseYear,"OEB-approved","") -> 
C42: Historical | D42: 2017 | K42: Actual
C43: Historical | D43: 2018 | K43: Actual
C44: Historical | D44: 2019 | K44: Actual
C45: Bridge Year | D45: 2020 | K45: Forecast
C46: Test Year | D46: =TestYear -> 2021 | K46: Forecast
O47: =SUM(O39:O45) -> 0
C48: Variance Analysis | K48: Year | L48: Year-over-year | O48: Versus OEB-approved
D49: =D39 -> 2014 | K49: =D49 -> 2014
D50: 2015 | K50: =D50 -> 2015 | L50: =IF(L39=0,"",L40/L39-1) -> 
D51: =D41 -> 2016 | K51: =D51 -> 2016 | L51: =IF(L40=0,"",L41/L40-1) -> 
D52: 2017 | K52: 2017 | L52: =IF(L41=0,"",L42/L41-1) -> 
D53: 2018 | K53: 2018 | L53: =IF(L42=0,"",L43/L42-1) -> 
D54: 2019 | K54: 2019 | L54: =IF(L43=0,"",L44/L43-1) -> 
D55: 2020 | K55: 2020 | L55: =IF(K45="Forecast","",IF(L44=0,"",L45/L44-1)) ->  | M55: =IF(M44=0,"",M45/M44-1) -> 
D56: 2021 | K56: 2021 | L56: =IF(K46="Forecast","",IF(L45=0,"",L46/L45-1)) ->  | M56: =IF(M45=0,"",M46/M45-1) ->  | O56: =IF(O47=0,"",M46/O47-1) -> 
D57: Geometric Mean | K57: Geometric Mean | L57: =IF(L39=0,"",(L44/L39)^(1/($D44-$D39-1))-1) ->  | M57: =IF(M39=0,"",(M46/M39)^(1/($D46-$D39-1))-1) ->  | O57: =IF(O47=0,"",(M46/O47)^(1/(TestYear-RebaseYear-1))-1) -> 
B59: Customer Class Analysis (one for each Customer Class, excluding MicroFIT and Standby)
B61: 1 | C61: Customer Class: | K61: Is the customer class billed on consumption (kWh) or demand (kW or kVA)?
D63: Calendar Year | F63: Customers | K63: Consumption (kWh) (3) | Q63: =CONCATENATE("Consumption (kWh) per ",LEFT(F63,LEN(F63)-1)) -> Consumption (kWh) per Customer
D64: =CONCATENATE("(for ",TestYear," Cost of Service") -> (for 2021 Cost of Service | L64: Actual (Weather actual) | M64: Weather-normalized | O64: Weather-normalized | R64: =L64 -> Actual (Weather actual) | S64: =M64 -> Weather-normalized | U64: =O64 -> Weather-normalized
C65: Historical | R65: =IF(G65=0,"",L65/G65) ->  | S65: =IF(G65=0,"",M65/G65) ->  | T65: =N65 -> 0 | U65: =IF(T65="","",IF(I65=0,"",O65/I65)) -> 
C66: Historical | R66: =IF(G66=0,"",L66/G66) ->  | S66: =IF(G66=0,"",M66/G66) ->  | T66: =N66 -> 0 | U66: =IF(T66="","",IF(I66=0,"",O66/I66)) -> 
C67: Historical | R67: =IF(G67=0,"",L67/G67) ->  | S67: =IF(G67=0,"",M67/G67) ->  | T67: =N67 -> 0 | U67: =IF(T67="","",IF(I67=0,"",O67/I67)) -> 
C68: Historical | T68: =N68 -> 0 | U68: =IF(T68="","",IF(I68=0,"",O68/I68)) -> 
C69: Historical | T69: 0
C70: Historical | T70: 0
C71: Bridge Year | T71: 0
C72: Test Year | T72: 0
I73: =SUM(I65:I71) -> 0 | O73: =SUM(O65:O71) -> 0 | U73: =SUM(U65:U71) -> 0
C74: Variance Analysis | D74: Year | G74: Year-over-year | I74: Test Year Versus OEB-approved | K74: Year | L74: Year-over-year | O74: =I74 -> Test Year Versus OEB-approved | Q74: Year | R74: Year-over-year | U74: =O74 -> Test Year Versus OEB-approved
G76: =IF(G65=0,"",G66/G65-1) ->  | L76: =IF(L65=0,"",L66/L65-1) ->  | R76: =IF(R65="","",IF(R65=0,"",R66/R65-1)) -> 
G80: =IF(G69=0,"",G70/G69-1) ->  | L80: =IF(L69=0,"",L70/L69-1) ->  | M80: =IF(M69=0,"",M70/M69-1) ->  | R80: =IF(R69="","",IF(R69=0,"",R70/R69-1)) ->  | S80: =IF(S69="","",IF(S69=0,"",S70/S69-1)) -> 
G81: =IF(G70=0,"",G71/G70-1) ->  | L81: =IF(K71="Forecast","",IF(L70=0,"",L71/L70-1)) ->  | M81: =IF(M70=0,"",M71/M70-1) ->  | S81: =IF(S70="","",IF(S70=0,"",S71/S70-1)) -> 
G82: =IF(G71=0,"",G72/G71-1) ->  | I82: =IF(I73=0,"",G72/I73-1) ->  | L82: =IF(K72="Forecast","",IF(L71=0,"",L72/L71-1)) ->  | M82: =IF(M71=0,"",M72/M71-1) ->  | O82: =IF(O73=0,"",M72/O73-1) ->  | S82: =IF(S71="","",IF(S71=0,"",S72/S71-1)) ->  | U82: =IF(U73=0,"",S72/U73-1) -> 
D83: Geometric Mean | G83: =IF(G65=0,"",(G72/G65)^(1/($D72-$D65-1))-1) ->  | I83: =IF(I73=0,"",(G72/I73)^(1/(TestYear-RebaseYear-1))-1) ->  | K83: =D83 -> Geometric Mean | L83: =IF(L65=0,"",(L70/L65)^(1/($D70-$D65-1))-1) ->  | M83: =IF(M65=0,"",(M72/M65)^(1/($D72-$D65-1))-1) ->  | O83: =IF(O73=0,"",(M72/O73)^(1/(TestYear-RebaseYear-1))-1) ->  | Q83: =K83 -> Geometric Mean | R83: =IF(R65="","",IF(R65=0,"",(R70/R65)^(1/($D70-$D65-1))-1)) ->  | S83: =IF(S65="","",IF(S65=0,"",(S72/S65)^(1/($D72-$D65-1))-1)) ->  | U83: =IF(U73=0,"",(S72/U73)^(1/(TestYear-RebaseYear-1))-1) -> 
D86: Calendar Year | F86: Revenues | K86: =IF(ISBLANK(Q61),"",CONCATENATE("Demand (",Q61,")")) ->  | Q86: =CONCATENATE("Demand (",Q61,") per ",LEFT(F63,LEN(F63)-1)) -> Demand () per Customer
D87: =CONCATENATE("(for ",TestYear," Cost of Service") -> (for 2021 Cost of Service | L87: Actual (Weather actual) | M87: Weather-normalized | O87: =M87 -> Weather-normalized | R87: =L87 -> Actual (Weather actual) | S87: =M87 -> Weather-normalized | U87: =O87 -> Weather-normalized
C88: Historical | R88: =IF(G88=0,"",L88/G88) ->  | S88: =IF(G88=0,"",M88/G88) ->  | U88: =IF(T88="","",IF(I88=0,"",O88/I88)) -> 
C89: Historical
C90: Historical | R90: =IF(G90=0,"",L90/G90) ->  | S90: =IF(G90=0,"",M90/G90) ->  | U90: =IF(T90="","",IF(I90=0,"",O90/I90)) -> 
C91: Historical
C92: Historical
C93: Historical
C94: Bridge Year (Forecast)
C95: Test Year (Forecast)
I96: =SUM(I88:I94) -> 0 | O96: =SUM(O88:O94) -> 0 | U96: =SUM(U88:U94) -> 0
C97: Variance Analysis | D97: Year | G97: Year-over-year | I97: =I74 -> Test Year Versus OEB-approved | K97: Year | L97: Year-over-year | O97: =I97 -> Test Year Versus OEB-approved | Q97: Year | R97: Year-over-year | U97: =O97 -> Test Year Versus OEB-approved
G99: =IF(G88=0,"",G89/G88-1) -> 
L100: =IF(L88=0,"",L90/L88-1) ->  | M100: =IF(M88=0,"",M90/M88-1) ->  | R100: =IF(R88="","",IF(R88=0,"",R90/R88-1)) ->  | S100: =IF(S88="","",IF(S88=0,"",S90/S88-1)) -> 
L101: =IF(L90=0,"",L91/L90-1) ->  | R101: =IF(R90="","",IF(R90=0,"",R91/R90-1)) -> 
L104: =IF(K94="Forecast","",IF(L93=0,"",L94/L93-1)) ->  | M104: =IF(M93=0,"",M94/M93-1) ->  | S104: =IF(S93="","",IF(S93=0,"",S94/S93-1)) -> 
I105: =IF(I96=0,"",G95/I96-1) ->  | L105: =IF(K95="Forecast","",IF(L94=0,"",L95/L94-1)) ->  | M105: =IF(M94=0,"",M95/M94-1) ->  | O105: =IF(O96=0,"",M95/O96-1) ->  | S105: =IF(S94="","",IF(S94=0,"",S95/S94-1)) ->  | U105: =IF(U96=0,"",S95/U96-1) -> 
D106: Geometric Mean | G106: =IF(G88=0,"",(G95/G88)^(1/($D95-$D88-1))-1) ->  | I106: =IF(I96=0,"",(G95/I96)^(1/(TestYear-RebaseYear-1))-1) ->  | K106: =D106 -> Geometric Mean | L106: =IF(L88=0,"",(L93/L88)^(1/($D93-$D88-1))-1) ->  | M106: =IF(M88=0,"",(M95/M88)^(1/($D95-$D88-1))-1) ->  | O106: =IF(O96=0,"",(M95/O96)^(1/(TestYear-RebaseYear-1))-1) ->  | Q106: =K106 -> Geometric Mean | R106: =IF(R88="","",IF(R88=0,"",(R93/R88)^(1/($D93-$D88-1))-1)) ->  | S106: =IF(S88="","",IF(S88=0,"",(S95/S88)^(1/($D95-$D88-1))-1)) ->  | U106: =IF(U96=0,"",(S95/U96)^(1/(TestYear-RebaseYear-1))-1) -> 
B108: 2 | C108: Customer Class: | K108: Is the customer class billed on consumption (kWh) or demand (kW or kVA)?
D110: Calendar Year | F110: Customers | K110: Consumption (kWh) (3) | Q110: =CONCATENATE("Consumption (kWh) per ",LEFT(F110,LEN(F110)-1)) -> Consumption (kWh) per Customer
D111: =CONCATENATE("(for ",TestYear," Cost of Service") -> (for 2021 Cost of Service | L111: Actual (Weather actual) | M111: Weather-normalized | O111: Weather-normalized | R111: =L111 -> Actual (Weather actual) | S111: =M111 -> Weather-normalized | U111: =O111 -> Weather-normalized
C112: Historical | R112: =IF(G112=0,"",L112/G112) ->  | S112: =IF(G112=0,"",M112/G112) ->  | T112: =N112 -> 0 | U112: =IF(T112="","",IF(I112=0,"",O112/I112)) -> 
C113: Historical | R113: =IF(G113=0,"",L113/G113) ->  | S113: =IF(G113=0,"",M113/G113) ->  | T113: =N113 -> 0 | U113: =IF(T113="","",IF(I113=0,"",O113/I113)) -> 
C114: Historical | R114: =IF(G114=0,"",L114/G114) ->  | S114: =IF(G114=0,"",M114/G114) ->  | T114: =N114 -> 0 | U114: =IF(T114="","",IF(I114=0,"",O114/I114)) -> 
C115: Historical | T115: =N115 -> 0 | U115: =IF(T115="","",IF(I115=0,"",O115/I115)) -> 
C116: Historical | T116: 0
C117: Historical | T117: 0
C118: Bridge Year | T118: 0
C119: Test Year | Q119: =K119 -> 0 | T119: 0
I120: =SUM(I112:I118) -> 0 | O120: =SUM(O112:O118) -> 0 | U120: =SUM(U112:U118) -> 0
C121: Variance Analysis | D121: Year | G121: Year-over-year | I121: Test Year Versus OEB-approved | K121: Year | L121: Year-over-year | O121: =I121 -> Test Year Versus OEB-approved | Q121: Year | R121: Year-over-year | U121: =O121 -> Test Year Versus OEB-approved
G123: =IF(G112=0,"",G113/G112-1) ->  | L123: =IF(L112=0,"",L113/L112-1) ->  | S123: =IF(S112="","",IF(S112=0,"",S113/S112-1)) -> 
L124: =IF(L113=0,"",L114/L113-1) ->  | S124: =IF(S113="","",IF(S113=0,"",S114/S113-1)) -> 
G125: =IF(G114=0,"",G115/G114-1) ->  | L125: =IF(L114=0,"",L115/L114-1) ->  | S125: =IF(S114="","",IF(S114=0,"",S115/S114-1)) -> 
G126: =IF(G115=0,"",G116/G115-1) ->  | L126: =IF(L115=0,"",L116/L115-1) ->  | S126: =IF(S115="","",IF(S115=0,"",S116/S115-1)) -> 
G127: =IF(G116=0,"",G117/G116-1) ->  | L127: =IF(L116=0,"",L117/L116-1) ->  | S127: =IF(S116="","",IF(S116=0,"",S117/S116-1)) -> 
G128: =IF(G117=0,"",G118/G117-1) ->  | L128: =IF(K118="Forecast","",IF(L117=0,"",L118/L117-1)) ->  | M128: =IF(M117=0,"",M118/M117-1) ->  | S128: =IF(S117="","",IF(S117=0,"",S118/S117-1)) -> 
G129: =IF(G118=0,"",G119/G118-1) ->  | I129: =IF(I120=0,"",G119/I120-1) ->  | L129: =IF(K119="Forecast","",IF(L118=0,"",L119/L118-1)) ->  | M129: =IF(M118=0,"",M119/M118-1) ->  | O129: =IF(O120=0,"",M119/O120-1) ->  | S129: =IF(S118="","",IF(S118=0,"",S119/S118-1)) ->  | U129: =IF(U120=0,"",S119/U120-1) -> 
D130: Geometric Mean | G130: =IF(G112=0,"",(G119/G112)^(1/($D119-$D112-1))-1) ->  | I130: =IF(I120=0,"",(G119/I120)^(1/(TestYear-RebaseYear-1))-1) ->  | K130: =D130 -> Geometric Mean | L130: =IF(L112=0,"",(L117/L112)^(1/($D117-$D112-1))-1) ->  | M130: =IF(M112=0,"",(M119/M112)^(1/($D119-$D112-1))-1) ->  | O130: =IF(O120=0,"",(M119/O120)^(1/(TestYear-RebaseYear-1))-1) ->  | Q130: =K130 -> Geometric Mean | R130: =IF(R112="","",IF(R112=0,"",(R117/R112)^(1/($D117-$D112-1))-1)) ->  | S130: =IF(S112="","",IF(S112=0,"",(S119/S112)^(1/($D119-$D112-1))-1)) ->  | U130: =IF(U120=0,"",(S119/U120)^(1/(TestYear-RebaseYear-1))-1) -> 
D133: Calendar Year | F133: Revenues | K133: =IF(ISBLANK(Q108),"",CONCATENATE("Demand (",Q108,")")) ->  | Q133: =CONCATENATE("Demand (",Q108,") per ",LEFT(F110,LEN(F110)-1)) -> Demand () per Customer
D134: =CONCATENATE("(for ",TestYear," Cost of Service") -> (for 2021 Cost of Service | L134: Actual (Weather actual) | M134: Weather-normalized | O134: =M134 -> Weather-normalized | R134: =L134 -> Actual (Weather actual) | S134: =M134 -> Weather-normalized | U134: =O134 -> Weather-normalized
C135: Historical | R135: =IF(G135=0,"",L135/G135) ->  | S135: =IF(G135=0,"",M135/G135) ->  | U135: =IF(T135="","",IF(I135=0,"",O135/I135)) -> 
C136: Historical | R136: =IF(G136=0,"",L136/G136) ->  | S136: =IF(G136=0,"",M136/G136) ->  | U136: =IF(T136="","",IF(I136=0,"",O136/I136)) -> 
C137: Historical | R137: =IF(G137=0,"",L137/G137) ->  | S137: =IF(G137=0,"",M137/G137) ->  | U137: =IF(T137="","",IF(I137=0,"",O137/I137)) -> 
C138: Historical
C139: Historical
C140: Historical
C141: Bridge Year (Forecast)
C142: Test Year (Forecast)
I143: =SUM(I135:I141) -> 0 | O143: =SUM(O135:O141) -> 0 | U143: =SUM(U135:U141) -> 0
C144: Variance Analysis | D144: Year | G144: Year-over-year | I144: =I121 -> Test Year Versus OEB-approved | K144: Year | L144: Year-over-year | O144: =I144 -> Test Year Versus OEB-approved | Q144: Year | R144: Year-over-year | U144: =O144 -> Test Year Versus OEB-approved
G146: =IF(G136=0,"",G137/G136-1) ->  | L146: =IF(L135=0,"",L137/L135-1) ->  | S146: =IF(S135="","",IF(S135=0,"",S137/S135-1)) -> 
L147: =IF(L137=0,"",L138/L137-1) ->  | S147: =IF(S137="","",IF(S137=0,"",S138/S137-1)) -> 
L148: =IF(L138=0,"",L139/L138-1) ->  | S148: =IF(S138="","",IF(S138=0,"",S139/S138-1)) -> 
L149: =IF(L139=0,"",L140/L139-1) ->  | S149: =IF(S139="","",IF(S139=0,"",S140/S139-1)) -> 
L150: =IF(K141="Forecast","",IF(L140=0,"",L141/L140-1)) ->  | M150: =IF(M140=0,"",M141/M140-1) ->  | S150: =IF(S140="","",IF(S140=0,"",S141/S140-1)) -> 
I151: =IF(I143=0,"",G142/I143-1) ->  | L151: =IF(K142="Forecast","",IF(L141=0,"",L142/L141-1)) ->  | M151: =IF(M141=0,"",M142/M141-1) ->  | O151: =IF(O143=0,"",M142/O143-1) ->  | S151: =IF(S141="","",IF(S141=0,"",S142/S141-1)) ->  | U151: =IF(U143=0,"",S142/U143-1) -> 
G152: =IF(G135=0,"",(G142/G135)^(1/($D142-$D135-1))-1) ->  | I152: =IF(I143=0,"",(G142/I143)^(1/(TestYear-RebaseYear-1))-1) ->  | L152: =IF(L135=0,"",(L140/L135)^(1/($D140-$D135-1))-1) ->  | M152: =IF(M135=0,"",(M142/M135)^(1/($D142-$D135-1))-1) ->  | O152: =IF(O143=0,"",(M142/O143)^(1/(TestYear-RebaseYear-1))-1) ->  | Q152: =K152 -> 0 | R152: =IF(R135="","",IF(R135=0,"",(R140/R135)^(1/($D140-$D135-1))-1)) ->  | S152: =IF(S135="","",IF(S135=0,"",(S142/S135)^(1/($D142-$D135-1))-1)) ->  | U152: =IF(U143=0,"",(S142/U143)^(1/(TestYear-RebaseYear-1))-1) -> 
B154: 3 | C154: Customer Class: | K154: Is the customer class billed on consumption (kWh) or demand (kW or kVA)?
D156: Calendar Year | F156: Customers | K156: Consumption (kWh) (3) | Q156: =CONCATENATE("Consumption (kWh) per ",LEFT(F156,LEN(F156)-1)) -> Consumption (kWh) per Customer
D157: =CONCATENATE("(for ",TestYear," Cost of Service") -> (for 2021 Cost of Service | L157: Actual (Weather actual) | M157: Weather-normalized | O157: Weather-normalized | R157: =L157 -> Actual (Weather actual) | S157: =M157 -> Weather-normalized | U157: =O157 -> Weather-normalized
C158: Historical | R158: =IF(G158=0,"",L158/G158) ->  | S158: =IF(G158=0,"",M158/G158) ->  | T158: =N158 -> 0 | U158: =IF(T158="","",IF(I158=0,"",O158/I158)) -> 
C159: Historical | R159: =IF(G159=0,"",L159/G159) ->  | S159: =IF(G159=0,"",M159/G159) ->  | T159: =N159 -> 0 | U159: =IF(T159="","",IF(I159=0,"",O159/I159)) -> 
C160: Historical | R160: =IF(G160=0,"",L160/G160) ->  | S160: =IF(G160=0,"",M160/G160) ->  | T160: =N160 -> 0 | U160: =IF(T160="","",IF(I160=0,"",O160/I160)) -> 
C161: Historical | T161: =N161 -> 0 | U161: =IF(T161="","",IF(I161=0,"",O161/I161)) -> 
C162: Historical | T162: 0
C163: Historical | T163: 0
C164: Bridge Year | T164: 0
C165: Test Year | T165: 0
I166: =SUM(I158:I164) -> 0 | O166: =SUM(O158:O164) -> 0 | U166: =SUM(U158:U164) -> 0
C167: Variance Analysis | D167: Year | G167: Year-over-year | I167: Test Year Versus OEB-approved | K167: Year | L167: Year-over-year | O167: =I167 -> Test Year Versus OEB-approved | Q167: Year | R167: Year-over-year | U167: =O167 -> Test Year Versus OEB-approved
D168: =D158 -> 0 | K168: =D168 -> 0
G169: =IF(G158=0,"",G159/G158-1) ->  | L169: =IF(L158=0,"",L159/L158-1) ->  | S169: =IF(S158="","",IF(S158=0,"",S159/S158-1)) -> 
L170: =IF(L159=0,"",L160/L159-1) ->  | S170: =IF(S159="","",IF(S159=0,"",S160/S159-1)) -> 
G171: =IF(G160=0,"",G161/G160-1) ->  | L171: =IF(L160=0,"",L161/L160-1) ->  | S171: =IF(S160="","",IF(S160=0,"",S161/S160-1)) -> 
G172: =IF(G161=0,"",G162/G161-1) ->  | L172: =IF(L161=0,"",L162/L161-1) ->  | S172: =IF(S161="","",IF(S161=0,"",S162/S161-1)) -> 
G173: =IF(G162=0,"",G163/G162-1) ->  | L173: =IF(L162=0,"",L163/L162-1) ->  | S173: =IF(S162="","",IF(S162=0,"",S163/S162-1)) -> 
G174: =IF(G163=0,"",G164/G163-1) ->  | L174: =IF(K164="Forecast","",IF(L163=0,"",L164/L163-1)) ->  | M174: =IF(M163=0,"",M164/M163-1) ->  | S174: =IF(S163="","",IF(S163=0,"",S164/S163-1)) -> 
G175: =IF(G164=0,"",G165/G164-1) ->  | I175: =IF(I166=0,"",G165/I166-1) ->  | L175: =IF(K165="Forecast","",IF(L164=0,"",L165/L164-1)) ->  | M175: =IF(M164=0,"",M165/M164-1) ->  | O175: =IF(O166=0,"",M165/O166-1) ->  | S175: =IF(S164="","",IF(S164=0,"",S165/S164-1)) ->  | U175: =IF(U166=0,"",S165/U166-1) -> 
G176: =IF(G158=0,"",(G165/G158)^(1/($D165-$D158-1))-1) ->  | I176: =IF(I166=0,"",(G165/I166)^(1/(TestYear-RebaseYear-1))-1) ->  | L176: =IF(L158=0,"",(L163/L158)^(1/($D163-$D158-1))-1) ->  | M176: =IF(M158=0,"",(M165/M158)^(1/($D165-$D158-1))-1) ->  | O176: =IF(O166=0,"",(M165/O166)^(1/(TestYear-RebaseYear-1))-1) ->  | S176: =IF(S158="","",IF(S158=0,"",(S165/S158)^(1/($D165-$D158-1))-1)) ->  | U176: =IF(U166=0,"",(S165/U166)^(1/(TestYear-RebaseYear-1))-1) -> 
D179: Calendar Year | F179: Revenues | K179: =IF(ISBLANK(Q154),"",CONCATENATE("Demand (",Q154,")")) ->  | Q179: =CONCATENATE("Demand (",Q154,") per ",LEFT(F156,LEN(F156)-1)) -> Demand () per Customer
D180: =CONCATENATE("(for ",TestYear," Cost of Service") -> (for 2021 Cost of Service | L180: Actual (Weather actual) | M180: Weather-normalized | O180: =M180 -> Weather-normalized | R180: =L180 -> Actual (Weather actual) | S180: =M180 -> Weather-normalized | U180: =O180 -> Weather-normalized
C181: Historical | R181: =IF(G181=0,"",L181/G181) ->  | S181: =IF(G181=0,"",M181/G181) ->  | U181: =IF(T181="","",IF(I181=0,"",O181/I181)) -> 
C182: Historical
C183: Historical | R183: =IF(G183=0,"",L183/G183) ->  | S183: =IF(G183=0,"",M183/G183) ->  | U183: =IF(T183="","",IF(I183=0,"",O183/I183)) -> 
C184: Historical
C185: Historical
C186: Historical
C187: Bridge Year (Forecast)
C188: Test Year (Forecast)
I189: =SUM(I181:I187) -> 0 | O189: =SUM(O181:O187) -> 0 | U189: =SUM(U181:U187) -> 0
C190: Variance Analysis | D190: Year | G190: Year-over-year | I190: =I167 -> Test Year Versus OEB-approved | K190: Year | L190: Year-over-year | O190: =I190 -> Test Year Versus OEB-approved | Q190: Year | R190: Year-over-year | U190: =O190 -> Test Year Versus OEB-approved
G192: =IF(G181=0,"",G182/G181-1) -> 
M193: =IF(M181=0,"",M183/M181-1) ->  | S193: =IF(S181="","",IF(S181=0,"",S183/S181-1)) -> 
M194: =IF(M183=0,"",M184/M183-1) ->  | S194: =IF(S183="","",IF(S183=0,"",S184/S183-1)) -> 
G195: =IF(G184=0,"",G185/G184-1) ->  | M195: =IF(M184=0,"",M185/M184-1) ->  | S195: =IF(S184="","",IF(S184=0,"",S185/S184-1)) -> 
G196: =IF(G185=0,"",G186/G185-1) ->  | M196: =IF(M185=0,"",M186/M185-1) ->  | S196: =IF(S185="","",IF(S185=0,"",S186/S185-1)) -> 
G197: =IF(G186=0,"",G187/G186-1) ->  | M197: =IF(M186=0,"",M187/M186-1) ->  | S197: =IF(S186="","",IF(S186=0,"",S187/S186-1)) -> 
G198: =IF(G187=0,"",G188/G187-1) ->  | I198: =IF(I189=0,"",G188/I189-1) ->  | M198: =IF(M187=0,"",M188/M187-1) ->  | O198: =IF(O189=0,"",M188/O189-1) ->  | S198: =IF(S187="","",IF(S187=0,"",S188/S187-1)) ->  | U198: =IF(U189=0,"",S188/U189-1) -> 
G199: =IF(G181=0,"",(G188/G181)^(1/($D188-$D181-1))-1) ->  | I199: =IF(I189=0,"",(G188/I189)^(1/(TestYear-RebaseYear-1))-1) ->  | M199: =IF(M181=0,"",(M188/M181)^(1/($D188-$D181-1))-1) ->  | O199: =IF(O189=0,"",(M188/O189)^(1/(TestYear-RebaseYear-1))-1) ->  | S199: =IF(S181="","",IF(S181=0,"",(S188/S181)^(1/($D188-$D181-1))-1)) ->  | U199: =IF(U189=0,"",(S188/U189)^(1/(TestYear-RebaseYear-1))-1) -> 
B201: 4 | C201: Customer Class: | K201: Is the customer class billed on consumption (kWh) or demand (kW or kVA)?
D203: Calendar Year | F203: Connections | K203: Consumption (kWh) (3) | Q203: =CONCATENATE("Consumption (kWh) per ",LEFT(F203,LEN(F203)-1)) -> Consumption (kWh) per Connection
D204: =CONCATENATE("(for ",TestYear," Cost of Service") -> (for 2021 Cost of Service | L204: Actual (Weather actual) | M204: Weather-normalized | O204: Weather-normalized | R204: =L204 -> Actual (Weather actual) | S204: =M204 -> Weather-normalized | U204: =O204 -> Weather-normalized
C205: Historical | R205: =IF(G205=0,"",L205/G205) ->  | S205: =IF(G205=0,"",M205/G205) ->  | U205: =IF(T205="","",IF(I205=0,"",O205/I205)) -> 
C206: Historical | R206: =IF(G206=0,"",L206/G206) ->  | S206: =IF(G206=0,"",M206/G206) ->  | U206: =IF(T206="","",IF(I206=0,"",O206/I206)) -> 
C207: Historical | R207: =IF(G207=0,"",L207/G207) ->  | S207: =IF(G207=0,"",M207/G207) ->  | U207: =IF(T207="","",IF(I207=0,"",O207/I207)) -> 
C208: Historical | U208: =IF(T208="","",IF(I208=0,"",O208/I208)) -> 
C209: Historical
C210: Historical
C211: Bridge Year
C212: Test Year
I213: =SUM(I205:I211) -> 0 | O213: =SUM(O205:O211) -> 0 | U213: =SUM(U205:U211) -> 0
C214: Variance Analysis | D214: Year | G214: Year-over-year | I214: Test Year Versus OEB-approved | K214: Year | L214: Year-over-year | O214: =I214 -> Test Year Versus OEB-approved | Q214: Year | R214: Year-over-year | U214: =O214 -> Test Year Versus OEB-approved
G216: =IF(G205=0,"",G206/G205-1) ->  | L216: =IF(L205=0,"",L206/L205-1) ->  | S216: =IF(S205="","",IF(S205=0,"",S206/S205-1)) -> 
L217: =IF(L206=0,"",L207/L206-1) ->  | S217: =IF(S206="","",IF(S206=0,"",S207/S206-1)) -> 
G218: =IF(G207=0,"",G208/G207-1) ->  | L218: =IF(L207=0,"",L208/L207-1) ->  | S218: =IF(S207="","",IF(S207=0,"",S208/S207-1)) -> 
G219: =IF(G208=0,"",G209/G208-1) ->  | L219: =IF(L208=0,"",L209/L208-1) ->  | S219: =IF(S208="","",IF(S208=0,"",S209/S208-1)) -> 
G220: =IF(G209=0,"",G210/G209-1) ->  | L220: =IF(L209=0,"",L210/L209-1) ->  | S220: =IF(S209="","",IF(S209=0,"",S210/S209-1)) -> 
G221: =IF(G210=0,"",G211/G210-1) ->  | L221: =IF(K211="Forecast","",IF(L210=0,"",L211/L210-1)) ->  | M221: =IF(M210=0,"",M211/M210-1) ->  | S221: =IF(S210="","",IF(S210=0,"",S211/S210-1)) -> 
G222: =IF(G211=0,"",G212/G211-1) ->  | I222: =IF(I213=0,"",G212/I213-1) ->  | L222: =IF(K212="Forecast","",IF(L211=0,"",L212/L211-1)) ->  | M222: =IF(M211=0,"",M212/M211-1) ->  | O222: =IF(O213=0,"",M212/O213-1) ->  | S222: =IF(S211="","",IF(S211=0,"",S212/S211-1)) ->  | U222: =IF(U213=0,"",S212/U213-1) -> 
G223: =IF(G205=0,"",(G212/G205)^(1/($D212-$D205-1))-1) ->  | I223: =IF(I213=0,"",(G212/I213)^(1/(TestYear-RebaseYear-1))-1) ->  | L223: =IF(L205=0,"",(L210/L205)^(1/($D210-$D205-1))-1) ->  | M223: =IF(M205=0,"",(M212/M205)^(1/($D212-$D205-1))-1) ->  | O223: =IF(O213=0,"",(M212/O213)^(1/(TestYear-RebaseYear-1))-1) ->  | S223: =IF(S205="","",IF(S205=0,"",(S212/S205)^(1/($D212-$D205-1))-1)) ->  | U223: =IF(U213=0,"",(S212/U213)^(1/(TestYear-RebaseYear-1))-1) -> 
D226: Calendar Year | F226: Revenues | K226: =IF(ISBLANK(Q201),"",CONCATENATE("Demand (",Q201,")")) ->  | Q226: =CONCATENATE("Demand (",Q201,") per ",LEFT(F203,LEN(F203)-1)) -> Demand () per Connection
D227: =CONCATENATE("(for ",TestYear," Cost of Service") -> (for 2021 Cost of Service | L227: Actual (Weather actual) | M227: Weather-normalized | O227: =M227 -> Weather-normalized | R227: =L227 -> Actual (Weather actual) | S227: =M227 -> Weather-normalized | U227: =O227 -> Weather-normalized
C228: Historical | R228: =IF(G228=0,"",L228/G228) ->  | S228: =IF(G228=0,"",M228/G228) ->  | U228: =IF(T228="","",IF(I228=0,"",O228/I228)) -> 
C229: Historical
C230: Historical | R230: =IF(G230=0,"",L230/G230) ->  | S230: =IF(G230=0,"",M230/G230) ->  | U230: =IF(T230="","",IF(I230=0,"",O230/I230)) -> 
C231: Historical
C232: Historical
C233: Historical
C234: Bridge Year (Forecast)
C235: Test Year (Forecast)
I236: =SUM(I228:I234) -> 0 | O236: =SUM(O228:O234) -> 0 | U236: =SUM(U228:U234) -> 0
C237: Variance Analysis | D237: Year | G237: Year-over-year | I237: =I214 -> Test Year Versus OEB-approved | K237: Year | L237: Year-over-year | O237: =I237 -> Test Year Versus OEB-approved | Q237: Year | R237: Year-over-year | U237: =O237 -> Test Year Versus OEB-approved
G239: =IF(G228=0,"",G229/G228-1) -> 
L240: =IF(L228=0,"",L230/L228-1) ->  | S240: =IF(S228="","",IF(S228=0,"",S230/S228-1)) -> 
L241: =IF(L230=0,"",L231/L230-1) ->  | S241: =IF(S230="","",IF(S230=0,"",S231/S230-1)) -> 
L242: =IF(L231=0,"",L232/L231-1) ->  | S242: =IF(S231="","",IF(S231=0,"",S232/S231-1)) -> 
L243: =IF(L232=0,"",L233/L232-1) ->  | S243: =IF(S232="","",IF(S232=0,"",S233/S232-1)) -> 
... 197 more rows

Sheet App.2-JA_OM&A_Summary_Analys
K1: File Number: | L1: =EBNUMBER -> EB-2020-0007 | M1: ='LDC Info'!$E$28 -> 2014 | N1: Last Rebasing Year | O1: Column
K2: Exhibit: | M2: =TestYear -> 2021 | N2: 2010 | O2: B | P2: ae
K3: Tab: | M3: ='LDC Info'!$E$28 -> 2014 | N3: 2011 | O3: D | P3: ah
A4: TO BE UPDATED AT THE DRAFT RATE ORDER STAGE | K4: Schedule: | N4: 2012 | O4: G | P4: ak
K5: Page: | N5: 2013 | O5: J | P5: an
N6: 2014 | O6: M | P6: aq
K7: Date: | N7: 2015 | O7: P | P7: at
N8: 2016 | O8: S | P8: aw
A9: Appendix 2-JA | N9: 2017 | O9: V | P9: az
A10: Summary of Recoverable OM&A Expenses
C11: =RebaseYear -> 2014 | D11: =TestYear-8 -> 2013 | E11: =TestYear-7 -> 2014 | F11: =TestYear-6 -> 2015 | G11: =TestYear-5 -> 2016 | H11: =TestYear-4 -> 2017 | I11: =TestYear-3 -> 2018 | J11: =TestYear-2 -> 2019 | K11: =BridgeYear -> 2020 | L11: =TestYear -> 2021 | P11: =C11 -> 2014 | S11: =D11 -> 2013 | T11: =E11 -> 2014 | U11: 2015 | V11: 2016 | W11: 2017 | X11: 2018 | Y11: 2019 | Z11: 2020 | AB11: =L11 -> 2021
B12: =CONCATENATE(C11," ",IF($M1=C11,"Last Rebasing Year ",""),"OEB Approved") -> 2014 Last Rebasing Year OEB Approved | C12: =CONCATENATE(C11," ",IF($M1=C11,"Last Rebasing Year ",""),"Actuals") -> 2014 Last Rebasing Year Actuals | D12: 2013 Actuals | E12: 2014 Last Rebasing Year Actuals | F12: 2015 Actuals | G12: 2016 Actuals | H12: 2017 Actuals | I12: 2018 Actuals | J12: 2019 Actuals | K12: =BridgeYear & " Bridge Year" -> 2020 Bridge Year | L12: =TestYear & " Test Year" -> 2021 Test Year | P12: =CONCATENATE(IF($M1=P11,"Last Rebasing Year ",""),,P11," OEB Approved") -> Last Rebasing Year 2014 OEB Approved | Q12: =CONCATENATE(IF($M1=P11,"Last Rebasing Year ",""),P11," Actuals") -> Last Rebasing Year 2014 Actuals | R12: =CONCATENATE("Variance ",P11," OEB Approved - ",P11," Actuals") -> Variance 2014 OEB Approved - 2014 Actuals | S12: =CONCATENATE(IF($M1=S11,"Last Rebasing Year ",""),S11," Actuals") -> 2013 Actuals | T12: Last Rebasing Year 2014 Actuals | U12: 2015 Actuals | V12: 2016 Actuals | W12: 2017 Actuals | X12: 2018 Actuals | Y12: 2019 Actuals | Z12: =CONCATENATE(Z11," Bridge Year") -> 2020 Bridge Year | AA12: =CONCATENATE("Variance ",Z11," Bridge vs. ",Z11-1," Actuals") -> Variance 2020 Bridge vs. 2019 Actuals | AB12: =CONCATENATE(AB11," Test Year") -> 2021 Test Year | AC12: =CONCATENATE("Variance ",AB11," Test vs. ",AB11-1," Bridge") -> Variance 2021 Test vs. 2020 Bridge
A13: Reporting Basis | O13: Operations | P13: =B14 -> 0 | Q13: =C14 -> 0 | R13: =P13-Q13 -> 0 | S13: =D14 -> 0 | T13: 0 | U13: 0 | V13: 0 | W13: 0 | X13: 0 | Y13: 0 | Z13: 0 | AA13: =Z13-Y13 -> 0 | AB13: =L14 -> 0 | AC13: =AB13-Z13 -> 0
A14: Operations | O14: Maintenance | P14: =B15 -> 0 | Q14: =C15 -> 0 | R14: 0 | S14: 0 | T14: 0 | U14: 0 | V14: 0 | W14: 0 | X14: 0 | Y14: 0 | Z14: 0 | AA14: 0 | AB14: =L15 -> 0 | AC14: =AB14-Z14 -> 0
A15: Maintenance | O15: Billing and Collecting | P15: =B19 -> 0 | Q15: 0 | R15: 0 | S15: =D19 -> 0 | T15: 0 | U15: 0 | V15: 0 | W15: 0 | X15: 0 | Y15: 0 | Z15: 0 | AA15: 0 | AB15: =L19 -> 0 | AC15: 0
A16: SubTotal | B16: =SUM(B14:B15) -> 0 | C16: =SUM(C14:C15) -> 0 | D16: 0 | E16: 0 | F16: 0 | G16: =SUM(G14:G15) -> 0 | H16: 0 | I16: 0 | J16: 0 | K16: 0 | L16: 0 | O16: Community Relations | P16: 0 | Q16: 0 | R16: 0 | S16: 0 | T16: 0 | U16: 0 | V16: 0 | W16: 0 | X16: 0 | Y16: 0 | Z16: 0 | AA16: 0 | AB16: =L20 -> 0 | AC16: =AB16-Z16 -> 0
A17: %Change (year over year) | C17: =IF(ISERROR((C16-B16)/B16), "", (C16-B16)/B16) ->  | D17: =IF(ISERROR((D16-HLOOKUP(D11-1,$A$11:C26,6,FALSE))/HLOOKUP(D11-1,$A$11:C26,6,FALSE)), "", (D16-HLOOKUP(D11-1,$A$11:C26,6,FALSE))/HLOOKUP(D11-1,$A$11:C26,6,FALSE)) ->  | E17: =IF(ISERROR((E16-HLOOKUP(E11-1,$A$11:D26,6,FALSE))/HLOOKUP(E11-1,$A$11:D26,6,FALSE)), "", (E16-HLOOKUP(E11-1,$A$11:D26,6,FALSE))/HLOOKUP(E11-1,$A$11:D26,6,FALSE)) ->  | F17: =IF(ISERROR((F16-HLOOKUP(F11-1,$A$11:E26,6,FALSE))/HLOOKUP(F11-1,$A$11:E26,6,FALSE)), "", (F16-HLOOKUP(F11-1,$A$11:E26,6,FALSE))/HLOOKUP(F11-1,$A$11:E26,6,FALSE)) ->  | G17: =IF(ISERROR((G16-HLOOKUP(G11-1,$A$11:F26,6,FALSE))/HLOOKUP(G11-1,$A$11:F26,6,FALSE)), "", (G16-HLOOKUP(G11-1,$A$11:F26,6,FALSE))/HLOOKUP(G11-1,$A$11:F26,6,FALSE)) ->  | H17: =IF(ISERROR((H16-HLOOKUP(H11-1,$A$11:G26,6,FALSE))/HLOOKUP(H11-1,$A$11:G26,6,FALSE)), "", (H16-HLOOKUP(H11-1,$A$11:G26,6,FALSE))/HLOOKUP(H11-1,$A$11:G26,6,FALSE)) ->  | I17: =IF(ISERROR((I16-HLOOKUP(I11-1,$A$11:H26,6,FALSE))/HLOOKUP(I11-1,$A$11:H26,6,FALSE)), "", (I16-HLOOKUP(I11-1,$A$11:H26,6,FALSE))/HLOOKUP(I11-1,$A$11:H26,6,FALSE)) ->  | J17: =IF(ISERROR((J16-HLOOKUP(J11-1,$A$11:I26,6,FALSE))/HLOOKUP(J11-1,$A$11:I26,6,FALSE)), "", (J16-HLOOKUP(J11-1,$A$11:I26,6,FALSE))/HLOOKUP(J11-1,$A$11:I26,6,FALSE)) ->  | K17: =IF(ISERROR((K16-HLOOKUP(K11-1,$A$11:J26,6,FALSE))/HLOOKUP(K11-1,$A$11:J26,6,FALSE)), "", (K16-HLOOKUP(K11-1,$A$11:J26,6,FALSE))/HLOOKUP(K11-1,$A$11:J26,6,FALSE)) ->  | L17: =IF(ISERROR((L16-K16)/K16), "", (L16-K16)/K16) ->  | O17: Administrative and General | P17: 0 | Q17: 0 | R17: 0 | S17: 0 | T17: 0 | U17: 0 | V17: 0 | W17: 0 | X17: 0 | Y17: 0 | Z17: 0 | AA17: 0 | AB17: =L21 -> 0 | AC17: 0
A18: %Change (Test Year vs Last Rebasing Year - Actual) | L18: =IF(ISERROR((L16-C16)/C16), "", (L16-C16)/C16) ->  | O18: Total OM&A Expenses | P18: =B25 -> 0 | Q18: =C25 -> 0 | R18: 0 | S18: 0 | T18: 0 | U18: 0 | V18: 0 | W18: 0 | X18: 0 | Y18: 0 | Z18: 0 | AA18: 0 | AB18: =L25 -> 0 | AC18: 0
A19: Billing and Collecting | O19: Adjustments for Total non-recoverable items3
A20: Community Relations | O20: Total Recoverable OM&A Expenses | P20: =P18-P19 -> 0 | Q20: 0 | R20: 0 | S20: =IF(S11<=RebaseYear, 0, S18-S19) -> 0 | T20: 0 | U20: 0 | V20: 0 | W20: 0 | X20: 0 | Y20: 0 | Z20: 0 | AA20: =AA18-AA19 -> 0 | AB20: 0 | AC20: 0
A21: Administrative and General | O21: Variance from previous year | S21: =IF(S11<=RebaseYear, 0, S20-Q20) -> 0 | T21: =IF(T11<=RebaseYear, 0, IF(T11=RebaseYear+1, T20-$Q$20, T20-S20)) -> 0 | U21: 0 | V21: 0 | W21: 0 | X21: 0 | Y21: 0 | Z21: 0 | AB21: =AB20-Z20 -> 0
A22: SubTotal | B22: =SUM(B19:B21) -> 0 | C22: =SUM(C19:C21) -> 0 | D22: 0 | E22: 0 | F22: 0 | G22: 0 | H22: 0 | I22: 0 | J22: =SUM(J19:J21) -> 0 | K22: =SUM(K19:K21) -> 0 | L22: =SUM(L19:L21) -> 0 | O22: Percent change (year over year) | S22: =IF(S11<=RebaseYear, 0, IF(ISERROR(S21/Q20), "", S21/Q20)) -> 0 | T22: =IF(S11<=RebaseYear, 0, IF(T11=RebaseYear+1, IF(ISERROR(T21/$Q$20), "", T21/$Q$20),IF(ISERROR(T21/S20), "", T21/S20))) -> 0 | U22: 0 | AB22: =IF(ISERROR(AB21/Z20), "", AB21/Z20) -> 
A23: %Change (year over year) | C23: =IF(ISERROR((C22-B22)/B22), "", (C22-B22)/B22) ->  | D23: =IF(ISERROR((D22-HLOOKUP(D11-1,$A$11:C26,12,FALSE))/HLOOKUP(D11-1,$A$11:C26,12,FALSE)), "", (D22-HLOOKUP(D11-1,$A$11:C26,12,FALSE))/HLOOKUP(D11-1,$A$11:C26,12,FALSE)) ->  | E23: =IF(ISERROR((E22-HLOOKUP(E11-1,$A$11:D26,12,FALSE))/HLOOKUP(E11-1,$A$11:D26,12,FALSE)), "", (E22-HLOOKUP(E11-1,$A$11:D26,12,FALSE))/HLOOKUP(E11-1,$A$11:D26,12,FALSE)) ->  | F23: =IF(ISERROR((F22-HLOOKUP(F11-1,$A$11:E26,12,FALSE))/HLOOKUP(F11-1,$A$11:E26,12,FALSE)), "", (F22-HLOOKUP(F11-1,$A$11:E26,12,FALSE))/HLOOKUP(F11-1,$A$11:E26,12,FALSE)) ->  | G23: =IF(ISERROR((G22-HLOOKUP(G11-1,$A$11:F26,12,FALSE))/HLOOKUP(G11-1,$A$11:F26,12,FALSE)), "", (G22-HLOOKUP(G11-1,$A$11:F26,12,FALSE))/HLOOKUP(G11-1,$A$11:F26,12,FALSE)) ->  | H23: =IF(ISERROR((H22-HLOOKUP(H11-1,$A$11:G26,12,FALSE))/HLOOKUP(H11-1,$A$11:G26,12,FALSE)), "", (H22-HLOOKUP(H11-1,$A$11:G26,12,FALSE))/HLOOKUP(H11-1,$A$11:G26,12,FALSE)) ->  | I23: =IF(ISERROR((I22-HLOOKUP(I11-1,$A$11:H26,12,FALSE))/HLOOKUP(I11-1,$A$11:H26,12,FALSE)), "", (I22-HLOOKUP(I11-1,$A$11:H26,12,FALSE))/HLOOKUP(I11-1,$A$11:H26,12,FALSE)) ->  | J23: =IF(ISERROR((J22-HLOOKUP(J11-1,$A$11:I26,12,FALSE))/HLOOKUP(J11-1,$A$11:I26,12,FALSE)), "", (J22-HLOOKUP(J11-1,$A$11:I26,12,FALSE))/HLOOKUP(J11-1,$A$11:I26,12,FALSE)) ->  | K23: =IF(ISERROR((K22-HLOOKUP(K11-1,$A$11:J26,12,FALSE))/HLOOKUP(K11-1,$A$11:J26,12,FALSE)), "", (K22-HLOOKUP(K11-1,$A$11:J26,12,FALSE))/HLOOKUP(K11-1,$A$11:J26,12,FALSE)) ->  | L23: =IF(ISERROR((L22-K22)/K22), "", (L22-K22)/K22) ->  | O23: Percent Change: Test year vs. Most Current Actual | AB23: =IF(ISERROR((AB20-Y20)/Y20), "", (AB20-Y20)/Y20) -> 
A24: %Change (Test Year vs Last Rebasing Year - Actual) | L24: =IF(ISERROR((L22-C22)/C22), "", (L22-C22)/C22) ->  | O24: Simple average of % variance for all years | AB24: =IF(ISERROR(AVERAGEIF(S22:AB22,"<>0")),0,AVERAGEIF(S22:AB22,"<>0")) -> 0
A25: Total | B25: =SUM(B22,B16) -> 0 | C25: =SUM(C22,C16) -> 0 | D25: 0 | E25: 0 | F25: 0 | G25: =SUM(G22,G16) -> 0 | H25: =SUM(H22,H16) -> 0 | I25: 0 | J25: =SUM(J22,J16) -> 0 | K25: =SUM(K22,K16) -> 0 | L25: =SUM(L22,L16) -> 0 | O25: Compound Annual Growth Rate for all years | AC25: =IF((AB20-Q20)=0, "", (AB20/Q20)^(1/(TestYear-RebaseYear))-1) -> 
A26: %Change (year over year) | C26: =IF(ISERROR((C25-B25)/B25), "", (C25-B25)/B25) ->  | D26: =IF(ISERROR((D25-HLOOKUP(D11-1,$A$11:C26,15,FALSE))/HLOOKUP(D11-1,$A$11:C26,15,FALSE)), "", (D25-HLOOKUP(D11-1,$A$11:C26,15,FALSE))/HLOOKUP(D11-1,$A$11:C26,15,FALSE)) ->  | E26: =IF(ISERROR((E25-HLOOKUP(E11-1,$A$11:D26,15,FALSE))/HLOOKUP(E11-1,$A$11:D26,15,FALSE)), "", (E25-HLOOKUP(E11-1,$A$11:D26,15,FALSE))/HLOOKUP(E11-1,$A$11:D26,15,FALSE)) ->  | F26: =IF(ISERROR((F25-HLOOKUP(F11-1,$A$11:E26,15,FALSE))/HLOOKUP(F11-1,$A$11:E26,15,FALSE)), "", (F25-HLOOKUP(F11-1,$A$11:E26,15,FALSE))/HLOOKUP(F11-1,$A$11:E26,15,FALSE)) ->  | G26: =IF(ISERROR((G25-HLOOKUP(G11-1,$A$11:F26,15,FALSE))/HLOOKUP(G11-1,$A$11:F26,15,FALSE)), "", (G25-HLOOKUP(G11-1,$A$11:F26,15,FALSE))/HLOOKUP(G11-1,$A$11:F26,15,FALSE)) ->  | H26: =IF(ISERROR((H25-HLOOKUP(H11-1,$A$11:G26,15,FALSE))/HLOOKUP(H11-1,$A$11:G26,15,FALSE)), "", (H25-HLOOKUP(H11-1,$A$11:G26,15,FALSE))/HLOOKUP(H11-1,$A$11:G26,15,FALSE)) ->  | I26: =IF(ISERROR((I25-HLOOKUP(I11-1,$A$11:H26,15,FALSE))/HLOOKUP(I11-1,$A$11:H26,15,FALSE)), "", (I25-HLOOKUP(I11-1,$A$11:H26,15,FALSE))/HLOOKUP(I11-1,$A$11:H26,15,FALSE)) ->  | J26: =IF(ISERROR((J25-HLOOKUP(J11-1,$A$11:I26,15,FALSE))/HLOOKUP(J11-1,$A$11:I26,15,FALSE)), "", (J25-HLOOKUP(J11-1,$A$11:I26,15,FALSE))/HLOOKUP(J11-1,$A$11:I26,15,FALSE)) ->  | K26: =IF(ISERROR((K25-HLOOKUP(K11-1,$A$11:J26,15,FALSE))/HLOOKUP(K11-1,$A$11:J26,15,FALSE)), "", (K25-HLOOKUP(K11-1,$A$11:J26,15,FALSE))/HLOOKUP(K11-1,$A$11:J26,15,FALSE)) ->  | L26: =IF(ISERROR((L25-K25)/K25), "", (L25-K25)/K25) ->  | O26: ="Compound Growth Rate (" & TestYear - 2 & " vs. " & 'LDC Info'!E28 & " Actuals)" -> Compound Growth Rate (2019 vs. 2014 Actuals) | AB26: =IF((Y20-Q20)=0, "", (Y20/Q20)^(1/(TestYear-2-RebaseYear))-1) -> 
B29: =B12 -> 2014 Last Rebasing Year OEB Approved | C29: 2014 Last Rebasing Year Actuals | D29: 2013 Actuals | E29: 2014 Last Rebasing Year Actuals | F29: 2015 Actuals | G29: 2016 Actuals | H29: 2017 Actuals | I29: 2018 Actuals | J29: 2019 Actuals | K29: 2020 Bridge Year | L29: 2021 Test Year
A30: Operations | B30: =B14 -> 0 | C30: 0 | D30: 0 | E30: 0 | F30: 0 | G30: 0 | H30: 0 | I30: 0 | J30: 0 | K30: 0 | L30: 0
A31: Maintenance | B31: =B15 -> 0 | C31: 0 | D31: 0 | E31: 0 | F31: 0 | G31: 0 | H31: 0 | I31: 0 | J31: 0 | K31: 0 | L31: 0
A32: Billing and Collecting | B32: =B19 -> 0 | C32: 0 | D32: 0 | E32: 0 | F32: 0 | G32: 0 | H32: 0 | I32: 0 | J32: 0 | K32: 0 | L32: 0
A33: Community Relations | B33: =B20 -> 0 | C33: 0 | D33: 0 | E33: 0 | F33: 0 | G33: 0 | H33: 0 | I33: 0 | J33: 0 | K33: 0 | L33: 0
A34: Administrative and General | B34: =B21 -> 0 | C34: 0 | D34: 0 | E34: 0 | F34: 0 | G34: 0 | H34: 0 | I34: 0 | J34: 0 | K34: 0 | L34: 0
A35: Total | B35: =SUM(B30:B34) -> 0 | C35: =SUM(C30:C34) -> 0 | D35: =SUM(D30:D34) -> 0 | E35: =SUM(E30:E34) -> 0 | F35: 0 | G35: 0 | H35: 0 | I35: 0 | J35: 0 | K35: 0 | L35: 0
A36: %Change (year over year) | C36: =IF(ISERROR((C35-B35)/B35), "", (C35-B35)/B35) ->  | D36: =IF(R11<=RebaseYear,"",IF(R11=RebaseYear+1,IF(ISERROR((D35-$C$35)/$C$35),"",(D35-$C$35)/$C$35),IF(ISERROR((D35-C35)/C35),"",(D35-C35)/C35))) ->  | E36: =IF(S11<=RebaseYear,"",IF(S11=RebaseYear+1,IF(ISERROR((E35-$C$35)/$C$35),"",(E35-$C$35)/$C$35),IF(ISERROR((E35-D35)/D35),"",(E35-D35)/D35))) ->  | F36: =IF(T11<=RebaseYear,"",IF(T11=RebaseYear+1,IF(ISERROR((F35-$C$35)/$C$35),"",(F35-$C$35)/$C$35),IF(ISERROR((F35-E35)/E35),"",(F35-E35)/E35))) ->  | G36: =IF(U11<=RebaseYear,"",IF(U11=RebaseYear+1,IF(ISERROR((G35-$C$35)/$C$35),"",(G35-$C$35)/$C$35),IF(ISERROR((G35-F35)/F35),"",(G35-F35)/F35))) ->  | H36: =IF(W11<=RebaseYear,"",IF(W11=RebaseYear+1,IF(ISERROR((H35-$C$35)/$C$35),"",(H35-$C$35)/$C$35),IF(ISERROR((H35-G35)/G35),"",(H35-G35)/G35))) ->  | I36: =IF(X11<=RebaseYear,"",IF(X11=RebaseYear+1,IF(ISERROR((I35-$C$35)/$C$35),"",(I35-$C$35)/$C$35),IF(ISERROR((I35-H35)/H35),"",(I35-H35)/H35))) ->  | J36: =IF(Y11<=RebaseYear,"",IF(Y11=RebaseYear+1,IF(ISERROR((J35-$C$35)/$C$35),"",(J35-$C$35)/$C$35),IF(ISERROR((J35-I35)/I35),"",(J35-I35)/I35))) ->  | K36: =IF(Z11<=RebaseYear,"",IF(Z11=RebaseYear+1,IF(ISERROR((K35-$C$35)/$C$35),"",(K35-$C$35)/$C$35),IF(ISERROR((K35-J35)/J35),"",(K35-J35)/J35))) ->  | L36: =IF(Z11<=RebaseYear,0,IF(Z11=RebaseYear+1,IF(ISERROR((L35-$C$35)/$C$35),"",(L35-$C$35)/$C$35),IF(ISERROR((L35-K35)/K35),"",(L35-K35)/K35))) -> 
A38: Note:
A40: 1 Historical actuals going back to the last cost of service application are required to be entered by the applicant.
A41: 2 Recoverable OM&A that is included on these tables should be identical to the recoverable OM&A that is shown for the corresponding periods on Appendix 2-JB.
A42: 3 For unrecoverable OM&A Expenses see Section 2.4.3.7

Sheet Hidden_OM&A Summary (hidden)
A1: Utility Name | B1: EB Number | C1: Test Year | D1: Bridge Year | E1: Last Rebasing Year | F1: Heading | G1: Year | H1: Amount
A2: ='LDC Info'!$E$14 -> Burlington Hydro Inc. | B2: =EBNUMBER -> EB-2020-0007 | C2: =TestYear -> 2021 | D2: =BridgeYear -> 2020 | E2: =RebaseYear -> 2014 | F2: Operations | G2: ='App.2-JA_OM&A_Summary_Analys'!$B$12 -> 2014 Last Rebasing Year OEB Approved | H2: ='App.2-JA_OM&A_Summary_Analys'!B$14 -> 0
A3: ='LDC Info'!$E$14 -> Burlington Hydro Inc. | B3: EB-2020-0007 | C3: 2021 | D3: 2020 | E3: 2014 | F3: Maintenance | G3: ='App.2-JA_OM&A_Summary_Analys'!$B$12 -> 2014 Last Rebasing Year OEB Approved | H3: ='App.2-JA_OM&A_Summary_Analys'!B$15 -> 0
A4: ='LDC Info'!$E$14 -> Burlington Hydro Inc. | B4: EB-2020-0007 | C4: 2021 | D4: 2020 | E4: 2014 | F4: Billing and Collecting | G4: ='App.2-JA_OM&A_Summary_Analys'!$B$12 -> 2014 Last Rebasing Year OEB Approved | H4: ='App.2-JA_OM&A_Summary_Analys'!B$19 -> 0
A5: ='LDC Info'!$E$14 -> Burlington Hydro Inc. | B5: EB-2020-0007 | C5: 2021 | D5: 2020 | E5: 2014 | F5: Community Relations | G5: ='App.2-JA_OM&A_Summary_Analys'!$B$12 -> 2014 Last Rebasing Year OEB Approved | H5: ='App.2-JA_OM&A_Summary_Analys'!B$20 -> 0
A6: ='LDC Info'!$E$14 -> Burlington Hydro Inc. | B6: EB-2020-0007 | C6: 2021 | D6: 2020 | E6: 2014 | F6: Administrative and General | G6: ='App.2-JA_OM&A_Summary_Analys'!$B$12 -> 2014 Last Rebasing Year OEB Approved | H6: ='App.2-JA_OM&A_Summary_Analys'!B$21 -> 0
A7: ='LDC Info'!$E$14 -> Burlington Hydro Inc. | B7: EB-2020-0007 | C7: 2021 | D7: 2020 | E7: 2014 | F7: Operations | G7: ='App.2-JA_OM&A_Summary_Analys'!$C$12 -> 2014 Last Rebasing Year Actuals | H7: ='App.2-JA_OM&A_Summary_Analys'!C$14 -> 0
A8: ='LDC Info'!$E$14 -> Burlington Hydro Inc. | B8: EB-2020-0007 | C8: 2021 | D8: 2020 | E8: 2014 | F8: Maintenance | G8: ='App.2-JA_OM&A_Summary_Analys'!$C$12 -> 2014 Last Rebasing Year Actuals | H8: ='App.2-JA_OM&A_Summary_Analys'!C$15 -> 0
A9: ='LDC Info'!$E$14 -> Burlington Hydro Inc. | B9: EB-2020-0007 | C9: 2021 | D9: 2020 | E9: 2014 | F9: Billing and Collecting | G9: ='App.2-JA_OM&A_Summary_Analys'!$C$12 -> 2014 Last Rebasing Year Actuals | H9: ='App.2-JA_OM&A_Summary_Analys'!C$19 -> 0
A10: ='LDC Info'!$E$14 -> Burlington Hydro Inc. | B10: EB-2020-0007 | C10: 2021 | D10: 2020 | E10: 2014 | F10: Community Relations | G10: ='App.2-JA_OM&A_Summary_Analys'!$C$12 -> 2014 Last Rebasing Year Actuals | H10: ='App.2-JA_OM&A_Summary_Analys'!C$20 -> 0
A11: ='LDC Info'!$E$14 -> Burlington Hydro Inc. | B11: EB-2020-0007 | C11: 2021 | D11: 2020 | E11: 2014 | F11: Administrative and General | G11: ='App.2-JA_OM&A_Summary_Analys'!$C$12 -> 2014 Last Rebasing Year Actuals | H11: ='App.2-JA_OM&A_Summary_Analys'!C$21 -> 0
A12: ='LDC Info'!$E$14 -> Burlington Hydro Inc. | B12: EB-2020-0007 | C12: 2021 | D12: 2020 | E12: 2014 | F12: Operations | G12: ='App.2-JA_OM&A_Summary_Analys'!$D$12 -> 2013 Actuals | H12: ='App.2-JA_OM&A_Summary_Analys'!D$14 -> 0
A13: ='LDC Info'!$E$14 -> Burlington Hydro Inc. | B13: EB-2020-0007 | C13: 2021 | D13: 2020 | E13: 2014 | F13: Maintenance | G13: ='App.2-JA_OM&A_Summary_Analys'!$D$12 -> 2013 Actuals | H13: ='App.2-JA_OM&A_Summary_Analys'!D$15 -> 0
A14: ='LDC Info'!$E$14 -> Burlington Hydro Inc. | B14: EB-2020-0007 | C14: 2021 | D14: 2020 | E14: 2014 | F14: Billing and Collecting | G14: ='App.2-JA_OM&A_Summary_Analys'!$D$12 -> 2013 Actuals | H14: ='App.2-JA_OM&A_Summary_Analys'!D$19 -> 0
A15: ='LDC Info'!$E$14 -> Burlington Hydro Inc. | B15: EB-2020-0007 | C15: 2021 | D15: 2020 | E15: 2014 | F15: Community Relations | G15: ='App.2-JA_OM&A_Summary_Analys'!$D$12 -> 2013 Actuals | H15: ='App.2-JA_OM&A_Summary_Analys'!D$20 -> 0
A16: ='LDC Info'!$E$14 -> Burlington Hydro Inc. | B16: EB-2020-0007 | C16: 2021 | D16: 2020 | E16: 2014 | F16: Administrative and General | G16: ='App.2-JA_OM&A_Summary_Analys'!$D$12 -> 2013 Actuals | H16: ='App.2-JA_OM&A_Summary_Analys'!D$21 -> 0
A17: ='LDC Info'!$E$14 -> Burlington Hydro Inc. | B17: EB-2020-0007 | C17: 2021 | D17: 2020 | E17: 2014 | F17: Operations | G17: ='App.2-JA_OM&A_Summary_Analys'!$E$12 -> 2014 Last Rebasing Year Actuals | H17: ='App.2-JA_OM&A_Summary_Analys'!E$14 -> 0
A18: ='LDC Info'!$E$14 -> Burlington Hydro Inc. | B18: EB-2020-0007 | C18: 2021 | D18: 2020 | E18: 2014 | F18: Maintenance | G18: ='App.2-JA_OM&A_Summary_Analys'!$E$12 -> 2014 Last Rebasing Year Actuals | H18: ='App.2-JA_OM&A_Summary_Analys'!E$15 -> 0
A19: ='LDC Info'!$E$14 -> Burlington Hydro Inc. | B19: =EBNUMBER -> EB-2020-0007 | C19: =TestYear -> 2021 | D19: =BridgeYear -> 2020 | E19: =RebaseYear -> 2014 | F19: Billing and Collecting | G19: ='App.2-JA_OM&A_Summary_Analys'!$E$12 -> 2014 Last Rebasing Year Actuals | H19: ='App.2-JA_OM&A_Summary_Analys'!E$19 -> 0
A20: ='LDC Info'!$E$14 -> Burlington Hydro Inc. | B20: EB-2020-0007 | C20: 2021 | D20: 2020 | E20: 2014 | F20: Community Relations | G20: ='App.2-JA_OM&A_Summary_Analys'!$E$12 -> 2014 Last Rebasing Year Actuals | H20: ='App.2-JA_OM&A_Summary_Analys'!E$20 -> 0
A21: ='LDC Info'!$E$14 -> Burlington Hydro Inc. | B21: EB-2020-0007 | C21: 2021 | D21: 2020 | E21: 2014 | F21: Administrative and General | G21: ='App.2-JA_OM&A_Summary_Analys'!$E$12 -> 2014 Last Rebasing Year Actuals | H21: ='App.2-JA_OM&A_Summary_Analys'!E$21 -> 0
A22: ='LDC Info'!$E$14 -> Burlington Hydro Inc. | B22: EB-2020-0007 | C22: 2021 | D22: 2020 | E22: 2014 | F22: Operations | G22: ='App.2-JA_OM&A_Summary_Analys'!$F$12 -> 2015 Actuals | H22: ='App.2-JA_OM&A_Summary_Analys'!F$14 -> 0
A23: ='LDC Info'!$E$14 -> Burlington Hydro Inc. | B23: EB-2020-0007 | C23: 2021 | D23: 2020 | E23: 2014 | F23: Maintenance | G23: ='App.2-JA_OM&A_Summary_Analys'!$F$12 -> 2015 Actuals | H23: ='App.2-JA_OM&A_Summary_Analys'!F$15 -> 0
A24: ='LDC Info'!$E$14 -> Burlington Hydro Inc. | B24: EB-2020-0007 | C24: 2021 | D24: 2020 | E24: 2014 | F24: Billing and Collecting | G24: ='App.2-JA_OM&A_Summary_Analys'!$F$12 -> 2015 Actuals | H24: ='App.2-JA_OM&A_Summary_Analys'!F$19 -> 0
A25: ='LDC Info'!$E$14 -> Burlington Hydro Inc. | B25: EB-2020-0007 | C25: 2021 | D25: 2020 | E25: 2014 | F25: Community Relations | G25: ='App.2-JA_OM&A_Summary_Analys'!$F$12 -> 2015 Actuals | H25: ='App.2-JA_OM&A_Summary_Analys'!F$20 -> 0
A26: ='LDC Info'!$E$14 -> Burlington Hydro Inc. | B26: EB-2020-0007 | C26: 2021 | D26: 2020 | E26: 2014 | F26: Administrative and General | G26: ='App.2-JA_OM&A_Summary_Analys'!$F$12 -> 2015 Actuals | H26: ='App.2-JA_OM&A_Summary_Analys'!F$21 -> 0
A27: ='LDC Info'!$E$14 -> Burlington Hydro Inc. | B27: EB-2020-0007 | C27: 2021 | D27: 2020 | E27: 2014 | F27: Operations | G27: ='App.2-JA_OM&A_Summary_Analys'!$G$12 -> 2016 Actuals | H27: ='App.2-JA_OM&A_Summary_Analys'!G$14 -> 0
A28: ='LDC Info'!$E$14 -> Burlington Hydro Inc. | B28: EB-2020-0007 | C28: 2021 | D28: 2020 | E28: 2014 | F28: Maintenance | G28: ='App.2-JA_OM&A_Summary_Analys'!$G$12 -> 2016 Actuals | H28: ='App.2-JA_OM&A_Summary_Analys'!G$15 -> 0
A29: ='LDC Info'!$E$14 -> Burlington Hydro Inc. | B29: EB-2020-0007 | C29: 2021 | D29: 2020 | E29: 2014 | F29: Billing and Collecting | G29: ='App.2-JA_OM&A_Summary_Analys'!$G$12 -> 2016 Actuals | H29: ='App.2-JA_OM&A_Summary_Analys'!G$19 -> 0
A30: ='LDC Info'!$E$14 -> Burlington Hydro Inc. | B30: EB-2020-0007 | C30: 2021 | D30: 2020 | E30: 2014 | F30: Community Relations | G30: ='App.2-JA_OM&A_Summary_Analys'!$G$12 -> 2016 Actuals | H30: ='App.2-JA_OM&A_Summary_Analys'!G$20 -> 0
A31: ='LDC Info'!$E$14 -> Burlington Hydro Inc. | B31: =EBNUMBER -> EB-2020-0007 | C31: =TestYear -> 2021 | D31: =BridgeYear -> 2020 | E31: =RebaseYear -> 2014 | F31: Administrative and General | G31: ='App.2-JA_OM&A_Summary_Analys'!$G$12 -> 2016 Actuals | H31: ='App.2-JA_OM&A_Summary_Analys'!G$21 -> 0
A32: ='LDC Info'!$E$14 -> Burlington Hydro Inc. | B32: EB-2020-0007 | C32: 2021 | D32: 2020 | E32: 2014 | F32: Operations | G32: ='App.2-JA_OM&A_Summary_Analys'!$H$12 -> 2017 Actuals | H32: ='App.2-JA_OM&A_Summary_Analys'!H$14 -> 0
A33: ='LDC Info'!$E$14 -> Burlington Hydro Inc. | B33: EB-2020-0007 | C33: 2021 | D33: 2020 | E33: 2014 | F33: Maintenance | G33: ='App.2-JA_OM&A_Summary_Analys'!$H$12 -> 2017 Actuals | H33: ='App.2-JA_OM&A_Summary_Analys'!H$15 -> 0
A34: ='LDC Info'!$E$14 -> Burlington Hydro Inc. | B34: EB-2020-0007 | C34: 2021 | D34: 2020 | E34: 2014 | F34: Billing and Collecting | G34: ='App.2-JA_OM&A_Summary_Analys'!$H$12 -> 2017 Actuals | H34: ='App.2-JA_OM&A_Summary_Analys'!H$19 -> 0
A35: ='LDC Info'!$E$14 -> Burlington Hydro Inc. | B35: EB-2020-0007 | C35: 2021 | D35: 2020 | E35: 2014 | F35: Community Relations | G35: ='App.2-JA_OM&A_Summary_Analys'!$H$12 -> 2017 Actuals | H35: ='App.2-JA_OM&A_Summary_Analys'!H$20 -> 0
A36: ='LDC Info'!$E$14 -> Burlington Hydro Inc. | B36: EB-2020-0007 | C36: 2021 | D36: 2020 | E36: 2014 | F36: Administrative and General | G36: ='App.2-JA_OM&A_Summary_Analys'!$H$12 -> 2017 Actuals | H36: ='App.2-JA_OM&A_Summary_Analys'!H$21 -> 0
A37: ='LDC Info'!$E$14 -> Burlington Hydro Inc. | B37: EB-2020-0007 | C37: 2021 | D37: 2020 | E37: 2014 | F37: Operations | G37: ='App.2-JA_OM&A_Summary_Analys'!$I$12 -> 2018 Actuals | H37: ='App.2-JA_OM&A_Summary_Analys'!I$14 -> 0
A38: ='LDC Info'!$E$14 -> Burlington Hydro Inc. | B38: EB-2020-0007 | C38: 2021 | D38: 2020 | E38: 2014 | F38: Maintenance | G38: ='App.2-JA_OM&A_Summary_Analys'!$I$12 -> 2018 Actuals | H38: ='App.2-JA_OM&A_Summary_Analys'!I$15 -> 0
A39: ='LDC Info'!$E$14 -> Burlington Hydro Inc. | B39: EB-2020-0007 | C39: 2021 | D39: 2020 | E39: 2014 | F39: Billing and Collecting | G39: ='App.2-JA_OM&A_Summary_Analys'!$I$12 -> 2018 Actuals | H39: ='App.2-JA_OM&A_Summary_Analys'!I$19 -> 0
A40: ='LDC Info'!$E$14 -> Burlington Hydro Inc. | B40: EB-2020-0007 | C40: 2021 | D40: 2020 | E40: 2014 | F40: Community Relations | G40: ='App.2-JA_OM&A_Summary_Analys'!$I$12 -> 2018 Actuals | H40: ='App.2-JA_OM&A_Summary_Analys'!I$20 -> 0
A41: ='LDC Info'!$E$14 -> Burlington Hydro Inc. | B41: EB-2020-0007 | C41: 2021 | D41: 2020 | E41: 2014 | F41: Administrative and General | G41: ='App.2-JA_OM&A_Summary_Analys'!$I$12 -> 2018 Actuals | H41: ='App.2-JA_OM&A_Summary_Analys'!I$21 -> 0
A42: ='LDC Info'!$E$14 -> Burlington Hydro Inc. | B42: =EBNUMBER -> EB-2020-0007 | C42: =TestYear -> 2021 | D42: =BridgeYear -> 2020 | E42: =RebaseYear -> 2014 | F42: Operations | G42: ='App.2-JA_OM&A_Summary_Analys'!$J$12 -> 2019 Actuals | H42: ='App.2-JA_OM&A_Summary_Analys'!J$14 -> 0
A43: ='LDC Info'!$E$14 -> Burlington Hydro Inc. | B43: EB-2020-0007 | C43: 2021 | D43: 2020 | E43: 2014 | F43: Maintenance | G43: ='App.2-JA_OM&A_Summary_Analys'!$J$12 -> 2019 Actuals | H43: ='App.2-JA_OM&A_Summary_Analys'!J$15 -> 0
A44: ='LDC Info'!$E$14 -> Burlington Hydro Inc. | B44: EB-2020-0007 | C44: 2021 | D44: 2020 | E44: 2014 | F44: Billing and Collecting | G44: ='App.2-JA_OM&A_Summary_Analys'!$J$12 -> 2019 Actuals | H44: ='App.2-JA_OM&A_Summary_Analys'!J$19 -> 0
A45: ='LDC Info'!$E$14 -> Burlington Hydro Inc. | B45: EB-2020-0007 | C45: 2021 | D45: 2020 | E45: 2014 | F45: Community Relations | G45: ='App.2-JA_OM&A_Summary_Analys'!$J$12 -> 2019 Actuals | H45: ='App.2-JA_OM&A_Summary_Analys'!J$20 -> 0
A46: ='LDC Info'!$E$14 -> Burlington Hydro Inc. | B46: EB-2020-0007 | C46: 2021 | D46: 2020 | E46: 2014 | F46: Administrative and General | G46: ='App.2-JA_OM&A_Summary_Analys'!$J$12 -> 2019 Actuals | H46: ='App.2-JA_OM&A_Summary_Analys'!J$21 -> 0
A47: ='LDC Info'!$E$14 -> Burlington Hydro Inc. | B47: EB-2020-0007 | C47: 2021 | D47: 2020 | E47: 2014 | F47: Operations | G47: ='App.2-JA_OM&A_Summary_Analys'!$K$12 -> 2020 Bridge Year | H47: ='App.2-JA_OM&A_Summary_Analys'!K$14 -> 0
A48: ='LDC Info'!$E$14 -> Burlington Hydro Inc. | B48: EB-2020-0007 | C48: 2021 | D48: 2020 | E48: 2014 | F48: Maintenance | G48: ='App.2-JA_OM&A_Summary_Analys'!$K$12 -> 2020 Bridge Year | H48: ='App.2-JA_OM&A_Summary_Analys'!K$15 -> 0
A49: ='LDC Info'!$E$14 -> Burlington Hydro Inc. | B49: EB-2020-0007 | C49: 2021 | D49: 2020 | E49: 2014 | F49: Billing and Collecting | G49: ='App.2-JA_OM&A_Summary_Analys'!$K$12 -> 2020 Bridge Year | H49: ='App.2-JA_OM&A_Summary_Analys'!K$19 -> 0
A50: ='LDC Info'!$E$14 -> Burlington Hydro Inc. | B50: EB-2020-0007 | C50: 2021 | D50: 2020 | E50: 2014 | F50: Community Relations | G50: ='App.2-JA_OM&A_Summary_Analys'!$K$12 -> 2020 Bridge Year | H50: ='App.2-JA_OM&A_Summary_Analys'!K$20 -> 0
A51: ='LDC Info'!$E$14 -> Burlington Hydro Inc. | B51: EB-2020-0007 | C51: 2021 | D51: 2020 | E51: 2014 | F51: Administrative and General | G51: ='App.2-JA_OM&A_Summary_Analys'!$K$12 -> 2020 Bridge Year | H51: ='App.2-JA_OM&A_Summary_Analys'!K$21 -> 0
A52: ='LDC Info'!$E$14 -> Burlington Hydro Inc. | B52: EB-2020-0007 | C52: 2021 | D52: 2020 | E52: 2014 | F52: Operations | G52: ='App.2-JA_OM&A_Summary_Analys'!$L$12 -> 2021 Test Year | H52: ='App.2-JA_OM&A_Summary_Analys'!L14 -> 0
A53: ='LDC Info'!$E$14 -> Burlington Hydro Inc. | B53: EB-2020-0007 | C53: 2021 | D53: 2020 | E53: 2014 | F53: Maintenance | G53: ='App.2-JA_OM&A_Summary_Analys'!$L$12 -> 2021 Test Year | H53: ='App.2-JA_OM&A_Summary_Analys'!L15 -> 0
A54: ='LDC Info'!$E$14 -> Burlington Hydro Inc. | B54: EB-2020-0007 | C54: 2021 | D54: 2020 | E54: 2014 | F54: Billing and Collecting | G54: ='App.2-JA_OM&A_Summary_Analys'!$L$12 -> 2021 Test Year | H54: ='App.2-JA_OM&A_Summary_Analys'!L19 -> 0
A55: ='LDC Info'!$E$14 -> Burlington Hydro Inc. | B55: EB-2020-0007 | C55: 2021 | D55: 2020 | E55: 2014 | F55: Community Relations | G55: ='App.2-JA_OM&A_Summary_Analys'!$L$12 -> 2021 Test Year | H55: ='App.2-JA_OM&A_Summary_Analys'!L20 -> 0
A56: ='LDC Info'!$E$14 -> Burlington Hydro Inc. | B56: EB-2020-0007 | C56: 2021 | D56: 2020 | E56: 2014 | F56: Administrative and General | G56: ='App.2-JA_OM&A_Summary_Analys'!$L$12 -> 2021 Test Year | H56: ='App.2-JA_OM&A_Summary_Analys'!L21 -> 0

Sheet App.2-JB_OM&A_Cost _Drivers
I1: File Number: | J1: =EBNUMBER -> EB-2020-0007
I2: Exhibit:
I3: Tab:
I4: Schedule:
I5: Page:
I7: Date:
A10: Appendix 2-JB
A11: ="Recoverable OM&A Cost Driver Table" & CHAR(185)&CHAR(183)&CHAR(179) -> Recoverable OM&A Cost Driver Table¹·³
A13: OM&A | B13: ="Last Rebasing Year ("&RebaseYear&" Actuals)" -> Last Rebasing Year (2014 Actuals) | C13: =BridgeYear -6 & " Actuals (MIFRS)" -> 2014 Actuals (MIFRS) | D13: =BridgeYear -5 & " Actuals" -> 2015 Actuals | E13: =BridgeYear -4 & " Actuals" -> 2016 Actuals | F13: =BridgeYear -3 & " Actuals" -> 2017 Actuals | G13: =BridgeYear -2 & " Actuals" -> 2018 Actuals | H13: =BridgeYear -1 & " Actuals" -> 2019 Actuals | I13: =BridgeYear & " Bridge Year" -> 2020 Bridge Year | J13: =TestYear & " Test Year" -> 2021 Test Year
A14: Reporting Basis
A15: Opening Balance² | C15: =+B32 -> 0 | D15: =+C32 -> 
A16: Salaries and Benefits | D16: 493184.88
A17: Incentive Pay and Director Remuneration
A18: Contracted Labour | D18: 135033
A19: Temporary Staff | D19: 81475.91
A20: Consulting Fees | D20: 72625.91
A21: Postage/Mail Service/Stationery | D21: 30839
A22: Bad Debt Expense | D22: -115410
A23: Rate Rebasing Costs | D23: 0
A24: OEB Regulatory Costs | D24: 12857
A25: Computer Software | D25: -193882.3
A26: Locates | D26: -150217
A27: Vegetation Management | D27: 266235.4
A28: Materials - Distribution Mtce/Ops | D28: 164442
A29: Materials - Station Mtce/Ops | D29: -147795
A30: Allocated Depreciation in OM&A
A31: Other | C31: =-#REF!+#REF! ->  | D31: 218896.74
A32: ="Closing Balance"&CHAR(178) -> Closing Balance² | B32: =SUM(B15:B31) -> 0 | E32: 0 | F32: 0 | G32: 0 | H32: 0 | I32: 0 | J32: 0
A34: Notes:
A36: 1 | B36: For each year, a detailed explanation for each cost driver and associated amount is required in Exhibit 4.
A37: 2 | B37: Opening Balance for "Last Rebasing Year" (cell B15) should be equal to the OEB-Approved amount. For purposes of assessing incremental cost drivers, the closing balance for each year becomes the opening balance for the next year.
A38: 3 | B38: If it has been more than four years since the applicant last filed a cost of service application, additional years of historical actuals should be incorporated into the table, as necessary, to go back to the last cost of service application. If the applicant last filed a cost of service application less than four years ago, a minimum of three years of actual information is required.

Sheet App.2-JC_OMA Programs
L1: File Number: | M1: =EBNUMBER -> EB-2020-0007
L2: Exhibit:
L3: Tab:
L4: Schedule:
L5: Page:
L7: Date:
A9: Appendix 2-JC
A10: OM&A Programs Table
A13: Programs | B13: ="Last Rebasing Year (" & RebaseYear & " OEB-Approved)" -> Last Rebasing Year (2014 OEB-Approved) | C13: ="Last Rebasing Year (" & RebaseYear & " Actuals)" -> Last Rebasing Year (2014 Actuals) | D13: =BridgeYear-7&" Actuals" -> 2013 Actuals | E13: =BridgeYear-6&" Actuals (MIFRS)" -> 2014 Actuals (MIFRS) | F13: =BridgeYear-5&" Actuals" -> 2015 Actuals | G13: =BridgeYear-4&" Actuals" -> 2016 Actuals | H13: =BridgeYear-3&" Actuals" -> 2017 Actuals | I13: =BridgeYear -2 & " Actuals" -> 2018 Actuals | J13: =BridgeYear -1 & " Actuals" -> 2019 Actuals | K13: =BridgeYear & " Bridge Year" -> 2020 Bridge Year | L13: =TestYear & " Test Year" -> 2021 Test Year | M13: ="Variance (Test Year vs. " & J13 &")" -> Variance (Test Year vs. 2019 Actuals) | N13: ="Variance (Test Year vs. " & B13 -> Variance (Test Year vs. Last Rebasing Year (2014 OEB-Approved)
A14: Reporting Basis
A15: Accounting
A16: Accounting | M16: =L16-J16 -> 0 | N16: =L16-C16 -> 0
A17: Sub-Total | M17: =L17-J17 -> 0 | N17: =L17-C17 -> 0
A18: Administration
A19: Salaries and Benefits | M19: =L19-J19 -> 0 | N19: =L19-C19 -> 0
A20: Incentive Pay and Director Remuneration | M20: 0 | N20: 0
A21: Insurance | M21: =L21-J21 -> 0 | N21: 0
A22: Memberships and Dues | M22: 0 | N22: 0
A23: Professional Fees | M23: 0 | N23: 0
A24: Bank Fees | M24: 0 | N24: 0
A25: Administration - All Other | M25: 0 | N25: 0
A26: Sub-Total | M26: 0 | N26: 0
A27: Billing
A28: Salaries and Benefits | N28: =L28-C28 -> 0
A29: Postage | M29: 0 | N29: 0
A30: Mail Service Contract - Billing | M30: 0 | N30: 0
A31: Stationery | M31: 0 | N31: 0
A32: Billing - All Other | M32: 0 | N32: 0
A33: Sub-Total | M33: 0 | N33: 0
A34: Communications
A35: Salaries and Benefits | M35: =L35-J35 -> 0 | N35: =L35-C35 -> 0
A36: Customer Communications | M36: =L36-J36 -> 0 | N36: =L36-C36 -> 0
A37: BHI Website | M37: 0 | N37: 0
A38: Communications - All Other | M38: 0 | N38: 0
A39: Sub-Total | M39: 0 | N39: 0
A40: Control Room
A41: Salaries and Benefits | M41: =L41-J41 -> 0 | N41: =L41-C41 -> 0
A42: Maintenance | M42: =L42-J42 -> 0 | N42: =L42-C42 -> 0
A43: Bell Canada Line Rental | M43: =L43-J43 -> 0 | N43: 0
A44: Tower Rental | M44: 0 | N44: 0
A45: Fibre Connection - Milton Control Room | M45: 0 | N45: 0
A46: Control Room - All Other | M46: 0 | N46: 0
A47: Sub-Total | M47: 0 | N47: 0
A48: Customer Service
A49: Salaries and Benefits | M49: =L49-J49 -> 0 | N49: =L49-C49 -> 0
A50: Temporary Staff
A51: Bad Debt Expense | M51: =L51-J51 -> 0 | N51: =L51-C51 -> 0
A52: Collections | M52: 0 | N52: 0
A53: Credit Checks/Insurance/Risk Monitoring | M53: 0 | N53: 0
A54: Lockbox | M54: 0 | N54: 0
A55: Interactive Voice Response | M55: 0 | N55: 0
A56: Telephone Answering Service | M56: 0 | N56: 0
A57: Customer Service - All Other | M57: 0 | N57: 0
A58: Sub-Total | M58: 0 | N58: 0
A59: Distribution Maintenance and Operations
A60: Salaries and Benefits | M60: =L60-J60 -> 0 | N60: =L60-C60 -> 0
A61: Temporary Staff | M61: =L61-J61 -> 0 | N61: =L61-C61 -> 0
A62: Contracted Labour | M62: 0 | N62: 0
A63: Materials - Distribution Mtce and Ops | M63: 0 | N63: 0
A64: Vegetation Management
A65: Locates | M65: 0 | N65: 0
A66: Equipment Maintenance/Repairs | M66: =L66-J66 -> 0 | N66: =L66-C66 -> 0
A67: Insulator Washing | M67: 0 | N67: 0
A68: Switch Cubicle Cleaning | M68: =L68-J68 -> 0 | N68: =L68-C68 -> 0
A69: PCB Cleanup/Disposal | M69: 0 | N69: 0
A70: Feeder Rental | M70: 0 | N70: 0
A71: Easements | M71: =L71-J71 -> 0 | N71: =L71-C71 -> 0
A72: Tools and Clothing | M72: 0 | N72: 0
A73: Distribution Mtce and Ops - All Other | M73: 0 | N73: 0
A74: Sub-Total | M74: 0 | N74: 0
A75: Engineering
A76: Salaries and Benefits | M76: =L76-J76 -> 0 | N76: =L76-C76 -> 0
A77: Temporary Staff
A78: Consultants | M78: 0 | N78: 0
A79: Computer Software | M79: 0 | N79: 0
A80: Design and Estimates | M80: 0 | N80: 0
A81: GIS/OMS Licensing and Support | M81: 0 | N81: 0
A82: Memberships and Dues | M82: 0 | N82: 0
A83: Software Amortization
A84: Pole/Cable Testing | M84: 0 | N84: 0
A85: Prints and Supplies | M85: 0 | N85: 0
A86: Engineering - All Other | M86: 0 | N86: 0
A87: Allocated to Capital/Billable | M87: 0 | N87: 0
A88: Sub-Total | M88: 0 | N88: 0
A89: Facilities
A90: Facilities | M90: =L90-J90 -> 0 | N90: =L90-C90 -> 0
A91: Sub-Total | M91: 0 | N91: 0
A92: Fleet
A93: Fleet | M93: =L93-J93 -> 0 | N93: =L93-C93 -> 0
A94: Sub-Total | M94: 0 | N94: 0
A95: Human Resources
A96: Salaries and Benefits | M96: =L96-J96 -> 0 | N96: =L96-C96 -> 0
A97: Temporary Staff | M97: =L97-J97 -> 0 | N97: =L97-C97 -> 0
A98: Union Expenses | M98: 0 | N98: 0
A99: Retiree Benefits and Group Insurance | M99: 0 | N99: 0
A100: Consultants | M100: 0 | N100: 0
A101: Professional Fees | M101: =L101-J101 -> 0 | N101: =L101-C101 -> 0
A102: Payroll Software | M102: 0 | N102: 0
A103: Advertising | M103: =L103-J103 -> 0 | N103: =L103-C103 -> 0
A104: Health and Wellness | M104: =L104-J104 -> 0 | N104: =L104-C104 -> 0
A105: Human Resources - All Other | M105: 0 | N105: 0
A106: Sub-Total | M106: 0 | N106: 0
A107: Information Services
A108: Salaries and Benefits | M108: =L108-J108 -> 0 | N108: =L108-C108 -> 0
A109: Temporary Staff | M109: =L109-J109 -> 0 | N109: =L109-C109 -> 0
A110: Consultants | M110: =L110-J110 -> 0 | N110: =L110-C110 -> 0
A111: Software - Annual Maintenance | M111: =L111-J111 -> 0 | N111: =L111-C111 -> 0
A112: Software Amortization | M112: 0 | N112: 0
A113: Hardware - Annual Maintenance | M113: 0 | N113: 0
A114: Hosting Services/Telecommunications | M114: =L114-J114 -> 0 | N114: =L114-C114 -> 0
A115: Cyber Security | M115: 0 | N115: 0
A116: Disaster Recovery | M116: 0 | N116: 0
A117: Information Services - All Other | M117: 0 | N117: 0
A118: Sub-Total | M118: 0 | N118: 0
A119: Metering
A120: Salaries and Benefits | M120: =L120-J120 -> 0 | N120: =L120-C120 -> 0
A121: Contracted Labour
A122: AMI Operations
A123: Computer Software - MV90/Maintenance | M123: 0 | N123: 0
A124: Wholesale Settlement and Web Presentment | M124: 0 | N124: 0
A125: Communications | M125: 0 | N125: 0
A126: Metering - All Other | M126: 0 | N126: 0
A127: Sub-Total | M127: 0 | N127: 0
A128: Regulatory
A129: Salaries and Benefits | M129: =L129-J129 -> 0 | N129: =L129-C129 -> 0
A130: OEB Regulatory Costs | M130: =L130-J130 -> 0 | N130: =L130-C130 -> 0
A131: Rate Rebasing Costs | M131: 0 | N131: 0
A132: IRM Filing Costs | M132: 0 | N132: 0
A133: Leap Funding | M133: 0 | N133: 0
A134: Regulatory - All Other | M134: 0 | N134: 0
A135: Sub-Total | M135: 0 | N135: 0
A136: Safety
A137: Salaries and Benefits | M137: =L137-J137 -> 0 | N137: =L137-C137 -> 0
A138: Consultants | M138: =L138-J138 -> 0 | N138: =L138-C138 -> 0
A139: Training - Apprenticeships/Other | M139: 0 | N139: 0
A140: Safety Management System | M140: 0 | N140: 0
A141: Public Safety Campaign | M141: 0 | N141: 0
A142: Safety - All Other | M142: 0 | N142: 0
A143: Sub-Total | M143: 0 | N143: 0
A144: Stations Maintenance and Operations
A145: Salaries and Benefits | M145: =L145-J145 -> 0 | N145: =L145-C145 -> 0
A146: Materials - Station Mtce/Ops | M146: =L146-J146 -> 0 | N146: =L146-C146 -> 0
A147: Building Operations and Maintenance | M147: 0 | N147: 0
A148: Insurance | M148: 0 | N148: 0
A149: Telephone/Utilities | M149: =L149-J149 -> 0 | N149: =L149-C149 -> 0
A150: Leases/Rent | M150: 0 | N150: 0
A151: Oil Tests | M151: 0 | N151: 0
A152: Software Maintenance | M152: 0 | N152: 0
A153: Station Mtce/Ops - All Other | M153: 0 | N153: 0
A154: Sub-Total | M154: 0 | N154: 0
A155: Other FTE Adjustment
A156: Other FTE Adjustment | M156: =L156-J156 -> 0 | N156: =L156-C156 -> 0
A157: Sub-Total | M157: 0 | N157: 0
A158: Miscellaneous | M158: 0 | N158: =L158-C158 -> 0
A159: Total | B159: =SUMPRODUCT(--($A15:$A158="Sub-Total"), B$15:B$158)+B158 -> 0 | C159: 0 | D159: 0 | E159: 0 | F159: 0 | G159: 0 | H159: 0 | I159: 0 | J159: 0 | K159: 0 | L159: 0 | M159: =L159-J159 -> 0 | N159: =L159-C159 -> 0
A161: Notes:
A163: 1 Please provide a breakdown of the major components of each OM&A Program undertaken in each year. Please ensure that all programs below the materiality threshold are included in the miscellaneous line. Add more Programs as required.

Sheet App.2-K_Employee Costs
Y1: File Number: | Z1: =EBNUMBER -> EB-2020-0007
Y2: Exhibit:
Y3: Tab:
A4: TO BE UPDATED AT THE DRAFT RATE ORDER STAGE | Y4: Schedule:
Y5: Page:
Y7: Date:
A9: Appendix 2-K
A10: Employee Costs
B12: Last Rebasing Year (2010 OEB Approved) | C12: Last Rebasing Year (2010 Actuals) | D12: ="Last Rebasing Year (" & TestYear -8 & " OEB Approved)" -> Last Rebasing Year (2013 OEB Approved) | E12: ="Last Rebasing Year (" & TestYear -8 & " Actuals)" -> Last Rebasing Year (2013 Actuals) | F12: =TestYear -8 & " Actuals" -> 2013 Actuals | G12: ="Last Rebasing Year (" & TestYear -7 & " OEB Approved)" -> Last Rebasing Year (2014 OEB Approved) | H12: ="Last Rebasing Year (" & TestYear -7 & " Actuals)" -> Last Rebasing Year (2014 Actuals) | I12: =TestYear -7 & " Actuals" -> 2014 Actuals | J12: ="Last Rebasing Year (" & TestYear -6 & " OEB Approved)" -> Last Rebasing Year (2015 OEB Approved) | K12: ="Last Rebasing Year (" & TestYear -6 & " Actuals)" -> Last Rebasing Year (2015 Actuals) | L12: =TestYear -6 & " Actuals" -> 2015 Actuals | M12: ="Last Rebasing Year (" & TestYear -5 & " OEB Approved)" -> Last Rebasing Year (2016 OEB Approved) | N12: ="Last Rebasing Year (" & TestYear -5 & " Actuals)" -> Last Rebasing Year (2016 Actuals) | O12: =TestYear -5 & " Actuals" -> 2016 Actuals | P12: ="Last Rebasing Year (" & TestYear -4 & " OEB Approved)" -> Last Rebasing Year (2017 OEB Approved) | Q12: ="Last Rebasing Year (" & TestYear -4 & " Actuals)" -> Last Rebasing Year (2017 Actuals) | R12: =TestYear -4 & " Actuals" -> 2017 Actuals | S12: ="Last Rebasing Year (" & TestYear -3 & " OEB Approved)" -> Last Rebasing Year (2018 OEB Approved) | T12: ="Last Rebasing Year (" & TestYear -3 & " Actuals)" -> Last Rebasing Year (2018 Actuals) | U12: =TestYear -3 & " Actuals" -> 2018 Actuals | V12: ="Last Rebasing Year (" & TestYear -2 & " OEB Approved)" -> Last Rebasing Year (2019 OEB Approved) | W12: ="Last Rebasing Year (" & TestYear -2 & " Actuals)" -> Last Rebasing Year (2019 Actuals) | X12: =TestYear -2 & " Actuals" -> 2019 Actuals | Y12: =BridgeYear & " Bridge Year" -> 2020 Bridge Year | Z12: =TestYear & " Test Year" -> 2021 Test Year
A13: Number of Employees (FTEs including Part-Time)1
A14: Management (including executive)
A15: Non-Management (union and non-union)
A16: Total | B16: =SUM(B14:B15) -> 0 | C16: 0 | D16: 0 | E16: 0 | F16: 0 | G16: 0 | H16: 0 | I16: 0 | J16: 0 | K16: 0 | L16: 0 | M16: 0 | N16: 0 | O16: 0 | P16: 0 | Q16: 0 | R16: 0 | S16: 0 | T16: 0 | U16: 0 | V16: 0 | W16: 0 | X16: 0 | Y16: 0 | Z16: 0
A17: Total Salary and Wages including ovetime and incentive pay
A18: Management (including executive)
A19: Non-Management (union and non-union)
